Workbook

Sheet 入力
B5: ※青字は必須項目
B6: 入力項目 | H6: 既存処理
C8: 処理水量(日最大)＊ | D8: 20000 | E8: ㎥/日 | I8: 消化の有無 | J8: =_xlfn.XLOOKUP(K8,'■マスタ（国総研専用）'!W:W,'■マスタ（国総研専用）'!V:V,"ERROR",0) -> 1 | K8: 有
C10: 処理水量(日平均)＊ | D10: 15000 | E10: ㎥/日 | I10: 脱水汚泥の処理 | J10: =_xlfn.XLOOKUP(K10,'■マスタ（国総研専用）'!Z:Z,'■マスタ（国総研専用）'!Y:Y,"ERROR",0) -> 4 | K10: 肥料化(堆肥)
C12: 生ごみ受入れ量＊ | D12: 3 | E12: t/日 | I12: 事業者分類 | J12: =_xlfn.XLOOKUP(K12,'■マスタ（国総研専用）'!AC:AC,'■マスタ（国総研専用）'!AB:AB,"ERROR",0) -> 1 | K12: 公共
C14: 投入頻度＊ | D14: 5 | E14: 日/週
C16: デフレーター（2015年基準） | E16: - | F16: *空白の場合2022年度(暫定)の値で算出されます
C18: 濃縮汚泥量(日最大) | E18: ㎥/日 | F18: *空欄の場合、処理水量から代表値で算定します
C20: 濃縮汚泥量(日平均) | E20: ㎥/日 | F20: *空欄の場合、処理水量から代表値で算定します
C22: 汚泥の含水率 | E22: ％ | F22: *空欄の場合、処理水量から代表値で算定します
B25: 【入力条件について】 | F25: 【参考図】 | G25: 入力項目の想定箇所（図は連携パターン１）
B26: 本ツールは、生ごみ受入れ事業の構想検討における初期段階で、各種資源利用の経済性・
B27: 環境性について、最低限の入力項目により相対比較することを想定しています。
B28: 入力条件（処理水量等）の設定にあたり、計画値、実績値のいずれを用いるか等は、
B29: 利用者において検討目的に応じてご判断ください。
B31: 【出典】
B32: 国土技術政策総合研究所資料 第1337号
B33: 資 料 名：下水処理場における生ごみ受入れ事業の検討に関する技術資料
B34: 担当研究室：上下水道研究部 下水処理研究室
B35: Ｕ Ｒ Ｌ：https://www.nilim.go.jp/lab/ecg/r8_namagomi.htm
G36: ○処理水量
G37: ○生ごみ受け入れ量
G38: ○濃縮汚泥量

Sheet 諸元(編集可)
A1: シート名：諸元
B2: 試算条件の整理
B3: ※返流水の影響は考慮しない
A5: 項目 | D5: 値 | E5: 単位 | F5: デフォルト値 | G5: 設定根拠
A6: 施設の運転に関する項目 | B6: 処理場条件 | C6: 水処理方法 | D6: 標準法 | E6: - | F6: ='■マスタ（国総研専用）'!Q5 -> 標準法 | G6: -
C7: 流入水SS | D7: 180 | E7: mg/L | F7: ='■マスタ（国総研専用）'!Q6 -> 180 | G7: 下水道施設計画・設計指針と解説を参考に設定
C8: 最初沈殿池SS除去率 | D8: 50 | E8: ％ | F8: ='■マスタ（国総研専用）'!Q7 -> 50 | G8: 下水道施設計画・設計指針と解説(p49)を参考に設定
C9: 二次処理除去率 | D9: 86 | E9: ％ | F9: ='■マスタ（国総研専用）'!Q8 -> 86 | G9: 下水道施設計画・設計指針と解説を参考に設定
B10: 投入生ごみ | C10: 投入生ごみ変動倍率 | D10: 1.2 | E10: - | F10: ='■マスタ（国総研専用）'!Q9 -> 1.2 | G10: 仮定
C11: 含水率 | D11: 80 | E11: ％ | F11: ='■マスタ（国総研専用）'!Q10 -> 80 | G11: 「下水処理場における地域バイオマス利活用マニュアル」より生ごみの値を参考に設定
C12: 有機物含有比 | D12: 0.95 | E12: - | F12: ='■マスタ（国総研専用）'!Q11 -> 0.95 | G12: 「下水処理場における地域バイオマス利活用マニュアル」より生ごみの値を参考に設定
C13: 発酵不適物割合 | D13: 20 | E13: % | F13: ='■マスタ（国総研専用）'!Q12 -> 20 | G13: 北広島市提供資料,生ごみ外バイオマス化処理施設設計委託,容量計算の条件「生ごみ内の夾雑物15～20％と見込む」より
C14: ガス転換率 | D14: 0.95 | E14: N㎥/kgVS | F14: ='■マスタ（国総研専用）'!Q13 -> 0.95 | G14: 「下水処理場における地域バイオマス利活用マニュアル」より生ごみの値を参考に設定
C15: 消化率 | D15: 77.5 | E15: ％ | F15: ='■マスタ（国総研専用）'!Q14 -> 77.5 | G15: 「下水処理場における地域バイオマス利活用マニュアル」より生ごみの値を参考に設定
C16: 希釈処理後含水率 | D16: 90 | E16: ％ | F16: ='■マスタ（国総研専用）'!Q15 -> 90 | G16: メーカーヒアリングよりポンプ輸送が可能な含水率
C17: 投入頻度 | D17: 5 | E17: 日/週 | F17: ='■マスタ（国総研専用）'!Q16 -> 5 | G17: 仮定
C18: 生ごみ混合槽滞留時間 | D18: 2 | E18: 日 | F18: ='■マスタ（国総研専用）'!Q17 -> 2 | G18: 下水処理場へのバイオマス（生ごみ等）受け入れマニュアル、p67、費用関数の設定条件より
B19: 下水汚泥 | C19: 濃縮汚泥含水率 | D19: 98 | E19: ％ | F19: ='■マスタ（国総研専用）'!Q18 -> 98 | G19: 標準的な値
C20: 濃縮汚泥回収率 | D20: 100 | E20: % | F20: ='■マスタ（国総研専用）'!Q19 -> 100 | G20: 仮定
C21: 有機物含有率 | D21: 0.8 | E21: - | F21: ='■マスタ（国総研専用）'!Q20 -> 0.8 | G21: 「下水処理場における地域バイオマス利活用マニュアル」より下水汚泥の値を参考に設定
C22: ガス転換率 | D22: 0.55 | E22: N㎥/kgVS | F22: ='■マスタ（国総研専用）'!Q21 -> 0.55 | G22: 「下水処理場における地域バイオマス利活用マニュアル」より下水汚泥の値を参考に設定
C23: 消化率 | D23: 50 | E23: ％ | F23: ='■マスタ（国総研専用）'!Q22 -> 50 | G23: 「下水処理場における地域バイオマス利活用マニュアル」より下水汚泥の値を参考に設定
B24: 消化運転 | C24: 消化ガスの発熱量 | D24: 21 | E24: MJ/N㎥ | F24: ='■マスタ（国総研専用）'!Q23 -> 21 | G24: 下水汚泥エネルギー化技術ガイドラインを参考に設定(メタン６０％)
C25: 加温ガス割合 | D25: 32 | E25: ％ | F25: ='■マスタ（国総研専用）'!Q24 -> 32 | G25: 下水汚泥エネルギー化技術ガイドラインケーススタディを参考に設定
C26: 発電効率 | D26: 35 | E26: ％ | F26: ='■マスタ（国総研専用）'!Q25 -> 35 | G26: 下水汚泥エネルギー化技術ガイドラインを参考に設定
C27: 稼働率 | D27: 99 | E27: ％ | F27: ='■マスタ（国総研専用）'!Q26 -> 99 | G27: 下水汚泥エネルギー化技術ガイドラインケーススタディを参考に設定
C28: 消化日数 | D28: 20 | E28: 日 | F28: ='■マスタ（国総研専用）'!Q27 -> 20 | G28: 下水道施設計画・設計指針と解説を参考に設定
C29: ガスタンク貯留日数 | D29: 0.5 | E29: 日 | F29: ='■マスタ（国総研専用）'!Q28 -> 0.5 | G29: 下水道施設計画・設計指針と解説を参考に設定
B30: 脱水汚泥 | C30: 回収率 | D30: 100 | E30: ％ | F30: ='■マスタ（国総研専用）'!Q29 -> 100 | G30: 仮定
C31: 含水率 | D31: 80 | E31: ％ | F31: ='■マスタ（国総研専用）'!Q30 -> 80 | G31: 標準的な値
B32: 乾燥処理 | C32: 乾燥燃料含水率 | D32: 10 | E32: ％ | F32: ='■マスタ（国総研専用）'!Q31 -> 10 | G32: 下水道施設計画・設計指針と解説(p619)下水汚泥固形燃料の基本物性を参考に設定
C33: 乾燥燃料熱量(未消化) | D33: 21 | E33: MJ/kg | F33: ='■マスタ（国総研専用）'!Q32 -> 21 | G33: 下水道施設計画・設計指針と解説(p620)下水汚泥固形燃料の燃料特性を参考に設定
C34: 乾燥燃料熱量(消化) | D34: 17 | E34: MJ/kg | F34: ='■マスタ（国総研専用）'!Q33 -> 17 | G34: 下水道施設計画・設計指針と解説(p620)下水汚泥固形燃料の燃料特性を参考に設定
C35: 重油熱量 | D35: 38.9 | E35: MJ/L | F35: ='■マスタ（国総研専用）'!Q34 -> 38.9 | G35: エネルギー源別標準発熱量・炭素排出係数(2018年度改定)の解説,より
B36: 炭化処理 | C36: 炭化汚泥灰分（消化汚泥） | D36: 44 | E36: % | F36: 44 | G36: 下水道施設計画・設計指針と解説(p619)下水汚泥固形燃料の基本物性を参考に設定
C37: 炭化汚泥灰分（未消化汚泥） | D37: 26 | E37: % | F37: 26 | G37: 下水道施設計画・設計指針と解説(p619)下水汚泥固形燃料の基本物性を参考に設定
C38: 炭化汚泥含水率（消化汚泥） | D38: 4 | E38: ％ | F38: 4 | G38: 下水道施設計画・設計指針と解説(p619)下水汚泥固形燃料の基本物性を参考に設定
C39: 炭化汚泥含水率（未消化汚泥） | D39: 1 | E39: ％ | F39: 1 | G39: 下水道施設計画・設計指針と解説(p619)下水汚泥固形燃料の基本物性を参考に設定
C40: 炭化燃料発熱量 | D40: 15 | E40: MJ/kg | F40: ='■マスタ（国総研専用）'!Q39 -> 15 | G40: 下水道施設計画・設計指針と解説(p626)JIS規格で求められる品質より
B41: 堆肥化 | C41: 堆肥化有機物分解率 | D41: 35 | E41: % | F41: ='■マスタ（国総研専用）'!Q40 -> 35 | G41: 下水道施設計画・設計指針と解説(p587)計算例の中間値より
C42: 堆肥含水率 | D42: 40 | E42: % | F42: ='■マスタ（国総研専用）'!Q41 -> 40 | G42: 下水道施設計画・設計指針と解説(p587)計算例の中間値より
C43: 添加物量 | D43: 20 | E43: % | F43: ='■マスタ（国総研専用）'!Q42 -> 20 | G43: 下水道施設計画・設計指針と解説(p587)計算例の中間値より
C44: 添加物含水率 | D44: 30 | E44: % | F44: ='■マスタ（国総研専用）'!Q43 -> 30 | G44: 下水道施設計画・設計指針と解説(p587)計算例の中間値より
B45: 焼却 | C45: 下水汚泥熱量 | D45: 19 | E45: MJ/DS-kg | F45: ='■マスタ（国総研専用）'!Q44 -> 19 | G45: 下水道事業団HP,https://www.jswa.jp/recycle/energy/e104/
C46: 発電効率 | D46: =D58 -> 15 | E46: % | F46: ='■マスタ（国総研専用）'!Q45 -> 15 | G46: 廃棄物焼却処理施設と同等と仮定
C47: 廃熱利用可能割合 | D47: =6.2/19.8 -> 0.3131313131 | E47: - | F47: ='■マスタ（国総研専用）'!Q46 -> 0.3131313131 | G47: B-DASHプロジェクトNo9 脱水・燃焼・発電を全体最適化した革新的下水汚泥エネルギー転換システム導入ガイドライン(案),H27,国総研p72より、脱水汚泥熱量のうち熱回収空気として回収された割合を基に設定
B48: リン回収 | C48: 消化液リン濃度 | D48: 326 | E48: mg/L | F48: ='■マスタ（国総研専用）'!Q47 -> 326 | G48: 下水道におけるリン資源化の手引き,国交省,H22,p26より消化液からの回収ケースにおける試算設定値より
C49: リン回収率 | D49: 90 | E49: % | F49: ='■マスタ（国総研専用）'!Q48 -> 90 | G49: 下水道におけるリン資源化の手引き,国交省,H22,p26より消化液からの回収ケースにおける試算設定値より
C50: リン酸態リン濃度 | D50: 150 | E50: mg/L | F50: ='■マスタ（国総研専用）'!Q49 -> 150 | G50: B-DASHプロジェクトNo6.消化汚泥からのリン除去・回収技術導入ガイドライン,p65,ケーススタディより
C51: マグネシウム添加モル比 | D51: 1.1 | E51: Mg/P | F51: ='■マスタ（国総研専用）'!Q50 -> 1.1 | G51: B-DASHプロジェクトNo6.消化汚泥からのリン除去・回収技術導入ガイドライン,p113表資1-4より中間値
C52: 有効水酸化ナトリウム濃度 | D52: 35 | E52: % | F52: ='■マスタ（国総研専用）'!Q51 -> 35 | G52: B-DASHプロジェクトNo6.消化汚泥からのリン除去・回収技術導入ガイドライン,p59表3-12よりユーティリティ条件35%製品より
C53: 日運転時間 | D53: 24 | E53: 時間 | F53: ='■マスタ（国総研専用）'!Q52 -> 24 | G53: 仮定
C54: 年間運転日数 | D54: 365 | E54: 日 | F54: ='■マスタ（国総研専用）'!Q53 -> 365 | G54: 仮定
B55: 廃棄物処理場(焼却)運転 | C55: 電力使用量 | D55: 200 | E55: kWh/ごみt | F55: ='■マスタ（国総研専用）'!Q54 -> 200 | G55: 廃棄物系バイオマス利活用導入マニュアル(環境省)、p116
C56: 重油使用量 | D56: 0.34 | E56: L/ごみt | F56: ='■マスタ（国総研専用）'!Q55 -> 0.34 | G56: 廃棄物系バイオマス利活用導入マニュアル(環境省)、p116
C57: ごみ熱量 | D57: 17 | E57: MJ/DS-kg | F57: ='■マスタ（国総研専用）'!Q56 -> 17 | G57: 下水道施設計画・設計指針と解説(p620)消化汚泥原料の固形燃料の熱量を参考に設定
C58: ごみ焼却発電効率 | D58: 15 | E58: ％ | F58: ='■マスタ（国総研専用）'!Q57 -> 15 | G58: 廃棄物系バイオマス利活用導入マニュアル(環境省)、p116
A59: GHGの評価に関する項目 | B59: 温室効果ガス発生原単位 | C59: 電力使用 | D59: 0.000423 | E59: t-CO2/kWh | F59: ='■マスタ（国総研専用）'!Q58 -> 0.000423 | G59: 環境省HP(最新R5実績全国平均係数)
C60: 焼却炉(廃棄物処理施設)・メタン | D60: =1.5/1000000 -> 1.5e-06 | E60: t-CH4/t | F60: ='■マスタ（国総研専用）'!Q59 -> 1.5e-06 | G60: 日本国温室効果ガスインベントリ報告書,2022、国立環境研究所、p7-40
C61: 焼却炉(廃棄物処理施設)・N2O | D61: =263/1000000 -> 0.000263 | E61: t-N2O/t | F61: ='■マスタ（国総研専用）'!Q60 -> 0.000263 | G61: 日本国温室効果ガスインベントリ報告書,2022、国立環境研究所、p7-41よりストーカー炉
C62: A重油 | D62: 2.71 | E62: t-CO2/kL | F62: ='■マスタ（国総研専用）'!Q61 -> 2.71 | G62: 環境省HP(算定・報告・公表制度における算定方法・排出係数一覧）
C63: 汚泥処理 | D63: 6e-07 | E63: t-N2O/千㎥ | F63: ='■マスタ（国総研専用）'!Q62 -> 6e-07 | G63: 下水処理場における地球温暖化対策マニュアル,環境省・国交省,H28,ｐ35
C64: 焼却(炭化)・CH4 | D64: 9.7e-06 | E64: t₋CH4/wet-t | F64: ='■マスタ（国総研専用）'!Q63 -> 9.7e-06 | G64: 下水処理場における地球温暖化対策マニュアル,環境省・国交省,H28,ｐ34
C65: 焼却N2O（既存設備） | D65: 0.00151 | E65: t₋N2O/wet-t | F65: 0.00151 | G65: 下水処理場における地球温暖化対策マニュアル,環境省・国交省,H28,ｐ35より高分子凝集剤・流動炉・高温焼却(800℃程度)と仮定
C66: 焼却N2O（更新） | D66: 0.000645 | E66: t₋N2O/wet-t | F66: ='■マスタ（国総研専用）'!Q65 -> 0.000645 | G66: 下水処理場における地球温暖化対策マニュアル,環境省・国交省,H28,ｐ35より高分子凝集剤・流動炉・高温焼却(850℃以上)と仮定
C67: 炭化・N2O | D67: 3.12e-05 | E67: t₋N2O/wet-t | F67: ='■マスタ（国総研専用）'!Q66 -> 3.12e-05 | G67: 下水処理場における地球温暖化対策マニュアル,環境省・国交省,H28,ｐ35 | I67: 油温 | J67: 0.0184 | K67: 乾燥 | L67: 0.0095 | M67: 平均 | N67: =AVERAGE(J67,L67) -> 0.01395
C68: 乾燥処理・N2O | D68: 1.395e-05 | E68: t₋N2O/wet-t | F68: ='■マスタ（国総研専用）'!Q67 -> 1.395e-05 | G68: 下水汚泥エネルギー化技術ガイドライン,国交省,p106より油温乾燥と乾燥(混合焼却)の平均
C69: コンポスト化・CH4 | D69: 0.004 | E69: t₋CH4/wet-t | F69: ='■マスタ（国総研専用）'!Q68 -> 0.004 | G69: 下水処理場における地球温暖化対策マニュアル,環境省・国交省,H28,ｐ35
C70: コンポスト化・N2O | D70: 0.0003 | E70: t₋N2O/wet-t | F70: ='■マスタ（国総研専用）'!Q69 -> 0.0003 | G70: 下水処理場における地球温暖化対策マニュアル,環境省・国交省,H28,ｐ35
C71: 埋立・CH4 | D71: 0.133 | E71: t₋CH4/ds-t | F71: ='■マスタ（国総研専用）'!Q70 -> 0.133 | G71: 下水処理場における地球温暖化対策マニュアル,環境省・国交省,H28,ｐ35
C72: 食物くず嫌気性埋立・CH4 | D72: 203 | E72: kg₋CH4/ds₋t | F72: ='■マスタ（国総研専用）'!Q71 -> 203 | G72: 日本国温室効果ガスインベントリ報告書,環境省,2023,p7-10
C73: 水酸化マグネシウム | D73: 0.547832 | E73: t-CO2/t | F73: ='■マスタ（国総研専用）'!Q72 -> 0.547832 | G73: B₋DASHプロジェクトNo.6 消化汚泥からのリン除去・回収技術導入ガイドライン(案),国総研,H26,p52
C74: クエン酸 | D74: 14.392 | E74: t-CO2/t | F74: ='■マスタ（国総研専用）'!Q73 -> 14.392 | G74: B₋DASHプロジェクトNo.6 消化汚泥からのリン除去・回収技術導入ガイドライン(案),国総研,H26,p52
B75: 地球温暖化係数 | C75: CH4 | D75: 25 | E75: - | F75: ='■マスタ（国総研専用）'!Q74 -> 25 | G75: 下水処理場における地球温暖化対策マニュアル,環境省・国交省,H28,ｐ3
C76: N2O | D76: 298 | E76: - | F76: ='■マスタ（国総研専用）'!Q75 -> 298 | G76: 下水処理場における地球温暖化対策マニュアル,環境省・国交省,H28,ｐ3
A77: 経済性評価に関する項目 | B77: 費用単価 | C77: 電気購入単価(下水) | D77: 15 | E77: 円/ｋWh | F77: ='■マスタ（国総研専用）'!Q76 -> 15 | G77: 仮定
C78: 電気購入単価(廃棄物) | D78: 15 | E78: 円/kWh | F78: ='■マスタ（国総研専用）'!Q77 -> 15 | G78: 仮定
C79: 売電単価 | D79: 35 | E79: 円/ｋWh | F79: ='■マスタ（国総研専用）'!Q78 -> 35 | G79: FIT売電価格2023年以降
C80: 固形燃料売却単価 | D80: 100 | E80: 円/t | F80: ='■マスタ（国総研専用）'!Q79 -> 100 | G80: 下水汚泥エネルギー化技術ガイドライン,国交省,H28 ,p135 ケーススタディ設定値より
C81: 重油単価 | D81: 90 | E81: 円/L | F81: ='■マスタ（国総研専用）'!Q80 -> 90 | G81: 下水汚泥エネルギー化技術ガイドライン,国交省,H28 ,p136 ケーススタディ設定値より
C82: 汚泥肥料売却単価 | D82: 11666.7 | E82: 円/t | F82: ='■マスタ（国総研専用）'!Q81 -> 11666.7 | G82: 販売費：佐賀市、鹿児島市の平均、袋費用：珠洲市試算より
C83: リン売却単価 | D83: 32000 | E83: 円/t | F83: ='■マスタ（国総研専用）'!Q82 -> 32000 | G83: 下水道におけるリン資源化の手引き,国交省,H22,p33,福岡市の販売価格例3.1～3.3万円/tの中間値より
C84: 生ごみ処分単価 | D84: 0 | E84: 円/t | F84: ='■マスタ（国総研専用）'!Q83 -> 0 | G84: 自治体内のごみ処理場に入れていたものを処理場への投入を想定するため0円として設定、民間処分委託をしていた生ごみを受け入れる場合は民間事業者への委託処分費を入力
C85: 生ごみ運搬費単価 | D85: 0 | E85: 円/t | F85: ='■マスタ（国総研専用）'!Q84 -> 0 | G85: 生ごみの運搬を考慮する場合には入力する
C86: 埋め立て処分単価 | D86: 16000 | E86: 円/t₋wet | F86: ='■マスタ（国総研専用）'!Q85 -> 16000 | G86: 下水汚泥エネルギー化技術ガイドライン,国交省,p168
C87: 焼却灰処分単価 | D87: 8000 | E87: 円/t | F87: ='■マスタ（国総研専用）'!Q86 -> 8000 | G87: 下水汚泥エネルギー化技術ガイドライン,国交省,p142
C88: 人件費単価 | D88: 5 | E88: 万円 | F88: ='■マスタ（国総研専用）'!Q87 -> 5 | G88: 仮定

Sheet 連携パターン

Sheet 費用関数一覧
A1: シート名：費用関数一覧
C3: 費用関数一覧 | L3: 人件費 | M3: 電力単価
C4: 建設費 | L4: ='諸元(編集可)'!D88 -> 5 | M4: ='諸元(編集可)'!D77 -> 15
C5: 設備 | D5: 項目 | E5: 費用関数 | G5: 費用関数設定年度 | H5: デフレーター | I5: 出典 | J5: a | K5: b | L5: ｃ | M5: 変数
C6: 前処理設備 | D6: 前処理施設(建設費) | E6: Y＝56.054Qw＾0.4491 | F6: 百万円 | G6: 2022年度（暫定） | H6: =_xlfn.XLOOKUP(G6,defnendo2015!$A$12:$A$85,defnendo2015!$AV$12:$AV$85,"",0,1) -> 118.6 | I6: R4年度国総研調べ | J6: 56.054 | K6: 0.4491 | M6: 生ごみ受入れ量
D7: 前処理施設(維持管理費) | E7: Y＝11.96646Qｗ＾0.7×b×365×C÷10^6×α | F7: 百万円/年 | G7: 2019 | H7: =_xlfn.XLOOKUP(G7,defnendo2015!$A$12:$A$85,defnendo2015!$AV$12:$AV$85,"",0,1) -> 108.3 | I7: 下水処理場におけるエネルギー自立化マニュアル | J7: 11.96646 | K7: 0.7 | M7: 生ごみ受入れ量 | N7: b＝人件費 | O7: C電力単価
D8: 補修費 | E8: 建設費の3％ | F8: 百万円/年
D9: 建築設備建設費 | E9: Y＝75.9Qｗ＾0.342 | F9: 百万円 | G9: 2011 | H9: =_xlfn.XLOOKUP(G9,defnendo2015!$A$12:$A$85,defnendo2015!$AV$12:$AV$85,"",0,1) -> 94.9 | I9: 下水処理場へのバイオマス（生ごみ等）受け入れマニュアル,下水道新技術機構,2011 | J9: 75.9 | K9: 0.342
C10: 混合槽 | D10: 混合槽(機械) | E10: Y＝8.26×QV^0.400×α | F10: 百万円 | G10: 2011 | H10: =_xlfn.XLOOKUP(G10,defnendo2015!$A$12:$A$85,defnendo2015!$AV$12:$AV$85,"",0,1) -> 94.9 | I10: 下水処理場へのバイオマス（生ごみ等）受け入れマニュアル,下水道新技術機構,2011 | J10: 8.26 | K10: 0.4 | M10: 容量
D11: 混合槽(電気) | E11: Y＝0.836×QV^0.535×α | F11: 百万円 | G11: 2011 | H11: =_xlfn.XLOOKUP(G11,defnendo2015!$A$12:$A$85,defnendo2015!$AV$12:$AV$85,"",0,1) -> 94.9 | J11: 0.836 | K11: 0.535 | M11: 容量
D12: 混合槽(土建) | E12: Y＝2.01×QV^0.583×α | F12: 百万円 | G12: 2011 | H12: =_xlfn.XLOOKUP(G12,defnendo2015!$A$12:$A$85,defnendo2015!$AV$12:$AV$85,"",0,1) -> 94.9 | J12: 2.01 | K12: 0.583 | M12: 容量
D13: 混合槽(維持管理費) | E13: Y＝9.45×QV^0.493×C×α/10^6 | F13: 百万円/年 | G13: 2011 | H13: =_xlfn.XLOOKUP(G13,defnendo2015!$A$12:$A$85,defnendo2015!$AV$12:$AV$85,"",0,1) -> 94.9 | J13: 9.45 | K13: 0.493 | M13: 容量 | N13: C:電力単価(円/MWh)
D14: 混合槽(補修費) | E14: Y＝0.184×QV^0.400×α | F14: 百万円/年 | G14: 2011 | H14: =_xlfn.XLOOKUP(G14,defnendo2015!$A$12:$A$85,defnendo2015!$AV$12:$AV$85,"",0,1) -> 94.9 | J14: 0.184 | K14: 0.4 | M14: 容量
C15: 消化槽 | D15: 機械・電気設備 | E15: Y＝5.85×Q^0.57 | F15: 百万円 | G15: 2017 | H15: =_xlfn.XLOOKUP(G15,defnendo2015!$A$12:$A$85,defnendo2015!$AV$12:$AV$85,"",0,1) -> 102.5 | I15: 下水汚泥エネルギー化技術ガイドライン | J15: 5.85 | K15: 0.57 | M15: 容量
D16: 土木 | E16: Y＝0.0117×Q+25.6 | F16: 百万円 | G16: 2017 | H16: =_xlfn.XLOOKUP(G16,defnendo2015!$A$12:$A$85,defnendo2015!$AV$12:$AV$85,"",0,1) -> 102.5 | J16: 0.0117 | K16: 25.6 | M16: 容量
D17: 消費電力 | E17: Y＝0.171×Qy^0.390 | F17: 百万円/年 | G17: 2004 | H17: =_xlfn.XLOOKUP(G17,defnendo2015!$A$12:$A$85,defnendo2015!$AV$12:$AV$85,"",0,1) -> 88.6 | I17: バイオソリッド利活用推進マニュアル | J17: 0.171 | K17: 0.39 | M17: 年間汚泥処理量（1％換算）
C18: ガスホルダ | D18: ガスタンク | E18: Y＝10.4×QV^0.437×α | F18: 百万円 | G18: 2011 | H18: =_xlfn.XLOOKUP(G18,defnendo2015!$A$12:$A$85,defnendo2015!$AV$12:$AV$85,"",0,1) -> 94.9 | I18: 下水処理場へのバイオマス(生ごみ等)受け入れマニュアル | J18: 10.4 | K18: 0.437 | M18: 容量
D19: ガスタンク(維持管理費) | E19: Y＝0.283×QV^0.302×α | F19: 百万円 | G19: 2011 | H19: =_xlfn.XLOOKUP(G19,defnendo2015!$A$12:$A$85,defnendo2015!$AV$12:$AV$85,"",0,1) -> 94.9 | J19: 0.283 | K19: 0.302 | M19: 容量
C20: 脱水機 | D20: 脱水機(機械) | E20: Y＝0.434×Qs1^0.373×α | F20: 億円 | G20: 2004 | H20: =_xlfn.XLOOKUP(G20,defnendo2015!$A$12:$A$85,defnendo2015!$AV$12:$AV$85,"",0,1) -> 88.6 | I20: バイオソリッド利活用推進マニュアル | J20: 0.434 | K20: 0.373 | M20: 汚泥量日量(固形物1％換算)
D21: 脱水機(土木) | E21: Y＝0.227×Qs1^0.444×α | F21: 億円 | G21: 2004 | H21: =_xlfn.XLOOKUP(G21,defnendo2015!$A$12:$A$85,defnendo2015!$AV$12:$AV$85,"",0,1) -> 88.6 | J21: 0.227 | K21: 0.444 | M21: 汚泥量日量(固形物1％換算)
D22: 脱水機(維持管理) | E22: Y＝0.039×Qs1y^0.596×α | F22: 百万円/年 | G22: 2004 | H22: =_xlfn.XLOOKUP(G22,defnendo2015!$A$12:$A$85,defnendo2015!$AV$12:$AV$85,"",0,1) -> 88.6 | J22: 0.039 | K22: 0.596 | M22: 汚泥量年間(固形物1％換算)
C23: 消化ガス発電機 | D23: 機電 | E23: Y＝4.8485×X^0.7556 | F23: 百万円 | G23: 2017 | H23: =_xlfn.XLOOKUP(G23,defnendo2015!$A$12:$A$85,defnendo2015!$AV$12:$AV$85,"",0,1) -> 102.5 | I23: 下水汚泥エネルギー化技術ガイドライン | J23: 4.8485 | K23: 0.7556 | M23: 総発電施設規模
D24: 土建 | E24: Y＝0.0407×X^1.288 | F24: 百万円 | G24: 2017 | H24: =_xlfn.XLOOKUP(G24,defnendo2015!$A$12:$A$85,defnendo2015!$AV$12:$AV$85,"",0,1) -> 102.5 | J24: 0.0407 | K24: 1.288 | M24: 総発電施設規模
D25: 維持管理費 | E25: Y＝0.0296X+5.9964 | F25: 百万円/年 | G25: 2017 | H25: =_xlfn.XLOOKUP(G25,defnendo2015!$A$12:$A$85,defnendo2015!$AV$12:$AV$85,"",0,1) -> 102.5 | J25: 0.0296 | K25: 5.9964 | M25: 総発電施設規模
C26: 炭化炉 | D26: 炭化炉(機械) | E26: Y＝206.94Qs^0.6123×α | F26: 百万円 | G26: 2017 | H26: =_xlfn.XLOOKUP(G26,defnendo2015!$A$12:$A$85,defnendo2015!$AV$12:$AV$85,"",0,1) -> 102.5 | I26: 下水汚泥エネルギー化技術ガイドライン | J26: 206.94 | K26: 0.6123 | M26: 処理能力(日処理量)
D27: 炭化炉(土建) | E27: Y＝64.741Qs^0.391×α | F27: 百万円 | G27: 2017 | H27: =_xlfn.XLOOKUP(G27,defnendo2015!$A$12:$A$85,defnendo2015!$AV$12:$AV$85,"",0,1) -> 102.5 | J27: 64.741 | K27: 0.391 | M27: 処理能力(日処理量)
D28: 炭化炉(維持管理) | E28: Y＝(1.8778Qs＋105.9) ×α | F28: 百万円/年 | G28: 2017 | H28: =_xlfn.XLOOKUP(G28,defnendo2015!$A$12:$A$85,defnendo2015!$AV$12:$AV$85,"",0,1) -> 102.5 | J28: 1.8778 | K28: 105.9 | M28: 処理能力(日処理量)
C29: 堆肥化施設 | D29: 堆肥化施設(建設費) | E29: Y＝1.233×Qｆ^0.650×α | F29: 億円 | G29: 2004 | H29: =_xlfn.XLOOKUP(G29,defnendo2015!$A$12:$A$85,defnendo2015!$AV$12:$AV$85,"",0,1) -> 88.6 | I29: バイオソリッド利活用推進マニュアル | J29: 1.233 | K29: 0.65 | M29: 施設規模(日処理量)
D30: 堆肥化施設(維持管理) | E30: Y＝1.925×Qｆ^0.932×α | F30: 百万円/年 | G30: 2004 | H30: =_xlfn.XLOOKUP(G30,defnendo2015!$A$12:$A$85,defnendo2015!$AV$12:$AV$85,"",0,1) -> 88.6 | J30: 1.925 | K30: 0.932 | M30: 施設規模(日処理量)
C31: 乾燥施設 | D31: 機械電気 | E31: y = 228.55x^0.4974×α | F31: 百万円 | G31: 2017 | H31: =_xlfn.XLOOKUP(G31,defnendo2015!$A$12:$A$85,defnendo2015!$AV$12:$AV$85,"",0,1) -> 102.5 | I31: 下水汚泥エネルギー化技術ガイドライン | J31: 228.55 | K31: 0.4974 | M31: 施設規模(日処理量)
D32: 土建 | E32: Y＝64.741Qs^0.391×α | F32: 百万円 | G32: 2017 | H32: =_xlfn.XLOOKUP(G32,defnendo2015!$A$12:$A$85,defnendo2015!$AV$12:$AV$85,"",0,1) -> 102.5 | J32: 64.741 | K32: 0.391 | M32: 施設規模(日処理量)
D33: 乾燥施設(維持管理) | E33: Y＝0.362×Qsy^0.585×α | F33: 百万円/年 | G33: 2004 | H33: =_xlfn.XLOOKUP(G33,defnendo2015!$A$12:$A$85,defnendo2015!$AV$12:$AV$85,"",0,1) -> 88.6 | I33: バイオソリッド利活用推進マニュアル | J33: 0.362 | K33: 0.585 | M33: 施設規模(年処理量)
C34: リン資源化施設 | D34: リン資源化施設(MAP法, 消化液、建設) | E34: Y＝(1.9888Qt＋107.98)×α | F34: 百万円 | G34: 2010 | H34: =_xlfn.XLOOKUP(G34,defnendo2015!$A$12:$A$85,defnendo2015!$AV$12:$AV$85,"",0,1) -> 93.5 | I34: 下水道におけるリン資源化の手引き | J34: 1.9888 | K34: 107.98 | M34: 下水処理量(千㎥/日)
D35: リン資源化施設(MAP法,消化液,維持管理) | E35: Y＝(0.1334Qt＋0.6595)×α | F35: 百万円/年 | G35: 2010 | H35: =_xlfn.XLOOKUP(G35,defnendo2015!$A$12:$A$85,defnendo2015!$AV$12:$AV$85,"",0,1) -> 93.5 | J35: 0.1334 | K35: 0.6595 | M35: 下水処理量(千㎥/日)
D36: 電気使用量 | E36: Y＝0.0045X^2₋0.87x×(A/200)^0.5＋368×(A/200)^0.5 | F36: kwh/日 | I36: B-DASHプロジェクトNo6.消化汚泥からのリン除去・回収技術導入ガイドライン | J36: 0.0045 | K36: 0.87 | M36: X：日平均処理汚泥量(㎥/日)、A:リン酸態リン濃度(mg/L )
D37: 水酸化ナトリウム使用量 | E37: Y＝X×A×M×(58.3/31)×(100/C)/1000 | F37: kg/日 | J37: =58.3/31 -> 1.880645161 | K37: 100 | M37: X：日平均処理汚泥量(㎥/日)、A:リン酸態リン濃度(mg/L )、C：有効水酸化マグネシウム濃度(％),M：添加モル比(Mg/P)
D38: クエン酸使用量 | E38: Y＝X×0.25 | F38: kg/年 | J38: 0.25
C39: 焼却施設 | D39: 焼却設備(機械) | E39: Y＝1.888×Qｆ^0.597×α | F39: 億円 | G39: 2004 | H39: =_xlfn.XLOOKUP(G39,defnendo2015!$A$12:$A$85,defnendo2015!$AV$12:$AV$85,"",0,1) -> 88.6 | I39: バイオソリッド利活用推進マニュアル | J39: 1.888 | K39: 0.597 | M39: 施設規模(日処理量)
D40: 焼却設備(電気) | E40: Y＝0.726×Qｆ^0.539×α | F40: 億円 | G40: 2004 | H40: =_xlfn.XLOOKUP(G40,defnendo2015!$A$12:$A$85,defnendo2015!$AV$12:$AV$85,"",0,1) -> 88.6 | J40: 0.726 | K40: 0.539 | M40: 施設規模(日処理量)
D41: 焼却設備(土建、焼却炉) | E41: Y＝1.361×Qｆ^0.380×α | F41: 億円 | G41: 2004 | H41: =_xlfn.XLOOKUP(G41,defnendo2015!$A$12:$A$85,defnendo2015!$AV$12:$AV$85,"",0,1) -> 88.6 | J41: 1.361 | K41: 0.38 | M41: 施設規模(日処理量)
D42: 焼却設備(土建、電気室) | E42: Y＝2.426×Qｆ^0.0094×α | F42: 億円 | G42: 2004 | H42: =_xlfn.XLOOKUP(G42,defnendo2015!$A$12:$A$85,defnendo2015!$AV$12:$AV$85,"",0,1) -> 88.6 | J42: 2.426 | K42: 0.0094 | M42: 施設規模(日処理量)
D43: 焼却設備(維持管理) | E43: Y＝0.287×Qs^0.673×α | F43: 百万円/年 | G43: 2004 | H43: =_xlfn.XLOOKUP(G43,defnendo2015!$A$12:$A$85,defnendo2015!$AV$12:$AV$85,"",0,1) -> 88.6 | J43: 0.287 | K43: 0.673 | M43: 年間汚泥処理量
C44: 脱硫塔 | D44: 一式 | E44: Y＝0.878×Q^0.761×α | F44: 百万円 | G44: 2011 | H44: =_xlfn.XLOOKUP(G44,defnendo2015!$A$12:$A$85,defnendo2015!$AV$12:$AV$85,"",0,1) -> 94.9 | I44: 下水処理場へのバイオマス(生ごみ等)受け入れマニュアル | J44: 0.878 | K44: 0.761 | M44: 処理能力(時間処理量)
D45: 維持管理費 | E45: Y＝0.0796×Q^0.761×α | F45: 百万円/年 | G45: 2011 | H45: =_xlfn.XLOOKUP(G45,defnendo2015!$A$12:$A$85,defnendo2015!$AV$12:$AV$85,"",0,1) -> 94.9 | J45: 0.0796 | K45: 0.761 | M45: 処理能力(時間処理量)
C46: 汚泥処理設備(濃縮・消化・脱水)電気設備費用 | D46: 建設費 | E46: Y＝0.178Qd^0.464×α | F46: 億円 | G46: 2004 | H46: =_xlfn.XLOOKUP(G46,defnendo2015!$A$12:$A$85,defnendo2015!$AV$12:$AV$85,"",0,1) -> 88.6 | I46: バイオソリッド利活用推進マニュアル | J46: 0.178 | K46: 0.464 | M46: 計画濃縮汚泥量(1％換算)(㎥/日)
D47: 維持管理費 | E47: Y＝0.0024Qy^0.533×α | F47: 百万円/年 | G47: 2004 | H47: =_xlfn.XLOOKUP(G47,defnendo2015!$A$12:$A$85,defnendo2015!$AV$12:$AV$85,"",0,1) -> 88.6 | J47: 0.0024 | K47: 0.533 | M47: 計画濃縮汚泥量(1％換算)(㎥/年)
C48: 廃棄物処理施設 | D48: 建設費 | E48: Ｙ＝213.41・X-0.279 | F48: 百万円/t/ 日 | G48: 2017 | H48: 102.3 | I48: 廃棄物系バイオマス利活用導入マニュアル | J48: 213.41 | K48: -0.279 | M48: 施設規模(t/日)
D49: 保守点検費 | E49: Y＝9.5×Ｘ | F49: 千円/ｔ | G49: 2017 | H49: 102.3 | J49: 9.5 | M49: 処理量(t/日)
B50: 参考 | C50: 消化ガス発電機マイクロガスタービン | D50: 機械設備 | E50: Y＝0.919×Q^0.712 | F50: 百万円 | G50: 2011 | H50: =_xlfn.XLOOKUP(G50,defnendo2015!$A$12:$A$85,defnendo2015!$AV$12:$AV$85,"",0,1) -> 94.9 | I50: 下水処理場へのバイオマス(生ごみ等)受け入れマニュアル | J50: 0.919 | K50: 0.712 | M50: 消化ガス処理量(㎥/日)
D51: 電気設備 | E51: Y＝1.01×Q^0.578 | F51: 百万円 | G51: 2011 | H51: =_xlfn.XLOOKUP(G51,defnendo2015!$A$12:$A$85,defnendo2015!$AV$12:$AV$85,"",0,1) -> 94.9 | J51: 1.01 | K51: 0.578 | M51: 消化ガス処理量(㎥/日)
D52: 補修費 | E52: Y＝0.334×Q^0.668 | F52: 百万円/年 | G52: 2011 | H52: =_xlfn.XLOOKUP(G52,defnendo2015!$A$12:$A$85,defnendo2015!$AV$12:$AV$85,"",0,1) -> 94.9 | J52: 0.334 | K52: 0.668 | M52: 発電量

Sheet 結果一覧
A1: シート名：結果一覧 | C1: 総額
F4: 既設更新 | G4: パターン１ | H4: パターン２ | I4: パターン３ | J4: パターン４ | K4: パターン５ | L4: パターン６ | M4: パターン７
F5: =CONCATENATE(入力!K8,入力!K10) -> 有肥料化(堆肥) | G5: 消化＋埋立 | H5: 消化＋廃棄物側での処理 | I5: 消化＋固形燃料化 | J5: 消化＋乾燥汚泥肥料 | K5: 消化＋コンポスト | L5: 消化＋リン回収 | M5: 消化＋熱利用
B6: 建設費 | C6: 前処理設備 | D6: 機電 | E6: 百万円 | G6: =建設費の算定!N7 -> 5.4 | H6: =建設費の算定!N7 -> 5.4 | I6: =建設費の算定!N7 -> 5.4 | J6: =建設費の算定!N7 -> 5.4 | K6: =建設費の算定!N7 -> 5.4 | L6: =建設費の算定!N7 -> 5.4 | M6: =建設費の算定!N7 -> 5.4
D7: 建築 | E7: 百万円 | G7: =建設費の算定!N8 -> 4 | H7: =建設費の算定!N8 -> 4 | I7: =建設費の算定!N8 -> 4 | J7: =建設費の算定!N8 -> 4 | K7: =建設費の算定!N8 -> 4 | L7: =建設費の算定!N8 -> 4 | M7: =建設費の算定!N8 -> 4
D8: 小計 | E8: 百万円 | F8: =SUM(F6:F7) -> 0 | G8: =SUM(G6:G7) -> 9.4 | H8: 9.4 | I8: 9.4 | J8: 9.4 | K8: 9.4 | L8: 9.4 | M8: 9.4
C9: 混合槽 | D9: 機械 | E9: 百万円 | G9: =建設費の算定!N10 -> 1.4 | H9: =建設費の算定!N10 -> 1.4 | I9: =建設費の算定!N10 -> 1.4 | J9: =建設費の算定!N10 -> 1.4 | K9: =建設費の算定!N10 -> 1.4 | L9: =建設費の算定!N10 -> 1.4 | M9: =建設費の算定!N10 -> 1.4
D10: 電気設備 | E10: 百万円 | G10: =建設費の算定!N11 -> 0.3 | H10: =建設費の算定!N11 -> 0.3 | I10: =建設費の算定!N11 -> 0.3 | J10: =建設費の算定!N11 -> 0.3 | K10: =建設費の算定!N11 -> 0.3 | L10: =建設費の算定!N11 -> 0.3 | M10: =建設費の算定!N11 -> 0.3
D11: 土木建築 | E11: 百万円 | G11: =建設費の算定!N12 -> 0.3 | H11: =建設費の算定!N12 -> 0.3 | I11: =建設費の算定!N12 -> 0.3 | J11: =建設費の算定!N12 -> 0.3 | K11: =建設費の算定!N12 -> 0.3 | L11: =建設費の算定!N12 -> 0.3 | M11: =建設費の算定!N12 -> 0.3
D12: 小計 | E12: 百万円 | F12: =SUM(F9:F11) -> 0 | G12: =SUM(G9:G11) -> 2 | H12: 2 | I12: 2 | J12: 2 | K12: 2 | L12: 2 | M12: 2
C13: 消化槽 | D13: 機械 | E13: 百万円 | F13: =IF(COUNTIF(F5,"*有*"),建設費の算定!M14,"") -> 74.1 | G13: =建設費の算定!N14 -> 74.1 | H13: =建設費の算定!N14 -> 74.1 | I13: =建設費の算定!N14 -> 74.1 | J13: =建設費の算定!N14 -> 74.1 | K13: =建設費の算定!N14 -> 74.1 | L13: =建設費の算定!N14 -> 74.1 | M13: =建設費の算定!N14 -> 74.1
D14: 土建 | E14: 百万円 | F14: =IF(COUNTIF(F5,"*有*"),建設費の算定!M15,"") -> 2.7 | G14: =建設費の算定!N15 -> 2.7 | H14: =建設費の算定!N15 -> 2.7 | I14: =建設費の算定!N15 -> 2.7 | J14: =建設費の算定!N15 -> 2.7 | K14: =建設費の算定!N15 -> 2.7 | L14: =建設費の算定!N15 -> 2.7 | M14: =建設費の算定!N15 -> 2.7
D15: 小計 | E15: 百万円 | F15: =SUM(F13:F14) -> 76.8 | G15: =SUM(G13:G14) -> 76.8 | H15: 76.8 | I15: 76.8 | J15: 76.8 | K15: 76.8 | L15: 76.8 | M15: 76.8
C16: ガスホルダ | D16: 一式 | E16: 百万円 | F16: =IF(COUNTIF(F5,"*有*"),建設費の算定!M17,"") -> 13 | G16: =建設費の算定!N17 -> 14.3 | H16: =建設費の算定!N17 -> 14.3 | I16: =建設費の算定!N17 -> 14.3 | J16: =建設費の算定!N17 -> 14.3 | K16: =建設費の算定!N17 -> 14.3 | L16: =建設費の算定!N17 -> 14.3 | M16: =建設費の算定!N17 -> 14.3
D17: 小計 | E17: 百万円 | F17: =SUM(F16) -> 13 | G17: =SUM(G16) -> 14.3 | H17: 14.3 | I17: 14.3 | J17: 14.3 | K17: 14.3 | L17: 14.3 | M17: 14.3
C18: 脱水機 | D18: 機械 | E18: 百万円 | F18: =IF(COUNTIF($F$5,"*有*"),建設費の算定!M19,建設費の算定!L19) -> 30.2 | G18: =建設費の算定!N19 -> 30.9 | H18: =建設費の算定!N19 -> 30.9 | I18: =建設費の算定!N19 -> 30.9 | J18: =建設費の算定!N19 -> 30.9 | K18: =建設費の算定!N19 -> 30.9 | L18: =建設費の算定!N19 -> 30.9 | M18: =建設費の算定!N19 -> 30.9
D19: 土木 | E19: 百万円 | F19: =IF(COUNTIF($F$5,"*有*"),建設費の算定!M20,建設費の算定!L20) -> 6.9 | G19: =建設費の算定!N20 -> 7.1 | H19: =建設費の算定!N20 -> 7.1 | I19: =建設費の算定!N20 -> 7.1 | J19: =建設費の算定!N20 -> 7.1 | K19: =建設費の算定!N20 -> 7.1 | L19: =建設費の算定!N20 -> 7.1 | M19: =建設費の算定!N20 -> 7.1
D20: 電気設備 | E20: 百万円 | F20: =IF(COUNTIF($F$5,"*有*"),建設費の算定!M21,建設費の算定!L21) -> 5 | G20: =建設費の算定!N21 -> 5.2 | H20: =建設費の算定!N21 -> 5.2 | I20: =建設費の算定!N21 -> 5.2 | J20: =建設費の算定!N21 -> 5.2 | K20: =建設費の算定!N21 -> 5.2 | L20: =建設費の算定!N21 -> 5.2 | M20: =建設費の算定!N21 -> 5.2
D21: 小計 | E21: 百万円 | F21: =SUM(F18:F20) -> 42.1 | G21: =SUM(G18:G20) -> 43.2 | H21: 43.2 | I21: 43.2 | J21: 43.2 | K21: 43.2 | L21: 43.2 | M21: 43.2
C22: 脱硫塔 | D22: 一式 | E22: 百万円 | F22: =IF(COUNTIF(F5,"*有*"),建設費の算定!M28,"") -> 2 | G22: =建設費の算定!$N$29 -> 2.2 | H22: =建設費の算定!$N$29 -> 2.2 | I22: =建設費の算定!$N$29 -> 2.2 | J22: =建設費の算定!$N$29 -> 2.2 | K22: =建設費の算定!$N$29 -> 2.2 | L22: =建設費の算定!$N$29 -> 2.2 | M22: =建設費の算定!$N$29 -> 2.2
D23: 小計 | E23: 百万円 | F23: =SUM(F22) -> 2 | G23: =SUM(G22) -> 2.2 | H23: 2.2 | I23: 2.2 | J23: 2.2 | K23: 2.2 | L23: 2.2 | M23: 2.2
C24: 消化ガス発電機 | D24: 機械 | E24: 百万円 | G24: =建設費の算定!$N$30 -> 14 | H24: =建設費の算定!$N$30 -> 14 | I24: =建設費の算定!$N$30 -> 14 | J24: =建設費の算定!$N$30 -> 14 | K24: =建設費の算定!$N$30 -> 14 | L24: =建設費の算定!$N$30 -> 14 | M24: =建設費の算定!$N$30 -> 14
D25: 工事費 | E25: 百万円 | G25: =建設費の算定!$N$31 -> 1.4 | H25: =建設費の算定!$N$31 -> 1.4 | I25: =建設費の算定!$N$31 -> 1.4 | J25: =建設費の算定!$N$31 -> 1.4 | K25: =建設費の算定!$N$31 -> 1.4 | L25: =建設費の算定!$N$31 -> 1.4 | M25: =建設費の算定!$N$31 -> 1.4
D26: 小計 | E26: 百万円 | F26: =SUM(F24:F25) -> 0 | G26: =SUM(G24:G25) -> 15.4 | H26: 15.4 | I26: 15.4 | J26: 15.4 | K26: 15.4 | L26: 15.4 | M26: 15.4
C27: 焼却炉 | D27: 機械 | E27: 百万円 | F27: =IF(COUNTIF($F$5,"*有*"),IF(COUNTIF($F$5,"*焼却*"),建設費の算定!M23,""),IF(COUNTIF($F$5,"*無*"),IF(COUNTIF($F$5,"*焼却*"),建設費の算定!L23,""))) ->  | M27: =建設費の算定!N23 -> 114.1
D28: 電気設備 | E28: 百万円 | F28: =IF(COUNTIF($F$5,"*有*"),IF(COUNTIF($F$5,"*焼却*"),建設費の算定!M24,""),IF(COUNTIF($F$5,"*無*"),IF(COUNTIF($F$5,"*焼却*"),建設費の算定!L24,""))) ->  | M28: =建設費の算定!N24 -> 25.4
D29: 土建(焼却炉) | E29: 百万円 | F29: =IF(COUNTIF($F$5,"*有*"),IF(COUNTIF($F$5,"*焼却*"),建設費の算定!M25,""),IF(COUNTIF($F$5,"*無*"),IF(COUNTIF($F$5,"*焼却*"),建設費の算定!L25,""))) ->  | M29: =建設費の算定!N25 -> 9.8
D30: 土建(電気室) | E30: 百万円 | F30: =IF(COUNTIF($F$5,"*有*"),IF(COUNTIF($F$5,"*焼却*"),建設費の算定!M26,""),IF(COUNTIF($F$5,"*無*"),IF(COUNTIF($F$5,"*焼却*"),建設費の算定!L26,""))) ->  | M30: =建設費の算定!N26 -> 7.2
D31: 小計 | E31: 百万円 | F31: =SUM(F27:F30) -> 0 | G31: =SUM(G27:G30) -> 0 | H31: 0 | I31: 0 | J31: 0 | K31: 0 | L31: 0 | M31: =SUM(M27:M30) -> 156.5
C32: 乾燥機 | D32: 機械電気 | E32: 百万円 | F32: =IF(COUNTIF($F$5,"*有*"),IF(COUNTIF($F$5,"*乾燥*"),建設費の算定!M33,""),IF(COUNTIF($F$5,"*無*"),IF(COUNTIF($F$5,"*乾燥*"),建設費の算定!L33,""))) ->  | J32: =建設費の算定!N33 -> 47
D33: 土木 | E33: 百万円 | F33: =IF(COUNTIF($F$5,"*有*"),IF(COUNTIF($F$5,"*乾燥*"),建設費の算定!M34,""),IF(COUNTIF($F$5,"*無*"),IF(COUNTIF($F$5,"*乾燥*"),建設費の算定!L34,""))) ->  | J33: =建設費の算定!N34 -> 4.6
D34: 小計 | E34: 百万円 | F34: =SUM(F32:F33) -> 0 | G34: =SUM(G32:G33) -> 0 | H34: 0 | I34: 0 | J34: 51.6 | K34: 0 | L34: 0 | M34: 0
C35: 炭化炉 | D35: 機電 | E35: 百万円 | F35: =IF(COUNTIF($F$5,"*有*"),IF(COUNTIF($F$5,"*固形*"),建設費の算定!M36,""),IF(COUNTIF($F$5,"*無*"),IF(COUNTIF($F$5,"*固形*"),建設費の算定!L36,""))) ->  | I35: =建設費の算定!N36 -> 56.1
D36: 土建 | E36: 百万円 | F36: =IF(COUNTIF($F$5,"*有*"),IF(COUNTIF($F$5,"*固形*"),建設費の算定!M37,""),IF(COUNTIF($F$5,"*無*"),IF(COUNTIF($F$5,"*固形*"),建設費の算定!L37,""))) ->  | I36: =建設費の算定!N37 -> 4.6
D37: 小計 | E37: 百万円 | F37: =SUM(F35:F36) -> 0 | G37: =SUM(G35:G36) -> 0 | H37: 0 | I37: 60.7 | J37: 0 | K37: 0 | L37: 0 | M37: 0
C38: 堆肥化施設 | D38: 一式 | E38: 百万円 | F38: =IF(COUNTIF($F$5,"*有*"),IF(COUNTIF($F$5,"*堆肥*"),建設費の算定!M39,""),IF(COUNTIF($F$5,"*無*"),IF(COUNTIF($F$5,"*堆肥*"),建設費の算定!L39,""))) -> 84.6 | K38: =建設費の算定!N40 -> 84.6
D39: 小計 | E39: 百万円 | F39: =SUM(F38) -> 84.6 | G39: =SUM(G38) -> 0 | H39: 0 | I39: 0 | J39: 0 | K39: 84.6 | L39: 0 | M39: 0
C40: リン回収設備 | D40: 一式 | F40: =IF(COUNTIF($F$5,"*有*"),IF(COUNTIF($F$5,"*リン*"),建設費の算定!M41,""),IF(COUNTIF($F$5,"*無*"),IF(COUNTIF($F$5,"*リン*"),建設費の算定!L41,""))) ->  | L40: =建設費の算定!N41 -> 13.5
D41: 小計 | E41: 百万円 | F41: =SUM(F40) -> 0 | G41: =SUM(G40) -> 0 | H41: 0 | I41: 0 | J41: 0 | K41: 0 | L41: 13.5 | M41: 0
C42: 建設費 | E42: 百万円 | F42: =F8+F12+F15+F17+F21+F31+F23+F26+F34+F37+F39+F41 -> 218.5 | G42: =G8+G12+G15+G17+G21+G31+G23+G26+G34+G37+G39+G41 -> 163.3 | H42: 163.3 | I42: 224 | J42: 214.9 | K42: 247.9 | L42: 176.8 | M42: 319.8
B43: 維持管理費 | C43: 前処理設備(生ごみ受入れマニュアル) | D43: 電気使用料金 | E43: 百万円 | G43: =維持管理費の算定!G5 -> 0.9 | H43: =維持管理費の算定!G5 -> 0.9 | I43: =維持管理費の算定!G5 -> 0.9 | J43: =維持管理費の算定!G5 -> 0.9 | K43: =維持管理費の算定!G5 -> 0.9 | L43: =維持管理費の算定!G5 -> 0.9 | M43: =維持管理費の算定!G5 -> 0.9
D44: 補修費 | E44: 百万円 | G44: =維持管理費の算定!G6 -> 3.2 | H44: =維持管理費の算定!G6 -> 3.2 | I44: =維持管理費の算定!G6 -> 3.2 | J44: =維持管理費の算定!G6 -> 3.2 | K44: =維持管理費の算定!G6 -> 3.2 | L44: =維持管理費の算定!G6 -> 3.2 | M44: =維持管理費の算定!G6 -> 3.2
D45: 小計 | E45: 百万円 | F45: =SUM(F43:F44) -> 0 | G45: =SUM(G43:G44) -> 4.1 | H45: 4.1 | I45: 4.1 | J45: 4.1 | K45: 4.1 | L45: 4.1 | M45: 4.1
C46: 混合槽 | D46: 電力費 | E46: 百万円 | G46: =維持管理費の算定!G8 -> 0.6 | H46: =維持管理費の算定!G8 -> 0.6 | I46: =維持管理費の算定!G8 -> 0.6 | J46: =維持管理費の算定!G8 -> 0.6 | K46: =維持管理費の算定!G8 -> 0.6 | L46: =維持管理費の算定!G8 -> 0.6 | M46: =維持管理費の算定!G8 -> 0.6
D47: 補修費 | E47: 百万円 | G47: =維持管理費の算定!G9 -> 0.6 | H47: =維持管理費の算定!G9 -> 0.6 | I47: =維持管理費の算定!G9 -> 0.6 | J47: =維持管理費の算定!G9 -> 0.6 | K47: =維持管理費の算定!G9 -> 0.6 | L47: =維持管理費の算定!G9 -> 0.6 | M47: =維持管理費の算定!G9 -> 0.6
D48: 小計 | E48: 百万円 | F48: =SUM(F46:F47) -> 0 | G48: =SUM(G46:G47) -> 1.2 | H48: 1.2 | I48: 1.2 | J48: 1.2 | K48: 1.2 | L48: 1.2 | M48: 1.2
C49: 消化槽 | D49: 維持管理費 | E49: 百万円 | F49: =IF(COUNTIF(F5,"*有*"),維持管理費の算定!F11,"") -> 21.3 | G49: =維持管理費の算定!G11 -> 22.4 | H49: =維持管理費の算定!G11 -> 22.4 | I49: =維持管理費の算定!G11 -> 22.4 | J49: =維持管理費の算定!G11 -> 22.4 | K49: =維持管理費の算定!G11 -> 22.4 | L49: =維持管理費の算定!G11 -> 22.4 | M49: =維持管理費の算定!G11 -> 22.4
D50: 小計 | E50: 百万円 | F50: =SUM(F49) -> 21.3 | G50: =SUM(G49) -> 22.4 | H50: 22.4 | I50: 22.4 | J50: 22.4 | K50: 22.4 | L50: 22.4 | M50: 22.4
C51: ガスタンク | E51: 百万円 | F51: =IF(COUNTIF(F5,"*有*"),維持管理費の算定!F13,"") -> 2.9 | G51: =維持管理費の算定!G13 -> 3.1 | H51: =維持管理費の算定!G13 -> 3.1 | I51: =維持管理費の算定!G13 -> 3.1 | J51: =維持管理費の算定!G13 -> 3.1 | K51: =維持管理費の算定!G13 -> 3.1 | L51: =維持管理費の算定!G13 -> 3.1 | M51: =維持管理費の算定!G13 -> 3.1
D52: 一式 | E52: 百万円 | F52: =SUM(F51) -> 2.9 | G52: =SUM(G51) -> 3.1 | H52: 3.1 | I52: 3.1 | J52: 3.1 | K52: 3.1 | L52: 3.1 | M52: 3.1
C53: 脱水機 | F53: =IF(COUNTIF(F5,"*有*"),維持管理費の算定!F15,維持管理費の算定!E15) -> 37.6 | G53: =維持管理費の算定!G15 -> 39.5 | H53: =維持管理費の算定!G15 -> 39.5 | I53: =維持管理費の算定!G15 -> 39.5 | J53: =維持管理費の算定!G15 -> 39.5 | K53: =維持管理費の算定!G15 -> 39.5 | L53: =維持管理費の算定!G15 -> 39.5 | M53: =維持管理費の算定!G15 -> 39.5
D54: 一式 | E54: 百万円 | F54: =SUM(F53) -> 37.6 | G54: =SUM(G53) -> 39.5 | H54: 39.5 | I54: 39.5 | J54: 39.5 | K54: 39.5 | L54: 39.5 | M54: 39.5
C55: 脱硫塔 | D55: 補修費 | F55: =IF(COUNTIF(F5,"*有*"),維持管理費の算定!F22,"") -> 2.7 | G55: =維持管理費の算定!G21 -> 3 | H55: =維持管理費の算定!G21 -> 3 | I55: =維持管理費の算定!G21 -> 3 | J55: =維持管理費の算定!G21 -> 3 | K55: =維持管理費の算定!G21 -> 3 | L55: =維持管理費の算定!G21 -> 3 | M55: =維持管理費の算定!G21 -> 3
E56: 百万円 | F56: =SUM(F55) -> 2.7 | G56: =SUM(G55) -> 3 | H56: 3 | I56: 3 | J56: 3 | K56: 3 | L56: 3 | M56: 3
C57: 消化ガス発電機 | D57: 補修費 | E57: 百万円 | G57: =維持管理費の算定!G19 -> 11.5 | H57: =維持管理費の算定!G19 -> 11.5 | I57: =維持管理費の算定!G19 -> 11.5 | J57: =維持管理費の算定!G19 -> 11.5 | K57: =維持管理費の算定!G19 -> 11.5 | L57: =維持管理費の算定!G19 -> 11.5 | M57: =維持管理費の算定!G19 -> 11.5
E58: 百万円 | F58: =SUM(F57:F57) -> 0 | G58: =SUM(G57:G57) -> 11.5 | H58: 11.5 | I58: 11.5 | J58: 11.5 | K58: 11.5 | L58: 11.5 | M58: 11.5
C59: 焼却炉 | D59: 一式 | F59: =IF(COUNTIF($F$5,"*有*"),IF(COUNTIF($F$5,"*焼却*"),維持管理費の算定!F17,""),IF(COUNTIF($F$5,"*無*"),IF(COUNTIF($F$5,"*焼却*"),維持管理費の算定!E17,""))) ->  | M59: =維持管理費の算定!G17 -> 90.3
D60: 一式 | E60: 百万円 | F60: =SUM(F59) -> 0 | G60: =SUM(G59) -> 0 | H60: 0 | I60: 0 | J60: 0 | K60: 0 | L60: 0 | M60: 90.3
C61: 乾燥設備 | D61: 一式 | F61: =IF(COUNTIF($F$5,"*有*"),IF(COUNTIF($F$5,"*乾燥*"),維持管理費の算定!F23,""),IF(COUNTIF($F$5,"*無*"),IF(COUNTIF($F$5,"*乾燥*"),維持管理費の算定!E23,""))) ->  | J61: =維持管理費の算定!G23 -> 56.3
E62: 百万円 | F62: =SUM(F61) -> 0 | G62: =SUM(G61) -> 0 | H62: 0 | I62: 0 | J62: 56.3 | K62: 0 | L62: 0 | M62: 0
C63: 炭化炉 | D63: 一式 | F63: =IF(COUNTIF($F$5,"*有*"),IF(COUNTIF($F$5,"*固形*"),維持管理費の算定!F25,""),IF(COUNTIF($F$5,"*無*"),IF(COUNTIF($F$5,"*固形*"),維持管理費の算定!E25,""))) ->  | I63: =維持管理費の算定!G25 -> 157.9
E64: 百万円 | F64: =SUM(F63) -> 0 | G64: =SUM(G63) -> 0 | H64: 0 | I64: 157.9 | J64: 0 | K64: 0 | L64: 0 | M64: 0
C65: 堆肥化施設 | D65: 一式 | F65: =IF(COUNTIF($F$5,"*有*"),IF(COUNTIF($F$5,"*堆肥*"),維持管理費の算定!F27,""),IF(COUNTIF($F$5,"*無*"),IF(COUNTIF($F$5,"*堆肥*"),維持管理費の算定!E27,""))) -> 26 | K65: =維持管理費の算定!G27 -> 26
E66: 百万円 | F66: =SUM(F65) -> 26 | G66: =SUM(G65) -> 0 | H66: 0 | I66: 0 | J66: 0 | K66: 26 | L66: 0 | M66: 0
C67: リン回収設備 | D67: 一式 | F67: =IF(COUNTIF($F$5,"*有*"),IF(COUNTIF($F$5,"*リン*"),維持管理費の算定!F29,""),IF(COUNTIF($F$5,"*無*"),IF(COUNTIF($F$5,"*リン*"),維持管理費の算定!E29,""))) ->  | L67: =維持管理費の算定!G29 -> 103.6
E68: 百万円 | F68: =SUM(F67) -> 0 | G68: =SUM(G67) -> 0 | H68: 0 | I68: 0 | J68: 0 | K68: 0 | L68: 103.6 | M68: 0
C69: 維持管理費 | F69: =F45+F48+F50+F52+F54+F60+F58+F56+F62+F64+F66+F68 -> 90.5 | G69: =G45+G48+G50+G52+G54+G60+G58+G56+G62+G64+G66+G68 -> 84.8 | H69: 84.8 | I69: 242.7 | J69: 141.1 | K69: 110.8 | L69: 188.4 | M69: 175.1
B70: 出費・収入減 | C70: 生ごみ処分費 | E70: 百万円/年 | G70: =収益の算定!I14 -> 0 | H70: =収益の算定!I14 -> 0 | I70: =収益の算定!I14 -> 0 | J70: =収益の算定!I14 -> 0 | K70: =収益の算定!I14 -> 0 | L70: =収益の算定!I14 -> 0 | M70: =収益の算定!I14 -> 0
C71: 運搬費 | E71: 百万円/年 | G71: =収益の算定!I18 -> 0 | H71: =収益の算定!I18 -> 0 | I71: =収益の算定!I18 -> 0 | J71: =収益の算定!I18 -> 0 | K71: =収益の算定!I18 -> 0 | L71: =収益の算定!I18 -> 0 | M71: =収益の算定!I18 -> 0
C72: 埋め立て処分費 | D72: 脱水汚泥処分費 | E72: 百万円/年 | F72: =IF(COUNTIF($F$5,"*有*"),IF(COUNTIF($F$5,"*埋立*"),収益の算定!H19,""),IF(COUNTIF($F$5,"*無*"),IF(COUNTIF($F$5,"*埋立*"),収益の算定!G19,""))) ->  | G72: =収益の算定!I19 -> 46.6
C73: 焼却灰処分費 | D73: 焼却灰処分費 | E73: 百万円/年 | F73: =IF(COUNTIF($F$5,"*有*"),IF(COUNTIF($F$5,"*焼却熱*"),収益の算定!H20,""),IF(COUNTIF($F$5,"*無*"),IF(COUNTIF($F$5,"*焼却熱*"),収益の算定!G20,""))) ->  | M73: =収益の算定!I20 -> 0.9
C74: 廃棄物処理施設発の発電 | D74: 生ごみ減少の影響 | E74: 百万円/年 | F74: 0 | G74: =収益の算定!I21 -> 1.3 | I74: =収益の算定!I21 -> 1.3 | J74: =収益の算定!I21 -> 1.3 | K74: =収益の算定!I21 -> 1.3 | L74: =収益の算定!I21 -> 1.3 | M74: =収益の算定!I21 -> 1.3
C75: 廃棄物処分施設維持管理費(投入生ごみ分) | D75: 電気 | E75: 百万円/年 | F75: =収益の算定!G22 -> ー | H75: =収益の算定!I22 -> 0.03
D76: 重油 | E76: 百万円/年 | F76: =収益の算定!G23 -> ー | H76: =収益の算定!I23 -> 0.2
C77: 出費・収入減 | F77: =SUM(F70:F76) -> 0 | G77: =SUM(G70:G76) -> 47.9 | H77: =SUM(H70:H76) -> 0.23 | I77: =SUM(I70:I76) -> 1.3 | J77: 1.3 | K77: 1.3 | L77: 1.3 | M77: 2.2
B78: 収益 | C78: 消化ガス発電(売電) | D78: 売電収益 | E78: 百万円/年
C79: 消化ガス発電(場内利用) | D79: 維持管理費削減効果 | E79: 百万円/年 | G79: =-収益の算定!I5 -> -10.643 | H79: =-収益の算定!I5 -> -10.643 | I79: =-収益の算定!I5 -> -10.643 | J79: =-収益の算定!I5 -> -10.643 | K79: =-収益の算定!I5 -> -10.643 | L79: =-収益の算定!I5 -> -10.643 | M79: =-収益の算定!I5 -> -10.643
C80: 固形燃料 | D80: 売却収益 | E80: 百万円/年 | F80: =IF(COUNTIF($F$5,"*有*"),IF(COUNTIF($F$5,"*固形*"),-収益の算定!H6,""),IF(COUNTIF($F$5,"*無*"),IF(COUNTIF($F$5,"*固形*"),-収益の算定!G6,""))) ->  | I80: =-収益の算定!I6 -> -0.044
C81: 重油の代替利用(炭化燃料) | D81: 維持管理費削減効果 | E81: 百万円/年
C82: 重油の代替利用(乾燥燃料) | D82: 維持管理費削減効果 | E82: 百万円/年
C83: 重油の代替利用(焼却廃熱利用) | D83: 維持管理費削減効果 | E83: 百万円/年 | M83: =-収益の算定!I9 -> -8.024
C84: 肥料(堆肥) | D84: 売却収益 | E84: 百万円/年 | F84: =IF(COUNTIF($F$5,"*有*"),IF(COUNTIF($F$5,"*堆肥*"),-収益の算定!H10,""),IF(COUNTIF($F$5,"*無*"),IF(COUNTIF($F$5,"*堆肥*"),-収益の算定!G10,""))) -> -10.336 | K84: =-収益の算定!I10 -> -10.924
C85: 肥料(乾燥肥料) | D85: 売却収益 | E85: 百万円/年 | F85: =IF(COUNTIF($F$5,"*有*"),IF(COUNTIF($F$5,"*乾燥*"),-収益の算定!H11,""),IF(COUNTIF($F$5,"*無*"),IF(COUNTIF($F$5,"*乾燥*"),-収益の算定!G11,""))) ->  | J85: =-収益の算定!I11 -> -7.717
C86: リン | D86: 売却収益 | E86: 百万円/年 | F86: =IF(COUNTIF($F$5,"*有*"),IF(COUNTIF($F$5,"*リン*"),-収益の算定!H12,""),IF(COUNTIF($F$5,"*無*"),IF(COUNTIF($F$5,"*リン*"),-収益の算定!G12,""))) ->  | L86: =-収益の算定!I12 -> -0.433
C87: 廃棄物処理施設の発電 | D87: 脱水汚泥増加による売却収益 | E87: 百万円/年 | H87: =-収益の算定!I13 -> -0.03
C88: 収益 | F88: =SUM(F78:F87) -> -10.336 | G88: =SUM(G78:G87) -> -10.643 | H88: =SUM(H78:H87) -> -10.673 | I88: -10.687 | J88: -18.36 | K88: -21.567 | L88: -11.076 | M88: -18.667
B89: 事業費(経済収支) | F89: =SUM(F42+F69+F77+F88) -> 298.664 | G89: =SUM(G42+G69+G77+G88) -> 285.357 | H89: =SUM(H42+H69+H77+H88) -> 237.657 | I89: 457.313 | J89: 338.94 | K89: 338.433 | L89: 355.424 | M89: 478.433
B90: 経済性評価 | F90: =RANK(F89,$F$89:$M$89,1) -> 3 | G90: =RANK(G89,$G$89:$M$89,1) -> 2 | H90: 1 | I90: 6 | J90: 4 | K90: 3 | L90: 5 | M90: 7
B91: 運転等に伴う温室効果ガス排出量 | C91: 汚泥処理量増加 | E91: t-CO2/年 | F91: 0 | G91: ='汚泥処理フロー(日平均)'!$L$10*365*入力!D14/7 -> 0.0002237554286 | H91: ='汚泥処理フロー(日平均)'!$L$10*365*入力!D14/7 -> 0.0002237554286 | I91: ='汚泥処理フロー(日平均)'!$L$10*365*入力!D14/7 -> 0.0002237554286 | J91: ='汚泥処理フロー(日平均)'!$L$10*365*入力!D14/7 -> 0.0002237554286 | K91: ='汚泥処理フロー(日平均)'!$L$10*365*入力!D14/7 -> 0.0002237554286 | L91: ='汚泥処理フロー(日平均)'!$L$10*365*入力!D14/7 -> 0.0002237554286 | M91: ='汚泥処理フロー(日平均)'!$L$10*365*入力!D14/7 -> 0.0002237554286
C92: 資源化設備の運転(前処理設備) | E92: t-CO2/年 | F92: 0 | G92: =ROUND(('汚泥処理フロー(日平均)'!L9)*365*入力!D14/7,1) -> 45.8 | H92: =ROUND(('汚泥処理フロー(日平均)'!L9)*365*入力!D14/7,1) -> 45.8 | I92: =ROUND(('汚泥処理フロー(日平均)'!L9)*365*入力!D14/7,1) -> 45.8 | J92: =ROUND(('汚泥処理フロー(日平均)'!L9)*365*入力!D14/7,1) -> 45.8 | K92: =ROUND(('汚泥処理フロー(日平均)'!L9)*365*入力!D14/7,1) -> 45.8 | L92: =ROUND(('汚泥処理フロー(日平均)'!L9)*365*入力!D14/7,1) -> 45.8 | M92: =ROUND(('汚泥処理フロー(日平均)'!L9)*365*入力!D14/7,1) -> 45.8
C93: 資源化設備の運転(炭化) | E93: t-CO2/年 | F93: =IF(COUNTIF($F$5,"*有*"),IF(COUNTIF($F$5,"*固形*"),資源利用量の算定!Q34*365,""),IF(COUNTIF($F$5,"*無*"),IF(COUNTIF($F$5,"*固形*"),資源利用量の算定!Q17*365,""))) ->  | I93: =ROUND(資源利用量の算定!Q70*365*入力!D14/7+資源利用量の算定!Q34*365,1) -> 27.8
C94: 資源化設備の運転(乾燥) | E94: t-CO2/年 | F94: =IF(COUNTIF($F$5,"*有*"),IF(COUNTIF($F$5,"*乾燥*"),資源利用量の算定!K30*365,""),IF(COUNTIF($F$5,"*無*"),IF(COUNTIF($F$5,"*乾燥*"),資源利用量の算定!K13*365,""))) ->  | J94: =ROUND(資源利用量の算定!K66*365*入力!D14/7+資源利用量の算定!K30*365,1) -> 12.1
C95: 資源化設備の運転(堆肥) | E95: t-CO2/年 | F95: =IF(COUNTIF($F$5,"*有*"),IF(COUNTIF($F$5,"*堆肥*"),資源利用量の算定!W33*365,""),IF(COUNTIF($F$5,"*無*"),IF(COUNTIF($F$5,"*堆肥*"),資源利用量の算定!W16*365,""))) -> 520.763823 | K95: =ROUND(資源利用量の算定!W66*365*入力!D14/7+資源利用量の算定!W33*365,1) -> 552
C96: 資源化設備の運転(焼却) | E96: t-CO2/年 | F96: =IF(COUNTIF($F$5,"*有*"),IF(COUNTIF($F$5,"*焼却*"),資源利用量の算定!AC30*365,""),IF(COUNTIF($F$5,"*無*"),IF(COUNTIF($F$5,"*焼却*"),資源利用量の算定!AC13*365,""))) ->  | M96: =ROUND(資源利用量の算定!AC64*365*入力!D14/7+資源利用量の算定!AC65*365,1) -> 560.9
C97: 資源化設備の運転(リン回収) | E97: t-CO2/年 | F97: =IF(COUNTIF($F$5,"*有*"),IF(COUNTIF($F$5,"*リン利用*"),資源利用量の算定!AU32,""),IF(COUNTIF($F$5,"*無*"),IF(COUNTIF($F$5,"*リン利用*"),資源利用量の算定!AU15,""))) ->  | L97: =ROUND(資源利用量の算定!AU65*入力!D14/7+資源利用量の算定!AU32,1) -> 58
C98: 埋立 | E98: t-CO2/年 | F98: =IF(COUNTIF($F$5,"*有*"),IF(COUNTIF($F$5,"*埋立*"),資源利用量の算定!AO25*365,""),IF(COUNTIF($F$5,"*無*"),IF(COUNTIF($F$5,"*埋立*"),資源利用量の算定!AO8*365,""))) ->  | G98: =ROUND((資源利用量の算定!AO58)*365*入力!D14/7+資源利用量の算定!AO25*365,1) -> 1938.2
C99: 廃棄物発電量 | E99: t-CO2/年 | F99: 0 | G99: =ROUND(資源利用量の算定!K49*365*入力!D14/7,1) -> 53.5 | H99: =ROUND('汚泥処理フロー(日平均)'!L26*365*入力!$D$14/7*(-1),1) -> -90.1 | I99: =ROUND(資源利用量の算定!K49*365*入力!D14/7,1) -> 53.5 | J99: =ROUND(資源利用量の算定!K49*365*入力!D14/7,1) -> 53.5 | K99: =ROUND(資源利用量の算定!K49*365*入力!D14/7,1) -> 53.5 | L99: =ROUND(資源利用量の算定!K49*365*入力!D14/7,1) -> 53.5 | M99: =ROUND(資源利用量の算定!K49*365*入力!D14/7,1) -> 53.5
C100: 廃棄物焼却施設におけるエネルギー使用 | E100: t-CO2/年 | F100: 0 | G100: =ROUND(資源利用量の算定!$K$48*365*入力!$D$14/7,1)*(-1) -> -37.5 | H100: =ROUND(('汚泥処理フロー(日平均)'!L23+'汚泥処理フロー(日平均)'!L24)*365*入力!D14/7+('汚泥処理フロー(日平均)'!L36+'汚泥処理フロー(日平均)'!L37)*365*(7-入力!D14)/7,1) -> 115.2 | I100: =ROUND(資源利用量の算定!$K$48*365*入力!$D$14/7,1)*(-1) -> -37.5 | J100: =ROUND(資源利用量の算定!$K$48*365*入力!$D$14/7,1)*(-1) -> -37.5 | K100: =ROUND(資源利用量の算定!$K$48*365*入力!$D$14/7,1)*(-1) -> -37.5 | L100: =ROUND(資源利用量の算定!$K$48*365*入力!$D$14/7,1)*(-1) -> -37.5 | M100: =ROUND(資源利用量の算定!$K$48*365*入力!$D$14/7,1)*(-1) -> -37.5
C101: 温室効果ガス排出量 | E101: t-CO2/年 | F101: =SUM(F91:F100) -> 520.763823 | G101: =SUM(G91:G100) -> 2000.000224 | H101: =SUM(H91:H100) -> 70.90022376 | I101: =SUM(I91:I100) -> 89.60022376 | J101: 73.90022376 | K101: 613.8002238 | L101: =SUM(L91:L100) -> 119.8002238 | M101: =SUM(M91:M100) -> 622.7002238
B102: 化石燃料代替による温室効果ガス排出量削減効果 | C102: 消化ガス発電 | E102: t-CO2/年 | G102: =ROUND('汚泥処理フロー(日平均)'!$L$13*365*入力!$D$14/7+'汚泥処理フロー(日平均)'!$P$13*365,1)*(-1) -> -300.1 | H102: =ROUND('汚泥処理フロー(日平均)'!$L$13*365*入力!$D$14/7+'汚泥処理フロー(日平均)'!$P$13*365,1)*(-1) -> -300.1 | I102: =ROUND('汚泥処理フロー(日平均)'!$L$13*365*入力!$D$14/7+'汚泥処理フロー(日平均)'!$P$13*365,1)*(-1) -> -300.1 | J102: =ROUND('汚泥処理フロー(日平均)'!$L$13*365*入力!$D$14/7+'汚泥処理フロー(日平均)'!$P$13*365,1)*(-1) -> -300.1 | K102: =ROUND('汚泥処理フロー(日平均)'!$L$13*365*入力!$D$14/7+'汚泥処理フロー(日平均)'!$P$13*365,1)*(-1) -> -300.1 | L102: =ROUND('汚泥処理フロー(日平均)'!$L$13*365*入力!$D$14/7+'汚泥処理フロー(日平均)'!$P$13*365,1)*(-1) -> -300.1 | M102: =ROUND('汚泥処理フロー(日平均)'!$L$13*365*入力!$D$14/7+'汚泥処理フロー(日平均)'!$P$13*365,1)*(-1) -> -300.1
C103: 固形燃料利用 | E103: t-CO2/年 | F103: =IF(COUNTIF($F$5,"*有*"),IF(COUNTIF($F$5,"*固形*"),資源利用量の算定!Q33*365*(-1),""),IF(COUNTIF($F$5,"*無*"),IF(COUNTIF($F$5,"*固形*"),資源利用量の算定!Q16*365*(-1),""))) ->  | G103: 0 | H103: 0 | I103: =ROUND(資源利用量の算定!Q69*365*入力!$D$14/7+資源利用量の算定!Q33*365,1)*(-1) -> -454.7 | J103: 0 | K103: 0 | L103: 0 | M103: 0
C104: 焼却熱利用 | E104: t-CO2/年 | F104: =IF(COUNTIF($F$5,"*有*"),IF(COUNTIF($F$5,"*焼却*"),資源利用量の算定!AI30*365*(-1),""),IF(COUNTIF($F$5,"*無*"),IF(COUNTIF($F$5,"*焼却*"),資源利用量の算定!AI13*365*(-1),""))) ->  | M104: =ROUND(資源利用量の算定!AI64*入力!D14/7*365+資源利用量の算定!AI30*365,1)*(-1) -> -241.6
C105: 脱炭素効果 | E105: t-CO2/年 | F105: =SUM(F102:F104) -> 0 | G105: =SUM(G102:G104) -> -300.1 | H105: -300.1 | I105: -754.8 | J105: -300.1 | K105: -300.1 | L105: -300.1 | M105: -541.7
B106: 温室効果ガス排出量収支 | E106: t-CO2/年 | F106: =F101+F105 -> 520.763823 | G106: =G101+G105 -> 1699.900224 | H106: -229.1997762 | I106: -665.1997762 | J106: -226.1997762 | K106: 313.7002238 | L106: =L101+L105 -> -180.2997762 | M106: 81.00022376
B107: 環境性評価 | F107: =RANK(F106,$F$106:$M$106,1) -> 7 | G107: =RANK(G106,$G$106:$M$106,1) -> 7 | H107: 2 | I107: 1 | J107: 3 | K107: 6 | L107: 4 | M107: 5
B109: 【参考】
B110: 現況で消化ガス発電を実施している場合
B111: 経済性
B112: 建設費 | C112: 消化ガス発電機 | D112: 機械 | E112: 百万円 | F112: =IF(COUNTIF(F5,"*有*"),建設費の算定!M30,"") -> 11.5
D113: 工事費 | E113: 百万円 | F113: =IF(COUNTIF(F5,"*有*"),建設費の算定!M31,"") -> 1
E114: 百万円 | F114: =SUM(F112:F113) -> 12.5
B115: 維持管理費 | C115: 消化ガス発電機 | D115: 補修費 | E115: 百万円 | F115: =IF(COUNTIF($F$5,"*有*"),維持管理費の算定!F19,"") -> 10.6
E116: 百万円 | F116: =SUM(F115:F115) -> 10.6
B117: 収益 | C117: 消化ガス発電(売電) | D117: 売電収益 | E117: 百万円/年
C118: 消化ガス発電(場内利用) | D118: 維持管理費削減効果 | E118: 百万円/年 | F118: =IF(COUNTIF(F5,"*有*"),-収益の算定!H5,"") -> -8.314
E119: 百万円 | F119: =SUM(F118:F118) -> -8.314
B120: 環境性
B121: 化石燃料代替による温室効果ガス排出量削減効果 | C121: 消化ガス発電 | E121: t-CO2/年 | F121: =IF(COUNTIF(F5,"*有*"),'汚泥処理フロー(日平均)'!P13*365*(-1),"") -> -234.4561163

Sheet 総合評価
A1: 緑色セル：必要に応じて入力または選択
B3: 適用性に関する設問 | L3: 重み付け（総合評価の配点）設定
B4: 下水道事業における課題
C5: ①汚泥処分費が課題となっている | M5: 経済性 | N5: 12 | O5: 点
C6: 回答 | D6: 該当
C7: ②ＭＡＰ析出やリン放流規制への対応が課題となっている | M7: 環境性 | N7: 12 | O7: 点
C8: 回答 | D8: 非該当
B9: 周辺条件 | M9: 適用条件 | N9: 3 | O9: 点／該当１項目あたり
C10: ③処理能力に余裕のある廃棄物処理場が近隣に立地または設置計画がある
C11: 回答 | D11: 該当
C12: ④固形燃料の継続的な需要（工場･事業者等）の見通しがある
C13: 回答 | D13: 不明
C14: ⑤汚泥肥料の継続的な需要（農家･肥料製造業者等）の見通しがある
C15: 回答 | D15: 該当
C16: ⑥リンの継続的な需要（肥料製造業者･事業者等）の見通しがある
C17: 回答 | D17: 不明
C18: ⑦熱需要のある施設（温水プール等）が近隣に立地または設置計画がある
C19: 回答 | D19: 不明
B20: 自治体としての方向性について
C21: ⑧行政計画等で地域バイオマス利活用の推進が位置付けられている
C22: 回答 | D22: 該当
C23: ⑨ごみの減量化が必要となっている
C24: 回答 | D24: 該当
B26: その他（必要に応じて追加）
B27: ⑩
C28: 回答 | D28: 不明
B29: ⑪
C30: 回答 | D30: 不明
B31: ⑫
C32: 回答 | D32: 不明
B34: 総合評価シート
B35: 連携パターン | E35: 連携ﾊﾟﾀｰﾝ1 | G35: 連携ﾊﾟﾀｰﾝ2 | I35: 連携ﾊﾟﾀｰﾝ3 | K35: 連携ﾊﾟﾀｰﾝ4 | M35: 連携ﾊﾟﾀｰﾝ5 | O35: 連携ﾊﾟﾀｰﾝ6 | Q35: 連携ﾊﾟﾀｰﾝ7
B36: 概要 | E36: 消化＋ 埋立 | G36: 消化＋ 廃棄物側での処理 | I36: 消化＋ 固形燃料化 | K36: 消化＋ 乾燥汚泥肥料 | M36: 消化＋ コンポスト | O36: 消化＋ リン回収 | Q36: 消化＋ 熱利用
B37: 経済性 | C37: 収支(百万円/年) | E37: =結果一覧!G89 -> 285.357 | G37: =結果一覧!H89 -> 237.657 | I37: =結果一覧!I89 -> 457.313 | K37: =結果一覧!J89 -> 338.94 | M37: =結果一覧!K89 -> 338.433 | O37: =結果一覧!L89 -> 355.424 | Q37: =結果一覧!M89 -> 478.433
C38: 指標 既設更新の年価収支 を 1.0 とする比率 | E38: =E37/'結果一覧 (既設更新参照用)'!$F$88 -> 0.9554449147 | G38: =G37/'結果一覧 (既設更新参照用)'!$F$88 -> 0.7957336673 | I38: =I37/'結果一覧 (既設更新参照用)'!$F$88 -> 1.531195591 | K38: =K37/'結果一覧 (既設更新参照用)'!$F$88 -> 1.134853883 | M38: =M37/'結果一覧 (既設更新参照用)'!$F$88 -> 1.133156323 | O38: =O37/'結果一覧 (既設更新参照用)'!$F$88 -> 1.19004634 | Q38: =Q37/'結果一覧 (既設更新参照用)'!$F$88 -> 1.601910508
C39: 配点設定値 | D39: =$N$5 -> 12 | E39: =IF(E38<=0.7,$D40,IF(E38<=0.9,$D41,IF(E38<=1.1,$D42,IF(E38<=1.3,$D43,$D44)))) -> 6 | G39: =IF(G38<=0.7,$D40,IF(G38<=0.9,$D41,IF(G38<=1.1,$D42,IF(G38<=1.3,$D43,$D44)))) -> 9 | I39: =IF(I38<=0.7,$D40,IF(I38<=0.9,$D41,IF(I38<=1.1,$D42,IF(I38<=1.3,$D43,$D44)))) -> 0 | K39: =IF(K38<=0.7,$D40,IF(K38<=0.9,$D41,IF(K38<=1.1,$D42,IF(K38<=1.3,$D43,$D44)))) -> 3 | M39: =IF(M38<=0.7,$D40,IF(M38<=0.9,$D41,IF(M38<=1.1,$D42,IF(M38<=1.3,$D43,$D44)))) -> 3 | O39: =IF(O38<=0.7,$D40,IF(O38<=0.9,$D41,IF(O38<=1.1,$D42,IF(O38<=1.3,$D43,$D44)))) -> 3 | Q39: =IF(Q38<=0.7,$D40,IF(Q38<=0.9,$D41,IF(Q38<=1.1,$D42,IF(Q38<=1.3,$D43,$D44)))) -> 0
C40: X ≦0.7 | D40: =D39 -> 12
C41: 0.7＜ X ≦0.9 | D41: =D39*3/4 -> 9
C42: 0.9＜ X ≦1.1 | D42: =D39*2/4 -> 6
C43: 1.1＜ X ≦1.3 | D43: =D39*1/4 -> 3
C44: 1.3 ＜ | D44: =D39*0 -> 0
C45: 経済性 ○:既設更新より費用減 △:既設更新より費用増 | E45: =IF(E38>1,"△","○") -> ○ | G45: =IF(G38>1,"△","○") -> ○ | I45: =IF(I38>1,"△","○") -> △ | K45: =IF(K38>1,"△","○") -> △ | M45: =IF(M38>1,"△","○") -> △ | O45: =IF(O38>1,"△","○") -> △ | Q45: =IF(Q38>1,"△","○") -> △
B46: 環境性 | C46: 収支(t-CO2/年) | E46: =結果一覧!G106 -> 1699.900224 | G46: =結果一覧!H106 -> -229.1997762 | I46: =結果一覧!I106 -> -665.1997762 | K46: =結果一覧!J106 -> -226.1997762 | M46: =結果一覧!K106 -> 313.7002238 | O46: =結果一覧!L106 -> -180.2997762 | Q46: =結果一覧!M106 -> 81.00022376
C47: 指標 収支の最大値を０、 最小値を１とした換算値 | E47: =(E46-MAX($E$46:$R$46))/(MIN($E$46:$R$46)-MAX($E$46:$R$46)) -> 0 | G47: =(G46-MAX($E$46:$R$46))/(MIN($E$46:$R$46)-MAX($E$46:$R$46)) -> 0.8156526151 | I47: =(I46-MAX($E$46:$R$46))/(MIN($E$46:$R$46)-MAX($E$46:$R$46)) -> 1 | K47: =(K46-MAX($E$46:$R$46))/(MIN($E$46:$R$46)-MAX($E$46:$R$46)) -> 0.8143841698 | M47: =(M46-MAX($E$46:$R$46))/(MIN($E$46:$R$46)-MAX($E$46:$R$46)) -> 0.5861062957 | O47: =(O46-MAX($E$46:$R$46))/(MIN($E$46:$R$46)-MAX($E$46:$R$46)) -> 0.7949769566 | Q47: =(Q46-MAX($E$46:$R$46))/(MIN($E$46:$R$46)-MAX($E$46:$R$46)) -> 0.6844953702
C48: 配点設定値 | D48: =$N$7 -> 12 | E48: =IF(E47<=0.2,$D53,IF(E47<=0.4,$D52,IF(E47<=0.6,$D51,IF(E47<=0.8,$D50,$D49)))) -> 0 | G48: =IF(G47<=0.2,$D53,IF(G47<=0.4,$D52,IF(G47<=0.6,$D51,IF(G47<=0.8,$D50,$D49)))) -> 12 | I48: =IF(I47<=0.2,$D53,IF(I47<=0.4,$D52,IF(I47<=0.6,$D51,IF(I47<=0.8,$D50,$D49)))) -> 12 | K48: =IF(K47<=0.2,$D53,IF(K47<=0.4,$D52,IF(K47<=0.6,$D51,IF(K47<=0.8,$D50,$D49)))) -> 12 | M48: =IF(M47<=0.2,$D53,IF(M47<=0.4,$D52,IF(M47<=0.6,$D51,IF(M47<=0.8,$D50,$D49)))) -> 6 | O48: =IF(O47<=0.2,$D53,IF(O47<=0.4,$D52,IF(O47<=0.6,$D51,IF(O47<=0.8,$D50,$D49)))) -> 9 | Q48: =IF(Q47<=0.2,$D53,IF(Q47<=0.4,$D52,IF(Q47<=0.6,$D51,IF(Q47<=0.8,$D50,$D49)))) -> 9
C49: 0.8＜ Y ≦1.0 | D49: =D48 -> 12
C50: 0.6＜ Y ≦0.8 | D50: =D48*3/4 -> 9
C51: 0.4＜ Y ≦0.6 | D51: =D48*2/4 -> 6
C52: 0.2＜ Y ≦0.4 | D52: =D48*1/4 -> 3
C53: 0≦ Y ≦0.2 | D53: =D48*0 -> 0
C54: 環境性 ◎:収支マイナス（脱炭素） ○:既設更新より排出量削減 △:既設更新より排出量増加 | E54: =IF(E46<0,"◎",IF('結果一覧 (既設更新参照用)'!$F$105-E46<=0,"△","○")) -> △ | G54: =IF(G46<0,"◎",IF('結果一覧 (既設更新参照用)'!$F$105-G46<=0,"△","○")) -> ◎ | I54: =IF(I46<0,"◎",IF('結果一覧 (既設更新参照用)'!$F$105-I46<=0,"△","○")) -> ◎ | K54: =IF(K46<0,"◎",IF('結果一覧 (既設更新参照用)'!$F$105-K46<=0,"△","○")) -> ◎ | M54: =IF(M46<0,"◎",IF('結果一覧 (既設更新参照用)'!$F$105-M46<=0,"△","○")) -> ○ | O54: =IF(O46<0,"◎",IF('結果一覧 (既設更新参照用)'!$F$105-O46<=0,"△","○")) -> ◎ | Q54: =IF(Q46<0,"◎",IF('結果一覧 (既設更新参照用)'!$F$105-Q46<=0,"△","○")) -> ○
B55: 適用性 | C55: 該当１項目 あたりの 加点設定値 | D55: =$N$9 -> 3 | G55: =IF($D$6="該当","該当",IF($D$6="非該当","非該当","-")) -> 該当 | H55: ①汚泥処分費が課題となっている | I55: =IF($D$6="該当","該当",IF($D$6="非該当","非該当","-")) -> 該当 | J55: ①汚泥処分費が課題となっている | K55: =IF($D$6="該当","該当",IF($D$6="非該当","非該当","-")) -> 該当 | L55: ①汚泥処分費が課題となっている | M55: =IF($D$6="該当","該当",IF($D$6="非該当","非該当","-")) -> 該当 | N55: ①汚泥処分費が課題となっている | O55: =IF($D$8="該当","該当",IF($D$8="非該当","非該当","-")) -> 非該当 | P55: ②ＭＡＰ析出やリン放流規制への対応が課題となっている | Q55: =IF($D$6="該当","該当",IF($D$6="非該当","非該当","-")) -> 該当 | R55: ①汚泥処分費が課題となっている
G56: =IF($D$11="該当","該当",IF($D$11="非該当","非該当","-")) -> 該当 | H56: ③処理能力に余裕のある廃棄物処理場が近隣に立地または設置計画がある | I56: =IF($D$13="該当","該当",IF($D$13="非該当","非該当","-")) -> - | J56: ④固形燃料の継続的な需要（工場･事業者等）の見通しがある | K56: =IF($D$15="該当","該当",IF($D$15="非該当","非該当","-")) -> 該当 | L56: ⑤汚泥肥料の継続的な需要（農家･肥料製造業者等）の見通しがある | M56: =IF($D$15="該当","該当",IF($D$15="非該当","非該当","-")) -> 該当 | N56: ⑤汚泥肥料の継続的な需要（農家･肥料製造業者等）の見通しがある | O56: =IF($D$17="該当","該当",IF($D$17="非該当","非該当","-")) -> - | P56: ⑥リンの継続的な需要（肥料製造業者･事業者等）の見通しがある | Q56: =IF($D$19="該当","該当",IF($D$19="非該当","非該当","-")) -> - | R56: ⑦熱需要のある施設（温水プール等）が近隣に立地または設置計画がある
I57: =IF($D$22="該当","該当",IF($D$22="非該当","非該当","-")) -> 該当 | J57: ⑧行政計画等で地域バイオマス利活用の推進が位置付けられている | K57: =IF($D$22="該当","該当",IF($D$22="非該当","非該当","-")) -> 該当 | L57: ⑧行政計画等で地域バイオマス利活用の推進が位置付けられている | M57: =IF($D$22="該当","該当",IF($D$22="非該当","非該当","-")) -> 該当 | N57: ⑧行政計画等で地域バイオマス利活用の推進が位置付けられている | O57: =IF($D$22="該当","該当",IF($D$22="非該当","非該当","-")) -> 該当 | P57: ⑧行政計画等で地域バイオマス利活用の推進が位置付けられている | Q57: =IF($D$22="該当","該当",IF($D$22="非該当","非該当","-")) -> 該当 | R57: ⑧行政計画等で地域バイオマス利活用の推進が位置付けられている
E58: =IF($D$24="該当","該当",IF($D$24="非該当","非該当","-")) -> 該当 | F58: ⑨ごみの減量化が必要となっている | I58: =IF($D$24="該当","該当",IF($D$24="非該当","非該当","-")) -> 該当 | J58: ⑨ごみの減量化が必要となっている | K58: =IF($D$24="該当","該当",IF($D$24="非該当","非該当","-")) -> 該当 | L58: ⑨ごみの減量化が必要となっている | M58: =IF($D$24="該当","該当",IF($D$24="非該当","非該当","-")) -> 該当 | N58: ⑨ごみの減量化が必要となっている | O58: =IF($D$24="該当","該当",IF($D$24="非該当","非該当","-")) -> 該当 | P58: ⑨ごみの減量化が必要となっている | Q58: =IF($D$24="該当","該当",IF($D$24="非該当","非該当","-")) -> 該当 | R58: ⑨ごみの減量化が必要となっている
E59: =IF($D$28="該当","該当",IF($D$28="非該当","非該当","-")) -> - | F59: =C27 -> 0 | G59: =IF($D$28="該当","該当",IF($D$28="非該当","非該当","-")) -> - | H59: =C27 -> 0 | I59: =IF($D$28="該当","該当",IF($D$28="非該当","非該当","-")) -> - | J59: =C27 -> 0 | K59: =IF($D$28="該当","該当",IF($D$28="非該当","非該当","-")) -> - | L59: =C27 -> 0 | M59: =IF($D$28="該当","該当",IF($D$28="非該当","非該当","-")) -> - | N59: =C27 -> 0 | O59: =IF($D$28="該当","該当",IF($D$28="非該当","非該当","-")) -> - | P59: =C27 -> 0 | Q59: =IF($D$28="該当","該当",IF($D$28="非該当","非該当","-")) -> - | R59: =C27 -> 0
E60: =IF($D$30="該当","該当",IF($D$30="非該当","非該当","-")) -> - | F60: =C29 -> 0 | G60: =IF($D$30="該当","該当",IF($D$30="非該当","非該当","-")) -> - | H60: =C29 -> 0 | I60: =IF($D$30="該当","該当",IF($D$30="非該当","非該当","-")) -> - | J60: =C29 -> 0 | K60: =IF($D$30="該当","該当",IF($D$30="非該当","非該当","-")) -> - | L60: =C29 -> 0 | M60: =IF($D$30="該当","該当",IF($D$30="非該当","非該当","-")) -> - | N60: =C29 -> 0 | O60: =IF($D$30="該当","該当",IF($D$30="非該当","非該当","-")) -> - | P60: =C29 -> 0 | Q60: =IF($D$30="該当","該当",IF($D$30="非該当","非該当","-")) -> - | R60: =C29 -> 0
E61: =IF($D$32="該当","該当",IF($D$32="非該当","非該当","-")) -> - | F61: =C31 -> 0 | G61: =IF($D$32="該当","該当",IF($D$32="非該当","非該当","-")) -> - | H61: =C31 -> 0 | I61: =IF($D$32="該当","該当",IF($D$32="非該当","非該当","-")) -> - | J61: =C31 -> 0 | K61: =IF($D$32="該当","該当",IF($D$32="非該当","非該当","-")) -> - | L61: =C31 -> 0 | M61: =IF($D$32="該当","該当",IF($D$32="非該当","非該当","-")) -> - | N61: =C31 -> 0 | O61: =IF($D$32="該当","該当",IF($D$32="非該当","非該当","-")) -> - | P61: =C31 -> 0 | Q61: =IF($D$32="該当","該当",IF($D$32="非該当","非該当","-")) -> - | R61: =C31 -> 0
C62: 加点 | E62: =COUNTIF(E55:F61,"該当")*$D$55 -> 3 | G62: =COUNTIF(G55:H61,"該当")*$D$55 -> 6 | I62: =COUNTIF(I55:J61,"該当")*$D$55 -> 9 | K62: =COUNTIF(K55:L61,"該当")*$D$55 -> 12 | M62: =COUNTIF(M55:N61,"該当")*$D$55 -> 12 | O62: =COUNTIF(O55:P61,"該当")*$D$55 -> 6 | Q62: =COUNTIF(Q55:R61,"該当")*$D$55 -> 9
C63: 適用性 ○上位3パターン | E63: =IF(RANK(E62,$E$62:$R$62,0)<=3,"○","-") -> - | G63: =IF(RANK(G62,$E$62:$R$62,0)<=3,"○","-") -> - | I63: =IF(RANK(I62,$E$62:$R$62,0)<=3,"○","-") -> ○ | K63: =IF(RANK(K62,$E$62:$R$62,0)<=3,"○","-") -> ○ | M63: =IF(RANK(M62,$E$62:$R$62,0)<=3,"○","-") -> ○ | O63: =IF(RANK(O62,$E$62:$R$62,0)<=3,"○","-") -> - | Q63: =IF(RANK(Q62,$E$62:$R$62,0)<=3,"○","-") -> ○
B64: 総合評価 | E64: =E39+E48+E62 -> 9 | G64: =G39+G48+G62 -> 27 | I64: =I39+I48+I62 -> 21 | K64: =K39+K48+K62 -> 27 | M64: =M39+M48+M62 -> 21 | O64: =O39+O48+O62 -> 18 | Q64: =Q39+Q48+Q62 -> 18
B65: △:経済性･環境性とも△ ◎:環境性◎かつ適用性○ ○:上記以外 | E65: =IF(E45="△",IF(E54="△","△",IF(E54="◎",IF(E63="○","◎","○"),"○")),IF(E54="◎",IF(E63="○","◎","○"),"○")) -> ○ | G65: =IF(G45="△",IF(G54="△","△",IF(G54="◎",IF(G63="○","◎","○"),"○")),IF(G54="◎",IF(G63="○","◎","○"),"○")) -> ○ | I65: =IF(I45="△",IF(I54="△","△",IF(I54="◎",IF(I63="○","◎","○"),"○")),IF(I54="◎",IF(I63="○","◎","○"),"○")) -> ◎ | K65: =IF(K45="△",IF(K54="△","△",IF(K54="◎",IF(K63="○","◎","○"),"○")),IF(K54="◎",IF(K63="○","◎","○"),"○")) -> ◎ | M65: =IF(M45="△",IF(M54="△","△",IF(M54="◎",IF(M63="○","◎","○"),"○")),IF(M54="◎",IF(M63="○","◎","○"),"○")) -> ○ | O65: =IF(O45="△",IF(O54="△","△",IF(O54="◎",IF(O63="○","◎","○"),"○")),IF(O54="◎",IF(O63="○","◎","○"),"○")) -> ○ | Q65: =IF(Q45="△",IF(Q54="△","△",IF(Q54="◎",IF(Q63="○","◎","○"),"○")),IF(Q54="◎",IF(Q63="○","◎","○"),"○")) -> ○
C111: 【出典】
C112: 国土技術政策総合研究所資料 第****号
C113: 資 料 名：下水処理場における生ごみ受入れ事業の検討に関する技術資料
C114: 担当研究室：上下水道研究部 下水処理研究室
C115: Ｕ Ｒ Ｌ： https://www.nilim.go.jp/lab/bcg/siryou/・・・・・

Sheet 結果一覧(実績値等入力可)
A1: シート名：結果一覧(編集可能) | C1: 総額 | D1: 緑色セル：編集可能
F4: 既設更新 | G4: パターン１ | H4: パターン２ | I4: パターン３ | J4: パターン４ | K4: パターン５ | L4: パターン６ | M4: パターン７
F5: =CONCATENATE(入力!K8,入力!K10) -> 有肥料化(堆肥) | G5: 消化＋埋立 | H5: 消化＋廃棄物側での処理 | I5: 消化＋固形燃料化 | J5: 消化＋乾燥汚泥肥料 | K5: 消化＋コンポスト | L5: 消化＋リン回収 | M5: 消化＋熱利用
B6: 建設費 | C6: 前処理設備 | D6: 機電 | E6: 百万円 | G6: 5.4 | H6: 5.4 | I6: 5.4 | J6: 5.4 | K6: 5.4 | L6: 5.4 | M6: 5.4
D7: 建築 | E7: 百万円 | G7: 4 | H7: 4 | I7: 4 | J7: 4 | K7: 4 | L7: 4 | M7: 4
D8: 小計 | E8: 百万円 | F8: =SUM(F6:F7) -> 0 | G8: =SUM(G6:G7) -> 9.4 | H8: 9.4 | I8: 9.4 | J8: 9.4 | K8: 9.4 | L8: 9.4 | M8: 9.4
C9: 混合槽 | D9: 機械 | E9: 百万円 | G9: 1.4 | H9: 1.4 | I9: 1.4 | J9: 1.4 | K9: 1.4 | L9: 1.4 | M9: 1.4
D10: 電気設備 | E10: 百万円 | G10: 0.3 | H10: 0.3 | I10: 0.3 | J10: 0.3 | K10: 0.3 | L10: 0.3 | M10: 0.3
D11: 土木建築 | E11: 百万円 | G11: 0.3 | H11: 0.3 | I11: 0.3 | J11: 0.3 | K11: 0.3 | L11: 0.3 | M11: 0.3
D12: 小計 | E12: 百万円 | F12: =SUM(F9:F11) -> 0 | G12: =SUM(G9:G11) -> 2 | H12: 2 | I12: 2 | J12: 2 | K12: 2 | L12: 2 | M12: 2
C13: 消化槽 | D13: 機械 | E13: 百万円 | F13: 74.1 | G13: 74.1 | H13: 74.1 | I13: 74.1 | J13: 74.1 | K13: 74.1 | L13: 74.1 | M13: 74.1
D14: 土建 | E14: 百万円 | F14: 2.7 | G14: 2.7 | H14: 2.7 | I14: 2.7 | J14: 2.7 | K14: 2.7 | L14: 2.7 | M14: 2.7
D15: 小計 | E15: 百万円 | F15: =SUM(F13:F14) -> 76.8 | G15: =SUM(G13:G14) -> 76.8 | H15: 76.8 | I15: 76.8 | J15: 76.8 | K15: 76.8 | L15: 76.8 | M15: 76.8
C16: ガスホルダ | D16: 一式 | E16: 百万円 | F16: 13 | G16: 14.3 | H16: 14.3 | I16: 14.3 | J16: 14.3 | K16: 14.3 | L16: 14.3 | M16: 14.3
D17: 小計 | E17: 百万円 | F17: =SUM(F16) -> 13 | G17: =SUM(G16) -> 14.3 | H17: 14.3 | I17: 14.3 | J17: 14.3 | K17: 14.3 | L17: 14.3 | M17: 14.3
C18: 脱水機 | D18: 機械 | E18: 百万円 | F18: 30.2 | G18: 30.9 | H18: 30.9 | I18: 30.9 | J18: 30.9 | K18: 30.9 | L18: 30.9 | M18: 30.9
D19: 土木 | E19: 百万円 | F19: 6.9 | G19: 7.1 | H19: 7.1 | I19: 7.1 | J19: 7.1 | K19: 7.1 | L19: 7.1 | M19: 7.1
D20: 電気設備 | E20: 百万円 | F20: 5 | G20: 5.2 | H20: 5.2 | I20: 5.2 | J20: 5.2 | K20: 5.2 | L20: 5.2 | M20: 5.2
D21: 小計 | E21: 百万円 | F21: =SUM(F18:F20) -> 42.1 | G21: =SUM(G18:G20) -> 43.2 | H21: 43.2 | I21: 43.2 | J21: 43.2 | K21: 43.2 | L21: 43.2 | M21: 43.2
C22: 脱硫塔 | D22: 一式 | E22: 百万円 | F22: 2 | G22: 2.2 | H22: 2.2 | I22: 2.2 | J22: 2.2 | K22: 2.2 | L22: 2.2 | M22: 2.2
D23: 小計 | E23: 百万円 | F23: =SUM(F22) -> 2 | G23: =SUM(G22) -> 2.2 | H23: 2.2 | I23: 2.2 | J23: 2.2 | K23: 2.2 | L23: 2.2 | M23: 2.2
C24: 消化ガス発電機 | D24: 機械 | E24: 百万円 | G24: 14 | H24: 14 | I24: 14 | J24: 14 | K24: 14 | L24: 14 | M24: 14
D25: 工事費 | E25: 百万円 | G25: 1.4 | H25: 1.4 | I25: 1.4 | J25: 1.4 | K25: 1.4 | L25: 1.4 | M25: 1.4
D26: 小計 | E26: 百万円 | F26: =SUM(F24:F25) -> 0 | G26: =SUM(G24:G25) -> 15.4 | H26: 15.4 | I26: 15.4 | J26: 15.4 | K26: 15.4 | L26: 15.4 | M26: 15.4
C27: 焼却炉 | D27: 機械 | E27: 百万円 | M27: 114.1
D28: 電気設備 | E28: 百万円 | M28: 25.4
D29: 土建(焼却炉) | E29: 百万円 | M29: 9.8
D30: 土建(電気室) | E30: 百万円 | M30: 7.2
D31: 小計 | E31: 百万円 | F31: =SUM(F27:F30) -> 0 | G31: =SUM(G27:G30) -> 0 | H31: 0 | I31: 0 | J31: 0 | K31: 0 | L31: 0 | M31: =SUM(M27:M30) -> 156.5
C32: 乾燥機 | D32: 機械電気 | E32: 百万円 | J32: 47
D33: 土木 | E33: 百万円 | J33: 4.6
D34: 小計 | E34: 百万円 | F34: =SUM(F32:F33) -> 0 | G34: =SUM(G32:G33) -> 0 | H34: 0 | I34: 0 | J34: 51.6 | K34: 0 | L34: 0 | M34: 0
C35: 炭化炉 | D35: 機電 | E35: 百万円 | I35: 56.1
D36: 土建 | E36: 百万円 | I36: 4.6
D37: 小計 | E37: 百万円 | F37: =SUM(F35:F36) -> 0 | G37: =SUM(G35:G36) -> 0 | H37: 0 | I37: 60.7 | J37: 0 | K37: 0 | L37: 0 | M37: 0
C38: 堆肥化施設 | D38: 一式 | E38: 百万円 | F38: 84.6 | K38: 84.6
D39: 小計 | E39: 百万円 | F39: =SUM(F38) -> 84.6 | G39: =SUM(G38) -> 0 | H39: 0 | I39: 0 | J39: 0 | K39: 84.6 | L39: 0 | M39: 0
C40: リン回収設備 | D40: 一式 | L40: 13.5
D41: 小計 | E41: 百万円 | F41: =SUM(F40) -> 0 | G41: =SUM(G40) -> 0 | H41: 0 | I41: 0 | J41: 0 | K41: 0 | L41: 13.5 | M41: 0
C42: 建設費 | E42: 百万円 | F42: =F8+F12+F15+F17+F21+F31+F23+F26+F34+F37+F39+F41 -> 218.5 | G42: =G8+G12+G15+G17+G21+G31+G23+G26+G34+G37+G39+G41 -> 163.3 | H42: 163.3 | I42: 224 | J42: 214.9 | K42: 247.9 | L42: 176.8 | M42: 319.8
B43: 維持管理費 | C43: 前処理設備(生ごみ受入れマニュアル) | D43: 電気使用料金 | E43: 百万円 | G43: 0.9 | H43: 0.9 | I43: 0.9 | J43: 0.9 | K43: 0.9 | L43: 0.9 | M43: 0.9
D44: 補修費 | E44: 百万円 | G44: 3.2 | H44: 3.2 | I44: 3.2 | J44: 3.2 | K44: 3.2 | L44: 3.2 | M44: 3.2
D45: 小計 | E45: 百万円 | F45: =SUM(F43:F44) -> 0 | G45: =SUM(G43:G44) -> 4.1 | H45: 4.1 | I45: 4.1 | J45: 4.1 | K45: 4.1 | L45: 4.1 | M45: 4.1
C46: 混合槽 | D46: 電力費 | E46: 百万円 | G46: 0.6 | H46: 0.6 | I46: 0.6 | J46: 0.6 | K46: 0.6 | L46: 0.6 | M46: 0.6
D47: 補修費 | E47: 百万円 | G47: 0.6 | H47: 0.6 | I47: 0.6 | J47: 0.6 | K47: 0.6 | L47: 0.6 | M47: 0.6
D48: 小計 | E48: 百万円 | F48: =SUM(F46:F47) -> 0 | G48: =SUM(G46:G47) -> 1.2 | H48: 1.2 | I48: 1.2 | J48: 1.2 | K48: 1.2 | L48: 1.2 | M48: 1.2
C49: 消化槽 | D49: 維持管理費 | E49: 百万円 | F49: 21.3 | G49: 22.4 | H49: 22.4 | I49: 22.4 | J49: 22.4 | K49: 22.4 | L49: 22.4 | M49: 22.4
D50: 小計 | E50: 百万円 | F50: =SUM(F49) -> 21.3 | G50: =SUM(G49) -> 22.4 | H50: 22.4 | I50: 22.4 | J50: 22.4 | K50: 22.4 | L50: 22.4 | M50: 22.4
C51: ガスタンク | E51: 百万円 | F51: 2.9 | G51: 3.1 | H51: 3.1 | I51: 3.1 | J51: 3.1 | K51: 3.1 | L51: 3.1 | M51: 3.1
D52: 一式 | E52: 百万円 | F52: =SUM(F51) -> 2.9 | G52: =SUM(G51) -> 3.1 | H52: 3.1 | I52: 3.1 | J52: 3.1 | K52: 3.1 | L52: 3.1 | M52: 3.1
C53: 脱水機 | F53: 37.6 | G53: 39.5 | H53: 39.5 | I53: 39.5 | J53: 39.5 | K53: 39.5 | L53: 39.5 | M53: 39.5
D54: 一式 | E54: 百万円 | F54: =SUM(F53) -> 37.6 | G54: =SUM(G53) -> 39.5 | H54: 39.5 | I54: 39.5 | J54: 39.5 | K54: 39.5 | L54: 39.5 | M54: 39.5
C55: 脱硫塔 | D55: 補修費 | F55: 2.7 | G55: 3 | H55: 3 | I55: 3 | J55: 3 | K55: 3 | L55: 3 | M55: 3
E56: 百万円 | F56: =SUM(F55) -> 2.7 | G56: =SUM(G55) -> 3 | H56: 3 | I56: 3 | J56: 3 | K56: 3 | L56: 3 | M56: 3
C57: 消化ガス発電機 | D57: 補修費 | E57: 百万円 | G57: 11.5 | H57: 11.5 | I57: 11.5 | J57: 11.5 | K57: 11.5 | L57: 11.5 | M57: 11.5
E58: 百万円 | F58: =SUM(F57:F57) -> 0 | G58: =SUM(G57:G57) -> 11.5 | H58: 11.5 | I58: 11.5 | J58: 11.5 | K58: 11.5 | L58: 11.5 | M58: 11.5
C59: 焼却炉 | D59: 一式 | M59: 90.3
D60: 一式 | E60: 百万円 | F60: =SUM(F59) -> 0 | G60: =SUM(G59) -> 0 | H60: 0 | I60: 0 | J60: 0 | K60: 0 | L60: 0 | M60: 90.3
C61: 乾燥設備 | D61: 一式 | J61: 56.3
E62: 百万円 | F62: =SUM(F61) -> 0 | G62: =SUM(G61) -> 0 | H62: 0 | I62: 0 | J62: 56.3 | K62: 0 | L62: 0 | M62: 0
C63: 炭化炉 | D63: 一式 | I63: 157.9
E64: 百万円 | F64: =SUM(F63) -> 0 | G64: =SUM(G63) -> 0 | H64: 0 | I64: 157.9 | J64: 0 | K64: 0 | L64: 0 | M64: 0
C65: 堆肥化施設 | D65: 一式 | F65: 26 | K65: 26
E66: 百万円 | F66: =SUM(F65) -> 26 | G66: =SUM(G65) -> 0 | H66: 0 | I66: 0 | J66: 0 | K66: 26 | L66: 0 | M66: 0
C67: リン回収設備 | D67: 一式 | L67: 103.6
E68: 百万円 | F68: =SUM(F67) -> 0 | G68: =SUM(G67) -> 0 | H68: 0 | I68: 0 | J68: 0 | K68: 0 | L68: 103.6 | M68: 0
C69: 維持管理費 | F69: =F45+F48+F50+F52+F54+F60+F58+F56+F62+F64+F66+F68 -> 90.5 | G69: =G45+G48+G50+G52+G54+G60+G58+G56+G62+G64+G66+G68 -> 84.8 | H69: 84.8 | I69: 242.7 | J69: 141.1 | K69: 110.8 | L69: 188.4 | M69: 175.1
B70: 出費・収入減 | C70: 生ごみ運搬費 | E70: 百万円/年 | G70: 0 | H70: 0 | I70: 0 | J70: 0 | K70: 0 | L70: 0 | M70: 0
C71: 運搬費 | E71: 百万円/年 | G71: 0 | H71: 0 | I71: 0 | J71: 0 | K71: 0 | L71: 0 | M71: 0
C72: 埋め立て処分費 | D72: 脱水汚泥処分費 | E72: 百万円/年 | G72: 46.6
C73: 焼却灰処分費 | D73: 焼却灰処分費 | E73: 百万円/年 | M73: 0.9
C74: 廃棄物処理施設発の発電 | D74: 生ごみ減少の影響 | E74: 百万円/年 | F74: 0 | G74: 1.3 | I74: 1.3 | J74: 1.3 | K74: 1.3 | L74: 1.3 | M74: 1.3
C75: 廃棄物処分施設維持管理費(投入生ごみ分) | D75: 電気 | E75: 百万円/年 | F75: ー | H75: 0.03
D76: 重油 | E76: 百万円/年 | F76: ー | H76: 0.2
C77: 出費・収入減 | F77: =SUM(F70:F76) -> 0 | G77: =SUM(G70:G76) -> 47.9 | H77: =SUM(H70:H76) -> 0.23 | I77: =SUM(I70:I76) -> 1.3 | J77: 1.3 | K77: 1.3 | L77: 1.3 | M77: 2.2
B78: 収益 | C78: 消化ガス発電(売電) | D78: 売電収益 | E78: 百万円/年
C79: 消化ガス発電(場内利用) | D79: 維持管理費削減効果 | E79: 百万円/年 | G79: -10.643 | H79: -10.643 | I79: -10.643 | J79: -10.643 | K79: -10.643 | L79: -10.643 | M79: -10.643
C80: 固形燃料 | D80: 売却収益 | E80: 百万円/年 | I80: -0.044
C81: 重油の代替利用(炭化燃料) | D81: 維持管理費削減効果 | E81: 百万円/年
C82: 重油の代替利用(乾燥燃料) | D82: 維持管理費削減効果 | E82: 百万円/年
C83: 重油の代替利用(焼却廃熱利用) | D83: 維持管理費削減効果 | E83: 百万円/年 | M83: -8.024
C84: 肥料(堆肥) | D84: 売却収益 | E84: 百万円/年 | F84: -10.336 | K84: -10.924
C85: 肥料(乾燥肥料) | D85: 売却収益 | E85: 百万円/年 | J85: -7.717
C86: リン | D86: 売却収益 | E86: 百万円/年 | L86: -0.433
C87: 廃棄物処理施設の発電 | D87: 脱水汚泥増加による売却収益 | E87: 百万円/年 | H87: -0.03
C88: 収益 | F88: =SUM(F78:F87) -> -10.336 | G88: =SUM(G78:G87) -> -10.643 | H88: =SUM(H78:H87) -> -10.673 | I88: -10.687 | J88: -18.36 | K88: -21.567 | L88: -11.076 | M88: -18.667
B89: 事業費(経済収支) | F89: =SUM(F42+F69+F77+F88) -> 298.664 | G89: =SUM(G42+G69+G77+G88) -> 285.357 | H89: =SUM(H42+H69+H77+H88) -> 237.657 | I89: =SUM(I42+I69+I77+I88) -> 457.313 | J89: 338.94 | K89: 338.433 | L89: 355.424 | M89: 478.433
B90: 経済性評価 | F90: =RANK(F89,$F$89:$M$89,1) -> 3 | G90: =RANK(G89,$G$89:$M$89,1) -> 2 | H90: 1 | I90: 6 | J90: 4 | K90: 3 | L90: 5 | M90: 7
B91: 運転等に伴う温室効果ガス排出量 | C91: 汚泥処理量増加 | E91: t-CO2/年 | F91: 0 | G91: 0.0002237554286 | H91: 0.0002237554286 | I91: 0.0002237554286 | J91: 0.0002237554286 | K91: 0.0002237554286 | L91: 0.0002237554286 | M91: 0.0002237554286
C92: 資源化設備の運転(前処理設備) | E92: t-CO2/年 | F92: 0 | G92: 45.8 | H92: 45.8 | I92: 45.8 | J92: 45.8 | K92: 45.8 | L92: 45.8 | M92: 45.8
C93: 資源化設備の運転(炭化) | E93: t-CO2/年 | I93: 27.8
C94: 資源化設備の運転(乾燥) | E94: t-CO2/年 | J94: 12.1
C95: 資源化設備の運転(堆肥) | E95: t-CO2/年 | F95: 520.763823 | K95: 552
C96: 資源化設備の運転(焼却) | E96: t-CO2/年 | M96: 560.9
C97: 資源化設備の運転(リン回収) | E97: t-CO2/年 | L97: 58
C98: 埋立 | E98: t-CO2/年 | G98: 1938.2
C99: 廃棄物発電量 | E99: t-CO2/年 | F99: 0 | G99: 53.5 | H99: -90.1 | I99: 53.5 | J99: 53.5 | K99: 53.5 | L99: 53.5 | M99: 53.5
C100: 廃棄物焼却施設におけるエネルギー使用 | E100: t-CO2/年 | F100: 0 | G100: -37.5 | H100: 115.2 | I100: -37.5 | J100: -37.5 | K100: -37.5 | L100: -37.5 | M100: -37.5
C101: 温室効果ガス排出量 | E101: t-CO2/年 | F101: =SUM(F91:F100) -> 520.763823 | G101: =SUM(G91:G100) -> 2000.000224 | H101: =SUM(H91:H100) -> 70.90022376 | I101: =SUM(I91:I100) -> 89.60022376 | J101: 73.90022376 | K101: 613.8002238 | L101: =SUM(L91:L100) -> 119.8002238 | M101: =SUM(M91:M100) -> 622.7002238
B102: 化石燃料代替による温室効果ガス排出量削減効果 | C102: 消化ガス発電 | E102: t-CO2/年 | G102: -300.1 | H102: -300.1 | I102: -300.1 | J102: -300.1 | K102: -300.1 | L102: -300.1 | M102: -300.1
C103: 固形燃料利用 | E103: t-CO2/年 | G103: 0 | H103: 0 | I103: -454.7 | J103: 0 | K103: 0 | L103: 0 | M103: 0
C104: 焼却熱利用 | E104: t-CO2/年 | M104: -241.6
C105: 脱炭素効果 | E105: t-CO2/年 | F105: =SUM(F102:F104) -> 0 | G105: =SUM(G102:G104) -> -300.1 | H105: -300.1 | I105: -754.8 | J105: -300.1 | K105: -300.1 | L105: -300.1 | M105: -541.7
B106: 温室効果ガス排出量収支 | E106: t-CO2/年 | F106: =F101+F105 -> 520.763823 | G106: =G101+G105 -> 1699.900224 | H106: -229.1997762 | I106: -665.1997762 | J106: -226.1997762 | K106: 313.7002238 | L106: -180.2997762 | M106: 81.00022376
B107: 環境性評価 | F107: =RANK(F106,$F$106:$M$106,1) -> 7 | G107: =RANK(G106,$G$106:$M$106,1) -> 7 | H107: 2 | I107: 1 | J107: 3 | K107: 6 | L107: 4 | M107: 5
B109: 【参考】
B110: 現況で消化ガス発電を実施している場合
B111: 経済性
B112: 建設費 | C112: 消化ガス発電機 | D112: 機械 | E112: 百万円 | F112: =IF(COUNTIF(F5,"*有*"),建設費の算定!M30,"") -> 11.5
D113: 工事費 | E113: 百万円 | F113: =IF(COUNTIF(F5,"*有*"),建設費の算定!M31,"") -> 1
E114: 百万円 | F114: =SUM(F112:F113) -> 12.5
B115: 維持管理費 | C115: 消化ガス発電機 | D115: 補修費 | E115: 百万円 | F115: =IF(COUNTIF($F$5,"*有*"),維持管理費の算定!F19,"") -> 10.6
E116: 百万円 | F116: =SUM(F115:F115) -> 10.6
B117: 収益 | C117: 消化ガス発電(売電) | D117: 売電収益 | E117: 百万円/年
C118: 消化ガス発電(場内利用) | D118: 維持管理費削減効果 | E118: 百万円/年 | F118: =IF(COUNTIF(F5,"*有*"),-収益の算定!H5,"") -> -8.314
E119: 百万円 | F119: =SUM(F118:F118) -> -8.314
B120: 環境性
B121: 化石燃料代替による温室効果ガス排出量削減効果 | C121: 消化ガス発電 | E121: t-CO2/年 | F121: =IF(COUNTIF(F5,"*有*"),'汚泥処理フロー(日平均)'!P13*365*(-1),"") -> -234.4561163

Sheet 総合評価(実績値等入力時)
A1: 緑色セル：必要に応じて入力または選択
B3: 適用性に関する設問 | L3: 重み付け（総合評価の配点）設定
B4: 下水道事業における課題
C5: ①汚泥処分費が課題となっている | M5: 経済性 | N5: 12 | O5: 点
C6: 回答 | D6: 該当
C7: ②ＭＡＰ析出やリン放流規制への対応が課題となっている | M7: 環境性 | N7: 12 | O7: 点
C8: 回答 | D8: 非該当
B9: 周辺条件 | M9: 適用条件 | N9: 3 | O9: 点／該当１項目あたり
C10: ③処理能力に余裕のある廃棄物処理場が近隣に立地または設置計画がある
C11: 回答 | D11: 該当
C12: ④固形燃料の継続的な需要（工場･事業者等）の見通しがある
C13: 回答 | D13: 不明
C14: ⑤汚泥肥料の継続的な需要（農家･肥料製造業者等）の見通しがある
C15: 回答 | D15: 該当
C16: ⑥リンの継続的な需要（肥料製造業者･事業者等）の見通しがある
C17: 回答 | D17: 不明
C18: ⑦熱需要のある施設（温水プール等）が近隣に立地または設置計画がある
C19: 回答 | D19: 不明
B20: 自治体としての方向性について
C21: ⑧行政計画等で地域バイオマス利活用の推進が位置付けられている
C22: 回答 | D22: 該当
C23: ⑨ごみの減量化が必要となっている
C24: 回答 | D24: 該当
B26: その他（必要に応じて追加）
B27: ⑩
C28: 回答 | D28: 不明
B29: ⑪
C30: 回答 | D30: 不明
B31: ⑫
C32: 回答 | D32: 不明
B34: 総合評価シート
B35: 連携パターン | E35: 連携ﾊﾟﾀｰﾝ1 | G35: 連携ﾊﾟﾀｰﾝ2 | I35: 連携ﾊﾟﾀｰﾝ3 | K35: 連携ﾊﾟﾀｰﾝ4 | M35: 連携ﾊﾟﾀｰﾝ5 | O35: 連携ﾊﾟﾀｰﾝ6 | Q35: 連携ﾊﾟﾀｰﾝ7
B36: 概要 | E36: 消化＋ 埋立 | G36: 消化＋ 廃棄物側での処理 | I36: 消化＋ 固形燃料化 | K36: 消化＋ 乾燥汚泥肥料 | M36: 消化＋ コンポスト | O36: 消化＋ リン回収 | Q36: 消化＋ 熱利用
B37: 経済性 | C37: 収支(百万円/年) | E37: ='結果一覧(実績値等入力可)'!G89 -> 285.357 | G37: ='結果一覧(実績値等入力可)'!H89 -> 237.657 | I37: ='結果一覧(実績値等入力可)'!I89 -> 457.313 | K37: ='結果一覧(実績値等入力可)'!J89 -> 338.94 | M37: ='結果一覧(実績値等入力可)'!K89 -> 338.433 | O37: ='結果一覧(実績値等入力可)'!L89 -> 355.424 | Q37: ='結果一覧(実績値等入力可)'!M89 -> 478.433
C38: 指標 既設更新の年価収支 を 1.0 とする比率 | E38: =E37/'結果一覧(実績値等入力可)'!$F$89 -> 0.9554449147 | G38: =G37/'結果一覧(実績値等入力可)'!$F$89 -> 0.7957336673 | I38: =I37/'結果一覧(実績値等入力可)'!$F$89 -> 1.531195591 | K38: =K37/'結果一覧(実績値等入力可)'!$F$89 -> 1.134853883 | M38: =M37/'結果一覧(実績値等入力可)'!$F$89 -> 1.133156323 | O38: =O37/'結果一覧(実績値等入力可)'!$F$89 -> 1.19004634 | Q38: =Q37/'結果一覧(実績値等入力可)'!$F$89 -> 1.601910508
C39: 配点設定値 | D39: =$N$5 -> 12 | E39: =IF(E38<=0.7,$D40,IF(E38<=0.9,$D41,IF(E38<=1.1,$D42,IF(E38<=1.3,$D43,$D44)))) -> 6 | G39: =IF(G38<=0.7,$D40,IF(G38<=0.9,$D41,IF(G38<=1.1,$D42,IF(G38<=1.3,$D43,$D44)))) -> 9 | I39: =IF(I38<=0.7,$D40,IF(I38<=0.9,$D41,IF(I38<=1.1,$D42,IF(I38<=1.3,$D43,$D44)))) -> 0 | K39: =IF(K38<=0.7,$D40,IF(K38<=0.9,$D41,IF(K38<=1.1,$D42,IF(K38<=1.3,$D43,$D44)))) -> 3 | M39: =IF(M38<=0.7,$D40,IF(M38<=0.9,$D41,IF(M38<=1.1,$D42,IF(M38<=1.3,$D43,$D44)))) -> 3 | O39: =IF(O38<=0.7,$D40,IF(O38<=0.9,$D41,IF(O38<=1.1,$D42,IF(O38<=1.3,$D43,$D44)))) -> 3 | Q39: =IF(Q38<=0.7,$D40,IF(Q38<=0.9,$D41,IF(Q38<=1.1,$D42,IF(Q38<=1.3,$D43,$D44)))) -> 0
C40: X ≦0.7 | D40: =D39 -> 12
C41: 0.7＜ X ≦0.9 | D41: =D39*3/4 -> 9
C42: 0.9＜ X ≦1.1 | D42: =D39*2/4 -> 6
C43: 1.1＜ X ≦1.3 | D43: =D39*1/4 -> 3
C44: 1.3 ＜ | D44: =D39*0 -> 0
C45: 経済性 ○:既設更新より費用減 △:既設更新より費用増 | E45: =IF(E38>1,"△","○") -> ○ | G45: =IF(G38>1,"△","○") -> ○ | I45: =IF(I38>1,"△","○") -> △ | K45: =IF(K38>1,"△","○") -> △ | M45: =IF(M38>1,"△","○") -> △ | O45: =IF(O38>1,"△","○") -> △ | Q45: =IF(Q38>1,"△","○") -> △
B46: 環境性 | C46: 収支(t-CO2/年) | E46: ='結果一覧(実績値等入力可)'!G106 -> 1699.900224 | G46: ='結果一覧(実績値等入力可)'!H106 -> -229.1997762 | I46: ='結果一覧(実績値等入力可)'!I106 -> -665.1997762 | K46: ='結果一覧(実績値等入力可)'!J106 -> -226.1997762 | M46: ='結果一覧(実績値等入力可)'!K106 -> 313.7002238 | O46: ='結果一覧(実績値等入力可)'!L106 -> -180.2997762 | Q46: ='結果一覧(実績値等入力可)'!M106 -> 81.00022376
C47: 指標 収支の最大値を０、 最小値を１とした換算値 | E47: =(E46-MAX($E$46:$R$46))/(MIN($E$46:$R$46)-MAX($E$46:$R$46)) -> 0 | G47: =(G46-MAX($E$46:$R$46))/(MIN($E$46:$R$46)-MAX($E$46:$R$46)) -> 0.8156526151 | I47: =(I46-MAX($E$46:$R$46))/(MIN($E$46:$R$46)-MAX($E$46:$R$46)) -> 1 | K47: =(K46-MAX($E$46:$R$46))/(MIN($E$46:$R$46)-MAX($E$46:$R$46)) -> 0.8143841698 | M47: =(M46-MAX($E$46:$R$46))/(MIN($E$46:$R$46)-MAX($E$46:$R$46)) -> 0.5861062957 | O47: =(O46-MAX($E$46:$R$46))/(MIN($E$46:$R$46)-MAX($E$46:$R$46)) -> 0.7949769566 | Q47: =(Q46-MAX($E$46:$R$46))/(MIN($E$46:$R$46)-MAX($E$46:$R$46)) -> 0.6844953702
C48: 配点設定値 | D48: =$N$7 -> 12 | E48: =IF(E47<=0.2,$D53,IF(E47<=0.4,$D52,IF(E47<=0.6,$D51,IF(E47<=0.8,$D50,$D49)))) -> 0 | G48: =IF(G47<=0.2,$D53,IF(G47<=0.4,$D52,IF(G47<=0.6,$D51,IF(G47<=0.8,$D50,$D49)))) -> 12 | I48: =IF(I47<=0.2,$D53,IF(I47<=0.4,$D52,IF(I47<=0.6,$D51,IF(I47<=0.8,$D50,$D49)))) -> 12 | K48: =IF(K47<=0.2,$D53,IF(K47<=0.4,$D52,IF(K47<=0.6,$D51,IF(K47<=0.8,$D50,$D49)))) -> 12 | M48: =IF(M47<=0.2,$D53,IF(M47<=0.4,$D52,IF(M47<=0.6,$D51,IF(M47<=0.8,$D50,$D49)))) -> 6 | O48: =IF(O47<=0.2,$D53,IF(O47<=0.4,$D52,IF(O47<=0.6,$D51,IF(O47<=0.8,$D50,$D49)))) -> 9 | Q48: =IF(Q47<=0.2,$D53,IF(Q47<=0.4,$D52,IF(Q47<=0.6,$D51,IF(Q47<=0.8,$D50,$D49)))) -> 9
C49: 0.8＜ Y ≦1.0 | D49: =D48 -> 12
C50: 0.6＜ Y ≦0.8 | D50: =D48*3/4 -> 9
C51: 0.4＜ Y ≦0.6 | D51: =D48*2/4 -> 6
C52: 0.2＜ Y ≦0.4 | D52: =D48*1/4 -> 3
C53: 0≦ Y ≦0.2 | D53: =D48*0 -> 0
C54: 環境性 ◎:収支マイナス（脱炭素） ○:既設更新より排出量削減 △:既設更新より排出量増加 | E54: =IF(E46<0,"◎",IF('結果一覧 (既設更新参照用)'!$F$105-E46<=0,"△","○")) -> △ | G54: =IF(G46<0,"◎",IF('結果一覧 (既設更新参照用)'!$F$105-G46<=0,"△","○")) -> ◎ | I54: =IF(I46<0,"◎",IF('結果一覧 (既設更新参照用)'!$F$105-I46<=0,"△","○")) -> ◎ | K54: =IF(K46<0,"◎",IF('結果一覧 (既設更新参照用)'!$F$105-K46<=0,"△","○")) -> ◎ | M54: =IF(M46<0,"◎",IF('結果一覧 (既設更新参照用)'!$F$105-M46<=0,"△","○")) -> ○ | O54: =IF(O46<0,"◎",IF('結果一覧 (既設更新参照用)'!$F$105-O46<=0,"△","○")) -> ◎ | Q54: =IF(Q46<0,"◎",IF('結果一覧 (既設更新参照用)'!$F$105-Q46<=0,"△","○")) -> ○
B55: 適用性 | C55: 該当１項目 あたりの 加点設定値 | D55: =$N$9 -> 3 | G55: =IF($D$6="該当","該当",IF($D$6="非該当","非該当","-")) -> 該当 | H55: ①汚泥処分費が課題となっている | I55: =IF($D$6="該当","該当",IF($D$6="非該当","非該当","-")) -> 該当 | J55: ①汚泥処分費が課題となっている | K55: =IF($D$6="該当","該当",IF($D$6="非該当","非該当","-")) -> 該当 | L55: ①汚泥処分費が課題となっている | M55: =IF($D$6="該当","該当",IF($D$6="非該当","非該当","-")) -> 該当 | N55: ①汚泥処分費が課題となっている | O55: =IF($D$8="該当","該当",IF($D$8="非該当","非該当","-")) -> 非該当 | P55: ②ＭＡＰ析出やリン放流規制への対応が課題となっている | Q55: =IF($D$6="該当","該当",IF($D$6="非該当","非該当","-")) -> 該当 | R55: ①汚泥処分費が課題となっている
G56: =IF($D$11="該当","該当",IF($D$11="非該当","非該当","-")) -> 該当 | H56: ③処理能力に余裕のある廃棄物処理場が近隣に立地または設置計画がある | I56: =IF($D$13="該当","該当",IF($D$13="非該当","非該当","-")) -> - | J56: ④固形燃料の継続的な需要（工場･事業者等）の見通しがある | K56: =IF($D$15="該当","該当",IF($D$15="非該当","非該当","-")) -> 該当 | L56: ⑤汚泥肥料の継続的な需要（農家･肥料製造業者等）の見通しがある | M56: =IF($D$15="該当","該当",IF($D$15="非該当","非該当","-")) -> 該当 | N56: ⑤汚泥肥料の継続的な需要（農家･肥料製造業者等）の見通しがある | O56: =IF($D$17="該当","該当",IF($D$17="非該当","非該当","-")) -> - | P56: ⑥リンの継続的な需要（肥料製造業者･事業者等）の見通しがある | Q56: =IF($D$19="該当","該当",IF($D$19="非該当","非該当","-")) -> - | R56: ⑦熱需要のある施設（温水プール等）が近隣に立地または設置計画がある
I57: =IF($D$22="該当","該当",IF($D$22="非該当","非該当","-")) -> 該当 | J57: ⑧行政計画等で地域バイオマス利活用の推進が位置付けられている | K57: =IF($D$22="該当","該当",IF($D$22="非該当","非該当","-")) -> 該当 | L57: ⑧行政計画等で地域バイオマス利活用の推進が位置付けられている | M57: =IF($D$22="該当","該当",IF($D$22="非該当","非該当","-")) -> 該当 | N57: ⑧行政計画等で地域バイオマス利活用の推進が位置付けられている | O57: =IF($D$22="該当","該当",IF($D$22="非該当","非該当","-")) -> 該当 | P57: ⑧行政計画等で地域バイオマス利活用の推進が位置付けられている | Q57: =IF($D$22="該当","該当",IF($D$22="非該当","非該当","-")) -> 該当 | R57: ⑧行政計画等で地域バイオマス利活用の推進が位置付けられている
E58: =IF($D$24="該当","該当",IF($D$24="非該当","非該当","-")) -> 該当 | F58: ⑨ごみの減量化が必要となっている | I58: =IF($D$24="該当","該当",IF($D$24="非該当","非該当","-")) -> 該当 | J58: ⑨ごみの減量化が必要となっている | K58: =IF($D$24="該当","該当",IF($D$24="非該当","非該当","-")) -> 該当 | L58: ⑨ごみの減量化が必要となっている | M58: =IF($D$24="該当","該当",IF($D$24="非該当","非該当","-")) -> 該当 | N58: ⑨ごみの減量化が必要となっている | O58: =IF($D$24="該当","該当",IF($D$24="非該当","非該当","-")) -> 該当 | P58: ⑨ごみの減量化が必要となっている | Q58: =IF($D$24="該当","該当",IF($D$24="非該当","非該当","-")) -> 該当 | R58: ⑨ごみの減量化が必要となっている
E59: =IF($D$28="該当","該当",IF($D$28="非該当","非該当","-")) -> - | F59: =C27 -> 0 | G59: =IF($D$28="該当","該当",IF($D$28="非該当","非該当","-")) -> - | H59: =C27 -> 0 | I59: =IF($D$28="該当","該当",IF($D$28="非該当","非該当","-")) -> - | J59: =C27 -> 0 | K59: =IF($D$28="該当","該当",IF($D$28="非該当","非該当","-")) -> - | L59: =C27 -> 0 | M59: =IF($D$28="該当","該当",IF($D$28="非該当","非該当","-")) -> - | N59: =C27 -> 0 | O59: =IF($D$28="該当","該当",IF($D$28="非該当","非該当","-")) -> - | P59: =C27 -> 0 | Q59: =IF($D$28="該当","該当",IF($D$28="非該当","非該当","-")) -> - | R59: =C27 -> 0
E60: =IF($D$30="該当","該当",IF($D$30="非該当","非該当","-")) -> - | F60: =C29 -> 0 | G60: =IF($D$30="該当","該当",IF($D$30="非該当","非該当","-")) -> - | H60: =C29 -> 0 | I60: =IF($D$30="該当","該当",IF($D$30="非該当","非該当","-")) -> - | J60: =C29 -> 0 | K60: =IF($D$30="該当","該当",IF($D$30="非該当","非該当","-")) -> - | L60: =C29 -> 0 | M60: =IF($D$30="該当","該当",IF($D$30="非該当","非該当","-")) -> - | N60: =C29 -> 0 | O60: =IF($D$30="該当","該当",IF($D$30="非該当","非該当","-")) -> - | P60: =C29 -> 0 | Q60: =IF($D$30="該当","該当",IF($D$30="非該当","非該当","-")) -> - | R60: =C29 -> 0
E61: =IF($D$32="該当","該当",IF($D$32="非該当","非該当","-")) -> - | F61: =C31 -> 0 | G61: =IF($D$32="該当","該当",IF($D$32="非該当","非該当","-")) -> - | H61: =C31 -> 0 | I61: =IF($D$32="該当","該当",IF($D$32="非該当","非該当","-")) -> - | J61: =C31 -> 0 | K61: =IF($D$32="該当","該当",IF($D$32="非該当","非該当","-")) -> - | L61: =C31 -> 0 | M61: =IF($D$32="該当","該当",IF($D$32="非該当","非該当","-")) -> - | N61: =C31 -> 0 | O61: =IF($D$32="該当","該当",IF($D$32="非該当","非該当","-")) -> - | P61: =C31 -> 0 | Q61: =IF($D$32="該当","該当",IF($D$32="非該当","非該当","-")) -> - | R61: =C31 -> 0
C62: 加点 | E62: =COUNTIF(E55:F61,"該当")*$D$55 -> 3 | G62: =COUNTIF(G55:H61,"該当")*$D$55 -> 6 | I62: =COUNTIF(I55:J61,"該当")*$D$55 -> 9 | K62: =COUNTIF(K55:L61,"該当")*$D$55 -> 12 | M62: =COUNTIF(M55:N61,"該当")*$D$55 -> 12 | O62: =COUNTIF(O55:P61,"該当")*$D$55 -> 6 | Q62: =COUNTIF(Q55:R61,"該当")*$D$55 -> 9
C63: 適用性 ○上位3パターン | E63: =IF(RANK(E62,$E$62:$R$62,0)<=3,"○","-") -> - | G63: =IF(RANK(G62,$E$62:$R$62,0)<=3,"○","-") -> - | I63: =IF(RANK(I62,$E$62:$R$62,0)<=3,"○","-") -> ○ | K63: =IF(RANK(K62,$E$62:$R$62,0)<=3,"○","-") -> ○ | M63: =IF(RANK(M62,$E$62:$R$62,0)<=3,"○","-") -> ○ | O63: =IF(RANK(O62,$E$62:$R$62,0)<=3,"○","-") -> - | Q63: =IF(RANK(Q62,$E$62:$R$62,0)<=3,"○","-") -> ○
B64: 総合評価 | E64: =E39+E48+E62 -> 9 | G64: =G39+G48+G62 -> 27 | I64: =I39+I48+I62 -> 21 | K64: =K39+K48+K62 -> 27 | M64: =M39+M48+M62 -> 21 | O64: =O39+O48+O62 -> 18 | Q64: =Q39+Q48+Q62 -> 18
B65: △:経済性･環境性とも△ ◎:環境性◎かつ適用性○ ○:上記以外 | E65: =IF(E45="△",IF(E54="△","△",IF(E54="◎",IF(E63="○","◎","○"),"○")),IF(E54="◎",IF(E63="○","◎","○"),"○")) -> ○ | G65: =IF(G45="△",IF(G54="△","△",IF(G54="◎",IF(G63="○","◎","○"),"○")),IF(G54="◎",IF(G63="○","◎","○"),"○")) -> ○ | I65: =IF(I45="△",IF(I54="△","△",IF(I54="◎",IF(I63="○","◎","○"),"○")),IF(I54="◎",IF(I63="○","◎","○"),"○")) -> ◎ | K65: =IF(K45="△",IF(K54="△","△",IF(K54="◎",IF(K63="○","◎","○"),"○")),IF(K54="◎",IF(K63="○","◎","○"),"○")) -> ◎ | M65: =IF(M45="△",IF(M54="△","△",IF(M54="◎",IF(M63="○","◎","○"),"○")),IF(M54="◎",IF(M63="○","◎","○"),"○")) -> ○ | O65: =IF(O45="△",IF(O54="△","△",IF(O54="◎",IF(O63="○","◎","○"),"○")),IF(O54="◎",IF(O63="○","◎","○"),"○")) -> ○ | Q65: =IF(Q45="△",IF(Q54="△","△",IF(Q54="◎",IF(Q63="○","◎","○"),"○")),IF(Q54="◎",IF(Q63="○","◎","○"),"○")) -> ○
C111: 【出典】
C112: 国土技術政策総合研究所資料 第****号
C113: 資 料 名：下水処理場における生ごみ受入れ事業の検討に関する技術資料
C114: 担当研究室：上下水道研究部 下水処理研究室
C115: Ｕ Ｒ Ｌ： https://www.nilim.go.jp/lab/bcg/siryou/・・・・・

Sheet ■マスタ（国総研専用） (hidden)
A1: マスタシート | D1: ※各種セルはマクロで利用しています。セルの挿入や削除は行わないでください。
B2: マスタメニュー | M2: 諸元シートデフォルト値 | U2: コード値マスタ
O3: P5セルからENDまでの値を諸元シートのD6セル以降にコピーします | V3: リストに追加すると、入力シートのプルダウンの内容に反映されます
C4: シート保護 | N4: 項目 | Q4: デフォルト値 | R4: 単位 | W4: 消化の有無 | Z4: 脱水汚泥の処理 | AC4: 事業者分類
D5: 状態 | E5: 保護設定中 | N5: 施設の運転に関する項目 | O5: 処理場条件 | P5: 水処理方法 | Q5: 標準法 | R5: - | V5: 1 | W5: 有 | Y5: 1 | Z5: 埋立 | AB5: 1 | AC5: 公共
P6: 流入水SS | Q6: 180 | R6: mg/L | V6: 2 | W6: 無 | Y6: 2 | Z6: 固形燃料化 | AB6: 2 | AC6: 流域
P7: 最初沈殿池SS除去率 | Q7: 50 | R7: ％ | Y7: 3 | Z7: 肥料化(乾燥)
P8: 二次処理除去率 | Q8: 86 | R8: ％ | Y8: 4 | Z8: 肥料化(堆肥)
O9: 投入生ごみ | P9: 投入生ごみ変動倍率 | Q9: 1.2 | R9: - | Y9: 5 | Z9: リン利用
P10: 含水率 | Q10: 80 | R10: ％ | Y10: 6 | Z10: 焼却熱利用
P11: 有機物含有比 | Q11: 0.95 | R11: -
C12: 計算過程シート表示 | P12: 発酵不適物割合 | Q12: 20 | R12: %
D13: 状態 | E13: 非表示 | P13: ガス転換率 | Q13: 0.95 | R13: N㎥/kgVS
P14: 消化率 | Q14: 77.5 | R14: ％
P15: 希釈処理後含水率 | Q15: 90 | R15: ％
P16: 投入頻度 | Q16: 5 | R16: 回/週
P17: 生ごみ混合槽滞留時間 | Q17: 2 | R17: 日
O18: 下水汚泥 | P18: 濃縮汚泥含水率 | Q18: 98 | R18: ％
P19: 濃縮汚泥回収率 | Q19: 100 | R19: %
P20: 有機物含有率 | Q20: 0.8 | R20: -
P21: ガス転換率 | Q21: 0.55 | R21: N㎥/kgVS
P22: 消化率 | Q22: 50 | R22: ％
O23: 消化運転 | P23: 消化ガスの発熱量 | Q23: 21 | R23: MJ/N㎥
P24: 加温ガス割合 | Q24: 32 | R24: ％
P25: 発電効率 | Q25: 35 | R25: ％
P26: 稼働率 | Q26: 99 | R26: ％
P27: 消化日数 | Q27: 20 | R27: 日
P28: ガスタンク貯留日数 | Q28: 0.5 | R28: 日
O29: 脱水汚泥 | P29: 回収率 | Q29: 100 | R29: ％
P30: 含水率 | Q30: 80 | R30: ％
O31: 乾燥処理 | P31: 乾燥燃料含水率 | Q31: 10 | R31: ％
P32: 乾燥燃料熱量(未消化) | Q32: 21 | R32: MJ/kg
P33: 乾燥燃料熱量(消化) | Q33: 17 | R33: MJ/kg
P34: 重油熱量 | Q34: 38.9 | R34: MJ/L
O35: 炭化処理 | P35: 炭化汚泥灰分（消化汚泥） | Q35: 44 | R35: %
P36: 炭化汚泥灰分（未消化汚泥） | Q36: 26 | R36: %
P37: 炭化汚泥含水率（消化汚泥） | Q37: 4 | R37: ％
P38: 炭化汚泥含水率（未消化汚泥） | Q38: 1 | R38: ％
P39: 炭化燃料発熱量 | Q39: 15 | R39: MJ/kg
O40: 堆肥化 | P40: 堆肥化有機物分解率 | Q40: 35 | R40: %
P41: 堆肥含水率 | Q41: 40 | R41: %
P42: 添加物量 | Q42: 20 | R42: %
P43: 添加物含水率 | Q43: 30 | R43: %
O44: 焼却 | P44: 下水汚泥熱量 | Q44: 19 | R44: MJ/DS-kg
P45: 発電効率 | Q45: =Q57 -> 15 | R45: %
P46: 廃熱利用可能割合 | Q46: =6.2/19.8 -> 0.3131313131 | R46: -
O47: リン回収 | P47: 消化液リン濃度 | Q47: 326 | R47: mg/L
P48: リン回収率 | Q48: 90 | R48: %
P49: リン酸態リン濃度 | Q49: 150 | R49: mg/L
P50: マグネシウム添加モル比 | Q50: 1.1 | R50: Mg/P
P51: 有効水酸化ナトリウム濃度 | Q51: 35 | R51: %
P52: 日運転時間 | Q52: 24 | R52: 時間
P53: 年間運転日数 | Q53: 365 | R53: 日
O54: 廃棄物処理場(焼却)運転 | P54: 電力使用量 | Q54: 200 | R54: kWh/ごみt
P55: 重油使用量 | Q55: 0.34 | R55: L/ごみt
P56: ごみ熱量 | Q56: 17 | R56: MJ/DS-kg
P57: ごみ焼却発電効率 | Q57: 15 | R57: ％
N58: GHGの評価に関する項目 | O58: 温室効果ガス発生原単位 | P58: 電力使用 | Q58: 0.000423 | R58: t-CO2/kWh
P59: 焼却炉(廃棄物処理施設)・メタン | Q59: =1.5/1000000 -> 1.5e-06 | R59: t-CH4/t
P60: 焼却炉(廃棄物処理施設)・N2O | Q60: =263/1000000 -> 0.000263 | R60: t-N2O/t
P61: A重油 | Q61: 2.71 | R61: t-CO2/kL
P62: 汚泥処理 | Q62: 6e-07 | R62: t-N2O/千㎥
P63: 焼却(炭化)・CH4 | Q63: 9.7e-06 | R63: t₋CH4/wet-t
P64: 焼却N2O（既存設備） | Q64: 0.00151 | R64: t₋N2O/wet-t
P65: 焼却N2O | Q65: 0.000645 | R65: t₋N2O/wet-t
P66: 炭化・N2O | Q66: 3.12e-05 | R66: t₋N2O/wet-t
P67: 乾燥処理・N2O | Q67: 1.395e-05 | R67: t₋N2O/wet-t
P68: コンポスト化・CH4 | Q68: 0.004 | R68: t₋CH4/wet-t
P69: コンポスト化・N2O | Q69: 0.0003 | R69: t₋N2O/wet-t
P70: 埋立・CH4 | Q70: 0.133 | R70: t₋CH4/ds-t
P71: 食物くず嫌気性埋立・CH4 | Q71: 203 | R71: kg₋CH4/ds₋t
P72: 水酸化マグネシウム | Q72: 0.547832 | R72: t-CO2/t
P73: クエン酸 | Q73: 14.392 | R73: t-CO2/t
O74: 地球温暖化係数 | P74: CH4 | Q74: 25 | R74: -
P75: N2O | Q75: 298 | R75: -
N76: 経済性評価に関する項目 | O76: 費用単価 | P76: 電気購入単価(下水) | Q76: 15 | R76: 円/ｋWh
P77: 電気購入単価(廃棄物) | Q77: 15 | R77: 円/kWh
P78: 売電単価 | Q78: 35 | R78: 円/ｋWh
P79: 固形燃料売却単価 | Q79: 100 | R79: 円/t
P80: 重油単価 | Q80: 90 | R80: 円/L
P81: 汚泥肥料売却単価 | Q81: 11666.7 | R81: 円/t
P82: リン売却単価 | Q82: 32000 | R82: 円/t
P83: 生ごみ処分単価 | Q83: 0 | R83: 円/t
P84: 運搬費単価 | Q84: 0 | R84: 円/t
P85: 埋め立て処分単価 | Q85: 16000 | R85: 円/t₋wet
P86: 焼却灰処分単価 | Q86: 8000 | R86: 円/t
P87: 人件費単価 | Q87: 5 | R87: 万円
Q88: END

Sheet ■公開時に管理者以外は非表示とする⇒ (hidden)
A1: マスターシートにて、これより右側のシートとマスターシート自体を非表示にしてから公表

Sheet シート一覧 (hidden)
A1: シート名：シート一覧
B4: 入力 | G4: 入力
B5: 諸元
B6: 費用関数一覧 | G6: 諸元
B7: 汚泥処理フロー
B8: 資源利用量の算定 | G8: 汚泥処理フロー | I8: 資源利用量の算定
B9: 設備量の整理
B10: 建設費の算定 | G10: 設備量の設定
B11: 維持管理費の算定
B12: 収益の算定 | G12: 建設費の算定 | I12: defnendo2015
B13: 既存更新の評価 | G13: 維持管理費の算定
B14: 結果まとめ | G14: 収益の算定
B15: 結果まとめ内訳詳細ver | G15: 既存更新の評価
B16: defnendo2015
G17: 結果まとめ
G18: 結果まとめ内訳詳細ver

Sheet 汚泥処理フロー (日最大) (hidden)
A1: シート名：汚泥処理フロー
K2: GHG算定 | O2: 既設処理の場合
B4: 汚泥発生量 | K4: 汚泥処理量増加分 | O4: 生ごみ受け入れ無し(消化実施)
B5: 生汚泥固形物量 | C5: =(入力!D8*'諸元(編集可)'!D7/1000) *'諸元(編集可)'!D8/100 -> 1800 | D5: kg/日 | K5: 希釈後含水率 | L5: ='諸元(編集可)'!D16 -> 90 | M5: ％ | O5: 消化ガス発電(下水汚泥のみ)
B6: 余剰汚泥固形物量 | C6: =((入力!D8*'諸元(編集可)'!D7/1000)-C5)*'諸元(編集可)'!D9/100 -> 1548 | D6: kg/日 | K6: 汚泥増加量 | L6: =G16/(1-L5/100) -> 4.8 | M6: t-wet/日 | O6: ガス投入量 | P6: =C16 -> 1473.12 | Q6: N㎥/日
B7: 濃縮汚泥量固形物量 | C7: =C5+C6 -> 3348 | D7: kg/日 | O7: 消化槽加温ガス量 | P7: ='汚泥処理フロー (日最大)'!P6*'諸元(編集可)'!D25/100 -> 471.3984 | Q7: N㎥/日
B8: 濃縮汚泥量 | C8: =IF(入力!D18*入力!D22=0,C7/(1-'諸元(編集可)'!D19/100)/1000,入力!D18) -> 167.4 | D8: ㎥/日 | K8: 下水道施設の温室効果ガス排出量増加分 | O8: 発電量使用ガス量 | P8: =P6-P7 -> 1001.7216 | Q8: N㎥/日
G9: 受入れ | K9: 前処理設備運転 | L9: ='諸元(編集可)'!D59*((94.6*G12^0.43)*1000)/365 -> 0.1758331591 | M9: t-CO2/日 | O9: 発電に使用する熱量 | P9: =P8*'諸元(編集可)'!D24 -> 21036.1536 | Q9: MJ/日
K10: 汚泥処理量増加 | L10: =L6/1000*'諸元(編集可)'!D63*'諸元(編集可)'!D76 -> 8.5824e-07 | M10: t-CO2/日 | O10: 発電量 | P10: =(P9*('諸元(編集可)'!D27/100)*('諸元(編集可)'!D26/100))/3.6 -> 2024.729784 | Q10: kWh/日
B11: 下水汚泥(消化) | F11: 生ごみ(消化) | K11: 下水道施設の温室効果ガス削減 | O11: 発電容量 | P11: =P10/24 -> 84.363741 | Q11: kWh
B12: 濃縮汚泥量 | C12: =C8 -> 167.4 | D12: ㎥/日 | F12: 投入量 | G12: =入力!D12 -> 3 | H12: ㎥/日 | K12: 発電量GHG | L12: =G25*'諸元(編集可)'!D59 -> 1.108319865 | M12: t-CO2/日 | O12: 電気の排出係数 | P12: =資源利用量の算定!D44 -> 0.000423 | Q12: t-CO2/kWh
B13: 含水率 | C13: =IF(入力!D22*入力!D18=0,'諸元(編集可)'!D19,入力!D22) -> 98 | D13: ％ | F13: 含水率 | G13: ='諸元(編集可)'!D11 -> 80 | H13: ％ | O13: 脱炭素効果 | P13: =P10*P12 -> 0.8564606986 | Q13: t-CO2/日
B14: 固形物量 | C14: =C12*(1-C13/100) -> 3.348 | D14: t-DS/日 | F14: 発酵不適物 | G14: ='諸元(編集可)'!D13 -> 20 | H14: ％
B15: 有機物量 | C15: =C14*'諸元(編集可)'!D21 -> 2.6784 | D15: t-VS/日 | F15: 発酵不適物除去量 | G15: =G12*G14/100 -> 0.6 | H15: t/日 | K15: 廃棄物処理施設(下水汚泥受入-生ごみ排出） | O15: 生ごみ受け入れ無し(下水汚泥のみ)
B16: ガス発生量 | C16: =C15*'諸元(編集可)'!D22*1000 -> 1473.12 | D16: N㎥/日 | F16: 固形物量 | G16: =(G12-G15)*(1-G13/100) -> 0.48 | H16: t-DS/日 | K16: 投入量の変化 | L16: =C23-G12 -> 7.677 | M16: 脱水汚泥投入量-下水道への生ごみ投入量 | O16: 消化汚泥有機物量 | P16: =(C15*(1-'諸元(編集可)'!D23/100)) -> 1.3392 | Q16: t-VS/日
F17: 有機物量 | G17: =G16*'諸元(編集可)'!D12 -> 0.456 | H17: t-VS/日 | K17: 電気使用量の変化 | L17: =L16*'諸元(編集可)'!D55 -> 1535.4 | M17: kWh/日 | O17: 消化汚泥固形物量 | P17: =P16+((C14)-(C15)) -> 2.0088 | Q17: t-DS/日
F18: ガス発生量 | G18: =G17*'諸元(編集可)'!D14*1000 -> 433.2 | H18: N㎥/日 | K18: 重油使用量の変化 | L18: =L16*'諸元(編集可)'!D56 -> 2.61018 | M18: L | O18: 消化汚泥湿潤重量 | P18: =P17/(1-'諸元(編集可)'!D31/100) -> 10.044 | Q18: t/日
K19: ごみ発電量増加分 | L19: =(C22-G16)*'諸元(編集可)'!D57*1000 -> 28141.8 | M19: MJ
B20: 消化汚泥発生量 | F20: 消化ガス発電 | K20: ごみ発電量増加分 | L20: =L19*('諸元(編集可)'!D58/100)/3.6 -> 1172.575 | M20: KWh/日
B21: 消化汚泥有機物量 | C21: =(C15*(1-'諸元(編集可)'!D23/100))+('汚泥処理フロー (日最大)'!G17*(1-'諸元(編集可)'!D15/100)) -> 1.4418 | D21: t-VS/日 | F21: ガス投入量 | G21: =C16+G18 -> 1906.32 | H21: N㎥/日
B22: 消化汚泥固形物量 | C22: =C21+((G16+C14)-(C15+G17)) -> 2.1354 | D22: t-DS/日 | F22: 消化槽加温ガス量 | G22: ='汚泥処理フロー (日最大)'!G21*'諸元(編集可)'!D25/100 -> 610.0224 | H22: N㎥/日 | K22: 廃棄物処理施設の温室効果ガス増加分
B23: 消化汚泥湿潤重量 | C23: =C22/(1-'諸元(編集可)'!D31/100) -> 10.677 | D23: t/日 | F23: 発電量使用ガス量 | G23: =G21-G22 -> 1296.2976 | H23: N㎥/日 | K23: 電気使用GHG | L23: =L17*'諸元(編集可)'!D59 -> 0.6494742 | M23: t-CO2/日
F24: 発電に使用する熱量 | G24: =G23*'諸元(編集可)'!D24 -> 27222.2496 | H24: MJ/日 | K24: 燃料使用GHG | L24: ='諸元(編集可)'!D62*'汚泥処理フロー (日最大)'!L18/1000 -> 0.0070735878 | M24: t-CO2/日
F25: 発電量 | G25: =(G24*('諸元(編集可)'!D27/100)*('諸元(編集可)'!D26/100))/3.6 -> 2620.141524 | H25: kWh/日 | K25: 廃棄物施設の温室効果ガス削減
F26: 発電容量 | G26: =G25/24 -> 109.1725635 | H26: kWh | K26: 発電量 | L26: =L20*'諸元(編集可)'!D59 -> 0.495999225 | M26: t-CO2/日

Sheet 汚泥処理フロー(日平均) (hidden)
A1: シート名：汚泥処理フロー
K2: GHG算定 | O2: 既設処理の場合
B4: 汚泥発生量 | K4: 汚泥処理量増加分 | O4: 生ごみ受け入れ無し(消化実施)
B5: 生汚泥固形物量 | C5: =(入力!D10*'諸元(編集可)'!D7/1000) *'諸元(編集可)'!D8/100 -> 1350 | D5: kg/日 | K5: 希釈後含水率 | L5: ='諸元(編集可)'!D16 -> 90 | M5: ％ | O5: 消化ガス発電(下水汚泥のみ)
B6: 余剰汚泥固形物量 | C6: =((入力!D10*'諸元(編集可)'!D7/1000)-C5)*'諸元(編集可)'!D9/100 -> 1161 | D6: kg/日 | K6: 汚泥増加量 | L6: =G16/(1-L5/100) -> 4.8 | M6: t-wet/日 | O6: ガス投入量 | P6: =C16 -> 1104.84 | Q6: N㎥/日
B7: 濃縮汚泥量固形物量 | C7: =C5+C6 -> 2511 | D7: kg/日 | O7: 消化槽加温ガス量 | P7: =P6*'諸元(編集可)'!D25/100 -> 353.5488 | Q7: N㎥/日
B8: 濃縮汚泥量 | C8: =IF(入力!D20*入力!D22=0,C7/(1-'諸元(編集可)'!D19/100)/1000,入力!D20) -> 125.55 | D8: ㎥/日 | K8: 下水道施設の温室効果ガス排出量増加分 | O8: 発電量使用ガス量 | P8: =P6-P7 -> 751.2912 | Q8: N㎥/日
G9: 受入れ | K9: 前処理設備運転 | L9: ='諸元(編集可)'!D59*((94.6*G12^0.43)*1000)/365 -> 0.1758331591 | M9: t-CO2/日 | O9: 発電に使用する熱量 | P9: =P8*'諸元(編集可)'!D24 -> 15777.1152 | Q9: MJ/日
K10: 汚泥処理量増加 | L10: =L6/1000*'諸元(編集可)'!D63*'諸元(編集可)'!D76 -> 8.5824e-07 | M10: t-CO2/日 | O10: 発電量 | P10: =(P9*('諸元(編集可)'!D27/100)*('諸元(編集可)'!D26/100))/3.6 -> 1518.547338 | Q10: kWh/日
B11: 下水汚泥(消化) | F11: 生ごみ(消化) | K11: 下水道施設の温室効果ガス削減 | O11: 発電容量 | P11: =P10/24 -> 63.27280575 | Q11: kWh
B12: 濃縮汚泥量 | C12: =C8 -> 125.55 | D12: ㎥/日 | F12: 投入量 | G12: =入力!D12 -> 3 | H12: ㎥/日 | K12: 発電量GHG | L12: =G25*'諸元(編集可)'!D59 -> 0.89420469 | M12: t-CO2/日 | O12: 電気の排出係数 | P12: =資源利用量の算定!D44 -> 0.000423 | Q12: t-CO2/kWh
B13: 含水率 | C13: =IF(入力!D22*入力!D20=0,'諸元(編集可)'!D19,入力!D22) -> 98 | D13: ％ | F13: 含水率 | G13: ='諸元(編集可)'!D11 -> 80 | H13: ％ | K13: 発電GHG生ごみ分 | L13: =L12-P13 -> 0.251859166 | M13: t-CO2/日 | O13: 脱炭素効果 | P13: =P10*P12 -> 0.642345524 | Q13: t-CO2/日
B14: 固形物量 | C14: =C12*(1-C13/100) -> 2.511 | D14: t-DS/日 | F14: 発酵不適物 | G14: ='諸元(編集可)'!D13 -> 20 | H14: ％
B15: 有機物量 | C15: =C14*'諸元(編集可)'!D21 -> 2.0088 | D15: t-VS/日 | F15: 発酵不適物除去量 | G15: =G12*G14/100 -> 0.6 | H15: t/日 | K15: 廃棄物処理施設(下水汚泥受入-生ごみ排出） | O15: 生ごみ受け入れ無し(下水汚泥のみ)
B16: ガス発生量 | C16: =C15*'諸元(編集可)'!D22*1000 -> 1104.84 | D16: N㎥/日 | F16: 固形物量 | G16: =(G12-G15)*(1-G13/100) -> 0.48 | H16: t-DS/日 | K16: 投入量の変化 | L16: =C23-G12 -> 5.166 | M16: 脱水汚泥投入量-下水道への生ごみ投入量 | O16: 消化汚泥有機物量 | P16: =(C15*(1-'諸元(編集可)'!D23/100)) -> 1.0044 | Q16: t-VS/日
F17: 有機物量 | G17: =G16*'諸元(編集可)'!D12 -> 0.456 | H17: t-VS/日 | K17: 電気使用量の変化 | L17: =L16*'諸元(編集可)'!$D$55 -> 1033.2 | M17: kWh/日 | O17: 消化汚泥固形物量 | P17: =P16+((C14)-(C15)) -> 1.5066 | Q17: t-DS/日
F18: ガス発生量 | G18: =G17*'諸元(編集可)'!D14*1000 -> 433.2 | H18: N㎥/日 | K18: 重油使用量の変化 | L18: =L16*'諸元(編集可)'!$D$56 -> 1.75644 | M18: L | O18: 消化汚泥湿潤重量 | P18: =P17/(1-'諸元(編集可)'!D31/100) -> 7.533 | Q18: t/日
K19: ごみ発電量増加分 | L19: =(C22-G16)*'諸元(編集可)'!$D$57*1000 -> 19604.4 | M19: MJ
B20: 消化汚泥発生量 | F20: 消化ガス発電 | K20: ごみ発電量増加分 | L20: =L19*('諸元(編集可)'!$D$58/100)/3.6 -> 816.85 | M20: KWh/日
B21: 消化汚泥有機物量 | C21: =(C15*(1-'諸元(編集可)'!D23/100))+('汚泥処理フロー(日平均)'!G17*(1-'諸元(編集可)'!D15/100)) -> 1.107 | D21: t-VS/日 | F21: ガス投入量 | G21: =C16+G18 -> 1538.04 | H21: N㎥/日
B22: 消化汚泥固形物量 | C22: =C21+((G16+C14)-(C15+G17)) -> 1.6332 | D22: t-DS/日 | F22: 消化槽加温ガス量 | G22: ='汚泥処理フロー(日平均)'!G21*'諸元(編集可)'!D25/100 -> 492.1728 | H22: N㎥/日 | K22: 廃棄物処理施設の温室効果ガス増加分
B23: 消化汚泥湿潤重量 | C23: =C22/(1-'諸元(編集可)'!D31/100) -> 8.166 | D23: t/日 | F23: 発電量使用ガス量 | G23: =G21-G22 -> 1045.8672 | H23: N㎥/日 | K23: 電気使用GHG | L23: =L17*'諸元(編集可)'!$D$59 -> 0.4370436 | M23: t-CO2/日
F24: 発電に使用する熱量 | G24: =G23*'諸元(編集可)'!D24 -> 21963.2112 | H24: MJ/日 | K24: 燃料使用GHG | L24: ='諸元(編集可)'!$D$62*'汚泥処理フロー(日平均)'!L18/1000 -> 0.0047599524 | M24: t-CO2/日
F25: 発電量 | G25: =(G24*('諸元(編集可)'!D27/100)*('諸元(編集可)'!D26/100))/3.6 -> 2113.959078 | H25: kWh/日 | K25: 廃棄物施設の温室効果ガス削減
F26: 発電容量 | G26: =G25/24 -> 88.08162825 | H26: kWh | K26: 発電量 | L26: =L20*'諸元(編集可)'!$D$59 -> 0.34552755 | M26: t-CO2/日

Sheet 資源利用量の算定 (hidden)
A1: シート名：資源利用量の算定
I2: 既存処理
B3: 汚泥発生量 | I3: 乾燥 | O3: 炭化 | U3: 堆肥化 | AA3: 焼却 | AG3: 廃熱利用 | AM3: 埋立 | AS3: リン回収
B4: No | C4: 項目 | D4: 値 | E4: 単位 | F4: 算定方法 | I4: No | J4: 項目 | K4: 値 | L4: 単位 | M4: 算定方法 | O4: No | P4: 項目 | Q4: 値 | R4: 単位 | S4: 算定方法 | U4: No | V4: 項目 | W4: 値 | X4: 単位 | Y4: 算定方法 | AA4: No | AB4: 項目 | AC4: 値 | AD4: 単位 | AE4: 算定方法 | AG4: No | AH4: 項目 | AI4: 値 | AJ4: 単位 | AK4: 算定方法 | AM4: No | AN4: 項目 | AO4: 値 | AP4: 単位 | AQ4: 算定方法 | AS4: No | AT4: 項目 | AU4: 値 | AV4: 単位 | AW4: 算定方法
B5: ① | C5: 流入水量(日平均) | D5: =入力!D10 -> 15000 | E5: ㎥/日 | F5: 与条件「入力値」 | J5: 発生汚泥固形物量 | K5: =D11 -> 2511 | L5: kg-DS/日 | M5: ⑦ | P5: 発生汚泥固形物量 | Q5: =D11 -> 2511 | R5: kg-DS/日 | S5: ⑦ | V5: 発生汚泥固形物量 | W5: =$D$11 -> 2511 | X5: kg-DS/日 | Y5: ⑦ | AB5: 発生汚泥固形物量 | AC5: =$D$11 -> 2511 | AD5: kg-DS/日 | AE5: ⑦ | AH5: 発生汚泥固形物量 | AI5: =$D$11 -> 2511 | AJ5: kg-DS/日 | AK5: ⑦ | AN5: 発生汚泥固形物量 | AO5: =$D$11 -> 2511 | AP5: kg-DS/日 | AQ5: ⑦ | AT5: 消化液リン濃度 | AV5: mg/L | AW5: 消化未実施のため０
B6: ② | C6: 流入水SS | D6: ='諸元(編集可)'!D7 -> 180 | E6: mg/L | F6: 与条件「参考資料*1を基に設定 」 | J6: 脱水汚泥含水率 | K6: ='諸元(編集可)'!$D$31 -> 80 | L6: ％ | P6: 脱水汚泥含水率 | Q6: ='諸元(編集可)'!$D$31 -> 80 | R6: ％ | V6: 脱水汚泥含水率 | W6: ='諸元(編集可)'!$D$31 -> 80 | X6: ％ | AB6: 脱水汚泥含水率 | AC6: ='諸元(編集可)'!$D$31 -> 80 | AD6: ％ | AH6: 脱水汚泥含水率 | AI6: ='諸元(編集可)'!$D$31 -> 80 | AJ6: ％ | AN6: 脱水汚泥含水率 | AO6: ='諸元(編集可)'!$D$31 -> 80 | AP6: ％ | AT6: 濃縮汚泥量(リン回収処理水量) | AV6: ㎥/日 | AW6: 消化未実施のため０
B7: ③ | C7: 最初沈殿池SS除去率 | D7: ='諸元(編集可)'!D8 -> 50 | E7: ％ | F7: 与条件「参考資料*1を基に設定 」 | J7: 乾燥汚泥処理量 | K7: =K5/(1-K6/100) -> 12555 | L7: kg-wet/日 | P7: 炭化汚泥処理量 | Q7: =Q5/(1-Q6/100) -> 12555 | R7: kg-wet/日 | V7: 堆肥化処理量 | W7: =W5/(1-W6/100) -> 12555 | X7: kg-wet/日 | AB7: 焼却処理量 | AC7: =AC5/(1-AC6/100) -> 12555 | AD7: kg-wet/日 | AH7: 焼却処理量 | AI7: =AI5/(1-AI6/100) -> 12555 | AJ7: kg-wet/日 | AN7: 埋め立て処分量 | AO7: =AO5/(1-AO6/100) -> 12555 | AP7: kg-wet/日 | AT7: リン負荷 | AU7: =AU6*1000*AU5/10^6 -> 0 | AV7: kg/日 | BA7: =(('汚泥処理フロー(日平均)'!$C$15+'汚泥処理フロー(日平均)'!$G$17)-'汚泥処理フロー(日平均)'!C21) -> 1.3578
B8: ④ | C8: 第二沈殿池除去率 | D8: ='諸元(編集可)'!D9 -> 86 | E8: ％ | F8: 与条件「参考資料*1を基に設定 」 | J8: 乾燥汚泥含水率 | K8: ='諸元(編集可)'!$D$32 -> 10 | L8: % | P8: 脱水汚泥中有機物量 | Q8: =D16 -> 2008.8 | R8: kg-VS/日 | V8: 堆肥化有機物量 | W8: =W5*'諸元(編集可)'!$D$21 -> 2008.8 | X8: kg-VS/日 | AB8: 焼却有機物量 | AC8: =AC5*'諸元(編集可)'!$D$21 -> 2008.8 | AD8: kg-VS/日 | AH8: 焼却有機物量 | AI8: =AI5*'諸元(編集可)'!$D$21 -> 2008.8 | AJ8: kg-VS/日 | AN8: 温室効果ガス排出量 | AO8: =AO5/1000*'諸元(編集可)'!$D$71*'諸元(編集可)'!$D$75 -> 8.349075 | AP8: t-CO2/日 | AT8: リン回収率 | AU8: ='諸元(編集可)'!$D$49 -> 90 | AV8: %
B9: ⑤ | C9: 最初沈殿池発生固形物量量 | D9: =(D5*D6/1000)*D7/100 -> 1350 | E9: kg-DS/日 | F9: ((①×②)×1000)×③/100 | J9: 乾燥汚泥量 | K9: =K5/(1-K8/100) -> 2790 | L9: kg-wet/日 | P9: 脱水汚泥灰分 | Q9: =Q5-Q8 -> 502.2 | R9: kg-DS/日 | V9: 堆肥分解率 | W9: ='諸元(編集可)'!$D$41 -> 35 | X9: % | AB9: 焼却灰発生量 | AC9: =AC5*(1-'諸元(編集可)'!$D$21) -> 502.2 | AD9: kg-DS/日 | AH9: 発熱量 | AI9: ='諸元(編集可)'!$D$45 -> 19 | AJ9: MJ/DS-kg | AT9: リン回収量 | AU9: =AU7*AU8/100 -> 0 | AV9: kg/日
B10: ⑥ | C10: 第二沈殿池発生固形物量 | D10: =(((D5*D6/1000)-D9)*D8/100) -> 1161 | E10: kg-DS/日 | F10: (((①×②)×1000)-⑤)×④/100 | J10: 乾燥汚泥発熱量 | K10: ='諸元(編集可)'!$D$33*資源利用量の算定!K5 -> 52731 | L10: MJ/日 | P10: 炭化汚泥灰分（未消化汚泥） | Q10: ='諸元(編集可)'!D37 -> 26 | R10: % | V10: 有機物分解量 | W10: =W8*(W9/100) -> 703.08 | X10: kg-VS/日 | AB10: 発熱量 | AC10: ='諸元(編集可)'!$D$45 -> 19 | AD10: MJ/DS-kg | AH10: 焼却時発生熱量 | AI10: =AI5*AI9 -> 47709 | AJ10: MJ/日 | AT10: 年間電気使用量 | AU10: 0 | AV10: kwh/年 | AW10: 消化未実施のため０
B11: ⑦ | C11: 発生汚泥固形物量 | D11: =IF(入力!D20*(1-入力!D22/100)=0,D9+D10,入力!D20*(1-入力!D22/100)) -> 2511 | E11: kg-DS/日 | F11: ⑤+⑥ | J11: 化石燃料(重油換算)代替量 | K11: =K10/'諸元(編集可)'!$D$35 -> 1355.552699 | L11: L/日 | P11: 炭化汚泥固形物量 | Q11: =Q5*((Q9/Q5)/(Q10/100)) -> 1931.538462 | R11: kg-DS/日 | V11: 堆肥固形物量 | W11: =(W5-W10) -> 1807.92 | X11: kg-DS/日 | AB11: 発電効率 | AC11: ='諸元(編集可)'!$D$46 -> 15 | AD11: % | AH11: 排熱利用量合計 | AI11: =AI10*'諸元(編集可)'!$D$47 -> 14939.18182 | AJ11: MJ/日 | AT11: 水酸化マグネシウム使用量 | AU11: =(AU6*'諸元(編集可)'!$D$50*'諸元(編集可)'!$D$51*(100/'諸元(編集可)'!$D$52)/1000)*'諸元(編集可)'!$D$54*'諸元(編集可)'!$D$53/24 -> 0 | AV11: kg/年
J12: 脱炭素効果 | K12: =(K11/1000)*'諸元(編集可)'!$D$62 -> 3.673547815 | L12: t-CO2/日 | P12: 炭化汚泥含水率 | Q12: ='諸元(編集可)'!D38 -> 4 | R12: ％ | V12: 添加物割合 | W12: ='諸元(編集可)'!$D$43 -> 20 | X12: % | AB12: 発電量 | AC12: =(AC10*AC5*AC11/100)/3.6 -> 1987.875 | AD12: kWh/年 | AH12: 化石燃料(重油換算)代替量 | AI12: =AI11/'諸元(編集可)'!$D$35 -> 384.0406637 | AJ12: L/日 | AT12: クエン酸使用量 | AU12: =AU6*0.25 -> 0 | AV12: kg/年
B13: 消化運転(下水汚泥) | J13: 温室効果ガス発生量 | K13: =K7/1000*('諸元(編集可)'!$D$68*'諸元(編集可)'!$D$76) -> 0.0521923905 | L13: t-CO2/日 | P13: 炭化汚泥量 | Q13: =Q11/(1-Q12/100) -> 2012.019231 | R13: kg-wet/日 | V13: 添加物量 | W13: =W5*W12/100 -> 502.2 | X13: kg-DS/日 | AB13: 温室効果ガス排出量 | AC13: =AC7/1000*('諸元(編集可)'!$D$64*'諸元(編集可)'!$D$75+'諸元(編集可)'!$D$65*'諸元(編集可)'!$D$76) -> 5.652543488 | AD13: t-CO2/日 | AH13: 脱炭素効果 | AI13: =(AI12/1000)*'諸元(編集可)'!$D$62 -> 1.040750199 | AJ13: t-CO2/日 | AT13: 電気使用に伴う温室効果ガス排出量 | AU13: =AU10*'諸元(編集可)'!$D$59 -> 0 | AV13: t₋CO2/年
B14: No | C14: 項目 | D14: 値 | E14: 単位 | F14: 算定方法 | P14: 炭化汚泥発熱量 | Q14: ='諸元(編集可)'!$D$40*Q13 -> 30180.28846 | R14: MJ/日 | V14: 堆肥含水率 | W14: ='諸元(編集可)'!$D$42 -> 40 | X14: % | AT14: 薬品使用に伴う温室効果ガス排出量 | AU14: =(AU11/1000*'諸元(編集可)'!$D$73+AU12/1000*'諸元(編集可)'!$D$74) -> 0 | AV14: t₋CO2/年
B15: ⑧ | C15: 有機物含有比 | D15: ='諸元(編集可)'!D21 -> 0.8 | E15: VS/DS | F15: 与条件「参考資料*2を基に設定 」 | P15: 化石燃料(重油換算)代替量 | Q15: =Q14/'諸元(編集可)'!$D$35 -> 775.842891 | R15: L/日 | V15: 堆肥量 | W15: =(W11+W13)/(1-W14/100) -> 3850.2 | X15: kg-wet/日 | AT15: 温室効果ガス排出量 | AU15: =AU13+AU14 -> 0 | AV15: t₋CO2/年
B16: ⑨ | C16: 有機物量 | D16: =D11*D15 -> 2008.8 | E16: kg-VS/日 | F16: ⑦×⑧ | P16: 脱炭素効果 | Q16: =(Q15/1000)*'諸元(編集可)'!$D$62 -> 2.102534235 | R16: t-CO2/日 | V16: 温室効果ガス発生量 | W16: =W7/1000*('諸元(編集可)'!$D$69*'諸元(編集可)'!$D$75+'諸元(編集可)'!$D$70*'諸元(編集可)'!$D$76) -> 2.377917 | X16: t-CO2/日
B17: ⑩ | C17: ガス転換率 | D17: ='諸元(編集可)'!D22 -> 0.55 | E17: N㎥/kgVS | F17: 与条件「参考資料*2を基に設定 」 | P17: 温室効果ガス発生量 | Q17: =Q7/1000*('諸元(編集可)'!$D$64*'諸元(編集可)'!$D$75+'諸元(編集可)'!$D$67*'諸元(編集可)'!$D$76) -> 0.1197759555 | R17: t-CO2/日
B18: ⑪ | C18: ガス発生量 | D18: =D16*D17 -> 1104.84 | E18: N㎥/日 | F18: ⑨×⑩
B20: 消化運転(生ごみ) | I20: 消化+乾燥 | O20: 消化+炭化 | U20: 消化+堆肥化 | AA20: 消化+焼却 | AG20: 消化+廃熱利用 | AM20: 消化+埋立 | AS20: 消化+リン回収
B21: No | C21: 項目 | D21: 値 | E21: 単位 | F21: 算定方法 | I21: No | J21: 項目 | K21: 値 | L21: 単位 | M21: 算定方法 | O21: No | P21: 項目 | Q21: 値 | R21: 単位 | S21: 算定方法 | U21: No | V21: 項目 | W21: 値 | X21: 単位 | Y21: 算定方法 | AA21: No | AB21: 項目 | AC21: 値 | AD21: 単位 | AE21: 算定方法 | AG21: No | AH21: 項目 | AI21: 値 | AJ21: 単位 | AK21: 算定方法 | AM21: No | AN21: 項目 | AO21: 値 | AP21: 単位 | AQ21: 算定方法 | AS21: No | AT21: 項目 | AU21: 値 | AV21: 単位 | AW21: 算定方法
B22: ⑫ | C22: 生ごみ投入量 | D22: =(入力!D12-'汚泥処理フロー(日平均)'!G15)*1000 -> 2400 | E22: kg/日 | F22: 与条件「入力値」から発酵不適物を除いた値 | J22: 発生汚泥固形物量 | K22: ='汚泥処理フロー(日平均)'!P17*1000 -> 1506.6 | L22: kg-DS/日 | M22: 汚泥処理フロー より | P22: 発生汚泥固形物量 | Q22: ='汚泥処理フロー(日平均)'!P17*1000 -> 1506.6 | R22: kg-DS/日 | S22: 汚泥処理フロー より | V22: 発生汚泥固形物量 | W22: ='汚泥処理フロー(日平均)'!P17*1000 -> 1506.6 | X22: kg-DS/日 | Y22: 汚泥処理フロー より | AB22: 発生汚泥固形物量 | AC22: ='汚泥処理フロー(日平均)'!P17*1000 -> 1506.6 | AD22: kg-DS/日 | AE22: 汚泥処理フロー より | AH22: 発生汚泥固形物量 | AI22: ='汚泥処理フロー(日平均)'!P17*1000 -> 1506.6 | AJ22: kg-DS/日 | AK22: 汚泥処理フロー より | AN22: 発生汚泥固形物量 | AO22: ='汚泥処理フロー(日平均)'!P17*1000 -> 1506.6 | AP22: kg-DS/日 | AQ22: 汚泥処理フロー より | AT22: 消化液リン濃度 | AU22: ='諸元(編集可)'!$D$48 -> 326 | AV22: mg/L | AW22: 諸元
B23: ⑬ | C23: 含水率 | D23: ='諸元(編集可)'!D11 -> 80 | E23: ％ | F23: 与条件「参考資料*2を基に設定 」 | J23: 脱水汚泥含水率 | K23: ='諸元(編集可)'!$D$31 -> 80 | L23: ％ | P23: 脱水汚泥含水率 | Q23: ='諸元(編集可)'!$D$31 -> 80 | R23: ％ | V23: 脱水汚泥含水率 | W23: ='諸元(編集可)'!$D$31 -> 80 | X23: ％ | AB23: 脱水汚泥含水率 | AC23: ='諸元(編集可)'!$D$31 -> 80 | AD23: ％ | AH23: 脱水汚泥含水率 | AI23: ='諸元(編集可)'!$D$31 -> 80 | AJ23: ％ | AN23: 脱水汚泥含水率 | AO23: ='諸元(編集可)'!$D$31 -> 80 | AP23: ％ | AT23: 消化液量(リン回収処理水量) | AU23: =('汚泥処理フロー(日平均)'!$C$12)-(('汚泥処理フロー(日平均)'!$C$15-'汚泥処理フロー(日平均)'!C21+'汚泥処理フロー(日平均)'!G17)) -> 124.1922 | AV23: ㎥/日
B24: ⑭ | C24: 生ごみ固形物量 | D24: =D22*(1-D23/100) -> 480 | E24: kg-DS/日 | F24: ⑫×(1-⑬/100） | J24: 乾燥汚泥処理量 | K24: =K22/(1-K23/100) -> 7533 | L24: kg-wet/日 | P24: 炭化汚泥処理量 | Q24: =Q22/(1-Q23/100) -> 7533 | R24: kg-wet/日 | V24: 堆肥化処理量 | W24: =W22/(1-W23/100) -> 7533 | X24: kg-wet/日 | AB24: 焼却処理量 | AC24: =AC22/(1-AC23/100) -> 7533 | AD24: kg-wet/日 | AH24: 焼却処理量 | AI24: =AI22/(1-AI23/100) -> 7533 | AJ24: kg-wet/日 | AN24: 埋め立て処分量 | AO24: =AO22/(1-AO23/100) -> 7533 | AP24: kg-wet/日 | AT24: リン負荷 | AU24: =AU23*1000*AU22/10^6 -> 40.4866572 | AV24: kg/日
B25: ⑮ | C25: 有機物含有比 | D25: ='諸元(編集可)'!D12 -> 0.95 | E25: VS/DS | F25: 与条件「参考資料*2を基に設定 」 | J25: 乾燥汚泥含水率 | K25: ='諸元(編集可)'!$D$32 -> 10 | L25: % | P25: 脱水汚泥中有機物量 | Q25: ='汚泥処理フロー(日平均)'!P16*1000 -> 1004.4 | R25: kg-VS/日 | V25: 堆肥化有機物量 | W25: ='汚泥処理フロー(日平均)'!P16*1000 -> 1004.4 | X25: kg-VS/日 | AB25: 焼却有機物量 | AC25: ='汚泥処理フロー(日平均)'!P16*1000 -> 1004.4 | AD25: kg-VS/日 | AH25: 焼却有機物量 | AI25: ='汚泥処理フロー(日平均)'!P16*1000 -> 1004.4 | AJ25: kg-VS/日 | AN25: 温室効果ガス排出量 | AO25: =AO22/1000*'諸元(編集可)'!$D$71*'諸元(編集可)'!$D$75 -> 5.009445 | AP25: t-CO2/日 | AT25: リン回収率 | AU25: ='諸元(編集可)'!$D$49 -> 90 | AV25: %
B26: ⑯ | C26: 有機物量 | D26: =D24*D25 -> 456 | E26: kg-VS/日 | F26: ⑭×⑮ | J26: 乾燥汚泥量 | K26: =K22/(1-K25/100) -> 1674 | L26: kg-wet/日 | P26: 脱水汚泥灰分 | Q26: =Q22-Q25 -> 502.2 | R26: kg-DS/日 | V26: 堆肥分解率 | W26: ='諸元(編集可)'!$D$41 -> 35 | X26: % | AB26: 焼却灰発生量 | AC26: =AC22*(1-'諸元(編集可)'!$D$21) -> 301.32 | AD26: kg-DS/日 | AH26: 発熱量 | AI26: ='諸元(編集可)'!$D$45 -> 19 | AJ26: MJ/DS-kg | AT26: リン回収量 | AU26: =AU24*AU25/100 -> 36.43799148 | AV26: kg/日
B27: ⑰ | C27: ガス転換率 | D27: ='諸元(編集可)'!D14 -> 0.95 | E27: N㎥/kgVS | F27: 与条件「参考資料*2を基に設定 」 | J27: 乾燥汚泥発熱量 | K27: ='諸元(編集可)'!$D$34*資源利用量の算定!K22 -> 25612.2 | L27: MJ/日 | P27: 炭化汚泥灰分（消化汚泥） | Q27: ='諸元(編集可)'!D36 -> 44 | R27: % | V27: 有機物分解量 | W27: =W25*(W26/100) -> 351.54 | X27: kg-VS/日 | AB27: 発熱量 | AC27: ='諸元(編集可)'!$D$45 -> 19 | AD27: MJ/DS-kg | AH27: 焼却時発生熱量 | AI27: =AI22*AI26 -> 28625.4 | AJ27: MJ/日 | AT27: 年間電気使用量 | AU27: =(費用関数一覧!$J$36*(AU23^2)-費用関数一覧!$K$36*AU23*('諸元(編集可)'!$D$50/200)^0.5+368*('諸元(編集可)'!$D$50/200)^0.5)*'諸元(編集可)'!$D$54*'諸元(編集可)'!$D$53/24 -> 107504.3179 | AV27: kwh/年
B28: ⑱ | C28: ガス発生量 | D28: =D26*D27 -> 433.2 | E28: N㎥/日 | F28: ⑯×⑰ | J28: 化石燃料(重油換算)代替量 | K28: =K27/'諸元(編集可)'!$D$35 -> 658.4113111 | L28: L/日 | P28: 炭化汚泥固形物量 | Q28: =Q22*((Q26/Q22)/(Q27/100)) -> 1141.363636 | R28: kg-DS/日 | V28: 堆肥固形物量 | W28: =(W22-W27) -> 1155.06 | X28: kg-DS/日 | AB28: 発電効率 | AC28: ='諸元(編集可)'!$D$46 -> 15 | AD28: % | AH28: 排熱利用量合計 | AI28: =AI27*'諸元(編集可)'!$D$47 -> 8963.509091 | AJ28: MJ/日 | AT28: 水酸化マグネシウム使用量 | AU28: =(AU23*'諸元(編集可)'!$D$50*'諸元(編集可)'!$D$51*(100/'諸元(編集可)'!$D$52)/1000)*'諸元(編集可)'!$D$54*'諸元(編集可)'!$D$53/24 -> 21369.92927 | AV28: kg/年
J29: 脱炭素効果 | K29: =(K28/1000)*'諸元(編集可)'!$D$62 -> 1.784294653 | L29: t-CO2/日 | P29: 炭化汚泥含水率 | Q29: ='諸元(編集可)'!D39 -> 1 | R29: ％ | V29: 添加物割合 | W29: ='諸元(編集可)'!$D$43 -> 20 | X29: % | AB29: 発電量 | AC29: =(AC27*AC22*AC28/100)/3.6 -> 1192.725 | AD29: kWh/年 | AH29: 化石燃料(重油換算)代替量 | AI29: =AI28/'諸元(編集可)'!$D$35 -> 230.4243982 | AJ29: L/日 | AT29: クエン酸使用量 | AU29: =AU23*0.25 -> 31.04805 | AV29: kg/年
B30: 消化ガス発電 | J30: 温室効果ガス発生量 | K30: =K24/1000*('諸元(編集可)'!$D$68*'諸元(編集可)'!$D$76) -> 0.0313154343 | L30: t-CO2/日 | P30: 炭化汚泥量 | Q30: =Q28/(1-Q29/100) -> 1152.892562 | R30: kg-wet/日 | V30: 添加物量 | W30: =W22*W29/100 -> 301.32 | X30: kg-DS/日 | AB30: 温室効果ガス排出量 | AC30: =AC24/1000*('諸元(編集可)'!$D$64*'諸元(編集可)'!$D$75+'諸元(編集可)'!$D$65*'諸元(編集可)'!$D$76) -> 3.391526093 | AD30: t-CO2/日 | AH30: 脱炭素効果 | AI30: =(AI29/1000)*'諸元(編集可)'!$D$62 -> 0.6244501192 | AJ30: t-CO2/日 | AT30: 電気使用に伴う温室効果ガス排出量 | AU30: =AU27*'諸元(編集可)'!$D$59 -> 45.47432648 | AV30: t₋CO2/年
B31: No | C31: 項目 | D31: 値 | E31: 単位 | F31: 算定方法 | P31: 炭化汚泥発熱量 | Q31: ='諸元(編集可)'!$D$40*Q30 -> 17293.38843 | R31: MJ/日 | V31: 堆肥含水率 | W31: ='諸元(編集可)'!$D$42 -> 40 | X31: % | AT31: 薬品使用に伴う温室効果ガス排出量 | AU31: =(AU28/1000*'諸元(編集可)'!$D$73+AU29/1000*'諸元(編集可)'!$D$74) -> 12.15397463 | AV31: t₋CO2/年
B32: ⑲ | C32: 投入ガス量 | D32: =D18+D28 -> 1538.04 | E32: N㎥/日 | F32: ⑪+⑱ | P32: 化石燃料(重油換算)代替量 | Q32: =Q31/'諸元(編集可)'!$D$35 -> 444.5601139 | R32: L/日 | V32: 堆肥量 | W32: =(W28+W30)/(1-W31/100) -> 2427.3 | X32: kg-wet/日 | AT32: 温室効果ガス排出量 | AU32: =AU30+AU31 -> 57.62830111 | AV32: t₋CO2/年
B33: ⑳ | C33: 加温ガス割合 | D33: ='諸元(編集可)'!D25 -> 32 | E33: ％ | F33: 与条件「参考資料*3を基に設定 」 | P33: 脱炭素効果 | Q33: =(Q32/1000)*'諸元(編集可)'!$D$62 -> 1.204757909 | R33: t-CO2/日 | V33: 温室効果ガス発生量 | W33: =W24/1000*('諸元(編集可)'!$D$69*'諸元(編集可)'!$D$75+'諸元(編集可)'!$D$70*'諸元(編集可)'!$D$76) -> 1.4267502 | X33: t-CO2/日
B34: ㉑ | C34: 消化ガス加温に使用するガス量 | D34: =D32*D33/100 -> 492.1728 | E34: N㎥/日 | F34: ⑲×⑳ | P34: 温室効果ガス発生量 | Q34: =Q24/1000*('諸元(編集可)'!$D$64*'諸元(編集可)'!$D$75+'諸元(編集可)'!$D$67*'諸元(編集可)'!$D$76) -> 0.0718655733 | R34: t-CO2/日
B35: ㉒ | C35: 発電に利用するガス量 | D35: =D32-D34 -> 1045.8672 | E35: N㎥/日 | F35: ⑲-㉑
B36: ㉓ | C36: 消化ガスの発熱量 | D36: ='諸元(編集可)'!D24 -> 21 | E36: MJ/N㎥ | F36: 与条件「参考資料*3を基に設定 」
B37: ㉔ | C37: 発電に使用する熱量 | D37: =D35*D36 -> 21963.2112 | E37: MJ/日 | F37: ㉒×㉓
B38: ㉕ | C38: 発電効率 | D38: ='諸元(編集可)'!D26 -> 35 | E38: ％ | F38: 与条件「参考資料*3を基に設定 」 | I38: 下水へ投入する分の生ごみ既存処理
B39: ㉖ | C39: 稼働率 | D39: ='諸元(編集可)'!D27 -> 99 | E39: ％ | F39: 与条件「参考資料*3を基に設定 」 | I39: 焼却 | O39: 埋立
B40: ㉗ | C40: 発電量 | D40: =D37*(D38/100)*(D39/100)*(1/3.6) -> 2113.959078 | E40: kWh/日 | F40: ㉔×(㉕/100)×(㉖/100)×(1/3.6) | I40: No | J40: 項目 | K40: 値 | L40: 単位 | M40: 算定方法 | O40: No | P40: 項目 | Q40: 値 | R40: 単位 | S40: 算定方法
J41: 生ごみ処理量 | K41: =D22 -> 2400 | L41: kg-wet/日 | M41: ⑫ | P41: 生ごみ埋め立て量(固形物量) | Q41: =D24 -> 480 | R41: kg-DS/日 | S41: ⑭
B42: 脱炭素効果(化石燃料由来電源の代替として使用した場合の効果） | J42: 生ごみ処理量(固形物量) | K42: =D24 -> 480 | L42: kg-DS/日 | P42: 温室効果ガス排出量 | Q42: =(Q41/1000)*('諸元(編集可)'!D72/1000)*'諸元(編集可)'!D75 -> 2.436 | R42: t-CO2/日
B43: No | C43: 項目 | D43: 値 | E43: 単位 | F43: 算定方法 | J43: 焼却施設電気使用量 | K43: =(K41/1000)*'諸元(編集可)'!D55 -> 480 | L43: kwh/日
B44: ㉘ | C44: 電気使用に伴う温室効果ガス排出係数 | D44: ='諸元(編集可)'!D59 -> 0.000423 | E44: t-CO2/kWh | F44: 与条件「参考資料*4を基に設定 」 | J44: 焼却施設重油使用量 | K44: =K41/1000*'諸元(編集可)'!D56 -> 0.816 | L44: L/日
B45: ㉙ | C45: 脱炭素効果 | D45: =D40*D44 -> 0.89420469 | E45: t-CO2/日 | F45: ㉗×㉘ | J45: 生ごみ発熱量 | K45: ='諸元(編集可)'!D57 -> 17 | L45: MJ/DS-kg
J46: 焼却発電効率 | K46: ='諸元(編集可)'!D58 -> 15 | L46: ％
J47: 焼却廃熱発電量 | K47: =(K42*K45*K46/100)/3.6 -> 340 | L47: kwh/日
J48: 脱炭素効果 | K48: =K47*'諸元(編集可)'!D59 -> 0.14382 | L48: t-CO2/日
J49: 温室効果ガス排出量 | K49: =K43*'諸元(編集可)'!D59+資源利用量の算定!K44/1000*'諸元(編集可)'!D62 -> 0.20525136 | L49: t-CO2/日
I51: 乾燥 | O51: 炭化 | U51: 堆肥化 | AA51: 焼却 | AG51: 廃熱利用 | AM51: 埋立 | AS51: リン回収
I52: No | J52: 項目 | K52: 値 | L52: 単位 | M52: 算定方法 | O52: No | P52: 項目 | Q52: 値 | R52: 単位 | S52: 算定方法 | U52: No | V52: 項目 | W52: 値 | X52: 単位 | Y52: 算定方法 | AA52: No | AB52: 項目 | AC52: 値 | AD52: 単位 | AE52: 算定方法 | AG52: No | AH52: 項目 | AI52: 値 | AJ52: 単位 | AK52: 算定方法 | AM52: No | AN52: 項目 | AO52: 値 | AP52: 単位 | AQ52: 算定方法 | AS52: No | AT52: 項目 | AU52: 値 | AV52: 単位 | AW52: 算定方法
J53: 発生汚泥固形物量 | K53: ='汚泥処理フロー(日平均)'!$C$22*1000 -> 1633.2 | L53: kg-DS/日 | M53: 汚泥処理フロー より | P53: 発生汚泥固形物量 | Q53: ='汚泥処理フロー(日平均)'!$C$22*1000 -> 1633.2 | R53: kg-DS/日 | S53: 汚泥処理フロー より | V53: 発生汚泥固形物量 | W53: ='汚泥処理フロー(日平均)'!$C$22*1000 -> 1633.2 | X53: kg-DS/日 | Y53: 汚泥処理フロー より | AB53: 発生汚泥固形物量 | AC53: ='汚泥処理フロー(日平均)'!$C$22*1000 -> 1633.2 | AD53: kg-DS/日 | AE53: 汚泥処理フロー より | AH53: 発生汚泥固形物量 | AI53: ='汚泥処理フロー(日平均)'!$C$22*1000 -> 1633.2 | AJ53: kg-DS/日 | AK53: 汚泥処理フロー より | AN53: 発生汚泥固形物量 | AO53: ='汚泥処理フロー(日平均)'!$C$22*1000 -> 1633.2 | AP53: kg-DS/日 | AQ53: 汚泥処理フロー より | AT53: 消化液リン濃度 | AU53: ='諸元(編集可)'!$D$48 -> 326 | AV53: mg/L | AW53: 諸元
J54: 脱水汚泥含水率 | K54: ='諸元(編集可)'!$D$31 -> 80 | L54: ％ | P54: 脱水汚泥含水率 | Q54: ='諸元(編集可)'!$D$31 -> 80 | R54: ％ | V54: 脱水汚泥含水率 | W54: ='諸元(編集可)'!$D$31 -> 80 | X54: ％ | AB54: 脱水汚泥含水率 | AC54: ='諸元(編集可)'!$D$31 -> 80 | AD54: ％ | AH54: 脱水汚泥含水率 | AI54: ='諸元(編集可)'!$D$31 -> 80 | AJ54: ％ | AN54: 脱水汚泥含水率 | AO54: ='諸元(編集可)'!$D$31 -> 80 | AP54: ％ | AT54: 消化液量(リン回収処理水量) | AU54: =('汚泥処理フロー(日平均)'!$C$12+'汚泥処理フロー(日平均)'!$G$12)-(('汚泥処理フロー(日平均)'!$C$15+'汚泥処理フロー(日平均)'!$G$17)-'汚泥処理フロー(日平均)'!C21) -> 127.1922 | AV54: ㎥/日
J55: 乾燥汚泥処理量 | K55: =K53/(1-K54/100) -> 8166 | L55: kg-wet/日 | P55: 炭化汚泥処理量 | Q55: =Q53/(1-Q54/100) -> 8166 | R55: kg-wet/日 | V55: 堆肥化処理量 | W55: =W53/(1-W54/100) -> 8166 | X55: kg-wet/日 | AB55: 焼却処理量 | AC55: =AC53/(1-AC54/100) -> 8166 | AD55: kg-wet/日 | AH55: 焼却処理量 | AI55: =AI53/(1-AI54/100) -> 8166 | AJ55: kg-wet/日 | AN55: 埋め立て処分量 | AO55: =AO53/(1-AO54/100) -> 8166 | AP55: kg-wet/日 | AT55: リン負荷 | AU55: =AU54*1000*AU53/10^6 -> 41.4646572 | AV55: kg/日
J56: 乾燥汚泥含水率 | K56: ='諸元(編集可)'!D32 -> 10 | L56: % | P56: 脱水汚泥中有機物量 | Q56: ='汚泥処理フロー(日平均)'!C21*1000 -> 1107 | R56: kg-VS/日 | V56: 堆肥化有機物量 | W56: ='汚泥処理フロー(日平均)'!C21*1000 -> 1107 | X56: kg-VS/日 | AB56: 焼却有機物量 | AC56: =AC53*'諸元(編集可)'!D21 -> 1306.56 | AD56: kg-VS/日 | AH56: 焼却有機物量 | AI56: =AI53*'諸元(編集可)'!$D$21 -> 1306.56 | AJ56: kg-VS/日 | AN56: 温室効果ガス排出量 | AO56: =AO53/1000*'諸元(編集可)'!$D$71*'諸元(編集可)'!$D$75 -> 5.43039 | AP56: t-CO2/日 | AT56: リン回収率 | AU56: ='諸元(編集可)'!$D$49 -> 90 | AV56: %
J57: 乾燥汚泥量 | K57: =K53/(1-K56/100) -> 1814.666667 | L57: kg-wet/日 | P57: 脱水汚泥灰分 | Q57: =Q53-Q56 -> 526.2 | R57: kg-DS/日 | V57: 堆肥分解率 | W57: ='諸元(編集可)'!$D$41 -> 35 | X57: % | AB57: 焼却灰発生量 | AC57: =AC53*(1-'諸元(編集可)'!D63) -> 1633.19902 | AD57: kg-DS/日 | AH57: 発熱量 | AI57: ='諸元(編集可)'!$D$45 -> 19 | AJ57: MJ/DS-kg | AN57: 埋め立て処分量(生ごみの影響) | AO57: =AO55-AO24 -> 633 | AP57: kg-wet/日 | AT57: リン回収量 | AU57: =AU55*AU56/100 -> 37.31819148 | AV57: kg/日
J58: 乾燥汚泥発熱量 | K58: ='諸元(編集可)'!$D$34*資源利用量の算定!K53 -> 27764.4 | L58: MJ/日 | P58: 炭化汚泥灰分（消化汚泥） | Q58: ='諸元(編集可)'!D36 -> 44 | R58: % | V58: 有機物分解量 | W58: =W56*(W57/100) -> 387.45 | X58: kg-VS/日 | AB58: 発熱量 | AC58: ='諸元(編集可)'!$D$45 -> 19 | AD58: MJ/DS-kg | AH58: 焼却時発生熱量 | AI58: =AI53*AI57 -> 31030.8 | AJ58: MJ/日 | AN58: 温室効果ガス排出量(生ごみの影響) | AO58: =AO56-AO25 -> 0.420945 | AP58: t-CO2/日 | AT58: 年間電気使用量 | AU58: =(費用関数一覧!$J$36*(AU54^2)-費用関数一覧!$K$36*AU54*('諸元(編集可)'!$D$50/200)^0.5+368*('諸元(編集可)'!$D$50/200)^0.5)*'諸元(編集可)'!$D$54*'諸元(編集可)'!$D$53/24 -> 107917.9955 | AV58: kwh/年
J59: 化石燃料(重油換算)代替量 | K59: =K58/'諸元(編集可)'!$D$35 -> 713.7377892 | L59: L/日 | P59: 炭化汚泥固形物量 | Q59: =Q53*((Q57/Q53)/(Q58/100)) -> 1195.909091 | R59: kg-DS/日 | V59: 堆肥固形物量 | W59: =(W53-W58) -> 1245.75 | X59: kg-DS/日 | AB59: 発電効率 | AC59: ='諸元(編集可)'!$D$46 -> 15 | AD59: % | AH59: 排熱利用量合計 | AI59: =AI58*'諸元(編集可)'!$D$47 -> 9716.715152 | AJ59: MJ/日 | AT59: 水酸化マグネシウム使用量 | AU59: =(AU54*'諸元(編集可)'!$D$50*'諸元(編集可)'!$D$51*(100/'諸元(編集可)'!$D$52)/1000)*'諸元(編集可)'!$D$54*'諸元(編集可)'!$D$53/24 -> 21886.14356 | AV59: kg/年
J60: 脱炭素効果 | K60: =(K59/1000)*'諸元(編集可)'!$D$62 -> 1.934229409 | L60: t-CO2/日 | P60: 炭化汚泥含水率 | Q60: ='諸元(編集可)'!D39 -> 1 | R60: % | V60: 添加物割合 | W60: ='諸元(編集可)'!$D$43 -> 20 | X60: % | AB60: 発電量 | AC60: =(AC58*AC53*AC59/100)/3.6 -> 1292.95 | AD60: kWh/年 | AH60: 化石燃料(重油換算)代替量 | AI60: =AI59/'諸元(編集可)'!$D$35 -> 249.7870219 | AJ60: L/日 | AT60: クエン酸使用量 | AU60: =AU54*0.25 -> 31.79805 | AV60: kg/年
J61: 温室効果ガス発生量 | K61: =K55/1000*('諸元(編集可)'!$D$68*'諸元(編集可)'!$D$76) -> 0.0339468786 | L61: t-CO2/日 | P61: 炭化汚泥量 | Q61: =Q59/(1-Q60/100) -> 1207.988981 | R61: kg-wet/日 | V61: 添加物量 | W61: =W53*W60/100 -> 326.64 | X61: kg-DS/日 | AB61: 温室効果ガス排出量 | AC61: =AC55/1000*('諸元(編集可)'!$D$64*'諸元(編集可)'!$D$75+'諸元(編集可)'!$D$66*'諸元(編集可)'!$D$76) -> 1.571567115 | AD61: t-CO2/日 | AH61: 脱炭素効果 | AI61: =(AI60/1000)*'諸元(編集可)'!$D$62 -> 0.6769228293 | AJ61: t-CO2/日 | AT61: 電気使用に伴う温室効果ガス排出量 | AU61: =AU58*'諸元(編集可)'!$D$59 -> 45.64931208 | AV61: t₋CO2/年
J62: 乾燥汚泥量(生ごみによる影響) | K62: =K57-K26 -> 140.6666667 | L62: kg-wet/日 | P62: 炭化汚泥発熱量 | Q62: ='諸元(編集可)'!D40*資源利用量の算定!Q61 -> 18119.83471 | R62: MJ/日 | V62: 堆肥含水率 | W62: ='諸元(編集可)'!$D$42 -> 40 | X62: % | AB62: 焼却灰発生量(生ごみの影響) | AC62: =AC57-AC26 -> 1331.87902 | AD62: kg-DS/日 | AH62: 排熱利用量合計(生ごみの影響) | AI62: =AI59-AI28 -> 753.2060606 | AJ62: MJ/日 | AT62: 薬品使用に伴う温室効果ガス排出量 | AU62: =(AU59/1000*'諸元(編集可)'!$D$73+AU60/1000*'諸元(編集可)'!$D$74) -> 12.44756733 | AV62: t₋CO2/年
J63: 乾燥汚泥発熱量量(生ごみによる影響) | K63: =K58-K27 -> 2152.2 | L63: MJ/日 | P63: 化石燃料(重油換算)代替量 | Q63: =Q62/'諸元(編集可)'!$D$35 -> 465.8055196 | R63: L/日 | V63: 堆肥量 | W63: =(W59+W61)/(1-W62/100) -> 2620.65 | X63: kg-wet/日 | AB63: 発電量(生ごみの影響) | AC63: =AC60-AC29 -> 100.225 | AD63: kWh/年 | AH63: 化石燃料(重油換算)代替量(生ごみの影響) | AI63: =AI60-AI29 -> 19.36262367 | AJ63: L/日 | AT63: 温室効果ガス排出量 | AU63: =AU61+AU62 -> 58.09687941 | AV63: t₋CO2/年
J64: 化石燃料(重油換算)代替量量(生ごみによる影響) | K64: =K59-K28 -> 55.32647815 | L64: L/日 | P64: 脱炭素効果 | Q64: =(Q63/1000)*'諸元(編集可)'!$D$62 -> 1.262332958 | R64: t-CO2/日 | V64: 温室効果ガス発生量 | W64: =W55/1000*('諸元(編集可)'!$D$69*'諸元(編集可)'!$D$75+'諸元(編集可)'!$D$70*'諸元(編集可)'!$D$76) -> 1.5466404 | X64: t-CO2/日 | AB64: 温室効果ガス排出量(生ごみの影響) | AC64: =(AC55-AC24)/1000*('諸元(編集可)'!$D$64*'諸元(編集可)'!$D$75+'諸元(編集可)'!$D$66*'諸元(編集可)'!$D$76) -> 0.1218224325 | AD64: t-CO2/日 | AH64: 脱炭素効果(生ごみの影響) | AI64: =AI61-AI30 -> 0.05247271013 | AJ64: t-CO2/日 | AT64: リン回収量(生ごみの影響) | AU64: =AU57-AU26 -> 0.8802 | AV64: kg/日
J65: 脱炭素効果量(生ごみによる影響) | K65: =K60-K29 -> 0.1499347558 | L65: t-CO2/日 | P65: 温室効果ガス発生量 | Q65: =Q55/1000*('諸元(編集可)'!$D$64*'諸元(編集可)'!$D$75+'諸元(編集可)'!$D$67*'諸元(編集可)'!$D$76) -> 0.0779044566 | R65: t-CO2/日 | V65: 堆肥量(生ごみの影響) | W65: =W63-W32 -> 193.35 | X65: kg-wet/日 | AB65: 温室効果ガス排出量(下水汚泥分、焼却炉更新の影響） | AC65: =(AC24)/1000*('諸元(編集可)'!$D$64*'諸元(編集可)'!$D$75+'諸元(編集可)'!$D$66*'諸元(編集可)'!$D$76) -> 1.449744683 | AD65: t-CO2/日 | AT65: 温室効果ガス排出量(生ごみの影響) | AU65: =AU63-AU32 -> 0.4685782998 | AV65: t₋CO2/年
J66: 温室効果ガス発生量量(生ごみによる影響) | K66: =K61-K30 -> 0.0026314443 | L66: t-CO2/日 | P66: 炭化汚泥量(生ごみによる影響) | Q66: =Q61-Q30 -> 55.09641873 | R66: kg-wet/日 | V66: 温室効果ガス発生量(生ごみの影響) | W66: =W64-W33 -> 0.1198902 | X66: t-CO2/日
P67: 炭化汚泥発熱量量(生ごみによる影響) | Q67: =Q62-Q31 -> 826.446281 | R67: MJ/日
P68: 化石燃料(重油換算)代替量量(生ごみによる影響) | Q68: =Q63-Q32 -> 21.24540568 | R68: L/日
P69: 脱炭素効果量(生ごみによる影響) | Q69: =Q64-Q33 -> 0.0575750494 | R69: t-CO2/日
P70: 温室効果ガス発生量量(生ごみによる影響) | Q70: =Q65-Q34 -> 0.0060388833 | R70: t-CO2/日

Sheet 設備量の整理 (hidden)
A1: シート名：設備量の整理
B2: 生ごみ受入れに伴う設備費用算定に必要な項目整理
B3: 各パターンについて、下水汚泥利活用施設全体を整備と仮定し必要基数等を試算
A4: 設備新規建設
B5: 設備 | C5: 算定に必要な項目 | D5: 能力等(費用算定に必要な項目) | E5: 1基当たりの能力設定値 | F5: 単位 | G5: 設置基数
B6: 生ごみ受入れ量 | C6: 生ごみ処理量 | D6: =入力!D12*'諸元(編集可)'!D10 -> 3.6 | E6: =IF(D6<60,D6,60) -> 3.6 | F6: t/日 | G6: =IF(D6>0,ROUNDUP(D6/E6,0),0) -> 1
B7: 混合設備 | C7: 容量 | D7: =ROUNDUP('汚泥処理フロー (日最大)'!L6*'諸元(編集可)'!D18,-1) -> 10 | E7: =IF(D7<1000,D7,1000) -> 10 | F7: ㎥ | G7: =IF(D7>0,ROUNDUP(D7/E7,0),0) -> 1
B8: 消化槽 | C8: 容量 | D8: =ROUNDUP(('汚泥処理フロー (日最大)'!C12+'汚泥処理フロー (日最大)'!G12-'汚泥処理フロー (日最大)'!G15)*'諸元(編集可)'!D28,-2) -> 3400 | E8: =IF(D8<2000,D8,2000) -> 2000 | F8: ㎥ | G8: =ROUNDUP(D8/E8,0) -> 2
B9: 脱硫設備 | C9: 消化ガス処理量 | D9: =ROUNDUP(('汚泥処理フロー (日最大)'!G21/24),-1) -> 80 | E9: =IF(D9<300,D9,250) -> 80 | F9: ㎥/h | G9: 1
B10: ガスホルダ | C10: 容量 | D10: =ROUNDUP('汚泥処理フロー (日最大)'!G21*'諸元(編集可)'!D29,-2) -> 1000 | E10: =IF(D10<2000,D10,2000) -> 1000 | F10: ㎥ | G10: 1
B11: 消化ガス発電機 * | C11: 消化ガス処理量 | D11: ='汚泥処理フロー (日最大)'!G23 -> 1296.2976 | E11: =D11 -> 1296.2976 | F11: N㎥/日 | G11: 1
B12: 消化ガス発電機 (発電容量) | C12: 発電機容量 | D12: ='汚泥処理フロー (日最大)'!G26 -> 109.1725635 | E12: =IF(D12<10000,D12,10000) -> 109.1725635 | F12: kW | G12: 1
B13: 脱水機 | C13: 汚泥処理量(濃度1%換算) | D13: =ROUNDUP('汚泥処理フロー (日最大)'!C22*100,0) -> 214 | E13: =D13 -> 214 | F13: t-wet/日(1％換算) | G13: 1
B14: 炭化設備 | C14: 脱水汚泥処理量 | D14: =ROUNDUP(('汚泥処理フロー (日最大)'!C22*1000/(1-'諸元(編集可)'!$D$31/100))/1000,0) -> 11 | E14: =D14 -> 11 | F14: t/日 | G14: 1
B15: 乾燥設備 | C15: 脱水汚泥処理量 | D15: =ROUNDUP(('汚泥処理フロー (日最大)'!C22*1000/(1-'諸元(編集可)'!$D$31/100))/1000,0) -> 11 | E15: =D15 -> 11 | F15: t/日 | G15: 1
B16: コンポスト化設備 | C16: 脱水汚泥処理量 | D16: =ROUNDUP(('汚泥処理フロー (日最大)'!C22*1000/(1-'諸元(編集可)'!$D$31/100))/1000,0) -> 11 | E16: 11 | F16: t/日 | G16: 1
B17: リン回収設備 | C17: 処理水量(日最大) | D17: =入力!D8 -> 20000 | E17: 20000 | F17: ㎥/日 | G17: 1
B18: リン回収設備 | C18: 処理水量(日平均) | D18: =入力!D10 -> 15000 | E18: 15000 | F18: ㎥/日 | G18: 1
B19: 焼却炉 | C19: 脱水汚泥処理量 | D19: =ROUNDUP(('汚泥処理フロー (日最大)'!C22*1000/(1-'諸元(編集可)'!$D$31/100))/1000,0) -> 11 | E19: 11 | F19: t/日 | G19: 1
A21: 既存の消化有無に応じた既設更新
B22: 消化なし
B23: 設備 | C23: 算定に必要な項目 | D23: 能力等(費用算定に必要な項目) | E23: 1基当たりの能力設定値 | F23: 単位 | G23: 設置基数
B24: 脱水機 | C24: 汚泥処理量(濃度1%換算) | D24: =ROUNDUP('汚泥処理フロー (日最大)'!C14*100,0) -> 335 | E24: =D24 -> 335 | F24: t-wet/日(1％換算) | G24: 1
B25: 炭化設備 | C25: 脱水汚泥処理量 | D25: =ROUNDUP(('汚泥処理フロー (日最大)'!C14*1000/(1-'諸元(編集可)'!$D$31/100))/1000,0) -> 17 | E25: =D25 -> 17 | F25: t/日 | G25: 1
B26: 乾燥設備 | C26: 脱水汚泥処理量 | D26: =ROUNDUP(('汚泥処理フロー (日最大)'!C14*1000/(1-'諸元(編集可)'!$D$31/100))/1000,0) -> 17 | E26: =D26 -> 17 | F26: t/日 | G26: 1
B27: コンポスト化設備 | C27: 脱水汚泥処理量 | D27: =ROUNDUP(('汚泥処理フロー (日最大)'!C14*1000/(1-'諸元(編集可)'!$D$31/100))/1000,0) -> 17 | E27: 17 | F27: t/日 | G27: 1
B28: 焼却炉 | C28: 脱水汚泥処理量 | D28: =ROUNDUP(('汚泥処理フロー (日最大)'!C14*1000/(1-'諸元(編集可)'!$D$31/100))/1000,0) -> 17 | E28: 17 | F28: t/日 | G28: 1
B30: 消化有
B31: 設備 | C31: 算定に必要な項目 | D31: 能力等(費用算定に必要な項目) | E31: 1基当たりの能力設定値 | F31: 単位 | G31: 設置基数
B32: 消化槽 | C32: 容量 | D32: =ROUNDUP('汚泥処理フロー (日最大)'!C12*'諸元(編集可)'!D28,-2) -> 3400 | E32: =IF(D32<2000,D32,2000) -> 2000 | F32: ㎥ | G32: =ROUNDUP(D32/E32,0) -> 2
B33: 脱硫設備 | C33: 消化ガス処理量 | D33: =ROUNDUP(('汚泥処理フロー (日最大)'!P6/24),-1) -> 70 | E33: =IF(D33<300,D33,250) -> 70 | F33: ㎥/h | G33: 1
B34: ガスホルダ | C34: 容量 | D34: =ROUNDUP('汚泥処理フロー (日最大)'!P6*'諸元(編集可)'!D29,-2) -> 800 | E34: =IF(D34<2000,D34,2000) -> 800 | F34: ㎥ | G34: 1
B35: 消化ガス発電機 * | C35: 消化ガス処理量 | D35: ='汚泥処理フロー (日最大)'!P8 -> 1001.7216 | E35: =D35 -> 1001.7216 | F35: N㎥/日 | G35: 1
B36: 消化ガス発電機 (発電容量) | C36: 発電機容量 | D36: ='汚泥処理フロー (日最大)'!P11 -> 84.363741 | E36: =IF(D36<10000,D36,10000) -> 84.363741 | F36: kW | G36: 1
B37: 脱水機 | C37: 汚泥処理量(濃度1%換算) | D37: =ROUNDUP('汚泥処理フロー (日最大)'!P17*100,0) -> 201 | E37: =D37 -> 201 | F37: t-wet/日(1％換算) | G37: 1
B38: 炭化設備 | C38: 脱水汚泥処理量 | D38: =ROUNDUP(('汚泥処理フロー (日最大)'!P17*1000/(1-'諸元(編集可)'!$D$31/100))/1000,0) -> 11 | E38: =D38 -> 11 | F38: t/日 | G38: 1
B39: 乾燥設備 | C39: 脱水汚泥処理量 | D39: =ROUNDUP(('汚泥処理フロー (日最大)'!P17*1000/(1-'諸元(編集可)'!$D$31/100))/1000,0) -> 11 | E39: =D39 -> 11 | F39: t/日 | G39: 1
B40: コンポスト化設備 | C40: 脱水汚泥処理量 | D40: =ROUNDUP(('汚泥処理フロー (日最大)'!P17*1000/(1-'諸元(編集可)'!$D$31/100))/1000,0) -> 11 | E40: 11 | F40: t/日 | G40: 1
B41: リン回収設備 | C41: 処理水量(日最大) | D41: =入力!D8 -> 20000 | E41: 20000 | F41: ㎥/日 | G41: 1
B42: リン回収設備 | C42: 処理水量(日平均) | D42: =入力!D10 -> 15000 | E42: =D42 -> 15000 | F42: ㎥/日 | G42: 1
B43: 焼却炉 | C43: 脱水汚泥処理量 | D43: =ROUNDUP(('汚泥処理フロー (日最大)'!P17*1000/(1-'諸元(編集可)'!$D$31/100))/1000,0) -> 11 | E43: 11 | F43: t/日 | G43: 1

Sheet 建設費の算定 (hidden)
A1: シート名：建設費の算定
C3: デフレーター(検討時点) | E3: 2024年度（暫定） | F3: =IF(入力!D16="",_xlfn.XLOOKUP(E3,defnendo2015!$A$12:$A$85,defnendo2015!$AV$12:$AV$85,"",0,1),入力!D16) -> 127.9 | G3: (入力値がある場合入力値)
K5: 年価の計算
E6: 既設更新(消化なし) | F6: 既設更新(消化あり) | G6: 生ごみ受入れ | K6: 耐用年数 | L6: 既設更新 | M6: 既設更新(消化あり) | N6: 生ごみ受入れ(試算)
B7: 前処理設備 | C7: 機電 | D7: 百万円 | G7: =IF(入力!D12>0,ROUND(費用関数一覧!J6*設備量の整理!E6^費用関数一覧!K6*($F$3/費用関数一覧!H6),1)*設備量の整理!G6,0) -> 107.5 | K7: 20 | N7: =ROUND(G7/$K7,1) -> 5.4
C8: 建築 | D8: 百万円 | G8: =IF(入力!D12>0,ROUND(費用関数一覧!J9*設備量の整理!E6^費用関数一覧!K9*(建設費の算定!F3/費用関数一覧!H9),1)*設備量の整理!G6,0) -> 158.5 | K8: 40 | N8: =ROUND(G8/$K8,1) -> 4
C9: 小計 | D9: 百万円 | G9: =SUM(G7:G8) -> 266 | J9: 小計 | K9: 百万円 | N9: =SUM(N7:N8) -> 9.4
B10: 混合槽 | C10: 機械 | D10: 百万円 | G10: =IF(入力!D12>0,ROUND(費用関数一覧!J10*設備量の整理!E7^費用関数一覧!K10*($F$3/費用関数一覧!$H$10),1)*設備量の整理!G7,0) -> 28 | K10: 20 | N10: =ROUND(G10/$K10,1) -> 1.4
C11: 電気設備 | D11: 百万円 | G11: =IF(入力!D12>0,ROUND(費用関数一覧!J11*設備量の整理!E7^費用関数一覧!K11*($F$3/費用関数一覧!$H$10),1)*設備量の整理!G7,0) -> 3.9 | K11: 15 | N11: =ROUND(G11/$K11,1) -> 0.3
C12: 土木建築 | D12: 百万円 | G12: =IF(入力!D12>0,ROUND(費用関数一覧!J12*設備量の整理!E7^費用関数一覧!K12*($F$3/費用関数一覧!$H$10),1)*設備量の整理!G7,0) -> 10.4 | K12: 40 | N12: =ROUND(G12/$K12,1) -> 0.3
C13: 小計 | D13: 百万円 | G13: =SUM(G10:G12) -> 42.3 | J13: 小計 | K13: 百万円 | N13: =SUM(N10:N12) -> 2
B14: 消化槽 | C14: 機械・電気設備 | D14: 百万円 | F14: =ROUND((費用関数一覧!J15*設備量の整理!E32^費用関数一覧!K15)*(F3/費用関数一覧!H15),1)*設備量の整理!G32 -> 1111.6 | G14: =ROUND((費用関数一覧!J15*設備量の整理!E8^費用関数一覧!K15)*(F3/費用関数一覧!H15),1)*設備量の整理!G8 -> 1111.6 | K14: 15 | M14: =ROUND(F14/$K14,1) -> 74.1 | N14: =ROUND(G14/$K14,1) -> 74.1
C15: 土木 | D15: 百万円 | F15: =ROUND((費用関数一覧!J16*設備量の整理!E32+費用関数一覧!K16)*(F3/費用関数一覧!H15),1)*設備量の整理!G32 -> 122.2 | G15: =ROUND((費用関数一覧!J16*設備量の整理!E8+費用関数一覧!K16)*(F3/費用関数一覧!H15),1)*設備量の整理!G8 -> 122.2 | K15: 45 | M15: =ROUND(F15/$K15,1) -> 2.7 | N15: =ROUND(G15/$K15,1) -> 2.7
C16: 小計 | D16: 百万円 | F16: =SUM(F14:F15) -> 1233.8 | G16: =SUM(G14:G15) -> 1233.8 | J16: 小計 | K16: 百万円 | M16: =SUM(M14:M15) -> 76.8 | N16: =SUM(N14:N15) -> 76.8
B17: ガスホルダ | C17: 一式 | D17: 百万円 | F17: =ROUND((費用関数一覧!J18*設備量の整理!E34^費用関数一覧!K18)*F3/費用関数一覧!H18,1)*設備量の整理!G34 -> 260.2 | G17: =ROUND((費用関数一覧!J18*設備量の整理!E10^費用関数一覧!K18)*F3/費用関数一覧!H18,1)*設備量の整理!G10 -> 286.8 | K17: 20 | M17: =ROUND(F17/$K17,1) -> 13 | N17: =ROUND(G17/$K17,1) -> 14.3
C18: 小計 | D18: 百万円 | F18: =SUM(F17) -> 260.2 | G18: =SUM(G17) -> 286.8 | J18: 小計 | K18: 百万円 | M18: =SUM(M17) -> 13 | N18: =SUM(N17) -> 14.3
B19: 脱水機 | C19: 機械 | D19: 百万円 | E19: =ROUND((費用関数一覧!J20*設備量の整理!E24^費用関数一覧!K20)*100*(建設費の算定!F3/費用関数一覧!H20),1) -> 548 | F19: =ROUND((費用関数一覧!J20*設備量の整理!E37^費用関数一覧!K20)*100*(建設費の算定!F3/費用関数一覧!H20),1) -> 452.9 | G19: =ROUND((費用関数一覧!J20*設備量の整理!E13^費用関数一覧!K20)*100*(建設費の算定!F3/費用関数一覧!H20),1) -> 463.6 | K19: 15 | L19: =ROUND(E19/$K19,1) -> 36.5 | M19: 30.2 | N19: 30.9
C20: 土木 | D20: 百万円 | E20: =ROUND((費用関数一覧!J21*設備量の整理!E24^費用関数一覧!K21)*100*(建設費の算定!F3/費用関数一覧!H21),1) -> 433.1 | F20: =ROUND((費用関数一覧!J21*設備量の整理!E37^費用関数一覧!K21)*100*(建設費の算定!F3/費用関数一覧!H21),1) -> 345.2 | G20: =ROUND((費用関数一覧!J21*設備量の整理!E13^費用関数一覧!K21)*100*(建設費の算定!F3/費用関数一覧!H21),1) -> 354.9 | K20: 50 | L20: 8.7 | M20: 6.9 | N20: 7.1
C21: 電気設備 | D21: 百万円 | E21: =ROUND((費用関数一覧!J46*設備量の整理!E24^費用関数一覧!K46)*100*1/3*(建設費の算定!F3/費用関数一覧!H46),1)*設備量の整理!G13 -> 127.2 | F21: =ROUND((費用関数一覧!J46*設備量の整理!E37^費用関数一覧!K46)*100*1/3*(建設費の算定!F3/費用関数一覧!H46),1) -> 100.3 | G21: =ROUND((費用関数一覧!J46*設備量の整理!E13^費用関数一覧!K46)*100*1/3*(建設費の算定!F3/費用関数一覧!H46),1)*設備量の整理!G13 -> 103.3 | K21: 20 | L21: 6.4 | M21: 5 | N21: 5.2 | O21: 費用関数が濃縮消化脱水が対象のため1/3を計上
C22: 小計 | D22: 百万円 | E22: =SUM(E19:E21) -> 1108.3 | F22: =SUM(F19:F21) -> 898.4 | G22: =SUM(G19:G21) -> 921.8 | J22: 小計 | K22: 百万円 | L22: =SUM(L19:L21) -> 51.6 | M22: =SUM(M19:M21) -> 42.1 | N22: =SUM(N19:N21) -> 43.2
B23: 焼却炉 | C23: 機械 | D23: 百万円 | E23: =ROUND((費用関数一覧!J39*設備量の整理!E28^費用関数一覧!K39)*100*(建設費の算定!F3/費用関数一覧!H39),1)*設備量の整理!G19 -> 1479.2 | F23: =ROUND((費用関数一覧!J39*設備量の整理!E43^費用関数一覧!K39)*100*(建設費の算定!F3/費用関数一覧!H39),1)*設備量の整理!G43 -> 1140.6 | G23: =ROUND((費用関数一覧!J39*設備量の整理!E19^費用関数一覧!K39)*100*(建設費の算定!F3/費用関数一覧!H39),1)*設備量の整理!G19 -> 1140.6 | K23: 10 | L23: =ROUND(E23/$K23,1) -> 147.9 | M23: =ROUND(F23/$K23,1) -> 114.1 | N23: =ROUND(G23/$K23,1) -> 114.1
C24: 電気設備 | D24: 百万円 | E24: =ROUND((費用関数一覧!J40*設備量の整理!E28^費用関数一覧!K40)*100*(建設費の算定!F3/費用関数一覧!H40),1)*設備量の整理!G19 -> 482.6 | F24: =ROUND((費用関数一覧!J40*設備量の整理!E43^費用関数一覧!K40)*100*(建設費の算定!F3/費用関数一覧!H40),1)*設備量の整理!G43 -> 381.7 | G24: =ROUND((費用関数一覧!J40*設備量の整理!E19^費用関数一覧!K40)*100*(建設費の算定!F3/費用関数一覧!H40),1)*設備量の整理!G19 -> 381.7 | K24: 15 | L24: =ROUND(E24/$K24,1) -> 32.2 | M24: 25.4 | N24: 25.4
C25: 土建(焼却炉) | D25: 百万円 | E25: =ROUND((費用関数一覧!J41*設備量の整理!E28^費用関数一覧!K41)*100*(建設費の算定!F3/費用関数一覧!H41),1)*設備量の整理!G19 -> 576.6 | F25: =ROUND((費用関数一覧!J41*設備量の整理!E43^費用関数一覧!K41)*100*(建設費の算定!F3/費用関数一覧!H41),1)*設備量の整理!G43 -> 488.7 | G25: =ROUND((費用関数一覧!J41*設備量の整理!E19^費用関数一覧!K41)*100*(建設費の算定!F3/費用関数一覧!H41),1)*設備量の整理!G19 -> 488.7 | K25: 50 | L25: =ROUND(E25/$K25,1) -> 11.5 | M25: 9.8 | N25: 9.8
C26: 土建(電気室) | D26: 百万円 | E26: =ROUND((費用関数一覧!J42*設備量の整理!E28^費用関数一覧!K42)*100*(建設費の算定!F3/費用関数一覧!H42),1)*設備量の整理!G19 -> 359.7 | F26: =ROUND((費用関数一覧!J42*設備量の整理!E43^費用関数一覧!K42)*100*(建設費の算定!F3/費用関数一覧!H42),1)*設備量の整理!G43 -> 358.2 | G26: =ROUND((費用関数一覧!J42*設備量の整理!E19^費用関数一覧!K42)*100*(建設費の算定!F3/費用関数一覧!H42),1)*設備量の整理!G19 -> 358.2 | K26: 50 | L26: =ROUND(E26/$K26,1) -> 7.2 | M26: 7.2 | N26: 7.2
C27: 小計 | D27: 百万円 | E27: =SUM(E23:E26) -> 2898.1 | F27: =SUM(F23:F26) -> 2369.2 | G27: =SUM(G23:G26) -> 2369.2 | J27: 小計 | K27: 百万円 | L27: =SUM(L23:L26) -> 198.8 | M27: =SUM(M23:M26) -> 156.5 | N27: =SUM(N23:N26) -> 156.5
B28: 脱硫塔 | C28: 一式 | D28: 百万円 | F28: =ROUND((費用関数一覧!J44*設備量の整理!E33^費用関数一覧!K44)*(建設費の算定!F3/費用関数一覧!H44),1)*設備量の整理!G33 -> 30 | G28: =ROUND((費用関数一覧!J44*設備量の整理!E9^費用関数一覧!K44)*(建設費の算定!F3/費用関数一覧!H44),1)*設備量の整理!G9 -> 33.2 | K28: 15 | M28: =ROUND(F28/$K28,1) -> 2 | N28: =ROUND(G28/$K28,1) -> 2.2
C29: 小計 | D29: 百万円 | F29: =SUM(F28) -> 30 | G29: =SUM(G28) -> 33.2 | J29: 小計 | K29: 百万円 | M29: =SUM(M28) -> 2 | N29: =SUM(N28) -> 2.2
B30: 消化ガス発電機 | C30: 機電 | D30: 百万円 | F30: =ROUND((費用関数一覧!J23*設備量の整理!E36^費用関数一覧!K23)*($F$3/費用関数一覧!H23),1)*設備量の整理!G36 -> 172.6 | G30: =ROUND((費用関数一覧!J23*設備量の整理!E12^費用関数一覧!K23)*($F$3/費用関数一覧!H23),1)*設備量の整理!G12 -> 209.8 | K30: 15 | M30: =ROUND(F30/$K30,1) -> 11.5 | N30: =ROUND(G30/$K30,1) -> 14
C31: 土建 | D31: 百万円 | F31: =ROUND((費用関数一覧!J24*設備量の整理!E36^費用関数一覧!K24)*($F$3/費用関数一覧!H24),1)*設備量の整理!G36 -> 15.4 | G31: =ROUND((費用関数一覧!J24*設備量の整理!E12^費用関数一覧!K24)*($F$3/費用関数一覧!H24),1)*設備量の整理!G12 -> 21.4 | K31: 15 | M31: =ROUND(F31/$K31,1) -> 1 | N31: =ROUND(G31/$K31,1) -> 1.4
C32: 小計 | D32: 百万円 | F32: =SUM(F30:F31) -> 188 | G32: =SUM(G30:G31) -> 231.2 | J32: 小計 | K32: 百万円 | M32: =SUM(M30:M31) -> 12.5 | N32: =SUM(N30:N31) -> 15.4
B33: 乾燥機 | C33: 機械電気 | D33: 百万円 | E33: =ROUND((費用関数一覧!J31*設備量の整理!E26^費用関数一覧!K31)*(建設費の算定!F3/費用関数一覧!H31),1)*設備量の整理!G26 -> 1167.2 | F33: =ROUND((費用関数一覧!J31*設備量の整理!E39^費用関数一覧!K31)*(建設費の算定!F3/費用関数一覧!H31),1)*設備量の整理!G39 -> 940 | G33: =ROUND((費用関数一覧!J31*設備量の整理!E15^費用関数一覧!K31)*(建設費の算定!F3/費用関数一覧!H31),1)*設備量の整理!G15 -> 940 | K33: 20 | L33: =ROUND(E33/$K33,1) -> 58.4 | M33: =ROUND(F33/$K33,1) -> 47 | N33: 47
C34: 土建 | D34: 百万円 | E34: =ROUND((費用関数一覧!J32*設備量の整理!E26^費用関数一覧!K32)*(建設費の算定!F3/費用関数一覧!H31),1)*設備量の整理!G26 -> 244.6 | F34: =ROUND((費用関数一覧!J32*設備量の整理!E39^費用関数一覧!K32)*(建設費の算定!F3/費用関数一覧!H31),1)*設備量の整理!G39 -> 206.3 | G34: =ROUND((費用関数一覧!J32*設備量の整理!E15^費用関数一覧!K32)*(建設費の算定!F3/費用関数一覧!H31),1)*設備量の整理!G15 -> 206.3 | K34: 45 | L34: =ROUND(E34/$K34,1) -> 5.4 | M34: 4.6 | N34: 4.6
C35: 小計 | D35: 百万円 | E35: =SUM(E33:E34) -> 1411.8 | F35: =SUM(F33:F34) -> 1146.3 | G35: =SUM(G33:G34) -> 1146.3 | J35: 小計 | K35: 百万円 | L35: =SUM(L33:L34) -> 63.8 | M35: =SUM(M33:M34) -> 51.6 | N35: =SUM(N33:N34) -> 51.6
B36: 炭化炉 | C36: 機電 | D36: 百万円 | E36: =ROUND((費用関数一覧!J26*設備量の整理!E25^費用関数一覧!K26)*(建設費の算定!F3/費用関数一覧!H26),1)*設備量の整理!G14 -> 1463.5 | F36: =ROUND((費用関数一覧!J26*設備量の整理!E38^費用関数一覧!K26)*(建設費の算定!F3/費用関数一覧!H26),1)*設備量の整理!G38 -> 1121.1 | G36: =ROUND((費用関数一覧!J26*設備量の整理!E14^費用関数一覧!K26)*(建設費の算定!F3/費用関数一覧!H26),1)*設備量の整理!G14 -> 1121.1 | K36: 20 | L36: =ROUND(E36/$K36,1) -> 73.2 | M36: =ROUND(F36/$K36,1) -> 56.1 | N36: 56.1 | O36: 耐用年数は出典の乾燥燃料で代替
C37: 土建 | D37: 百万円 | E37: =ROUND((費用関数一覧!J27*設備量の整理!E25^費用関数一覧!K27)*(建設費の算定!F3/費用関数一覧!H27),1)*設備量の整理!G14 -> 244.6 | F37: =ROUND((費用関数一覧!J27*設備量の整理!E38^費用関数一覧!K27)*(建設費の算定!F3/費用関数一覧!H27),1)*設備量の整理!G38 -> 206.3 | G37: =ROUND((費用関数一覧!J27*設備量の整理!E14^費用関数一覧!K27)*(建設費の算定!F3/費用関数一覧!H27),1)*設備量の整理!G14 -> 206.3 | K37: 45 | L37: =ROUND(E37/$K37,1) -> 5.4 | M37: 4.6 | N37: 4.6
C38: 小計 | D38: 百万円 | E38: =SUM(E36:E37) -> 1708.1 | F38: =SUM(F36:F37) -> 1327.4 | G38: =SUM(G36:G37) -> 1327.4 | J38: 小計 | K38: 百万円 | L38: =SUM(L36:L37) -> 78.6 | M38: =SUM(M36:M37) -> 60.7 | N38: =SUM(N36:N37) -> 60.7
B39: 堆肥化施設 | C39: 一式 | D39: 百万円 | E39: =ROUND((費用関数一覧!J29*設備量の整理!E27^費用関数一覧!K29)*100*(建設費の算定!F3/費用関数一覧!H29),1)*設備量の整理!G16 -> 1122.5 | F39: =ROUND((費用関数一覧!J29*設備量の整理!E40^費用関数一覧!K29)*100*(建設費の算定!F3/費用関数一覧!H29),1)*設備量の整理!G40 -> 845.9 | G39: =ROUND((費用関数一覧!J29*設備量の整理!E16^費用関数一覧!K29)*100*(建設費の算定!F3/費用関数一覧!H29),1)*設備量の整理!G16 -> 845.9 | K39: 10 | L39: =ROUND(E39/$K39,1) -> 112.3 | M39: =ROUND(F39/$K39,1) -> 84.6 | N39: 84.6
C40: 小計 | D40: 百万円 | E40: =SUM(E39) -> 1122.5 | F40: =SUM(F39) -> 845.9 | G40: =SUM(G39) -> 845.9 | J40: 小計 | K40: 百万円 | L40: =SUM(L39) -> 112.3 | M40: =SUM(M39) -> 84.6 | N40: =SUM(N39) -> 84.6
B41: リン回収設備 | C41: 一式 | F41: =ROUND(((費用関数一覧!J34*設備量の整理!E41/1000)+費用関数一覧!K34)*(建設費の算定!F3/費用関数一覧!H34),1)*設備量の整理!G17 -> 202.1 | G41: =ROUND(((費用関数一覧!J34*設備量の整理!E17/1000)+費用関数一覧!K34)*(建設費の算定!F3/費用関数一覧!H34),1)*設備量の整理!G17 -> 202.1 | K41: 15 | M41: =ROUND(F41/$K41,1) -> 13.5 | N41: =ROUND(G41/$K41,1) -> 13.5
C42: 小計 | D42: 百万円 | E42: =SUM(E41) -> 0 | F42: =SUM(F41) -> 202.1 | G42: =SUM(G41) -> 202.1 | J42: 小計 | K42: 百万円 | L42: =SUM(L41) -> 0 | M42: =SUM(M41) -> 13.5 | N42: =SUM(N41) -> 13.5

Sheet 維持管理費の算定 (hidden)
A1: シート名：維持管理費の算定
C2: デフレーター | D2: 2024年度（暫定） | E2: =IF(入力!D16="",_xlfn.XLOOKUP(D2,defnendo2015!$A$12:$A$85,defnendo2015!$AV$12:$AV$85,"",0,1),入力!D16) -> 127.9 | F2: (入力値がある場合入力値)
E4: 既設更新(消化なし) | F4: 既設更新(消化あり) | G4: 生ごみ受入れ(試算)
B5: 前処理設備(生ごみ受入れマニュアル) | C5: 電気使用料金 | D5: 百万円 | G5: =ROUND(((費用関数一覧!J7*設備量の整理!E6^費用関数一覧!K7)*5*365*費用関数一覧!M4/10^6)*(E2/費用関数一覧!H7),1) -> 0.9
C6: 補修費 | D6: 百万円 | G6: =ROUND(建設費の算定!G7*3/100,1) -> 3.2 | H6: (出典の費用関数が機電のみなので機電の3％として算定,建設費にデフレータがあるので維持管理費では補正無し)
C7: 小計 | D7: 百万円 | G7: =SUM(G5:G6) -> 4.1
B8: 混合槽 | C8: 電力費 | D8: 百万円 | G8: =ROUND(((費用関数一覧!J13*設備量の整理!E7^費用関数一覧!K13)*費用関数一覧!M4*1000/10^6)*(維持管理費の算定!E2/費用関数一覧!H13),1) -> 0.6
C9: 補修費 | D9: 百万円 | G9: =ROUND((費用関数一覧!J14*設備量の整理!E7^費用関数一覧!K14)*(維持管理費の算定!E2/費用関数一覧!H14),1) -> 0.6
C10: 小計 | D10: 百万円 | G10: =SUM(G8:G9) -> 1.2
B11: 消化槽 | C11: 維持管理費 | D11: 百万円 | F11: =ROUND((費用関数一覧!J17*(('汚泥処理フロー(日平均)'!C14*365)*100)^費用関数一覧!K17)*(維持管理費の算定!E2/費用関数一覧!H17),1) -> 21.3 | G11: =ROUND((費用関数一覧!J17*(('汚泥処理フロー(日平均)'!C14*365+'汚泥処理フロー(日平均)'!G16*365*入力!D14/7)*100)^費用関数一覧!K17)*(維持管理費の算定!E2/費用関数一覧!H17),1) -> 22.4
C12: 小計 | D12: 百万円 | F12: =SUM(F11) -> 21.3 | G12: =SUM(G11) -> 22.4
B13: ガスタンク | C13: 一式 | D13: 百万円 | F13: =ROUND((費用関数一覧!J19*設備量の整理!E34^費用関数一覧!K19)*(維持管理費の算定!E2/費用関数一覧!H19),1)*設備量の整理!G34 -> 2.9 | G13: =ROUND((費用関数一覧!J19*設備量の整理!E10^費用関数一覧!K19)*(維持管理費の算定!E2/費用関数一覧!H19),1)*設備量の整理!G10 -> 3.1
C14: 小計 | D14: 百万円 | F14: =SUM(F13) -> 2.9 | G14: =SUM(G13) -> 3.1
B15: 脱水機 | C15: 一式 | E15: =ROUND((費用関数一覧!J22*(設備量の整理!E24*('汚泥処理フロー(日平均)'!C14/'汚泥処理フロー (日最大)'!C14)*365)^費用関数一覧!K22)*(維持管理費の算定!E2/費用関数一覧!H22),1) -> 51.1 | F15: =ROUND((費用関数一覧!J22*('汚泥処理フロー(日平均)'!P17*100*365)^費用関数一覧!K22)*(維持管理費の算定!E2/費用関数一覧!H22),1) -> 37.6 | G15: =ROUND((費用関数一覧!J22*(('汚泥処理フロー(日平均)'!C22)*365*100)^費用関数一覧!K22)*(維持管理費の算定!E2/費用関数一覧!H22),1) -> 39.5
C16: 小計 | D16: 百万円 | E16: =SUM(E15) -> 51.1 | F16: 37.6 | G16: =SUM(G15) -> 39.5
B17: 焼却炉 | C17: 一式 | E17: =ROUND((費用関数一覧!J43*(('汚泥処理フロー(日平均)'!C14/(1-'諸元(編集可)'!$D$31/100))*365)^費用関数一覧!K43)*(維持管理費の算定!E2/費用関数一覧!H43),1) -> 120.6 | F17: =ROUND((費用関数一覧!J43*('汚泥処理フロー(日平均)'!P18*365)^費用関数一覧!K43)*(維持管理費の算定!E2/費用関数一覧!H43),1) -> 85.5 | G17: =ROUND((費用関数一覧!J43*('汚泥処理フロー(日平均)'!C23*365)^費用関数一覧!K43)*(維持管理費の算定!E2/費用関数一覧!H43),1) -> 90.3
C18: 小計 | D18: 百万円 | E18: =SUM(E17) -> 120.6 | F18: 85.5 | G18: =SUM(G17) -> 90.3
B19: 消化ガス発電機 | C19: 維持管理費 | D19: 百万円 | F19: =ROUND((費用関数一覧!J25*設備量の整理!E36+費用関数一覧!K25)*(E2/費用関数一覧!H25)*設備量の整理!G36,1) -> 10.6 | G19: =ROUND((費用関数一覧!J25*設備量の整理!E12+費用関数一覧!K25)*(E2/費用関数一覧!H25)*設備量の整理!G12,1) -> 11.5 | Q19: 電気 | R19: 百万円 | S19: =ROUND((費用関数一覧!J51*設備量の整理!E11^費用関数一覧!K51)*(維持管理費の算定!E2/費用関数一覧!H51),1) -> 85.7
C20: 小計 | D20: 百万円 | F20: =SUM(F19) -> 10.6 | G20: =SUM(G19) -> 11.5 | Q20: 補修費 | R20: 百万円 | S20: =ROUND((費用関数一覧!J52*設備量の整理!E12^費用関数一覧!K52)*(維持管理費の算定!E2/費用関数一覧!H52),1) -> 10.3
B21: 脱硫塔 | C21: 補修費 | F21: =ROUND((費用関数一覧!J45*設備量の整理!E33^費用関数一覧!K45)*(維持管理費の算定!E2/費用関数一覧!H45),1) -> 2.7 | G21: =ROUND((費用関数一覧!J45*設備量の整理!E9^費用関数一覧!K45)*(維持管理費の算定!E2/費用関数一覧!H45),1) -> 3 | L21: =ROUND(費用関数一覧!J25*269*8*350,1)/10000 -> 2.22947
C22: 小計 | D22: 百万円 | F22: =SUM(F21) -> 2.7 | G22: =SUM(G21) -> 3
B23: 乾燥設備 | C23: 一式 | E23: =ROUND((費用関数一覧!J33*('汚泥処理フロー(日平均)'!C14/(1-'諸元(編集可)'!$D$31/100)*365)^費用関数一覧!K33)*(維持管理費の算定!E2/費用関数一覧!H33),1) -> 72.4 | F23: =ROUND((費用関数一覧!J33*('汚泥処理フロー(日平均)'!P18*365)^費用関数一覧!K33)*(維持管理費の算定!E2/費用関数一覧!H33),1) -> 53.7 | G23: =ROUND((費用関数一覧!J33*('汚泥処理フロー(日平均)'!C23*365)^費用関数一覧!K33)*(維持管理費の算定!E2/費用関数一覧!H33),1) -> 56.3
C24: 小計 | D24: 百万円 | E24: =SUM(E23) -> 72.4 | F24: =SUM(F23) -> 53.7 | G24: =SUM(G23) -> 56.3
B25: 炭化炉 | C25: 一式 | E25: =ROUND((費用関数一覧!J28*設備量の整理!E25+費用関数一覧!K28)*(維持管理費の算定!E2/費用関数一覧!H28),1) -> 172 | F25: =ROUND((費用関数一覧!J28*設備量の整理!E38+費用関数一覧!K28)*(維持管理費の算定!E2/費用関数一覧!H28),1) -> 157.9 | G25: =ROUND((費用関数一覧!J28*設備量の整理!E14+費用関数一覧!K28)*(維持管理費の算定!E2/費用関数一覧!H28),1) -> 157.9
C26: 小計 | D26: 百万円 | E26: =SUM(E25) -> 172 | F26: 157.9 | G26: =SUM(G25) -> 157.9
B27: 堆肥化施設 | C27: 一式 | E27: =ROUND((費用関数一覧!J30*設備量の整理!E27^費用関数一覧!K30)*(維持管理費の算定!E2/費用関数一覧!H30),1) -> 39 | F27: =ROUND((費用関数一覧!J30*設備量の整理!E40^費用関数一覧!K30)*(維持管理費の算定!E2/費用関数一覧!H30),1) -> 26 | G27: =ROUND((費用関数一覧!J30*設備量の整理!E16^費用関数一覧!K30)*(維持管理費の算定!E2/費用関数一覧!H30),1) -> 26
C28: 小計 | D28: 百万円 | E28: =SUM(E27) -> 39 | F28: 26 | G28: =SUM(G27) -> 26
B29: リン回収設備 | C29: 一式 | F29: =ROUND((費用関数一覧!J35*設備量の整理!E42^費用関数一覧!K35)*(維持管理費の算定!E2/費用関数一覧!H35),1) -> 103.6 | G29: =ROUND((費用関数一覧!J35*設備量の整理!E18^費用関数一覧!K35)*(維持管理費の算定!E2/費用関数一覧!H35),1) -> 103.6
C30: 小計 | D30: 百万円 | F30: =SUM(F29) -> 103.6 | G30: =SUM(G29) -> 103.6
B31: 総計 | E31: =E7+E12+E14+E18+E20+E22+E10+E16+E24+E26+E28+E30 -> 455.1 | F31: =F7+F12+F14+F18+F20+F22+F10+F16+F24+F26+F28+F30 -> 501.8 | G31: =G7+G12+G14+G18+G20+G22+G10+G16+G24+G26+G28+G30 -> 518.9

Sheet 収益の算定 (hidden)
A1: シート名：収益の算定
B2: 収益
B3: 項目 | D3: 単位 | E3: 単価 | G3: 既設更新(消化なし) | H3: 既設更新(消化あり) | I3: 生ごみ受入れ(試算) | J3: 備考
B4: 消化ガス発電(売電) | C4: 売電収益 | D4: 百万円/年 | E4: ='諸元(編集可)'!D79 -> 35 | F4: 円/kWh | G4: ー | H4: =ROUND('汚泥処理フロー(日平均)'!$P$10*365*収益の算定!E4/10^6,3) -> 19.399 | I4: =ROUND((('汚泥処理フロー(日平均)'!$P$10*365)+(('汚泥処理フロー(日平均)'!$G$25-'汚泥処理フロー(日平均)'!$P$10)*365*(入力!$D$14/7)))*収益の算定!E4/10^6,3) -> 24.833 | J4: 全ケース(売電の場合：参考値)
B5: 消化ガス発電(場内利用) | C5: 維持管理費削減効果 | D5: 百万円/年 | E5: ='諸元(編集可)'!D77 -> 15 | F5: 円/kWh | G5: ー | H5: =ROUND('汚泥処理フロー(日平均)'!$P$10*365*収益の算定!E5/10^6,3) -> 8.314 | I5: =ROUND((('汚泥処理フロー(日平均)'!$P$10*365)+(('汚泥処理フロー(日平均)'!$G$25-'汚泥処理フロー(日平均)'!$P$10)*365*(入力!$D$14/7)))*収益の算定!E5/10^6,3) -> 10.643 | J5: 全ケース
B6: 固形燃料 | C6: 売却収益 | D6: 百万円/年 | E6: ='諸元(編集可)'!D80 -> 100 | F6: 円/t | G6: =ROUND((資源利用量の算定!Q13*365/1000)*収益の算定!E6/10^6,3) -> 0.073 | H6: =ROUND((資源利用量の算定!Q30*365/1000)*収益の算定!E6/10^6,3) -> 0.042 | I6: =ROUND(((資源利用量の算定!Q30*365/1000)+(資源利用量の算定!Q66*365*(入力!D14/7)/1000))*収益の算定!E6/10^6,3) -> 0.044 | J6: パターン3
B7: 重油の代替利用(炭化燃料) | C7: 維持管理費削減効果 | D7: 百万円/年 | E7: ='諸元(編集可)'!D81 -> 90 | F7: 円/L | G7: =ROUND(資源利用量の算定!Q15*365*収益の算定!E7/10^6,3) -> 25.486 | H7: =ROUND(資源利用量の算定!Q32*365*収益の算定!E7/10^6,3) -> 14.604 | I7: =ROUND(((資源利用量の算定!Q32*365)+(資源利用量の算定!Q68*365*(入力!D14/7)))*収益の算定!E7/10^6,3) -> 15.102 | J7: パターン3(場内利用の場合：参考値)
B8: 重油の代替利用(乾燥燃料) | C8: 維持管理費削減効果 | D8: 百万円/年 | E8: ='諸元(編集可)'!D81 -> 90 | F8: 円/L | G8: =ROUND(資源利用量の算定!K11*365*収益の算定!E8/10^6,3) -> 44.53 | H8: =ROUND(資源利用量の算定!K28*365*収益の算定!E8/10^6,3) -> 21.629 | I8: =ROUND(((資源利用量の算定!K28*365)+(資源利用量の算定!K64*365*(入力!D14/7)))*収益の算定!E8/10^6,3) -> 22.927 | J8: パターン3（場内利用かつ乾燥燃料の場合：参考値）
B9: 重油の代替利用(焼却廃熱) | C9: 維持管理費削減効果 | D9: 百万円/年 | E9: ='諸元(編集可)'!D81 -> 90 | F9: 円/L | G9: =ROUND(資源利用量の算定!AI12*365*収益の算定!E8/10^6,3) -> 12.616 | H9: =ROUND(資源利用量の算定!AI29*365*収益の算定!E8/10^6,3) -> 7.569 | I9: =ROUND(((資源利用量の算定!AI29*365)+(資源利用量の算定!AI63*365*入力!D14/7))*収益の算定!E8/10^6,3) -> 8.024 | J9: パターン7(場内利用の場合：参考値)
B10: 肥料(堆肥) | C10: 売却収益 | D10: 百万円/年 | E10: ='諸元(編集可)'!D82 -> 11666.7 | F10: 円/t | G10: =ROUND(資源利用量の算定!W15/1000*365*収益の算定!E10/10^6,3) -> 16.395 | H10: =ROUND(資源利用量の算定!W32/1000*365*収益の算定!E10/10^6,3) -> 10.336 | I10: =ROUND(((資源利用量の算定!W32/1000*365)+(資源利用量の算定!W65/1000*365*(入力!D14/7)))*収益の算定!E10/10^6,3) -> 10.924 | J10: パターン5 | L10: 佐賀市HP(https://www.water.saga.saga.jp/main/104.html）より | N10: 20円/kg | O10: 鹿児島市HP(https://www.city.kagoshima.lg.jp/suido/gesuido/gesuisyori/satumasoiru.html)より | P10: 150円/15kg(税抜き) | Q10: → | R10: 10円/kg | S10: 平均 | T10: 15 | U10: 円/kg | V10: → | W10: =T10*1000 -> 15000 | X10: 円/t | Z10: 珠洲市実績
B11: 肥料(乾燥肥料) | C11: 売却収益 | D11: 百万円/年 | E11: ='諸元(編集可)'!D82 -> 11666.7 | F11: 円/t | G11: =ROUND(資源利用量の算定!K9/1000*365*収益の算定!E11/10^6,3) -> 11.881 | H11: =ROUND(資源利用量の算定!K26/1000*365*収益の算定!E11/10^6,3) -> 7.128 | I11: =ROUND(((資源利用量の算定!K26/1000*365)+(資源利用量の算定!W65/1000*(入力!D14/7)*365))*収益の算定!E11/10^6,3) -> 7.717 | J11: パターン4 | Z11: 袋実費 | AA11: 50 | AB11: 円/袋
B12: リン | C12: 売却収益 | D12: 百万円/年 | E12: ='諸元(編集可)'!D83 -> 32000 | F12: 円/t | G12: =ROUND(資源利用量の算定!AU9/1000*365*E12/10^6,3) -> 0 | H12: =ROUND(資源利用量の算定!AU26/1000*365*収益の算定!E12/10^6,3) -> 0.426 | I12: =ROUND(((資源利用量の算定!AU26/1000*365)+(資源利用量の算定!AU64/1000*365*(入力!D14/7)))*収益の算定!E12/10^6,3) -> 0.433 | J12: パターン6 | L12: 円/20kgより | M12: → | N12: =10000/20 -> 500 | O12: 円/t | AA12: 15 | AB12: kg/袋
B13: 廃棄物処理施設の発電増加 | C13: 脱水汚泥増加による売却収益 | D13: 百万円/年 | E13: ='諸元(編集可)'!D78 -> 15 | F13: 円/kWh | G13: ー | H13: ー | I13: =ROUND((('汚泥処理フロー(日平均)'!C23*365-'汚泥処理フロー(日平均)'!G12*365*入力!D14/7))*収益の算定!E13/10^6,2) -> 0.03 | J13: パターン2 | AA13: =AA11/AA12 -> 3.333333333 | AB13: 円/kg
B14: 生ごみ処分費 | C14: 処分費収入 | D14: 百万円/年 | E14: ='諸元(編集可)'!D84 -> 0 | F14: 円/t | G14: ー | H14: ー | I14: =ROUND(E14*入力!D12*365*入力!D14/7*10^-6,1) -> 0 | J14: 民間事業者からの処分費収入を考慮 | AA14: =ROUND(AA13*1000,1) -> 3333.3 | AB14: 円/t
B16: 出費・収入減
B17: 項目 | D17: 単位 | E17: 単価 | G17: 既設更新 | H17: 既設更新(消化あり) | I17: 生ごみ受入れ(試算) | J17: 備考
B18: 生ごみの処理場への運搬費 | C18: 運搬費の出費 | D18: 百万円/年 | E18: ='諸元(編集可)'!D85 -> 0 | F18: 円/t | G18: ー | H18: ー | I18: =ROUND(E18*入力!D12*365*入力!D14/7*10^-6,1) -> 0 | J18: 生ごみの運搬費を支払う場合
B19: 埋め立て処分費 | C19: 脱水汚泥処分費 | D19: 百万円/年 | E19: ='諸元(編集可)'!D86 -> 16000 | F19: 円/t₋wet | G19: =ROUND((資源利用量の算定!AO7*365)/1000*収益の算定!E19/10^6,1) -> 73.3 | H19: =ROUND((資源利用量の算定!AO24*365)/1000*収益の算定!E19/10^6,1) -> 44 | I19: =ROUND((((資源利用量の算定!AO24*365)+(資源利用量の算定!AO57*365*(入力!D14/7)))/1000*収益の算定!E19/10^6),1) -> 46.6 | J19: パターン1
B20: 焼却灰の処分費 | C20: 焼却灰処分費 | D20: 百万円/年 | E20: ='諸元(編集可)'!D87 -> 8000 | F20: 円/t | G20: =ROUND(('諸元(編集可)'!$D$87*資源利用量の算定!AC9/1000)*365/10^6,1) -> 1.5 | H20: =ROUND(('諸元(編集可)'!$D$87*資源利用量の算定!AC26/1000)*365/10^6,1) -> 0.9 | I20: =ROUND((('諸元(編集可)'!$D$87*(資源利用量の算定!AC26/1000*365)+(資源利用量の算定!AC57/1000*入力!D14/7*365))/10^6),1) -> 0.9 | J20: パターン7
B21: 廃棄物処理施設発の発電減少 | C21: 生ごみ減少の影響 | D21: 百万円/年 | E21: ='諸元(編集可)'!D78 -> 15 | F21: 円/kWh | G21: ー | H21: ー | I21: =ROUND(資源利用量の算定!K47*365*(入力!D14/7)*収益の算定!E21/10^6,1) -> 1.3 | J21: パターン2以外
B22: 廃棄物処理施設維持管理費の増加（電力） | C22: 電気使用量 | D22: 百万円/年 | E22: ='諸元(編集可)'!D78 -> 15 | F22: 円/kWh | G22: ー | H22: ー | I22: =ROUND((('汚泥処理フロー(日平均)'!C23*365-'汚泥処理フロー(日平均)'!G12*365*入力!D14/7)*収益の算定!E22)/10^6,2) -> 0.03 | J22: パターン2
B23: 廃棄物処理施設維持管理費の増加（重油） | C23: 重油使用量 | D23: 百万円/年 | E23: ='諸元(編集可)'!D81 -> 90 | F23: 円/L | G23: ー | H23: ー | I23: =ROUND((('汚泥処理フロー(日平均)'!C23*365-'汚泥処理フロー(日平均)'!G12*365*入力!D14/7)*収益の算定!E23)/10^6,2) -> 0.2 | J23: パターン2

Sheet 既存更新の評価 (hidden)
A1: シート名：既存更新の評価
B3: 既設更新(消化有)
D4: 有埋立 | E4: 有固形燃料化 | F4: 有肥料化(乾燥) | G4: 有肥料化(堆肥) | H4: 有リン利用 | I4: 有焼却熱利用 | K4: 無埋立 | L4: 無固形燃料化 | M4: 無肥料化(乾燥) | N4: 無肥料化(堆肥) | O4: 無リン利用 | P4: 無焼却熱利用
D5: 消化＋埋立 | E5: 消化＋固形燃料化 | F5: 消化＋乾燥汚泥肥料 | G5: 消化＋コンポスト | H5: 消化＋リン回収 | I5: 消化＋熱利用 | K5: 埋立 | L5: 固形燃料化 | M5: 乾燥汚泥肥料 | N5: コンポスト | O5: リン回収 | P5: 熱利用
B6: 建設費年価 | C6: 百万円/年 | D6: =建設費の算定!M16+建設費の算定!M18+建設費の算定!M29+建設費の算定!M32+建設費の算定!M22 -> 146.4 | E6: =建設費の算定!M16+建設費の算定!M18+建設費の算定!M29+建設費の算定!M32+建設費の算定!M22+建設費の算定!M38 -> 207.1 | F6: =建設費の算定!M16+建設費の算定!M18+建設費の算定!M29+建設費の算定!M32+建設費の算定!M22+建設費の算定!M35 -> 198 | G6: =建設費の算定!M16+建設費の算定!M18+建設費の算定!M29+建設費の算定!M32+建設費の算定!M22+建設費の算定!M40 -> 231 | H6: =建設費の算定!M16+建設費の算定!M18+建設費の算定!M29+建設費の算定!M32+建設費の算定!M22+建設費の算定!M42 -> 159.9 | I6: =建設費の算定!M16+建設費の算定!M18+建設費の算定!M29+建設費の算定!M32+建設費の算定!M22+建設費の算定!M27 -> 302.9 | K6: =建設費の算定!L22 -> 51.6 | L6: =建設費の算定!L22+建設費の算定!L38 -> 130.2 | M6: =建設費の算定!L22+建設費の算定!L35 -> 115.4 | N6: =建設費の算定!L22+建設費の算定!L40 -> 163.9 | O6: ー | P6: =建設費の算定!L22+建設費の算定!L27 -> 250.4
B7: 維持管理費 | C7: 百万円/年 | D7: =維持管理費の算定!F12+維持管理費の算定!F14+維持管理費の算定!F16+維持管理費の算定!F20+維持管理費の算定!F22 -> 75.1 | E7: =維持管理費の算定!F12+維持管理費の算定!F14+維持管理費の算定!F16+維持管理費の算定!F20+維持管理費の算定!F22+維持管理費の算定!F26 -> 233 | F7: =維持管理費の算定!F12+維持管理費の算定!F14+維持管理費の算定!F16+維持管理費の算定!F20+維持管理費の算定!F22+維持管理費の算定!F24 -> 128.8 | G7: =維持管理費の算定!F12+維持管理費の算定!F14+維持管理費の算定!F16+維持管理費の算定!F20+維持管理費の算定!F22+維持管理費の算定!F28 -> 101.1 | H7: =維持管理費の算定!F12+維持管理費の算定!F14+維持管理費の算定!F16+維持管理費の算定!F20+維持管理費の算定!F22+維持管理費の算定!F30 -> 178.7 | I7: =維持管理費の算定!F12+維持管理費の算定!F14+維持管理費の算定!F16+維持管理費の算定!F20+維持管理費の算定!F22+維持管理費の算定!F18 -> 160.6 | K7: =維持管理費の算定!E16 -> 51.1 | L7: =維持管理費の算定!E16+維持管理費の算定!E26 -> 223.1 | M7: =維持管理費の算定!E16+維持管理費の算定!E24 -> 123.5 | N7: =維持管理費の算定!E16+維持管理費の算定!E28 -> 90.1 | O7: ー | P7: =維持管理費の算定!E16+維持管理費の算定!E18 -> 171.7
B8: 出費・収入減 | C8: 百万円/年 | D8: =収益の算定!H19 -> 44 | E8: 0 | F8: 0 | G8: 0 | H8: 0 | I8: =収益の算定!H20 -> 0.9 | K8: =収益の算定!G19 -> 73.3 | L8: 0 | M8: 0 | N8: 0 | O8: ー | P8: =収益の算定!G20 -> 1.5
B9: 収益 | C9: 百万円/年 | D9: =収益の算定!H5 -> 8.314 | E9: =収益の算定!H5+収益の算定!H6 -> 8.356 | F9: =収益の算定!H5+収益の算定!H11 -> 15.442 | G9: =収益の算定!H5+収益の算定!H10 -> 18.65 | H9: =収益の算定!H5+収益の算定!H12 -> 8.74 | I9: =収益の算定!H5 -> 8.314 | K9: 0 | L9: =収益の算定!G6 -> 0.073 | M9: =収益の算定!G11 -> 11.881 | N9: =収益の算定!G10 -> 16.395 | O9: ー | P9: 0
B10: 年間事業費 | C10: 百万円/年 | D10: =D6+D7+D8-D9 -> 257.186 | E10: =E6+E7+E8-E9 -> 431.744 | F10: 311.358 | G10: 313.45 | H10: 329.86 | I10: 456.086 | K10: =K6+K7+K8-K9 -> 176 | L10: =L6+L7+L8-L9 -> 353.227 | M10: 227.019 | N10: 237.605 | O10: ー | P10: 423.6
B11: 経済性評価 | D11: =RANK(D10,$D$10:$I$10,1) -> 1 | E11: =RANK(E10,$D$10:$I$10,1) -> 5 | F11: 2 | G11: 3 | H11: 4 | I11: 6 | K11: =RANK(K10,$K$10:$P$10,1) -> 1 | L11: =RANK(L10,$K$10:$P$10,1) -> 4 | M11: 2 | N11: 3 | O11: ー | P11: 5
B12: 温室効果ガス排出量 | C12: t₋CO2/年 | D12: =ROUND(資源利用量の算定!AO25*365,1) -> 1828.4 | E12: =ROUND(資源利用量の算定!Q34*365,1) -> 26.2 | F12: =ROUND(資源利用量の算定!K30*365,1) -> 11.4 | G12: =ROUND(資源利用量の算定!W33*365,1) -> 520.8 | H12: =ROUND(資源利用量の算定!AU32,1) -> 57.6 | I12: =ROUND(資源利用量の算定!AC30*365,1) -> 1237.9 | K12: =ROUND(資源利用量の算定!AO8*365,1) -> 3047.4 | L12: =ROUND(資源利用量の算定!Q17*365,1) -> 43.7 | M12: =ROUND(資源利用量の算定!K13*365,1) -> 19.1 | N12: =ROUND(資源利用量の算定!W16*365,1) -> 867.9 | O12: ー | P12: =ROUND(資源利用量の算定!AC13*365,1) -> 2063.2
B13: 温室効果ガス排出削減量 | C13: t₋CO2/年 | D13: =ROUND('汚泥処理フロー(日平均)'!P13*365,1) -> 234.5 | E13: =ROUND(('汚泥処理フロー(日平均)'!P13+資源利用量の算定!Q33)*365,1) -> 674.2 | F13: =ROUND('汚泥処理フロー(日平均)'!P13*365,1) -> 234.5 | G13: =ROUND('汚泥処理フロー(日平均)'!P13*365,1) -> 234.5 | H13: =ROUND('汚泥処理フロー(日平均)'!P13*365,1) -> 234.5 | I13: =ROUND(('汚泥処理フロー(日平均)'!P13+資源利用量の算定!AI30)*365,1) -> 462.4 | K13: 0 | L13: =資源利用量の算定!Q16*365 -> 767.4249957 | M13: 0 | N13: 0 | O13: ー | P13: =ROUND(資源利用量の算定!AI13*365,1) -> 379.9
B14: 温室効果ガス収支 | C14: t₋CO2/年 | D14: =D12-D13 -> 1593.9 | E14: =E12-E13 -> -648 | F14: -223.1 | G14: 286.3 | H14: -176.9 | I14: 775.5 | K14: =K12-K13 -> 3047.4 | L14: =L12-L13 -> -723.7249957 | M14: 19.1 | N14: 867.9 | O14: ー | P14: 1683.3
B15: 環境性評価 | D15: =RANK(D14,$D$14:$I$14,1) -> 6 | E15: 1 | F15: 2 | G15: 4 | H15: 3 | I15: 5 | K15: =RANK(K14,$K$14:$P$14,1) -> 5 | L15: =RANK(L14,$K$14:$P$14,1) -> 1 | M15: 2 | N15: 3 | O15: ー | P15: 4

Sheet 結果まとめ (hidden)
A1: シート名：結果まとめ
M2: 国費を考慮した事業者負担割合 | O2: =IF(入力!J12=1,1-0.55,1-2/3) -> 0.45
D4: 既設更新 | E4: 連携パターン１ | F4: 連携パターン２ | G4: 連携パターン３ | H4: 連携パターン４ | I4: 連携パターン５ | J4: 連携パターン６ | K4: 連携パターン７ | O4: 既設更新 | P4: 連携パターン１ | Q4: 連携パターン２ | R4: 連携パターン３ | S4: 連携パターン４ | T4: 連携パターン５ | U4: 連携パターン６ | V4: 連携パターン７
B5: 項目 | C5: 単位 | D5: =CONCATENATE(入力!K8,入力!K10) -> 有肥料化(堆肥) | E5: 消化＋埋立 | F5: 消化＋廃棄物側での処理 | G5: 消化＋固形燃料化 | H5: 消化＋乾燥汚泥肥料 | I5: 消化＋コンポスト | J5: 消化＋リン回収 | K5: 消化＋熱利用 | O5: =CONCATENATE(入力!V6,入力!V8) ->  | P5: 消化＋埋立 | Q5: 消化＋廃棄物側での処理 | R5: 消化＋固形燃料化 | S5: 消化＋乾燥汚泥肥料 | T5: 消化＋コンポスト | U5: 消化＋リン回収 | V5: 消化＋熱利用
B6: 建設費年価 | C6: 百万円/年 | D6: =_xlfn.XLOOKUP($D$5,既存更新の評価!$D$4:$P$4,既存更新の評価!$D6:$P6,"",0,1) -> 231 | E6: =建設費の算定!N9+建設費の算定!N13+建設費の算定!N16+建設費の算定!N18+建設費の算定!N22+建設費の算定!N29+建設費の算定!N32 -> 163.3 | F6: =建設費の算定!N9+建設費の算定!N13+建設費の算定!N16+建設費の算定!N18+建設費の算定!N22+建設費の算定!N29+建設費の算定!N32 -> 163.3 | G6: =建設費の算定!N9+建設費の算定!N13+建設費の算定!N16+建設費の算定!N18+建設費の算定!N22+建設費の算定!N38+建設費の算定!N29+建設費の算定!N32 -> 224 | H6: =建設費の算定!N9+建設費の算定!N13+建設費の算定!N16+建設費の算定!N18+建設費の算定!N22+建設費の算定!N35+建設費の算定!N29+建設費の算定!N32 -> 214.9 | I6: =建設費の算定!N9+建設費の算定!N13+建設費の算定!N16+建設費の算定!N18+建設費の算定!N22+建設費の算定!N40+建設費の算定!N29+建設費の算定!N32 -> 247.9 | J6: =建設費の算定!N9+建設費の算定!N13+建設費の算定!N16+建設費の算定!N18+建設費の算定!N22+建設費の算定!N42+建設費の算定!N29+建設費の算定!N32 -> 176.8 | K6: =建設費の算定!N9+建設費の算定!N13+建設費の算定!N16+建設費の算定!N18+建設費の算定!N22+建設費の算定!N27+建設費の算定!N29+建設費の算定!N32 -> 319.8 | M6: 建設費年価 | N6: 百万円/年 | O6: =D6*$O$2 -> 103.95 | P6: =E6*$O$2 -> 73.485 | Q6: 73.485 | R6: 100.8 | S6: =H6*$O$2 -> 96.705 | T6: 111.555 | U6: 79.56 | V6: 143.91
B7: 維持管理費 | C7: 百万円/年 | D7: =_xlfn.XLOOKUP($D$5,既存更新の評価!$D$4:$P$4,既存更新の評価!$D7:$P7,"",0,1) -> 101.1 | E7: =維持管理費の算定!G7+維持管理費の算定!G10+維持管理費の算定!G12+維持管理費の算定!G14+維持管理費の算定!G16+維持管理費の算定!G20+維持管理費の算定!G22 -> 84.8 | F7: =維持管理費の算定!G7+維持管理費の算定!G10+維持管理費の算定!G12+維持管理費の算定!G14+維持管理費の算定!G16+維持管理費の算定!G20+維持管理費の算定!G22 -> 84.8 | G7: =維持管理費の算定!G7+維持管理費の算定!G10+維持管理費の算定!G12+維持管理費の算定!G14+維持管理費の算定!G16+維持管理費の算定!G20+維持管理費の算定!G22+維持管理費の算定!G26 -> 242.7 | H7: =維持管理費の算定!G7+維持管理費の算定!G10+維持管理費の算定!G12+維持管理費の算定!G14+維持管理費の算定!G16+維持管理費の算定!G20+維持管理費の算定!G22+維持管理費の算定!G24 -> 141.1 | I7: =維持管理費の算定!G7+維持管理費の算定!G10+維持管理費の算定!G12+維持管理費の算定!G14+維持管理費の算定!G16+維持管理費の算定!G20+維持管理費の算定!G22+維持管理費の算定!G28 -> 110.8 | J7: =維持管理費の算定!G7+維持管理費の算定!G10+維持管理費の算定!G12+維持管理費の算定!G14+維持管理費の算定!G16+維持管理費の算定!G20+維持管理費の算定!G22+維持管理費の算定!G30 -> 188.4 | K7: =維持管理費の算定!G7+維持管理費の算定!G10+維持管理費の算定!G12+維持管理費の算定!G14+維持管理費の算定!G16+維持管理費の算定!G20+維持管理費の算定!G22+維持管理費の算定!G18 -> 175.1 | M7: 維持管理費 | N7: 百万円/年 | O7: =D7 -> 101.1 | P7: =E7 -> 84.8 | Q7: =F7 -> 84.8 | R7: =G7 -> 242.7 | S7: =H7 -> 141.1 | T7: =I7 -> 110.8 | U7: =J7 -> 188.4 | V7: =K7 -> 175.1
B8: 出費・収入減 | C8: 百万円/年 | D8: =_xlfn.XLOOKUP($D$5,既存更新の評価!$D$4:$P$4,既存更新の評価!$D8:$P8,"",0,1) -> 0 | E8: =収益の算定!I19+収益の算定!I21+収益の算定!I18 -> 47.9 | F8: =収益の算定!I22+収益の算定!I23+収益の算定!I18 -> 0.23 | G8: =収益の算定!I21+収益の算定!I18 -> 1.3 | H8: =収益の算定!I21+収益の算定!I18 -> 1.3 | I8: =収益の算定!I21+収益の算定!I18 -> 1.3 | J8: =収益の算定!I21+収益の算定!I18 -> 1.3 | K8: =収益の算定!I21+収益の算定!I20+収益の算定!I18 -> 2.2 | M8: 出費・収入減 | N8: 百万円/年 | O8: 0 | P8: 47.9 | Q8: 0.23 | R8: 1.3 | S8: 1.3 | T8: 1.3 | U8: 1.3 | V8: 2.2
B9: 収益 | C9: 百万円/年 | D9: =_xlfn.XLOOKUP($D$5,既存更新の評価!$D$4:$P$4,既存更新の評価!$D9:$P9,"",0,1) -> 18.65 | E9: =収益の算定!I5+収益の算定!I14 -> 10.643 | F9: =収益の算定!I5+収益の算定!I13+収益の算定!I14 -> 10.673 | G9: =収益の算定!I5+収益の算定!I6+収益の算定!I14 -> 10.687 | H9: =収益の算定!I5+収益の算定!I11+収益の算定!I14 -> 18.36 | I9: =収益の算定!I5+収益の算定!I10+収益の算定!I14 -> 21.567 | J9: =収益の算定!I5+収益の算定!I12+収益の算定!I14 -> 11.076 | K9: =収益の算定!I5+収益の算定!I9+収益の算定!I14 -> 18.667 | M9: 収益 | N9: 百万円/年 | O9: 18.65 | P9: 10.643 | Q9: 10.673 | R9: 10.687 | S9: 18.36 | T9: 21.567 | U9: 11.076 | V9: 18.667
B10: 年間事業費 | C10: 百万円/年 | D10: =_xlfn.XLOOKUP($D$5,既存更新の評価!$D$4:$P$4,既存更新の評価!$D10:$P10,"",0,1) -> 313.45 | E10: =E6+E7+E8-E9 -> 285.357 | F10: =F6+F7+F8-F9 -> 237.657 | G10: =G6+G7+G8-G9 -> 457.313 | H10: 338.94 | I10: 338.433 | J10: 355.424 | K10: 478.433 | M10: 年間事業費 | N10: 百万円/年 | O10: =O6+O7+O8-O9 -> 186.4 | P10: =P6+P7+P8-P9 -> 195.542 | Q10: =Q6+Q7+Q8-Q9 -> 147.842 | R10: 334.113 | S10: 220.745 | T10: 202.088 | U10: 258.184 | V10: 302.543
B11: 経済性評価 | D11: =RANK(D10,$D$10:$K$10,1) -> 3 | E11: =RANK(E10,$D$10:$K$10,1) -> 2 | F11: 1 | G11: 7 | H11: 5 | I11: 4 | J11: 6 | K11: 8 | M11: 経済性評価 | O11: 3 | P11: 2 | Q11: 1 | R11: 7 | S11: 5 | T11: 4 | U11: 6 | V11: 8
B12: 温室効果ガス排出量 | C12: t₋CO2/年 | D12: =_xlfn.XLOOKUP($D$5,既存更新の評価!$D$4:$P$4,既存更新の評価!$D12:$P12,"",0,1) -> 520.8 | E12: =ROUND(('汚泥処理フロー(日平均)'!L9+'汚泥処理フロー(日平均)'!L10+資源利用量の算定!K48+資源利用量の算定!AO58)*365*入力!D14/7+資源利用量の算定!AO25*365,1) -> 2021.5 | F12: =IF((('汚泥処理フロー(日平均)'!L9+'汚泥処理フロー(日平均)'!L10+'汚泥処理フロー(日平均)'!L23+'汚泥処理フロー(日平均)'!L24)*365*入力!D14/7)>0,ROUND(('汚泥処理フロー(日平均)'!L9+'汚泥処理フロー(日平均)'!L10+'汚泥処理フロー(日平均)'!L23+'汚泥処理フロー(日平均)'!L24)*365*入力!D14/7,1),0) -> 161 | G12: =ROUND(('汚泥処理フロー(日平均)'!L9+'汚泥処理フロー(日平均)'!L10+資源利用量の算定!K48+資源利用量の算定!Q70)*365*入力!D14/7+資源利用量の算定!Q34*365,1) -> 111.1 | H12: =ROUND(('汚泥処理フロー(日平均)'!L9+'汚泥処理フロー(日平均)'!L10+資源利用量の算定!K48+資源利用量の算定!K66)*365*入力!D14/7+資源利用量の算定!K30*365,1) -> 95.5 | I12: =ROUND(('汚泥処理フロー(日平均)'!L9+'汚泥処理フロー(日平均)'!L10+資源利用量の算定!K48+資源利用量の算定!W66)*365*入力!D14/7+資源利用量の算定!W33*365,1) -> 635.4 | J12: =ROUND((('汚泥処理フロー(日平均)'!L9+'汚泥処理フロー(日平均)'!L10+資源利用量の算定!K48)*365)*入力!D14/7+資源利用量の算定!AU63*入力!D14/7+資源利用量の算定!AU32,1) -> 182.5 | K12: =ROUND(('汚泥処理フロー(日平均)'!L9+'汚泥処理フロー(日平均)'!L10+資源利用量の算定!K48+資源利用量の算定!AC64)*365*入力!D14/7+資源利用量の算定!AC30*365,1) -> 1353 | M12: 温室効果ガス排出量 | N12: t₋CO2/年 | O12: 520.8 | P12: 2021.5 | Q12: 161 | R12: 111.1 | S12: 95.5 | T12: 635.4 | U12: 182.5 | V12: 1353
B13: 温室効果ガス排出量削減効果 | C13: t₋CO2/年 | D13: =_xlfn.XLOOKUP($D$5,既存更新の評価!$D$4:$P$4,既存更新の評価!$D13:$P13,"",0,1) -> 234.5 | E13: =ROUND(('汚泥処理フロー(日平均)'!L13+資源利用量の算定!K49)*365*入力!D14/7+'汚泥処理フロー(日平均)'!P13*365,1) -> 353.6 | F13: =IF((('汚泥処理フロー(日平均)'!L9+'汚泥処理フロー(日平均)'!L10+'汚泥処理フロー(日平均)'!L23+'汚泥処理フロー(日平均)'!L24)*365*入力!D14/7)>0,ROUND(('汚泥処理フロー(日平均)'!L13+'汚泥処理フロー(日平均)'!L26)*365*入力!D14/7+'汚泥処理フロー(日平均)'!P13*365,1),ROUND(('汚泥処理フロー(日平均)'!L13+'汚泥処理フロー(日平均)'!L26-('汚泥処理フロー(日平均)'!L9+'汚泥処理フロー(日平均)'!L10+'汚泥処理フロー(日平均)'!L23+'汚泥処理フロー(日平均)'!L24))*365*入力!D14/7+'汚泥処理フロー(日平均)'!P13*365,1)) -> 390.2 | G13: =ROUND(('汚泥処理フロー(日平均)'!L13+資源利用量の算定!Q69+資源利用量の算定!K49)*365*入力!D14/7+('汚泥処理フロー(日平均)'!P13+資源利用量の算定!Q33)*365,1) -> 808.4 | H13: =ROUND(('汚泥処理フロー(日平均)'!L13+資源利用量の算定!K49)*365*入力!D14/7+'汚泥処理フロー(日平均)'!P13*365,1) -> 353.6 | I13: =ROUND(('汚泥処理フロー(日平均)'!L13+資源利用量の算定!K49)*365*入力!D14/7+'汚泥処理フロー(日平均)'!P13*365,1) -> 353.6 | J13: =ROUND(('汚泥処理フロー(日平均)'!L13+資源利用量の算定!K49)*365*入力!D14/7+'汚泥処理フロー(日平均)'!P13*365,1) -> 353.6 | K13: =ROUND(('汚泥処理フロー(日平均)'!L13+資源利用量の算定!K49+資源利用量の算定!AI64)*365*入力!D14/7+('汚泥処理フロー(日平均)'!P13+資源利用量の算定!AI30)*365,1) -> 595.2 | M13: 温室効果ガス排出量削減効果 | N13: t₋CO2/年 | O13: 234.5 | P13: 353.6 | Q13: 390.2 | R13: 808.4 | S13: 353.6 | T13: 353.6 | U13: 353.6 | V13: 595.2
B14: 温室効果ガス収支 | C14: t₋CO2/年 | D14: =_xlfn.XLOOKUP($D$5,既存更新の評価!$D$4:$P$4,既存更新の評価!$D14:$P14,"",0,1) -> 286.3 | E14: =E12-E13 -> 1667.9 | F14: =F12-F13 -> -229.2 | G14: -697.3 | H14: -258.1 | I14: 281.8 | J14: -171.1 | K14: 757.8 | M14: 温室効果ガス収支 | N14: t₋CO2/年 | O14: 286.3 | P14: 1667.9 | Q14: -229.2 | R14: -697.3 | S14: -258.1 | T14: 281.8 | U14: -171.1 | V14: 757.8
B15: 環境性評価 | D15: =RANK(D14,$D$14:$K$14,1) -> 6 | E15: =RANK(E14,$D$14:$K$14,1) -> 8 | F15: 3 | G15: 1 | H15: 2 | I15: 5 | J15: 4 | K15: 7 | M15: 環境性評価 | O15: 6 | P15: 8 | Q15: 3 | R15: 1 | S15: 2 | T15: 5 | U15: 4 | V15: 7
D18: =CONCATENATE(入力!K8,入力!K10) -> 有肥料化(堆肥)
B19: 項目 | C19: 単位 | D19: 既設更新 | E19: パターン１ | F19: パターン２ | G19: パターン３ | H19: パターン４ | I19: パターン５ | J19: パターン６ | K19: パターン７ | O19: 既設更新 | P19: パターン１ | Q19: パターン２ | R19: パターン３ | S19: パターン４ | T19: パターン５ | U19: パターン６ | V19: パターン７
D20: =CONCATENATE(入力!K8,入力!K10) -> 有肥料化(堆肥) | E20: 消化＋埋立 | F20: 消化＋廃棄物側での処理 | G20: 消化＋固形燃料化 | H20: 消化＋乾燥汚泥肥料 | I20: 消化＋コンポスト | J20: 消化＋リン回収 | K20: 消化＋熱利用 | O20: =D20 -> 有肥料化(堆肥) | P20: 消化＋埋立 | Q20: 消化＋廃棄物側での処理 | R20: 消化＋固形燃料化 | S20: 消化＋乾燥汚泥肥料 | T20: 消化＋コンポスト | U20: 消化＋リン回収 | V20: 消化＋熱利用
B21: 建設費年価 | C21: 百万円/年 | D21: =_xlfn.XLOOKUP($D$18,既存更新の評価!$D$4:$P$4,既存更新の評価!$D6:$P6,"",0,1) -> 231 | E21: =E6 -> 163.3 | F21: =F6 -> 163.3 | G21: 224 | H21: 214.9 | I21: 247.9 | J21: 176.8 | K21: 319.8 | M21: 建設費年価 | N21: 百万円/年 | O21: =O6 -> 103.95 | P21: 73.485 | Q21: =Q6 -> 73.485 | R21: 100.8 | S21: 96.705 | T21: 111.555 | U21: 79.56 | V21: 143.91
B22: 維持管理費 | C22: 百万円/年 | D22: =_xlfn.XLOOKUP($D$18,既存更新の評価!$D$4:$P$4,既存更新の評価!$D7:$P7,"",0,1) -> 101.1 | E22: =E7 -> 84.8 | F22: =F7 -> 84.8 | G22: 242.7 | H22: 141.1 | I22: 110.8 | J22: 188.4 | K22: 175.1 | M22: 維持管理費 | N22: 百万円/年 | O22: 101.1 | P22: 84.8 | Q22: =Q7 -> 84.8 | R22: 242.7 | S22: 141.1 | T22: 110.8 | U22: 188.4 | V22: 175.1
B23: 出費・収入減 | C23: 百万円/年 | D23: =_xlfn.XLOOKUP($D$18,既存更新の評価!$D$4:$P$4,既存更新の評価!$D8:$P8,"",0,1) -> 0 | E23: =E8 -> 47.9 | F23: 0.23 | G23: 1.3 | H23: 1.3 | I23: 1.3 | J23: 1.3 | K23: 2.2 | M23: 出費・収入減 | N23: 百万円/年 | O23: 0 | P23: 47.9 | Q23: 0.23 | R23: 1.3 | S23: 1.3 | T23: 1.3 | U23: 1.3 | V23: 2.2
B24: 収益 | C24: 百万円/年 | D24: =-_xlfn.XLOOKUP($D$18,既存更新の評価!$D$4:$P$4,既存更新の評価!$D9:$P9,"",0,1) -> -18.65 | E24: =-E9 -> -10.643 | F24: =-F9 -> -10.673 | G24: -10.687 | H24: -18.36 | I24: -21.567 | J24: -11.076 | K24: -18.667 | M24: 収益 | N24: 百万円/年 | O24: =-O9 -> -18.65 | P24: =-P9 -> -10.643 | Q24: =-Q9 -> -10.673 | R24: -10.687 | S24: -18.36 | T24: -21.567 | U24: -11.076 | V24: -18.667
B25: 年間事業費 | C25: 百万円/年 | D25: =_xlfn.XLOOKUP($D$18,既存更新の評価!$D$4:$P$4,既存更新の評価!$D10:$P10,"",0,1) -> 313.45 | E25: =E10 -> 285.357 | F25: 237.657 | G25: 457.313 | H25: 338.94 | I25: 338.433 | J25: 355.424 | K25: 478.433 | M25: 年間事業費 | N25: 百万円/年 | O25: =O10 -> 186.4 | P25: 195.542 | Q25: 147.842 | R25: 334.113 | S25: 220.745 | T25: 202.088 | U25: 258.184 | V25: 302.543
B26: 経済性評価 | D26: =D11 -> 3 | E26: 2 | F26: 1 | G26: 7 | H26: 5 | I26: 4 | J26: 6 | K26: 8 | M26: 経済性評価 | O26: 3 | P26: 2 | Q26: 1 | R26: 7 | S26: 5 | T26: 4 | U26: 6 | V26: 8
B27: 温室効果ガス排出量 | C27: t₋CO2/年 | D27: =_xlfn.XLOOKUP($D$18,既存更新の評価!$D$4:$P$4,既存更新の評価!$D12:$P12,"",0,1) -> 520.8 | E27: 2021.5 | F27: =F12 -> 161 | G27: 111.1 | H27: 95.5 | I27: 635.4 | J27: =J12 -> 182.5 | K27: 1353 | M27: 温室効果ガス排出量 | N27: t₋CO2/年 | O27: 520.8 | P27: 2021.5 | Q27: 161 | R27: 111.1 | S27: 95.5 | T27: 635.4 | U27: =U12 -> 182.5 | V27: 1353
B28: 温室効果ガス排出量削減効果 | C28: t₋CO2/年 | D28: =-_xlfn.XLOOKUP($D$18,既存更新の評価!$D$4:$P$4,既存更新の評価!$D13:$P13,"",0,1) -> -234.5 | E28: =-E13 -> -353.6 | F28: =-F13 -> -390.2 | G28: -808.4 | H28: -353.6 | I28: -353.6 | J28: -353.6 | K28: -595.2 | M28: 温室効果ガス排出量削減効果 | N28: t₋CO2/年 | O28: =-O13 -> -234.5 | P28: =-P13 -> -353.6 | Q28: =-Q13 -> -390.2 | R28: -808.4 | S28: -353.6 | T28: -353.6 | U28: -353.6 | V28: -595.2
B29: 温室効果ガス収支 | C29: t₋CO2/年 | D29: =_xlfn.XLOOKUP($D$18,既存更新の評価!$D$4:$P$4,既存更新の評価!$D14:$P14,"",0,1) -> 286.3 | E29: =E14 -> 1667.9 | F29: -229.2 | G29: -697.3 | H29: -258.1 | I29: 281.8 | J29: -171.1 | K29: 757.8 | M29: 温室効果ガス収支 | N29: t₋CO2/年 | O29: =O14 -> 286.3 | P29: 1667.9 | Q29: -229.2 | R29: -697.3 | S29: -258.1 | T29: 281.8 | U29: -171.1 | V29: 757.8
B30: 環境性評価 | D30: =D15 -> 6 | E30: 8 | F30: 3 | G30: 1 | H30: 2 | I30: =I15 -> 5 | J30: 4 | K30: 7 | M30: 環境性評価 | O30: 6 | P30: 8 | Q30: 3 | R30: 1 | S30: 2 | T30: 5 | U30: 4 | V30: 7
D31: =D26+D30 -> 9 | E31: =E26+E30 -> 10 | F31: 4 | G31: 8 | H31: 7 | I31: 9 | J31: 10 | K31: 15
B32: 平均評価 | D32: =RANK(D31,$D$31:$K$31,1) -> 4 | E32: =RANK(E31,$D$31:$K$31,1) -> 6 | F32: 1 | G32: 3 | H32: =RANK(H31,$D$31:$K$31,1) -> 2 | I32: 4 | J32: 6 | K32: 8
C34: 既存施設の規模 | D34: 100 | E34: t/日 | F34: 耐用年数 | G34: 20 | H34: 年 | I34: 2024年度（暫定） | J34: =IF(入力!D16="",_xlfn.XLOOKUP(I34,defnendo2015!$A$12:$A$85,defnendo2015!$BA$12:$BA$85,"",0,1),入力!D16) -> 124.6
I35: デフレーター(環境衛生)
B36: 廃棄物焼却処分施設の更新の考慮 | M36: 廃棄物焼却処分施設の更新の考慮
B37: 項目 | C37: 単位 | D37: 既設更新 | E37: パターン１ | F37: パターン２ | G37: パターン３ | H37: パターン４ | I37: パターン５ | J37: パターン６ | K37: パターン７ | M37: 項目 | N37: 単位 | O37: 既設更新 | P37: パターン１ | Q37: パターン２ | R37: パターン３ | S37: パターン４ | T37: パターン５ | U37: パターン６ | V37: パターン７
D38: =CONCATENATE(入力!K8,入力!K10) -> 有肥料化(堆肥) | E38: 消化＋埋立 | F38: 消化＋廃棄物側での処理 | G38: 消化＋固形燃料化 | H38: 消化＋乾燥汚泥肥料 | I38: 消化＋コンポスト | J38: 消化＋リン回収 | K38: 消化＋熱利用 | O38: =D38 -> 有肥料化(堆肥) | P38: 消化＋埋立 | Q38: 消化＋廃棄物側での処理 | R38: 消化＋固形燃料化 | S38: 消化＋乾燥汚泥肥料 | T38: 消化＋コンポスト | U38: 消化＋リン回収 | V38: 消化＋熱利用
B39: 建設費単価 | C39: 百万円/t | D39: =費用関数一覧!$J$48*結果まとめ!D34^(費用関数一覧!$K$48)*($J$34/費用関数一覧!$H$48) -> 71.92124131 | E39: =費用関数一覧!$J$48*($D$34-入力!$D$12)^(費用関数一覧!$K$48)*($J$34/費用関数一覧!$H$48) -> 72.53504095 | F39: =費用関数一覧!$J$48*($D$34-入力!$D$12+'汚泥処理フロー(日平均)'!C23)^(費用関数一覧!$K$48)*($J$34/費用関数一覧!$H$48) -> 70.917587 | G39: =費用関数一覧!$J$48*($D$34-入力!$D$12)^(費用関数一覧!$K$48)*($J$34/費用関数一覧!$H$48) -> 72.53504095 | H39: =費用関数一覧!$J$48*($D$34-入力!$D$12)^(費用関数一覧!$K$48)*($J$34/費用関数一覧!$H$48) -> 72.53504095 | I39: =費用関数一覧!$J$48*($D$34-入力!$D$12)^(費用関数一覧!$K$48)*($J$34/費用関数一覧!$H$48) -> 72.53504095 | J39: =費用関数一覧!$J$48*($D$34-入力!$D$12)^(費用関数一覧!$K$48)*($J$34/費用関数一覧!$H$48) -> 72.53504095 | K39: =費用関数一覧!$J$48*($D$34-入力!$D$12)^(費用関数一覧!$K$48)*($J$34/費用関数一覧!$H$48) -> 72.53504095 | M39: 建設費単価 | N39: 百万円/t | O39: =D39 -> 71.92124131 | P39: =E39 -> 72.53504095 | Q39: 70.917587 | R39: 72.53504095 | S39: 72.53504095 | T39: 72.53504095 | U39: 72.53504095 | V39: 72.53504095
B40: 建設費 | C40: 百万円 | D40: =D39*D34 -> 7192.124131 | E40: =E39*($D$34-入力!$D$12) -> 7035.898972 | F40: =F39*($D$34-入力!$D$12+'汚泥処理フロー(日平均)'!C23) -> 7458.118955 | G40: =G39*($D$34-入力!$D$12) -> 7035.898972 | H40: =H39*($D$34-入力!$D$12) -> 7035.898972 | I40: =I39*($D$34-入力!$D$12) -> 7035.898972 | J40: =J39*($D$34-入力!$D$12) -> 7035.898972 | K40: =K39*($D$34-入力!$D$12) -> 7035.898972 | M40: 建設費 | N40: 百万円 | O40: =D40 -> 7192.124131 | P40: =E40 -> 7035.898972 | Q40: =F40 -> 7458.118955 | R40: =G40 -> 7035.898972 | S40: =H40 -> 7035.898972 | T40: =I40 -> 7035.898972 | U40: =J40 -> 7035.898972 | V40: =K40 -> 7035.898972
B41: 建設費年価 | C41: 百万円/年 | D41: =D40/$G$34 -> 359.6062066 | E41: =E40/$G$34 -> 351.7949486 | F41: 372.9059477 | G41: 351.7949486 | H41: 351.7949486 | I41: 351.7949486 | J41: 351.7949486 | K41: 351.7949486 | M41: 建設費年価 | N41: 百万円/年 | O41: 359.6062066 | P41: 351.7949486 | Q41: 372.9059477 | R41: 351.7949486 | S41: 351.7949486 | T41: 351.7949486 | U41: 351.7949486 | V41: 351.7949486
B42: 保守点検費 | C42: 百万円/年 | D42: =$D$34*費用関数一覧!$J$49*365/1000 -> 346.75 | E42: =($D$34-入力!$D$12)*費用関数一覧!$J$49*365/1000 -> 336.3475 | F42: =($D$34-入力!$D$12+'汚泥処理フロー(日平均)'!C23)*費用関数一覧!$J$49*365/1000 -> 364.663105 | G42: =($D$34-入力!$D$12)*費用関数一覧!$J$49*365/1000 -> 336.3475 | H42: =($D$34-入力!$D$12)*費用関数一覧!$J$49*365/1000 -> 336.3475 | I42: =($D$34-入力!$D$12)*費用関数一覧!$J$49*365/1000 -> 336.3475 | J42: =($D$34-入力!$D$12)*費用関数一覧!$J$49*365/1000 -> 336.3475 | K42: =($D$34-入力!$D$12)*費用関数一覧!$J$49*365/1000 -> 336.3475 | M42: 保守点検費 | N42: 百万円/年 | O42: 346.75 | P42: 336.3475 | Q42: 364.663105 | R42: 336.3475 | S42: 336.3475 | T42: 336.3475 | U42: 336.3475 | V42: 336.3475
B43: 費用削減効果 | C43: 百万円/年 | D43: 0 | E43: =(E41+E42)-($D$41+$D$42) -> -18.21375796 | F43: =(F41+F42)-($D$41+$D$42) -> 31.21284618 | G43: =(G41+G42)-($D$41+$D$42) -> -18.21375796 | H43: -18.21375796 | I43: -18.21375796 | J43: -18.21375796 | K43: -18.21375796 | L43: マイナスは費用削減効果あり | M43: 費用削減効果 | N43: 百万円/年 | O43: 0 | P43: -18.21375796 | Q43: 31.21284618 | R43: -18.21375796 | S43: -18.21375796 | T43: -18.21375796 | U43: -18.21375796 | V43: -18.21375796
B44: 年間事業費 | C44: 百万円/年 | D44: =D25+D43 -> 313.45 | E44: =E25+E43 -> 267.143242 | F44: =F25+F43 -> 268.8698462 | G44: =G25+G43 -> 439.099242 | H44: 320.726242 | I44: 320.219242 | J44: 337.210242 | K44: 460.219242 | M44: 年間事業費 | N44: 百万円/年 | O44: =O43+O10 -> 186.4 | P44: =P43+P10 -> 177.328242 | Q44: 179.0548462 | R44: 315.899242 | S44: 202.531242 | T44: 183.874242 | U44: 239.970242 | V44: 284.329242

Sheet 結果一覧 (既設更新参照用) (hidden)
A1: シート名：結果まとめ内訳詳細ver | C1: 総額
F3: 既設更新 | G3: パターン１ | H3: パターン２ | I3: パターン３ | J3: パターン４ | K3: パターン５ | L3: パターン６ | M3: パターン７
F4: =CONCATENATE(入力!K8,入力!K10) -> 有肥料化(堆肥) | G4: 消化＋埋立 | H4: 消化＋廃棄物側での処理 | I4: 消化＋固形燃料化 | J4: 消化＋乾燥汚泥肥料 | K4: 消化＋コンポスト | L4: 消化＋リン回収 | M4: 消化＋熱利用
B5: 建設費 | C5: 前処理設備 | D5: 機電 | E5: 百万円 | G5: =建設費の算定!N7 -> 5.4 | H5: =建設費の算定!N7 -> 5.4 | I5: =建設費の算定!N7 -> 5.4 | J5: =建設費の算定!N7 -> 5.4 | K5: =建設費の算定!N7 -> 5.4 | L5: =建設費の算定!N7 -> 5.4 | M5: =建設費の算定!N7 -> 5.4
D6: 建築 | E6: 百万円 | G6: =建設費の算定!N8 -> 4 | H6: =建設費の算定!N8 -> 4 | I6: =建設費の算定!N8 -> 4 | J6: =建設費の算定!N8 -> 4 | K6: =建設費の算定!N8 -> 4 | L6: =建設費の算定!N8 -> 4 | M6: =建設費の算定!N8 -> 4
D7: 小計 | E7: 百万円 | F7: =SUM(F5:F6) -> 0 | G7: =SUM(G5:G6) -> 9.4 | H7: 9.4 | I7: 9.4 | J7: 9.4 | K7: 9.4 | L7: 9.4 | M7: 9.4
C8: 混合槽 | D8: 機械 | E8: 百万円 | G8: =建設費の算定!N10 -> 1.4 | H8: =建設費の算定!N10 -> 1.4 | I8: =建設費の算定!N10 -> 1.4 | J8: =建設費の算定!N10 -> 1.4 | K8: =建設費の算定!N10 -> 1.4 | L8: =建設費の算定!N10 -> 1.4 | M8: =建設費の算定!N10 -> 1.4
D9: 電気設備 | E9: 百万円 | G9: =建設費の算定!N11 -> 0.3 | H9: =建設費の算定!N11 -> 0.3 | I9: =建設費の算定!N11 -> 0.3 | J9: =建設費の算定!N11 -> 0.3 | K9: =建設費の算定!N11 -> 0.3 | L9: =建設費の算定!N11 -> 0.3 | M9: =建設費の算定!N11 -> 0.3
D10: 土木建築 | E10: 百万円 | G10: =建設費の算定!N12 -> 0.3 | H10: =建設費の算定!N12 -> 0.3 | I10: =建設費の算定!N12 -> 0.3 | J10: =建設費の算定!N12 -> 0.3 | K10: =建設費の算定!N12 -> 0.3 | L10: =建設費の算定!N12 -> 0.3 | M10: =建設費の算定!N12 -> 0.3
D11: 小計 | E11: 百万円 | F11: =SUM(F8:F10) -> 0 | G11: =SUM(G8:G10) -> 2 | H11: 2 | I11: 2 | J11: 2 | K11: 2 | L11: 2 | M11: 2
C12: 消化槽 | D12: 機械・電気設備 | E12: 百万円 | F12: =IF(COUNTIF(F4,"*有*"),建設費の算定!M14,"") -> 74.1 | G12: =建設費の算定!N14 -> 74.1 | H12: =建設費の算定!N14 -> 74.1 | I12: =建設費の算定!N14 -> 74.1 | J12: =建設費の算定!N14 -> 74.1 | K12: =建設費の算定!N14 -> 74.1 | L12: =建設費の算定!N14 -> 74.1 | M12: =建設費の算定!N14 -> 74.1
D13: 土木 | E13: 百万円 | F13: =IF(COUNTIF(F4,"*有*"),建設費の算定!M15,"") -> 2.7 | G13: =建設費の算定!N15 -> 2.7 | H13: =建設費の算定!N15 -> 2.7 | I13: =建設費の算定!N15 -> 2.7 | J13: =建設費の算定!N15 -> 2.7 | K13: =建設費の算定!N15 -> 2.7 | L13: =建設費の算定!N15 -> 2.7 | M13: =建設費の算定!N15 -> 2.7
D14: 小計 | E14: 百万円 | F14: =SUM(F12:F13) -> 76.8 | G14: =SUM(G12:G13) -> 76.8 | H14: 76.8 | I14: 76.8 | J14: 76.8 | K14: 76.8 | L14: 76.8 | M14: 76.8
C15: ガスホルダ | D15: 一式 | E15: 百万円 | F15: =IF(COUNTIF(F4,"*有*"),建設費の算定!M17,"") -> 13 | G15: =建設費の算定!N17 -> 14.3 | H15: =建設費の算定!N17 -> 14.3 | I15: =建設費の算定!N17 -> 14.3 | J15: =建設費の算定!N17 -> 14.3 | K15: =建設費の算定!N17 -> 14.3 | L15: =建設費の算定!N17 -> 14.3 | M15: =建設費の算定!N17 -> 14.3
D16: 小計 | E16: 百万円 | F16: =SUM(F15) -> 13 | G16: =SUM(G15) -> 14.3 | H16: 14.3 | I16: 14.3 | J16: 14.3 | K16: 14.3 | L16: 14.3 | M16: 14.3
C17: 脱水機 | D17: 機械 | E17: 百万円 | F17: =IF(COUNTIF($F$4,"*有*"),建設費の算定!M19,建設費の算定!L19) -> 30.2 | G17: =建設費の算定!N19 -> 30.9 | H17: =建設費の算定!N19 -> 30.9 | I17: =建設費の算定!N19 -> 30.9 | J17: =建設費の算定!N19 -> 30.9 | K17: =建設費の算定!N19 -> 30.9 | L17: =建設費の算定!N19 -> 30.9 | M17: =建設費の算定!N19 -> 30.9
D18: 土木 | E18: 百万円 | F18: =IF(COUNTIF($F$4,"*有*"),建設費の算定!M20,建設費の算定!L20) -> 6.9 | G18: =建設費の算定!N20 -> 7.1 | H18: =建設費の算定!N20 -> 7.1 | I18: =建設費の算定!N20 -> 7.1 | J18: =建設費の算定!N20 -> 7.1 | K18: =建設費の算定!N20 -> 7.1 | L18: =建設費の算定!N20 -> 7.1 | M18: =建設費の算定!N20 -> 7.1
D19: 電気設備 | E19: 百万円 | F19: =IF(COUNTIF($F$4,"*有*"),建設費の算定!M21,建設費の算定!L21) -> 5 | G19: =建設費の算定!N21 -> 5.2 | H19: =建設費の算定!N21 -> 5.2 | I19: =建設費の算定!N21 -> 5.2 | J19: =建設費の算定!N21 -> 5.2 | K19: =建設費の算定!N21 -> 5.2 | L19: =建設費の算定!N21 -> 5.2 | M19: =建設費の算定!N21 -> 5.2
D20: 小計 | E20: 百万円 | F20: =SUM(F17:F19) -> 42.1 | G20: =SUM(G17:G19) -> 43.2 | H20: 43.2 | I20: 43.2 | J20: 43.2 | K20: 43.2 | L20: 43.2 | M20: 43.2
C21: 脱硫塔 | D21: 一式 | E21: 百万円 | F21: =IF(COUNTIF(F4,"*有*"),建設費の算定!M28,"") -> 2 | G21: =建設費の算定!$N$29 -> 2.2 | H21: =建設費の算定!$N$29 -> 2.2 | I21: =建設費の算定!$N$29 -> 2.2 | J21: =建設費の算定!$N$29 -> 2.2 | K21: =建設費の算定!$N$29 -> 2.2 | L21: =建設費の算定!$N$29 -> 2.2 | M21: =建設費の算定!$N$29 -> 2.2
D22: 小計 | E22: 百万円 | F22: =SUM(F21) -> 2 | G22: =SUM(G21) -> 2.2 | H22: 2.2 | I22: 2.2 | J22: 2.2 | K22: 2.2 | L22: 2.2 | M22: 2.2
C23: 消化ガス発電機 | D23: 機電 | E23: 百万円 | G23: =建設費の算定!$N$30 -> 14 | H23: =建設費の算定!$N$30 -> 14 | I23: =建設費の算定!$N$30 -> 14 | J23: =建設費の算定!$N$30 -> 14 | K23: =建設費の算定!$N$30 -> 14 | L23: =建設費の算定!$N$30 -> 14 | M23: =建設費の算定!$N$30 -> 14
D24: 土建 | E24: 百万円 | G24: =建設費の算定!$N$31 -> 1.4 | H24: =建設費の算定!$N$31 -> 1.4 | I24: =建設費の算定!$N$31 -> 1.4 | J24: =建設費の算定!$N$31 -> 1.4 | K24: =建設費の算定!$N$31 -> 1.4 | L24: =建設費の算定!$N$31 -> 1.4 | M24: =建設費の算定!$N$31 -> 1.4
D25: 小計 | E25: 百万円 | F25: =SUM(F23:F24) -> 0 | G25: =SUM(G23:G24) -> 15.4 | H25: 15.4 | I25: 15.4 | J25: 15.4 | K25: 15.4 | L25: 15.4 | M25: 15.4
C26: 焼却炉 | D26: 機械 | E26: 百万円 | F26: =IF(COUNTIF($F$4,"*有*"),IF(COUNTIF($F$4,"*焼却*"),建設費の算定!M23,""),IF(COUNTIF($F$4,"*無*"),IF(COUNTIF($F$4,"*焼却*"),建設費の算定!L23,""))) ->  | M26: =建設費の算定!N23 -> 114.1
D27: 電気設備 | E27: 百万円 | F27: =IF(COUNTIF($F$4,"*有*"),IF(COUNTIF($F$4,"*焼却*"),建設費の算定!M24,""),IF(COUNTIF($F$4,"*無*"),IF(COUNTIF($F$4,"*焼却*"),建設費の算定!L24,""))) ->  | M27: =建設費の算定!N24 -> 25.4
D28: 土建(焼却炉) | E28: 百万円 | F28: =IF(COUNTIF($F$4,"*有*"),IF(COUNTIF($F$4,"*焼却*"),建設費の算定!M25,""),IF(COUNTIF($F$4,"*無*"),IF(COUNTIF($F$4,"*焼却*"),建設費の算定!L25,""))) ->  | M28: =建設費の算定!N25 -> 9.8
D29: 土建(電気室) | E29: 百万円 | F29: =IF(COUNTIF($F$4,"*有*"),IF(COUNTIF($F$4,"*焼却*"),建設費の算定!M26,""),IF(COUNTIF($F$4,"*無*"),IF(COUNTIF($F$4,"*焼却*"),建設費の算定!L26,""))) ->  | M29: =建設費の算定!N26 -> 7.2
D30: 小計 | E30: 百万円 | F30: =SUM(F26:F29) -> 0 | G30: =SUM(G26:G29) -> 0 | H30: 0 | I30: 0 | J30: 0 | K30: 0 | L30: 0 | M30: =SUM(M26:M29) -> 156.5
C31: 乾燥機 | D31: 機械電気 | E31: 百万円 | F31: =IF(COUNTIF($F$4,"*有*"),IF(COUNTIF($F$4,"*乾燥*"),建設費の算定!M33,""),IF(COUNTIF($F$4,"*無*"),IF(COUNTIF($F$4,"*乾燥*"),建設費の算定!L33,""))) ->  | J31: =建設費の算定!N33 -> 47
D32: 土建 | E32: 百万円 | F32: =IF(COUNTIF($F$4,"*有*"),IF(COUNTIF($F$4,"*乾燥*"),建設費の算定!M34,""),IF(COUNTIF($F$4,"*無*"),IF(COUNTIF($F$4,"*乾燥*"),建設費の算定!L34,""))) ->  | J32: =建設費の算定!N34 -> 4.6
D33: 小計 | E33: 百万円 | F33: =SUM(F31:F32) -> 0 | G33: 0 | H33: 0 | I33: 0 | J33: 51.6 | K33: 0 | L33: 0 | M33: 0
C34: 炭化炉 | D34: 機電 | E34: 百万円 | F34: =IF(COUNTIF($F$4,"*有*"),IF(COUNTIF($F$4,"*固形*"),建設費の算定!M36,""),IF(COUNTIF($F$4,"*無*"),IF(COUNTIF($F$4,"*固形*"),建設費の算定!L36,""))) ->  | I34: =建設費の算定!N36 -> 56.1
D35: 土建 | E35: 百万円 | F35: =IF(COUNTIF($F$4,"*有*"),IF(COUNTIF($F$4,"*固形*"),建設費の算定!M37,""),IF(COUNTIF($F$4,"*無*"),IF(COUNTIF($F$4,"*固形*"),建設費の算定!L37,""))) ->  | I35: =建設費の算定!N37 -> 4.6
D36: 小計 | E36: 百万円 | F36: =SUM(F34:F35) -> 0 | G36: =SUM(G34:G35) -> 0 | H36: 0 | I36: 60.7 | J36: 0 | K36: 0 | L36: 0 | M36: 0
C37: 堆肥化施設 | D37: 一式 | E37: 百万円 | F37: =IF(COUNTIF($F$4,"*有*"),IF(COUNTIF($F$4,"*堆肥*"),建設費の算定!M39,""),IF(COUNTIF($F$4,"*無*"),IF(COUNTIF($F$4,"*堆肥*"),建設費の算定!L39,""))) -> 84.6 | K37: =建設費の算定!N40 -> 84.6
D38: 小計 | E38: 百万円 | F38: =SUM(F37) -> 84.6 | G38: =SUM(G37) -> 0 | H38: 0 | I38: 0 | J38: 0 | K38: 84.6 | L38: 0 | M38: 0
C39: リン回収設備 | D39: 一式 | F39: =IF(COUNTIF($F$4,"*有*"),IF(COUNTIF($F$4,"*リン*"),建設費の算定!M41,""),IF(COUNTIF($F$4,"*無*"),IF(COUNTIF($F$4,"*リン*"),建設費の算定!L41,""))) ->  | L39: =建設費の算定!N41 -> 13.5
D40: 小計 | E40: 百万円 | F40: =SUM(F39) -> 0 | G40: =SUM(G39) -> 0 | H40: 0 | I40: 0 | J40: 0 | K40: 0 | L40: 13.5 | M40: 0
C41: 建設費 | E41: 百万円 | F41: =F7+F11+F14+F16+F20+F30+F22+F25+F33+F36+F38+F40 -> 218.5 | G41: 163.3 | H41: 163.3 | I41: 224 | J41: 214.9 | K41: 247.9 | L41: 176.8 | M41: 319.8
B42: 維持管理費 | C42: 前処理設備(生ごみ受入れマニュアル) | D42: 電気使用料金 | E42: 百万円 | G42: =維持管理費の算定!G5 -> 0.9 | H42: =維持管理費の算定!G5 -> 0.9 | I42: =維持管理費の算定!G5 -> 0.9 | J42: =維持管理費の算定!G5 -> 0.9 | K42: =維持管理費の算定!G5 -> 0.9 | L42: =維持管理費の算定!G5 -> 0.9 | M42: =維持管理費の算定!G5 -> 0.9
D43: 補修費 | E43: 百万円 | G43: =維持管理費の算定!G6 -> 3.2 | H43: =維持管理費の算定!G6 -> 3.2 | I43: =維持管理費の算定!G6 -> 3.2 | J43: =維持管理費の算定!G6 -> 3.2 | K43: =維持管理費の算定!G6 -> 3.2 | L43: =維持管理費の算定!G6 -> 3.2 | M43: =維持管理費の算定!G6 -> 3.2
D44: 小計 | E44: 百万円 | F44: =SUM(F42:F43) -> 0 | G44: =SUM(G42:G43) -> 4.1 | H44: 4.1 | I44: 4.1 | J44: 4.1 | K44: 4.1 | L44: 4.1 | M44: 4.1
C45: 混合槽 | D45: 電力費 | E45: 百万円 | G45: =維持管理費の算定!G8 -> 0.6 | H45: =維持管理費の算定!G8 -> 0.6 | I45: =維持管理費の算定!G8 -> 0.6 | J45: =維持管理費の算定!G8 -> 0.6 | K45: =維持管理費の算定!G8 -> 0.6 | L45: =維持管理費の算定!G8 -> 0.6 | M45: =維持管理費の算定!G8 -> 0.6
D46: 補修費 | E46: 百万円 | G46: =維持管理費の算定!G9 -> 0.6 | H46: =維持管理費の算定!G9 -> 0.6 | I46: =維持管理費の算定!G9 -> 0.6 | J46: =維持管理費の算定!G9 -> 0.6 | K46: =維持管理費の算定!G9 -> 0.6 | L46: =維持管理費の算定!G9 -> 0.6 | M46: =維持管理費の算定!G9 -> 0.6
D47: 小計 | E47: 百万円 | F47: =SUM(F45:F46) -> 0 | G47: =SUM(G45:G46) -> 1.2 | H47: 1.2 | I47: 1.2 | J47: 1.2 | K47: 1.2 | L47: 1.2 | M47: 1.2
C48: 消化槽 | D48: 維持管理費 | E48: 百万円 | F48: =IF(COUNTIF(F4,"*有*"),維持管理費の算定!F11,"") -> 21.3 | G48: =維持管理費の算定!G11 -> 22.4 | H48: =維持管理費の算定!G11 -> 22.4 | I48: =維持管理費の算定!G11 -> 22.4 | J48: =維持管理費の算定!G11 -> 22.4 | K48: =維持管理費の算定!G11 -> 22.4 | L48: =維持管理費の算定!G11 -> 22.4 | M48: =維持管理費の算定!G11 -> 22.4
D49: 小計 | E49: 百万円 | F49: =SUM(F48) -> 21.3 | G49: =SUM(G48) -> 22.4 | H49: 22.4 | I49: 22.4 | J49: 22.4 | K49: 22.4 | L49: 22.4 | M49: 22.4
C50: ガスタンク | E50: 百万円 | F50: =IF(COUNTIF(F4,"*有*"),維持管理費の算定!F13,"") -> 2.9 | G50: =維持管理費の算定!G13 -> 3.1 | H50: =維持管理費の算定!G13 -> 3.1 | I50: =維持管理費の算定!G13 -> 3.1 | J50: =維持管理費の算定!G13 -> 3.1 | K50: =維持管理費の算定!G13 -> 3.1 | L50: =維持管理費の算定!G13 -> 3.1 | M50: =維持管理費の算定!G13 -> 3.1
D51: 一式 | E51: 百万円 | F51: =SUM(F50) -> 2.9 | G51: =SUM(G50) -> 3.1 | H51: 3.1 | I51: 3.1 | J51: 3.1 | K51: 3.1 | L51: 3.1 | M51: 3.1
C52: 脱水機 | F52: =IF(COUNTIF(F4,"*有*"),維持管理費の算定!F15,維持管理費の算定!E15) -> 37.6 | G52: =維持管理費の算定!G15 -> 39.5 | H52: =維持管理費の算定!G15 -> 39.5 | I52: =維持管理費の算定!G15 -> 39.5 | J52: =維持管理費の算定!G15 -> 39.5 | K52: =維持管理費の算定!G15 -> 39.5 | L52: =維持管理費の算定!G15 -> 39.5 | M52: =維持管理費の算定!G15 -> 39.5
D53: 一式 | E53: 百万円 | F53: =SUM(F52) -> 37.6 | G53: =SUM(G52) -> 39.5 | H53: 39.5 | I53: 39.5 | J53: 39.5 | K53: 39.5 | L53: 39.5 | M53: 39.5
C54: 脱硫塔 | D54: 補修費 | F54: =IF(COUNTIF(F4,"*有*"),維持管理費の算定!F22,"") -> 2.7 | G54: =維持管理費の算定!G21 -> 3 | H54: =維持管理費の算定!G21 -> 3 | I54: =維持管理費の算定!G21 -> 3 | J54: =維持管理費の算定!G21 -> 3 | K54: =維持管理費の算定!G21 -> 3 | L54: =維持管理費の算定!G21 -> 3 | M54: =維持管理費の算定!G21 -> 3
E55: 百万円 | F55: =SUM(F54) -> 2.7 | G55: =SUM(G54) -> 3 | H55: 3 | I55: 3 | J55: 3 | K55: 3 | L55: 3 | M55: 3
C56: 消化ガス発電機 | D56: 維持管理費 | E56: 百万円 | G56: =維持管理費の算定!G19 -> 11.5 | H56: =維持管理費の算定!G19 -> 11.5 | I56: =維持管理費の算定!G19 -> 11.5 | J56: =維持管理費の算定!G19 -> 11.5 | K56: =維持管理費の算定!G19 -> 11.5 | L56: =維持管理費の算定!G19 -> 11.5 | M56: =維持管理費の算定!G19 -> 11.5
E57: 百万円 | F57: =SUM(F56:F56) -> 0 | G57: 11.5 | H57: 11.5 | I57: 11.5 | J57: 11.5 | K57: 11.5 | L57: 11.5 | M57: 11.5
C58: 焼却炉 | D58: 一式 | F58: =IF(COUNTIF($F$4,"*有*"),IF(COUNTIF($F$4,"*焼却*"),維持管理費の算定!F17,""),IF(COUNTIF($F$4,"*無*"),IF(COUNTIF($F$4,"*焼却*"),維持管理費の算定!E17,""))) ->  | M58: =維持管理費の算定!G17 -> 90.3
D59: 一式 | E59: 百万円 | F59: =SUM(F58) -> 0 | G59: =SUM(G58) -> 0 | H59: 0 | I59: 0 | J59: 0 | K59: 0 | L59: 0 | M59: 90.3
C60: 乾燥設備 | D60: 一式 | F60: =IF(COUNTIF($F$4,"*有*"),IF(COUNTIF($F$4,"*乾燥*"),維持管理費の算定!F23,""),IF(COUNTIF($F$4,"*無*"),IF(COUNTIF($F$4,"*乾燥*"),維持管理費の算定!E23,""))) ->  | J60: =維持管理費の算定!G23 -> 56.3
E61: 百万円 | F61: =SUM(F60) -> 0 | G61: =SUM(G60) -> 0 | H61: 0 | I61: 0 | J61: 56.3 | K61: 0 | L61: 0 | M61: 0
C62: 炭化炉 | D62: 一式 | F62: =IF(COUNTIF($F$4,"*有*"),IF(COUNTIF($F$4,"*固形*"),維持管理費の算定!F25,""),IF(COUNTIF($F$4,"*無*"),IF(COUNTIF($F$4,"*固形*"),維持管理費の算定!E25,""))) ->  | I62: =維持管理費の算定!G25 -> 157.9
E63: 百万円 | F63: =SUM(F62) -> 0 | G63: =SUM(G62) -> 0 | H63: 0 | I63: 157.9 | J63: 0 | K63: 0 | L63: 0 | M63: 0
C64: 堆肥化施設 | D64: 一式 | F64: =IF(COUNTIF($F$4,"*有*"),IF(COUNTIF($F$4,"*堆肥*"),維持管理費の算定!F27,""),IF(COUNTIF($F$4,"*無*"),IF(COUNTIF($F$4,"*堆肥*"),維持管理費の算定!E27,""))) -> 26 | K64: =維持管理費の算定!G27 -> 26
E65: 百万円 | F65: =SUM(F64) -> 26 | G65: =SUM(G64) -> 0 | H65: 0 | I65: 0 | J65: 0 | K65: 26 | L65: 0 | M65: 0
C66: リン回収設備 | D66: 一式 | F66: =IF(COUNTIF($F$4,"*有*"),IF(COUNTIF($F$4,"*リン*"),維持管理費の算定!F29,""),IF(COUNTIF($F$4,"*無*"),IF(COUNTIF($F$4,"*リン*"),維持管理費の算定!E29,""))) ->  | L66: =維持管理費の算定!G29 -> 103.6
E67: 百万円 | F67: =SUM(F66) -> 0 | G67: =SUM(G66) -> 0 | H67: 0 | I67: 0 | J67: 0 | K67: 0 | L67: 103.6 | M67: 0
C68: 維持管理費 | F68: =F44+F47+F49+F51+F53+F59+F57+F55+F61+F63+F65+F67 -> 90.5 | G68: =G44+G47+G49+G51+G53+G59+G57+G55+G61+G63+G65+G67 -> 84.8 | H68: 84.8 | I68: 242.7 | J68: 141.1 | K68: 110.8 | L68: 188.4 | M68: 175.1
B69: 出費・収入減 | C69: 運搬費 | E69: 百万円/年 | G69: =収益の算定!I18 -> 0 | H69: =収益の算定!I18 -> 0 | I69: =収益の算定!I18 -> 0 | J69: =収益の算定!I18 -> 0 | K69: =収益の算定!I18 -> 0 | L69: =収益の算定!I18 -> 0 | M69: =収益の算定!I18 -> 0
C70: 埋め立て処分費 | D70: 脱水汚泥処分費 | E70: 百万円/年 | F70: =IF(COUNTIF($F$4,"*有*"),IF(COUNTIF($F$4,"*埋立*"),収益の算定!H19,""),IF(COUNTIF($F$4,"*無*"),IF(COUNTIF($F$4,"*埋立*"),収益の算定!G19,""))) ->  | G70: =収益の算定!I19 -> 46.6
C71: 焼却灰処分費 | D71: 焼却灰処分費 | E71: 百万円/年 | F71: =IF(COUNTIF($F$4,"*有*"),IF(COUNTIF($F$4,"*焼却熱*"),収益の算定!H20,""),IF(COUNTIF($F$4,"*無*"),IF(COUNTIF($F$4,"*焼却熱*"),収益の算定!G20,""))) ->  | M71: =収益の算定!I20 -> 0.9
C72: 廃棄物処理施設発の発電 | D72: 生ごみ減少の影響 | E72: 百万円/年 | F72: 0 | G72: =収益の算定!I21 -> 1.3 | I72: =収益の算定!I21 -> 1.3 | J72: =収益の算定!I21 -> 1.3 | K72: =収益の算定!I21 -> 1.3 | L72: =収益の算定!I21 -> 1.3 | M72: =収益の算定!I21 -> 1.3
C73: 廃棄物処分施設維持管理費(投入生ごみ分) | D73: 電気 | E73: 百万円/年 | F73: =収益の算定!G22 -> ー | H73: =収益の算定!I22 -> 0.03
D74: 重油 | E74: 百万円/年 | F74: =収益の算定!G23 -> ー | H74: =収益の算定!I23 -> 0.2
C75: 出費・収入減 | F75: =SUM(F69:F74) -> 0 | G75: =SUM(G69:G74) -> 47.9 | H75: 0.23 | I75: 1.3 | J75: 1.3 | K75: 1.3 | L75: 1.3 | M75: 2.2
B76: 収益 | C76: 消化ガス発電(売電) | D76: 売電収益 | E76: 百万円/年
C77: 消化ガス発電(場内利用) | D77: 維持管理費削減効果 | E77: 百万円/年 | G77: =-収益の算定!I5 -> -10.643 | H77: =-収益の算定!I5 -> -10.643 | I77: =-収益の算定!I5 -> -10.643 | J77: =-収益の算定!I5 -> -10.643 | K77: =-収益の算定!I5 -> -10.643 | L77: =-収益の算定!I5 -> -10.643 | M77: =-収益の算定!I5 -> -10.643
C78: 固形燃料 | D78: 売却収益 | E78: 百万円/年 | F78: =IF(COUNTIF($F$4,"*有*"),IF(COUNTIF($F$4,"*固形*"),-収益の算定!H6,""),IF(COUNTIF($F$4,"*無*"),IF(COUNTIF($F$4,"*固形*"),-収益の算定!G6,""))) ->  | I78: =-収益の算定!I6 -> -0.044
C79: 重油の代替利用(炭化燃料) | D79: 維持管理費削減効果 | E79: 百万円/年
C80: 重油の代替利用(乾燥燃料) | D80: 維持管理費削減効果 | E80: 百万円/年
C81: 重油の代替利用(焼却廃熱利用) | D81: 維持管理費削減効果 | E81: 百万円/年 | M81: =-収益の算定!I9 -> -8.024
C82: 肥料(堆肥) | D82: 売却収益 | E82: 百万円/年 | F82: =IF(COUNTIF($F$4,"*有*"),IF(COUNTIF($F$4,"*堆肥*"),-収益の算定!H10,""),IF(COUNTIF($F$4,"*無*"),IF(COUNTIF($F$4,"*堆肥*"),-収益の算定!G10,""))) -> -10.336 | K82: =-収益の算定!I10 -> -10.924
C83: 肥料(乾燥肥料) | D83: 売却収益 | E83: 百万円/年 | F83: =IF(COUNTIF($F$4,"*有*"),IF(COUNTIF($F$4,"*乾燥*"),-収益の算定!H11,""),IF(COUNTIF($F$4,"*無*"),IF(COUNTIF($F$4,"*乾燥*"),-収益の算定!G11,""))) ->  | J83: =-収益の算定!I11 -> -7.717
C84: リン | D84: 売却収益 | E84: 百万円/年 | F84: =IF(COUNTIF($F$4,"*有*"),IF(COUNTIF($F$4,"*リン*"),-収益の算定!H12,""),IF(COUNTIF($F$4,"*無*"),IF(COUNTIF($F$4,"*リン*"),-収益の算定!G12,""))) ->  | L84: =-収益の算定!I12 -> -0.433
C85: 廃棄物処理施設の発電 | D85: 脱水汚泥増加による売却収益 | E85: 百万円/年 | H85: =-収益の算定!I13 -> -0.03
C86: 生ごみ運搬費 | D86: 民間企業からの処分費収入 | E86: 百万円/年 | G86: =収益の算定!I14 -> 0 | H86: =収益の算定!I14 -> 0 | I86: =収益の算定!I14 -> 0 | J86: =収益の算定!I14 -> 0 | K86: =収益の算定!I14 -> 0 | L86: =収益の算定!I14 -> 0 | M86: =収益の算定!I14 -> 0
C87: 収益 | F87: =SUM(F76:F86) -> -10.336 | G87: =SUM(G76:G86) -> -10.643 | H87: -10.673 | I87: -10.687 | J87: -18.36 | K87: -21.567 | L87: -11.076 | M87: -18.667
B88: 事業費(経済収支) | F88: =SUM(F41+F68+F75+F87) -> 298.664 | G88: =SUM(G41+G68+G75+G87) -> 285.357 | H88: 237.657 | I88: 457.313 | J88: 338.94 | K88: =SUM(K41+K68+K75+K87) -> 338.433 | L88: =SUM(L41+L68+L75+L87) -> 355.424 | M88: 478.433
B89: 経済性評価 | F89: =RANK(F88,$F$88:$M$88,1) -> 3 | G89: =RANK(G88,$F$88:$M$88,1) -> 2 | H89: 1 | I89: 7 | J89: 5 | K89: 4 | L89: 6 | M89: 8
B90: 運転等に伴う温室効果ガス排出量 | C90: 汚泥処理量増加 | E90: t-CO2/年 | F90: 0 | G90: ='汚泥処理フロー(日平均)'!$L$10*365*入力!D14/7 -> 0.0002237554286 | H90: ='汚泥処理フロー(日平均)'!$L$10*365*入力!D14/7 -> 0.0002237554286 | I90: ='汚泥処理フロー(日平均)'!$L$10*365*入力!D14/7 -> 0.0002237554286 | J90: ='汚泥処理フロー(日平均)'!$L$10*365*入力!D14/7 -> 0.0002237554286 | K90: ='汚泥処理フロー(日平均)'!$L$10*365*入力!D14/7 -> 0.0002237554286 | L90: ='汚泥処理フロー(日平均)'!$L$10*365*入力!D14/7 -> 0.0002237554286 | M90: ='汚泥処理フロー(日平均)'!$L$10*365*入力!D14/7 -> 0.0002237554286
C91: 資源化設備の運転(前処理設備) | E91: t-CO2/年 | F91: 0 | G91: =ROUND(('汚泥処理フロー(日平均)'!L9)*365*入力!D14/7,1) -> 45.8 | H91: =ROUND(('汚泥処理フロー(日平均)'!L9)*365*入力!D14/7,1) -> 45.8 | I91: =ROUND(('汚泥処理フロー(日平均)'!L9)*365*入力!D14/7,1) -> 45.8 | J91: =ROUND(('汚泥処理フロー(日平均)'!L9)*365*入力!D14/7,1) -> 45.8 | K91: =ROUND(('汚泥処理フロー(日平均)'!L9)*365*入力!D14/7,1) -> 45.8 | L91: =ROUND(('汚泥処理フロー(日平均)'!L9)*365*入力!D14/7,1) -> 45.8 | M91: =ROUND(('汚泥処理フロー(日平均)'!L9)*365*入力!D14/7,1) -> 45.8
C92: 資源化設備の運転(炭化) | E92: t-CO2/年 | F92: =IF(COUNTIF($F$4,"*有*"),IF(COUNTIF($F$4,"*固形*"),資源利用量の算定!Q34*365,""),IF(COUNTIF($F$4,"*無*"),IF(COUNTIF($F$4,"*固形*"),資源利用量の算定!Q17*365,""))) ->  | I92: =ROUND(資源利用量の算定!Q70*365*入力!D14/7+資源利用量の算定!Q34*365,1) -> 27.8
C93: 資源化設備の運転(乾燥) | E93: t-CO2/年 | F93: =IF(COUNTIF($F$4,"*有*"),IF(COUNTIF($F$4,"*乾燥*"),資源利用量の算定!K30*365,""),IF(COUNTIF($F$4,"*無*"),IF(COUNTIF($F$4,"*乾燥*"),資源利用量の算定!K13*365,""))) ->  | J93: =ROUND(資源利用量の算定!K66*365*入力!D14/7+資源利用量の算定!K30*365,1) -> 12.1
C94: 資源化設備の運転(堆肥) | E94: t-CO2/年 | F94: =IF(COUNTIF($F$4,"*有*"),IF(COUNTIF($F$4,"*堆肥*"),資源利用量の算定!W33*365,""),IF(COUNTIF($F$4,"*無*"),IF(COUNTIF($F$4,"*堆肥*"),資源利用量の算定!W16*365,""))) -> 520.763823 | K94: =ROUND(資源利用量の算定!W66*365*入力!D14/7+資源利用量の算定!W33*365,1) -> 552
C95: 資源化設備の運転(焼却) | E95: t-CO2/年 | F95: =IF(COUNTIF($F$4,"*有*"),IF(COUNTIF($F$4,"*焼却*"),資源利用量の算定!AC30*365,""),IF(COUNTIF($F$4,"*無*"),IF(COUNTIF($F$4,"*焼却*"),資源利用量の算定!AC13*365,""))) ->  | M95: =ROUND(資源利用量の算定!AC64*365*入力!D14/7+資源利用量の算定!AC30*365,1) -> 1269.7
C96: 資源化設備の運転(リン回収) | E96: t-CO2/年 | F96: =IF(COUNTIF($F$4,"*有*"),IF(COUNTIF($F$4,"*リン利用*"),資源利用量の算定!AU32,""),IF(COUNTIF($F$4,"*無*"),IF(COUNTIF($F$4,"*リン利用*"),資源利用量の算定!AU15,""))) ->  | L96: =ROUND(資源利用量の算定!AU63*入力!D14/7+資源利用量の算定!AU32,1) -> 99.1
C97: 埋立 | E97: t-CO2/年 | F97: =IF(COUNTIF($F$4,"*有*"),IF(COUNTIF($F$4,"*埋立*"),資源利用量の算定!AO25*365,""),IF(COUNTIF($F$4,"*無*"),IF(COUNTIF($F$4,"*埋立*"),資源利用量の算定!AO8*365,""))) ->  | G97: =ROUND((資源利用量の算定!AO58)*365*入力!D14/7+資源利用量の算定!AO25*365,1) -> 1938.2
C98: 廃棄物発電量増減 | E98: t-CO2/年 | F98: 0 | G98: =ROUND(資源利用量の算定!K48*365*入力!D14/7,1) -> 37.5 | H98: =ROUND('汚泥処理フロー(日平均)'!L26*365*入力!$D$14/7*(-1),1) -> -90.1 | I98: =ROUND(資源利用量の算定!K48*365*入力!D14/7,1) -> 37.5 | J98: =ROUND(資源利用量の算定!K48*365*入力!D14/7,1) -> 37.5 | K98: =ROUND(資源利用量の算定!K48*365*入力!D14/7,1) -> 37.5 | L98: =ROUND(資源利用量の算定!K48*365*入力!D14/7,1) -> 37.5 | M98: =ROUND(資源利用量の算定!K48*365*入力!D14/7,1) -> 37.5
C99: 廃棄物焼却施設におけるエネルギー使用増減 | E99: t-CO2/年 | F99: 0 | G99: =ROUND(資源利用量の算定!$K$49*365*入力!$D$14/7,1)*(-1) -> -53.5 | H99: =ROUND(('汚泥処理フロー(日平均)'!L23+'汚泥処理フロー(日平均)'!L24)*365*入力!D14/7,1) -> 115.2 | I99: =ROUND(資源利用量の算定!$K$49*365*入力!$D$14/7,1)*(-1) -> -53.5 | J99: =ROUND(資源利用量の算定!$K$49*365*入力!$D$14/7,1)*(-1) -> -53.5 | K99: =ROUND(資源利用量の算定!$K$49*365*入力!$D$14/7,1)*(-1) -> -53.5 | L99: =ROUND(資源利用量の算定!$K$49*365*入力!$D$14/7,1)*(-1) -> -53.5 | M99: =ROUND(資源利用量の算定!$K$49*365*入力!$D$14/7,1)*(-1) -> -53.5
C100: 温室効果ガス排出量 | E100: t-CO2/年 | F100: =SUM(F90:F99) -> 520.763823 | G100: =SUM(G90:G99) -> 1968.000224 | H100: =SUM(H90:H99) -> 70.90022376 | I100: =SUM(I90:I99) -> 57.60022376 | J100: 41.90022376 | K100: 581.8002238 | L100: =SUM(L90:L99) -> 128.9002238 | M100: =SUM(M90:M99) -> 1299.500224
B101: 化石燃料代替による温室効果ガス排出量削減効果 | C101: 消化ガス発電 | E101: t-CO2/年 | G101: =ROUND('汚泥処理フロー(日平均)'!$L$13*365*入力!$D$14/7+'汚泥処理フロー(日平均)'!$P$13*365,1)*(-1) -> -300.1 | H101: =ROUND('汚泥処理フロー(日平均)'!$L$13*365*入力!$D$14/7+'汚泥処理フロー(日平均)'!$P$13*365,1)*(-1) -> -300.1 | I101: =ROUND('汚泥処理フロー(日平均)'!$L$13*365*入力!$D$14/7+'汚泥処理フロー(日平均)'!$P$13*365,1)*(-1) -> -300.1 | J101: =ROUND('汚泥処理フロー(日平均)'!$L$13*365*入力!$D$14/7+'汚泥処理フロー(日平均)'!$P$13*365,1)*(-1) -> -300.1 | K101: =ROUND('汚泥処理フロー(日平均)'!$L$13*365*入力!$D$14/7+'汚泥処理フロー(日平均)'!$P$13*365,1)*(-1) -> -300.1 | L101: =ROUND('汚泥処理フロー(日平均)'!$L$13*365*入力!$D$14/7+'汚泥処理フロー(日平均)'!$P$13*365,1)*(-1) -> -300.1 | M101: =ROUND('汚泥処理フロー(日平均)'!$L$13*365*入力!$D$14/7+'汚泥処理フロー(日平均)'!$P$13*365,1)*(-1) -> -300.1
C102: 固形燃料利用 | E102: t-CO2/年 | F102: =IF(COUNTIF($F$4,"*有*"),IF(COUNTIF($F$4,"*固形*"),資源利用量の算定!Q33*365*(-1),""),IF(COUNTIF($F$4,"*無*"),IF(COUNTIF($F$4,"*固形*"),資源利用量の算定!Q16*365*(-1),""))) ->  | G102: 0 | H102: 0 | I102: =ROUND(資源利用量の算定!Q69*365*入力!$D$14/7+資源利用量の算定!Q33*365,1)*(-1) -> -454.7 | J102: 0 | K102: 0 | L102: 0 | M102: 0
C103: 焼却熱利用 | E103: t-CO2/年 | F103: =IF(COUNTIF($F$4,"*有*"),IF(COUNTIF($F$4,"*焼却*"),資源利用量の算定!AI30*365*(-1),""),IF(COUNTIF($F$4,"*無*"),IF(COUNTIF($F$4,"*焼却*"),資源利用量の算定!AI13*365*(-1),""))) ->  | M103: =ROUND(資源利用量の算定!AI64*入力!D14/7*365+資源利用量の算定!AI30*365,1)*(-1) -> -241.6
C104: 脱炭素効果 | E104: t-CO2/年 | F104: =SUM(F101:F103) -> 0 | G104: =SUM(G101:G103) -> -300.1 | H104: -300.1 | I104: -754.8 | J104: -300.1 | K104: -300.1 | L104: -300.1 | M104: -541.7
B105: 温室効果ガス排出量収支 | E105: t-CO2/年 | F105: =F100+F104 -> 520.763823 | G105: =G100+G104 -> 1667.900224 | H105: -229.1997762 | I105: -697.1997762 | J105: -258.1997762 | K105: 281.7002238 | L105: -171.1997762 | M105: 757.8002238
B106: 環境性評価 | F106: =RANK(F105,$F$105:$M$105,1) -> 6 | G106: =RANK(G105,$F$105:$M$105,1) -> 8 | H106: 3 | I106: 1 | J106: 2 | K106: 5 | L106: 4 | M106: 7

Sheet defnendo2015 (hidden)
A1: シート名：defnendo2015 | B1: 建設工事費デフレーター（2015年度基準）
B2: ［年度別］ | D2: 2025年03月31日付け
B3: 1 | C3: 2 | D3: 3 | E3: 4 | F3: 5 | G3: 6 | H3: 7 | I3: 8 | J3: 9 | K3: 10 | L3: 11 | M3: 12 | N3: 13 | O3: 14 | P3: 15 | Q3: 16 | R3: 17 | S3: 18 | T3: 19 | U3: 20 | V3: 21 | W3: 22 | X3: 23 | Y3: 24 | Z3: 25 | AA3: 26 | AB3: 27 | AC3: 28 | AD3: 29 | AE3: 30 | AF3: 31 | AG3: 32 | AH3: 33 | AI3: 34 | AJ3: 35 | AK3: 36 | AL3: 37 | AM3: 38 | AN3: 39 | AO3: 40 | AP3: 41 | AQ3: 42 | AR3: 43 | AS3: 44 | AT3: 45 | AU3: 46 | AV3: 47
A4: 年度 | B4: 建設総合 | C4: 建設総合 | D4: 建設総合 | E4: 建設総合 | F4: 建設総合 | G4: 建設総合 | H4: 建設総合 | I4: 建設総合 | J4: 建設総合 | K4: 建設総合 | L4: 建設総合 | M4: 建設総合 | N4: 建設総合 | O4: 建設総合 | P4: 建設総合 | Q4: 建設総合 | R4: 建設総合 | S4: 建設総合 | T4: 建設総合 | U4: 建設総合 | V4: 建設総合 | W4: 建設総合 | X4: 建設総合 | Y4: 建設総合 | Z4: 建設総合 | AA4: 建設総合 | AB4: 建設総合 | AC4: 建設総合 | AD4: 建設総合 | AE4: 建設総合 | AF4: 建設総合 | AG4: 建設総合 | AH4: 建設総合 | AI4: 建設総合 | AJ4: 建設総合 | AK4: 建設総合 | AL4: 建設総合 | AM4: 建設総合 | AN4: 建設総合 | AO4: 建設総合 | AP4: 建設総合 | AQ4: 建設総合 | AR4: 建設総合 | AS4: 建設総合 | AT4: 建設総合 | AU4: 建設総合 | AV4: 建設総合 | AW4: 建設総合 | AX4: 建設総合 | AY4: 建設総合 | AZ4: 建設総合 | BA4: 建設総合 | BB4: 建設総合 | BC4: 建設総合 | BD4: 建設総合 | BE4: 建設総合 | BF4: 建設総合 | BG4: 建設総合 | BH4: 建設総合 | BI4: 建設総合 | BJ4: W在来住宅 | BK4: W量産住宅 | BL4: RC在来住宅 | BM4: RC量産住宅 | BN4: S在来住宅 | BO4: S量産住宅 | BP4: W工場・倉庫 | BQ4: W事務所・その他 | BR4: SRC工場・倉庫 | BS4: SRC事務所・その他 | BT4: RC工場・倉庫 | BU4: RC学校 | BV4: RC事務所・その他 | BW4: S工場・倉庫 | BX4: S事務所・その他
A5: 年度 | B5: 建設総合 | C5: 建築総合 | D5: 建築総合 | E5: 建築総合 | F5: 建築総合 | G5: 建築総合 | H5: 建築総合 | I5: 建築総合 | J5: 建築総合 | K5: 建築総合 | L5: 建築総合 | M5: 建築総合 | N5: 建築総合 | O5: 建築総合 | P5: 建築総合 | Q5: 建築総合 | R5: 建築補修 | S5: 土木総合 | T5: 土木総合 | U5: 土木総合 | V5: 土木総合 | W5: 土木総合 | X5: 土木総合 | Y5: 土木総合 | Z5: 土木総合 | AA5: 土木総合 | AB5: 土木総合 | AC5: 土木総合 | AD5: 土木総合 | AE5: 土木総合 | AF5: 土木総合 | AG5: 土木総合 | AH5: 土木総合 | AI5: 土木総合 | AJ5: 土木総合 | AK5: 土木総合 | AL5: 土木総合 | AM5: 土木総合 | AN5: 土木総合 | AO5: 土木総合 | AP5: 土木総合 | AQ5: 土木総合 | AR5: 土木総合 | AS5: 土木総合 | AT5: 土木総合 | AU5: 土木総合 | AV5: 土木総合 | AW5: 土木総合 | AX5: 土木総合 | AY5: 土木総合 | AZ5: 土木総合 | BA5: 土木総合 | BB5: 土木総合 | BC5: 土木総合 | BD5: 土木総合 | BE5: 土木総合 | BF5: 土木総合 | BG5: 土木総合 | BH5: 土木総合 | BI5: 土木総合 | BJ5: W在来住宅 | BK5: W量産住宅 | BL5: RC在来住宅 | BM5: RC量産住宅 | BN5: S在来住宅 | BO5: S量産住宅 | BP5: W工場・倉庫 | BQ5: W事務所・その他 | BR5: SRC工場・倉庫 | BS5: SRC事務所・その他 | BT5: RC工場・倉庫 | BU5: RC学校 | BV5: RC事務所・その他 | BW5: S工場・倉庫 | BX5: S事務所・その他
A6: 年度 | B6: 建設総合 | C6: 建築総合 | D6: 住宅総合 | E6: 住宅総合 | F6: 住宅総合 | G6: 住宅総合 | H6: 住宅総合 | I6: 住宅総合 | J6: 住宅総合 | K6: 非住宅総合 | L6: 非住宅総合 | M6: 非住宅総合 | N6: 非住宅総合 | O6: 非住宅総合 | P6: 非住宅総合 | Q6: 非住宅総合 | R6: 建築補修 | S6: 土木総合 | T6: 公共事業 | U6: 公共事業 | V6: 公共事業 | W6: 公共事業 | X6: 公共事業 | Y6: 公共事業 | Z6: 公共事業 | AA6: 公共事業 | AB6: 公共事業 | AC6: 公共事業 | AD6: 公共事業 | AE6: 公共事業 | AF6: 公共事業 | AG6: 公共事業 | AH6: 公共事業 | AI6: 公共事業 | AJ6: 公共事業 | AK6: 公共事業 | AL6: 公共事業 | AM6: 公共事業 | AN6: 公共事業 | AO6: 公共事業 | AP6: 公共事業 | AQ6: 公共事業 | AR6: 公共事業 | AS6: 公共事業 | AT6: 公共事業 | AU6: 公共事業 | AV6: 公共事業 | AW6: 公共事業 | AX6: 公共事業 | AY6: 公共事業 | AZ6: 公共事業 | BA6: 公共事業 | BB6: 公共事業 | BC6: その他土木 | BD6: その他土木 | BE6: その他土木 | BF6: その他土木 | BG6: その他土木 | BH6: その他土木 | BI6: その他土木 | BJ6: W在来住宅 | BK6: W量産住宅 | BL6: RC在来住宅 | BM6: RC量産住宅 | BN6: S在来住宅 | BO6: S量産住宅 | BP6: W工場・倉庫 | BQ6: W事務所・その他 | BR6: SRC工場・倉庫 | BS6: SRC事務所・その他 | BT6: RC工場・倉庫 | BU6: RC学校 | BV6: RC事務所・その他 | BW6: S工場・倉庫 | BX6: S事務所・その他
A7: 年度 | B7: 建設総合 | C7: 建築総合 | D7: 住宅総合 | E7: 木造住宅W | F7: 非木造住宅 | G7: 非木造住宅 | H7: 非木造住宅 | I7: 非木造住宅 | J7: 非木造住宅 | K7: 非住宅総合 | L7: 木造非住宅W | M7: 非木造非住宅 | N7: 非木造非住宅 | O7: 非木造非住宅 | P7: 非木造非住宅 | Q7: 非木造非住宅 | R7: 建築補修 | S7: 土木総合 | T7: 公共事業 | U7: 土木1（含む災害復旧） | V7: 土木1（除く災害復旧） | W7: 土木1（除く災害復旧） | X7: 土木1（除く災害復旧） | Y7: 土木1（除く災害復旧） | Z7: 土木1（除く災害復旧） | AA7: 土木1（除く災害復旧） | AB7: 土木1（除く災害復旧） | AC7: 土木1（除く災害復旧） | AD7: 土木1（除く災害復旧） | AE7: 土木1（除く災害復旧） | AF7: 土木1（除く災害復旧） | AG7: 土木1（除く災害復旧） | AH7: 土木1（除く災害復旧） | AI7: 土木1（除く災害復旧） | AJ7: 土木1（除く災害復旧） | AK7: 土木1（除く災害復旧） | AL7: 土木1（除く災害復旧） | AM7: 土木1（除く災害復旧） | AN7: 土木1（除く災害復旧） | AO7: 土木1（除く災害復旧） | AP7: 土木1（除く災害復旧） | AQ7: 土木1（除く災害復旧） | AR7: 土木1（除く災害復旧） | AS7: 土木1（除く災害復旧） | AT7: 土木1（除く災害復旧） | AU7: 土木1（除く災害復旧） | AV7: 土木1（除く災害復旧） | AW7: 土木1（除く災害復旧） | AX7: 土木2 | AY7: 土木2 | AZ7: 土木2 | BA7: 土木2 | BB7: 土木2 | BC7: その他土木 | BD7: 鉄道軌道 | BE7: 電力 | BF7: 電気通信 | BG7: 上・工業用水道 | BH7: 土地造成 | BI7: その他土木 | BJ7: W在来住宅 | BK7: W量産住宅 | BL7: RC在来住宅 | BM7: RC量産住宅 | BN7: S在来住宅 | BO7: S量産住宅 | BP7: W工場・倉庫 | BQ7: W事務所・その他 | BR7: SRC工場・倉庫 | BS7: SRC事務所・その他 | BT7: RC工場・倉庫 | BU7: RC学校 | BV7: RC事務所・その他 | BW7: S工場・倉庫 | BX7: S事務所・その他
A8: 年度 | B8: 建設総合 | C8: 建築総合 | D8: 住宅総合 | E8: 木造住宅W | F8: 非木造住宅 | G8: 鉄骨鉄筋SRC | H8: 鉄筋RC | I8: 鉄骨S | J8: ｺﾝｸﾘｰﾄﾌﾞﾛｯｸその他CB | K8: 非住宅総合 | L8: 木造非住宅W | M8: 非木造非住宅 | N8: 鉄骨鉄筋SRC | O8: 鉄筋RC | P8: 鉄骨S | Q8: ｺﾝｸﾘｰﾄﾌﾞﾛｯｸその他CB | R8: 建築補修 | S8: 土木総合 | T8: 公共事業 | U8: 土木1（含む災害復旧） | V8: 土木1（除く災害復旧） | W8: 治水総合 | X8: 治水総合 | Y8: 治水総合 | Z8: 治水総合 | AA8: 海岸 | AB8: 道路総合 | AC8: 道路総合 | AD8: 道路総合 | AE8: 道路総合 | AF8: 道路総合 | AG8: 道路総合 | AH8: 道路総合 | AI8: 道路総合 | AJ8: 道路総合 | AK8: 道路総合 | AL8: 道路総合 | AM8: 道路総合 | AN8: 道路総合 | AO8: 道路総合 | AP8: 道路総合 | AQ8: 道路総合 | AR8: 道路総合 | AS8: 道路2（再掲） | AT8: 街路2（再掲） | AU8: 公園 | AV8: 下水道 | AW8: 災害復旧 | AX8: 土木2 | AY8: 港湾・漁港 | AZ8: 空港 | BA8: 環境衛生 | BB8: 農林関係公共事業 | BC8: その他土木 | BD8: 鉄道軌道 | BE8: 電力 | BF8: 電気通信 | BG8: 上・工業用水道 | BH8: 土地造成 | BI8: その他土木 | BJ8: W在来住宅 | BK8: W量産住宅 | BL8: RC在来住宅 | BM8: RC量産住宅 | BN8: S在来住宅 | BO8: S量産住宅 | BP8: W工場・倉庫 | BQ8: W事務所・その他 | BR8: SRC工場・倉庫 | BS8: SRC事務所・その他 | BT8: RC工場・倉庫 | BU8: RC学校 | BV8: RC事務所・その他 | BW8: S工場・倉庫 | BX8: S事務所・その他
A9: 年度 | B9: 建設総合 | C9: 建築総合 | D9: 住宅総合 | E9: 木造住宅W | F9: 非木造住宅 | G9: 鉄骨鉄筋SRC | H9: 鉄筋RC | I9: 鉄骨S | J9: ｺﾝｸﾘｰﾄﾌﾞﾛｯｸその他CB | K9: 非住宅総合 | L9: 木造非住宅W | M9: 非木造非住宅 | N9: 鉄骨鉄筋SRC | O9: 鉄筋RC | P9: 鉄骨S | Q9: ｺﾝｸﾘｰﾄﾌﾞﾛｯｸその他CB | R9: 建築補修 | S9: 土木総合 | T9: 公共事業 | U9: 土木1（含む災害復旧） | V9: 土木1（除く災害復旧） | W9: 治水総合 | X9: 河川 | Y9: 河川総合開発（水資源含む） | Z9: 砂防 | AA9: 海岸 | AB9: 道路総合 | AC9: 一般道路 | AD9: 一般道路 | AE9: 一般道路 | AF9: 一般道路 | AG9: 一般道路 | AH9: 一般道路 | AI9: 一般道路 | AJ9: 一般道路 | AK9: 一般道路 | AL9: 一般道路 | AM9: 一般道路 | AN9: 有料道路 | AO9: 有料道路 | AP9: 有料道路 | AQ9: 有料道路 | AR9: 有料道路 | AS9: 道路2（再掲） | AT9: 街路2（再掲） | AU9: 公園 | AV9: 下水道 | AW9: 災害復旧 | AX9: 土木2 | AY9: 港湾・漁港 | AZ9: 空港 | BA9: 環境衛生 | BB9: 農林関係公共事業 | BC9: その他土木 | BD9: 鉄道軌道 | BE9: 電力 | BF9: 電気通信 | BG9: 上・工業用水道 | BH9: 土地造成 | BI9: その他土木 | BJ9: W在来住宅 | BK9: W量産住宅 | BL9: RC在来住宅 | BM9: RC量産住宅 | BN9: S在来住宅 | BO9: S量産住宅 | BP9: W工場・倉庫 | BQ9: W事務所・その他 | BR9: SRC工場・倉庫 | BS9: SRC事務所・その他 | BT9: RC工場・倉庫 | BU9: RC学校 | BV9: RC事務所・その他 | BW9: S工場・倉庫 | BX9: S事務所・その他
A10: 年度 | B10: 建設総合 | C10: 建築総合 | D10: 住宅総合 | E10: 木造住宅W | F10: 非木造住宅 | G10: 鉄骨鉄筋SRC | H10: 鉄筋RC | I10: 鉄骨S | J10: ｺﾝｸﾘｰﾄﾌﾞﾛｯｸその他CB | K10: 非住宅総合 | L10: 木造非住宅W | M10: 非木造非住宅 | N10: 鉄骨鉄筋SRC | O10: 鉄筋RC | P10: 鉄骨S | Q10: ｺﾝｸﾘｰﾄﾌﾞﾛｯｸその他CB | R10: 建築補修 | S10: 土木総合 | T10: 公共事業 | U10: 土木1（含む災害復旧） | V10: 土木1（除く災害復旧） | W10: 治水総合 | X10: 河川 | Y10: 河川総合開発（水資源含む） | Z10: 砂防 | AA10: 海岸 | AB10: 道路総合 | AC10: 一般道路 | AD10: 道路1 | AE10: 道路1 | AF10: 道路1 | AG10: 道路1 | AH10: 道路1 | AI10: 街路1 | AJ10: 街路1 | AK10: 街路1 | AL10: 街路1 | AM10: 街路1 | AN10: 有料道路 | AO10: 高速道路（株） | AP10: 首都高速道路（株） | AQ10: 阪神高速道路（株） | AR10: 地方道路公社等 | AS10: 道路2（再掲） | AT10: 街路2（再掲） | AU10: 公園 | AV10: 下水道 | AW10: 災害復旧 | AX10: 土木2 | AY10: 港湾・漁港 | AZ10: 空港 | BA10: 環境衛生 | BB10: 農林関係公共事業 | BC10: その他土木 | BD10: 鉄道軌道 | BE10: 電力 | BF10: 電気通信 | BG10: 上・工業用水道 | BH10: 土地造成 | BI10: その他土木 | BJ10: W在来住宅 | BK10: W量産住宅 | BL10: RC在来住宅 | BM10: RC量産住宅 | BN10: S在来住宅 | BO10: S量産住宅 | BP10: W工場・倉庫 | BQ10: W事務所・その他 | BR10: SRC工場・倉庫 | BS10: SRC事務所・その他 | BT10: RC工場・倉庫 | BU10: RC学校 | BV10: RC事務所・その他 | BW10: S工場・倉庫 | BX10: S事務所・その他
A11: 年度 | B11: 建設総合 | C11: 建築総合 | D11: 住宅総合 | E11: 木造住宅W | F11: 非木造住宅 | G11: 鉄骨鉄筋SRC | H11: 鉄筋RC | I11: 鉄骨S | J11: ｺﾝｸﾘｰﾄﾌﾞﾛｯｸその他CB | K11: 非住宅総合 | L11: 木造非住宅W | M11: 非木造非住宅 | N11: 鉄骨鉄筋SRC | O11: 鉄筋RC | P11: 鉄骨S | Q11: ｺﾝｸﾘｰﾄﾌﾞﾛｯｸその他CB | R11: 建築補修 | S11: 土木総合 | T11: 公共事業 | U11: 土木1（含む災害復旧） | V11: 土木1（除く災害復旧） | W11: 治水総合 | X11: 河川 | Y11: 河川総合開発（水資源含む） | Z11: 砂防 | AA11: 海岸 | AB11: 道路総合 | AC11: 一般道路 | AD11: 道路1 | AE11: 道路改良 | AF11: 道路舗装 | AG11: 道路橋梁 | AH11: 道路補修 | AI11: 街路1 | AJ11: 街路改良 | AK11: 街路舗装 | AL11: 街路橋梁 | AM11: 区画整理 | AN11: 有料道路 | AO11: 高速道路（株） | AP11: 首都高速道路（株） | AQ11: 阪神高速道路（株） | AR11: 地方道路公社等 | AS11: 道路2（再掲） | AT11: 街路2（再掲） | AU11: 公園 | AV11: 下水道 | AW11: 災害復旧 | AX11: 土木2 | AY11: 港湾・漁港 | AZ11: 空港 | BA11: 環境衛生 | BB11: 農林関係公共事業 | BC11: その他土木 | BD11: 鉄道軌道 | BE11: 電力 | BF11: 電気通信 | BG11: 上・工業用水道 | BH11: 土地造成 | BI11: その他土木 | BJ11: W在来住宅 | BK11: W量産住宅 | BL11: RC在来住宅 | BM11: RC量産住宅 | BN11: S在来住宅 | BO11: S量産住宅 | BP11: W工場・倉庫 | BQ11: W事務所・その他 | BR11: SRC工場・倉庫 | BS11: SRC事務所・その他 | BT11: RC工場・倉庫 | BU11: RC学校 | BV11: RC事務所・その他 | BW11: S工場・倉庫 | BX11: S事務所・その他
A12: 1951 | B12: *** | C12: *** | D12: *** | E12: *** | F12: *** | G12: *** | H12: *** | I12: *** | J12: *** | K12: *** | L12: *** | M12: *** | N12: *** | O12: *** | P12: *** | Q12: *** | R12: *** | S12: *** | T12: *** | U12: *** | V12: 11.1 | W12: 10.6 | X12: 10.7 | Y12: *** | Z12: 9.1 | AA12: 12.7 | AB12: 10.9 | AC12: 10.4 | AD12: 10.4 | AE12: *** | AF12: *** | AG12: *** | AH12: *** | AI12: 10.8 | AJ12: *** | AK12: *** | AL12: *** | AM12: *** | AN12: *** | AO12: *** | AP12: *** | AQ12: *** | AR12: *** | AS12: *** | AT12: *** | AU12: 10.7 | AV12: 13.3 | AW12: *** | AX12: *** | AY12: *** | AZ12: *** | BA12: *** | BB12: *** | BC12: *** | BD12: *** | BE12: *** | BF12: *** | BG12: *** | BH12: *** | BI12: *** | BJ12: *** | BK12: *** | BL12: *** | BM12: *** | BN12: *** | BO12: *** | BP12: *** | BQ12: *** | BR12: *** | BS12: *** | BT12: *** | BU12: *** | BV12: *** | BW12: *** | BX12: ***
A13: 1952 | B13: *** | C13: *** | D13: *** | E13: *** | F13: *** | G13: *** | H13: *** | I13: *** | J13: *** | K13: *** | L13: *** | M13: *** | N13: *** | O13: *** | P13: *** | Q13: *** | R13: *** | S13: *** | T13: *** | U13: *** | V13: 12.3 | W13: 11.9 | X13: 12 | Y13: *** | Z13: 10.5 | AA13: 13.5 | AB13: 12 | AC13: 11.4 | AD13: 11.4 | AE13: *** | AF13: *** | AG13: *** | AH13: *** | AI13: 11.8 | AJ13: *** | AK13: *** | AL13: *** | AM13: *** | AN13: *** | AO13: *** | AP13: *** | AQ13: *** | AR13: *** | AS13: *** | AT13: *** | AU13: 11.3 | AV13: 14.3 | AW13: *** | AX13: *** | AY13: *** | AZ13: *** | BA13: *** | BB13: *** | BC13: *** | BD13: *** | BE13: *** | BF13: *** | BG13: *** | BH13: *** | BI13: *** | BJ13: *** | BK13: *** | BL13: *** | BM13: *** | BN13: *** | BO13: *** | BP13: *** | BQ13: *** | BR13: *** | BS13: *** | BT13: *** | BU13: *** | BV13: *** | BW13: *** | BX13: ***
A14: 1953 | B14: *** | C14: *** | D14: *** | E14: *** | F14: *** | G14: *** | H14: *** | I14: *** | J14: *** | K14: *** | L14: *** | M14: *** | N14: *** | O14: *** | P14: *** | Q14: *** | R14: *** | S14: *** | T14: *** | U14: *** | V14: 13.3 | W14: 12.9 | X14: 13.1 | Y14: *** | Z14: 11.4 | AA14: 14.7 | AB14: 12.9 | AC14: 12.2 | AD14: 12.1 | AE14: *** | AF14: *** | AG14: *** | AH14: *** | AI14: 12.8 | AJ14: *** | AK14: *** | AL14: *** | AM14: *** | AN14: *** | AO14: *** | AP14: *** | AQ14: *** | AR14: *** | AS14: *** | AT14: *** | AU14: 12.4 | AV14: 15.3 | AW14: *** | AX14: *** | AY14: *** | AZ14: *** | BA14: *** | BB14: *** | BC14: *** | BD14: *** | BE14: *** | BF14: *** | BG14: *** | BH14: *** | BI14: *** | BJ14: *** | BK14: *** | BL14: *** | BM14: *** | BN14: *** | BO14: *** | BP14: *** | BQ14: *** | BR14: *** | BS14: *** | BT14: *** | BU14: *** | BV14: *** | BW14: *** | BX14: ***
A15: 1954 | B15: *** | C15: *** | D15: *** | E15: *** | F15: *** | G15: *** | H15: *** | I15: *** | J15: *** | K15: *** | L15: *** | M15: *** | N15: *** | O15: *** | P15: *** | Q15: *** | R15: *** | S15: *** | T15: *** | U15: *** | V15: 13.4 | W15: 13.1 | X15: 13.3 | Y15: *** | Z15: 11.8 | AA15: 14.9 | AB15: 12.9 | AC15: 12.3 | AD15: 12.2 | AE15: *** | AF15: *** | AG15: *** | AH15: *** | AI15: 12.9 | AJ15: *** | AK15: *** | AL15: *** | AM15: *** | AN15: *** | AO15: *** | AP15: *** | AQ15: *** | AR15: *** | AS15: *** | AT15: *** | AU15: 13.1 | AV15: 15.3 | AW15: *** | AX15: *** | AY15: *** | AZ15: *** | BA15: *** | BB15: *** | BC15: *** | BD15: *** | BE15: *** | BF15: *** | BG15: *** | BH15: *** | BI15: *** | BJ15: *** | BK15: *** | BL15: *** | BM15: *** | BN15: *** | BO15: *** | BP15: *** | BQ15: *** | BR15: *** | BS15: *** | BT15: *** | BU15: *** | BV15: *** | BW15: *** | BX15: ***
A16: 1955 | B16: *** | C16: *** | D16: *** | E16: *** | F16: *** | G16: *** | H16: *** | I16: *** | J16: *** | K16: *** | L16: *** | M16: *** | N16: *** | O16: *** | P16: *** | Q16: *** | R16: *** | S16: *** | T16: *** | U16: *** | V16: 13.1 | W16: 13 | X16: 13.5 | Y16: *** | Z16: 10.7 | AA16: 14.6 | AB16: 12.6 | AC16: 12.1 | AD16: 11.9 | AE16: *** | AF16: *** | AG16: *** | AH16: *** | AI16: 12.7 | AJ16: *** | AK16: *** | AL16: *** | AM16: *** | AN16: *** | AO16: *** | AP16: *** | AQ16: *** | AR16: *** | AS16: *** | AT16: *** | AU16: 13 | AV16: 15.4 | AW16: *** | AX16: *** | AY16: *** | AZ16: *** | BA16: *** | BB16: *** | BC16: *** | BD16: *** | BE16: *** | BF16: *** | BG16: *** | BH16: *** | BI16: *** | BJ16: *** | BK16: *** | BL16: *** | BM16: *** | BN16: *** | BO16: *** | BP16: *** | BQ16: *** | BR16: *** | BS16: *** | BT16: *** | BU16: *** | BV16: *** | BW16: *** | BX16: ***
A17: 1956 | B17: *** | C17: *** | D17: *** | E17: *** | F17: *** | G17: *** | H17: *** | I17: *** | J17: *** | K17: *** | L17: *** | M17: *** | N17: *** | O17: *** | P17: *** | Q17: *** | R17: *** | S17: *** | T17: *** | U17: *** | V17: 14.4 | W17: 14.2 | X17: 14.7 | Y17: *** | Z17: 11.8 | AA17: 15.8 | AB17: 13.8 | AC17: 13.2 | AD17: 13 | AE17: *** | AF17: *** | AG17: *** | AH17: *** | AI17: 13.8 | AJ17: *** | AK17: *** | AL17: *** | AM17: *** | AN17: *** | AO17: 16.9 | AP17: *** | AQ17: *** | AR17: *** | AS17: 13.5 | AT17: *** | AU17: 14.1 | AV17: 17.1 | AW17: *** | AX17: *** | AY17: *** | AZ17: *** | BA17: *** | BB17: *** | BC17: *** | BD17: *** | BE17: *** | BF17: *** | BG17: *** | BH17: *** | BI17: *** | BJ17: *** | BK17: *** | BL17: *** | BM17: *** | BN17: *** | BO17: *** | BP17: *** | BQ17: *** | BR17: *** | BS17: *** | BT17: *** | BU17: *** | BV17: *** | BW17: *** | BX17: ***
A18: 1957 | B18: *** | C18: *** | D18: *** | E18: *** | F18: *** | G18: *** | H18: *** | I18: *** | J18: *** | K18: *** | L18: *** | M18: *** | N18: *** | O18: *** | P18: *** | Q18: *** | R18: *** | S18: *** | T18: *** | U18: *** | V18: 15.2 | W18: 15 | X18: 15.6 | Y18: *** | Z18: 12.8 | AA18: 16.9 | AB18: 14.6 | AC18: 13.8 | AD18: 13.8 | AE18: *** | AF18: *** | AG18: *** | AH18: *** | AI18: 14.6 | AJ18: *** | AK18: *** | AL18: *** | AM18: *** | AN18: *** | AO18: 17.5 | AP18: *** | AQ18: *** | AR18: *** | AS18: 14.3 | AT18: *** | AU18: 14.8 | AV18: 18.1 | AW18: *** | AX18: *** | AY18: *** | AZ18: *** | BA18: *** | BB18: *** | BC18: *** | BD18: *** | BE18: *** | BF18: *** | BG18: *** | BH18: *** | BI18: *** | BJ18: *** | BK18: *** | BL18: *** | BM18: *** | BN18: *** | BO18: *** | BP18: *** | BQ18: *** | BR18: *** | BS18: *** | BT18: *** | BU18: *** | BV18: *** | BW18: *** | BX18: ***
A19: 1958 | B19: *** | C19: *** | D19: *** | E19: *** | F19: *** | G19: *** | H19: *** | I19: *** | J19: *** | K19: *** | L19: *** | M19: *** | N19: *** | O19: *** | P19: *** | Q19: *** | R19: *** | S19: *** | T19: *** | U19: *** | V19: 14.9 | W19: 14.9 | X19: 15.4 | Y19: *** | Z19: 12.7 | AA19: 16.1 | AB19: 14 | AC19: 13.3 | AD19: 13.1 | AE19: *** | AF19: *** | AG19: *** | AH19: *** | AI19: 14.4 | AJ19: *** | AK19: *** | AL19: *** | AM19: *** | AN19: *** | AO19: 16.8 | AP19: *** | AQ19: *** | AR19: *** | AS19: 13.6 | AT19: *** | AU19: 14.5 | AV19: 17.5 | AW19: *** | AX19: *** | AY19: *** | AZ19: *** | BA19: *** | BB19: *** | BC19: *** | BD19: *** | BE19: *** | BF19: *** | BG19: *** | BH19: *** | BI19: *** | BJ19: *** | BK19: *** | BL19: *** | BM19: *** | BN19: *** | BO19: *** | BP19: *** | BQ19: *** | BR19: *** | BS19: *** | BT19: *** | BU19: *** | BV19: *** | BW19: *** | BX19: ***
A20: 1959 | B20: *** | C20: *** | D20: *** | E20: *** | F20: *** | G20: *** | H20: *** | I20: *** | J20: *** | K20: *** | L20: *** | M20: *** | N20: *** | O20: *** | P20: *** | Q20: *** | R20: *** | S20: *** | T20: *** | U20: *** | V20: 15.4 | W20: 15.5 | X20: 16.2 | Y20: *** | Z20: 13.1 | AA20: 16.5 | AB20: 14.7 | AC20: 14 | AD20: 13.9 | AE20: *** | AF20: *** | AG20: *** | AH20: *** | AI20: 14.9 | AJ20: *** | AK20: *** | AL20: *** | AM20: *** | AN20: 18.4 | AO20: 17.5 | AP20: 23 | AQ20: *** | AR20: *** | AS20: 14.5 | AT20: 16 | AU20: 15.3 | AV20: 17.9 | AW20: *** | AX20: *** | AY20: *** | AZ20: *** | BA20: *** | BB20: *** | BC20: *** | BD20: *** | BE20: *** | BF20: *** | BG20: *** | BH20: *** | BI20: *** | BJ20: *** | BK20: *** | BL20: *** | BM20: *** | BN20: *** | BO20: *** | BP20: *** | BQ20: *** | BR20: *** | BS20: *** | BT20: *** | BU20: *** | BV20: *** | BW20: *** | BX20: ***
A21: 1960 | B21: 18.8 | C21: 19.9 | D21: 18.1 | E21: 17.5 | F21: 20.4 | G21: *** | H21: *** | I21: *** | J21: *** | K21: 21.8 | L21: 18.9 | M21: 22.6 | N21: *** | O21: *** | P21: *** | Q21: *** | R21: *** | S21: 17.5 | T21: 16.2 | U21: *** | V21: 16.3 | W21: 16.4 | X21: 17.3 | Y21: *** | Z21: 14.2 | AA21: 17.3 | AB21: 15.6 | AC21: 14.8 | AD21: 14.6 | AE21: *** | AF21: *** | AG21: *** | AH21: *** | AI21: 15.8 | AJ21: *** | AK21: *** | AL21: *** | AM21: *** | AN21: 19.4 | AO21: 18.2 | AP21: 23.4 | AQ21: *** | AR21: *** | AS21: 15.2 | AT21: 17.3 | AU21: 16.3 | AV21: 19 | AW21: *** | AX21: *** | AY21: *** | AZ21: *** | BA21: *** | BB21: *** | BC21: 19.2 | BD21: *** | BE21: *** | BF21: *** | BG21: *** | BH21: *** | BI21: *** | BJ21: *** | BK21: *** | BL21: *** | BM21: *** | BN21: *** | BO21: *** | BP21: *** | BQ21: *** | BR21: *** | BS21: *** | BT21: *** | BU21: *** | BV21: *** | BW21: *** | BX21: ***
A22: 1961 | B22: 20.8 | C22: 22.1 | D22: 20.8 | E22: 20.3 | F22: 22.3 | G22: *** | H22: *** | I22: *** | J22: *** | K22: 23.6 | L22: 21.7 | M22: 23.9 | N22: *** | O22: *** | P22: *** | Q22: *** | R22: *** | S22: 19 | T22: 17.7 | U22: *** | V22: 18.1 | W22: 18.4 | X22: 19.1 | Y22: *** | Z22: 16.1 | AA22: 19.3 | AB22: 17.3 | AC22: 16.3 | AD22: 16 | AE22: *** | AF22: *** | AG22: *** | AH22: *** | AI22: 17.4 | AJ22: *** | AK22: *** | AL22: *** | AM22: *** | AN22: 21 | AO22: 19.6 | AP22: 24.5 | AQ22: *** | AR22: *** | AS22: 16.7 | AT22: 19.4 | AU22: 18.5 | AV22: 21 | AW22: *** | AX22: *** | AY22: *** | AZ22: *** | BA22: *** | BB22: *** | BC22: 20.5 | BD22: *** | BE22: *** | BF22: *** | BG22: *** | BH22: *** | BI22: *** | BJ22: *** | BK22: *** | BL22: *** | BM22: *** | BN22: *** | BO22: *** | BP22: *** | BQ22: *** | BR22: *** | BS22: *** | BT22: *** | BU22: *** | BV22: *** | BW22: *** | BX22: ***
A23: 1962 | B23: 21.2 | C23: 22.4 | D23: 21.2 | E23: 20.6 | F23: 22.6 | G23: *** | H23: *** | I23: *** | J23: *** | K23: 23.8 | L23: 21.9 | M23: 24 | N23: *** | O23: *** | P23: *** | Q23: *** | R23: *** | S23: 19.6 | T23: 18.6 | U23: *** | V23: 19 | W23: 19.3 | X23: 20 | Y23: *** | Z23: 17.3 | AA23: 20.2 | AB23: 18 | AC23: 17.1 | AD23: 16.9 | AE23: *** | AF23: *** | AG23: *** | AH23: *** | AI23: 18.3 | AJ23: *** | AK23: *** | AL23: *** | AM23: *** | AN23: 21.1 | AO23: 19.9 | AP23: 24.1 | AQ23: *** | AR23: *** | AS23: 17.5 | AT23: 20 | AU23: 19.5 | AV23: 21.8 | AW23: *** | AX23: *** | AY23: *** | AZ23: *** | BA23: *** | BB23: *** | BC23: 21 | BD23: *** | BE23: *** | BF23: *** | BG23: *** | BH23: *** | BI23: *** | BJ23: *** | BK23: *** | BL23: *** | BM23: *** | BN23: *** | BO23: *** | BP23: *** | BQ23: *** | BR23: *** | BS23: *** | BT23: *** | BU23: *** | BV23: *** | BW23: *** | BX23: ***
A24: 1963 | B24: 21.8 | C24: 23.1 | D24: 22 | E24: 21.7 | F24: 23.3 | G24: *** | H24: *** | I24: *** | J24: *** | K24: 24.2 | L24: 22.8 | M24: 24.3 | N24: *** | O24: *** | P24: *** | Q24: *** | R24: *** | S24: 20.1 | T24: 19.1 | U24: *** | V24: 19.5 | W24: 19.9 | X24: 20.7 | Y24: 20.5 | Z24: 17.9 | AA24: 20.6 | AB24: 18.4 | AC24: 17.5 | AD24: 17.4 | AE24: *** | AF24: *** | AG24: *** | AH24: *** | AI24: 18.6 | AJ24: *** | AK24: *** | AL24: *** | AM24: *** | AN24: 21.6 | AO24: 20.3 | AP24: 24.5 | AQ24: 26.6 | AR24: *** | AS24: 17.9 | AT24: 20.4 | AU24: 20.1 | AV24: 22.2 | AW24: *** | AX24: *** | AY24: *** | AZ24: *** | BA24: *** | BB24: *** | BC24: 21.6 | BD24: *** | BE24: *** | BF24: *** | BG24: *** | BH24: *** | BI24: *** | BJ24: *** | BK24: *** | BL24: *** | BM24: *** | BN24: *** | BO24: *** | BP24: *** | BQ24: *** | BR24: *** | BS24: *** | BT24: *** | BU24: *** | BV24: *** | BW24: *** | BX24: ***
A25: 1964 | B25: 22.8 | C25: 23.7 | D25: 22.6 | E25: 22.2 | F25: 23.9 | G25: *** | H25: *** | I25: *** | J25: *** | K25: 24.9 | L25: 23.2 | M25: 25.1 | N25: *** | O25: *** | P25: *** | Q25: *** | R25: *** | S25: 21.3 | T25: 20 | U25: *** | V25: 20.2 | W25: 20.8 | X25: 21.6 | Y25: 21.9 | Z25: 18.8 | AA25: 21.4 | AB25: 18.9 | AC25: 18.1 | AD25: 18 | AE25: *** | AF25: *** | AG25: *** | AH25: *** | AI25: 19.4 | AJ25: *** | AK25: *** | AL25: *** | AM25: *** | AN25: 21.9 | AO25: 20.8 | AP25: 24.6 | AQ25: 27 | AR25: *** | AS25: 18.6 | AT25: 20.8 | AU25: 20.9 | AV25: 23 | AW25: *** | AX25: *** | AY25: *** | AZ25: *** | BA25: *** | BB25: *** | BC25: 22.9 | BD25: *** | BE25: *** | BF25: *** | BG25: *** | BH25: *** | BI25: *** | BJ25: *** | BK25: *** | BL25: *** | BM25: *** | BN25: *** | BO25: *** | BP25: *** | BQ25: *** | BR25: *** | BS25: *** | BT25: *** | BU25: *** | BV25: *** | BW25: *** | BX25: ***
A26: 1965 | B26: 23.5 | C26: 24.2 | D26: 23.3 | E26: 22.9 | F26: 24.5 | G26: *** | H26: *** | I26: *** | J26: *** | K26: 25.4 | L26: 23.8 | M26: 25.7 | N26: *** | O26: *** | P26: *** | Q26: *** | R26: *** | S26: 22.2 | T26: 20.7 | U26: *** | V26: 20.8 | W26: 21.5 | X26: 22.2 | Y26: 22.4 | Z26: 19.5 | AA26: 21.9 | AB26: 19.5 | AC26: 18.7 | AD26: 18.5 | AE26: *** | AF26: *** | AG26: *** | AH26: *** | AI26: 19.9 | AJ26: *** | AK26: *** | AL26: *** | AM26: *** | AN26: 22.3 | AO26: 21.2 | AP26: 24.7 | AQ26: 27.1 | AR26: *** | AS26: 19.1 | AT26: 21.3 | AU26: 21.6 | AV26: 23.7 | AW26: *** | AX26: *** | AY26: *** | AZ26: *** | BA26: *** | BB26: *** | BC26: 24.1 | BD26: *** | BE26: *** | BF26: *** | BG26: *** | BH26: *** | BI26: *** | BJ26: *** | BK26: *** | BL26: *** | BM26: *** | BN26: *** | BO26: *** | BP26: *** | BQ26: *** | BR26: *** | BS26: *** | BT26: *** | BU26: *** | BV26: *** | BW26: *** | BX26: ***
A27: 1966 | B27: 25.2 | C27: 26.1 | D27: 25.2 | E27: 24.7 | F27: 26.1 | G27: *** | H27: *** | I27: *** | J27: *** | K27: 27 | L27: 25.8 | M27: 27.1 | N27: *** | O27: *** | P27: *** | Q27: *** | R27: *** | S27: 23.9 | T27: 22.3 | U27: *** | V27: 22.4 | W27: 23 | X27: 23.7 | Y27: 24 | Z27: 21.2 | AA27: 23.8 | AB27: 21 | AC27: 20.2 | AD27: 20 | AE27: *** | AF27: *** | AG27: *** | AH27: *** | AI27: 21.5 | AJ27: *** | AK27: *** | AL27: *** | AM27: *** | AN27: 23.8 | AO27: 23 | AP27: 25.9 | AQ27: 28.6 | AR27: *** | AS27: 20.6 | AT27: 22.7 | AU27: 23.4 | AV27: 25.3 | AW27: *** | AX27: *** | AY27: *** | AZ27: *** | BA27: *** | BB27: *** | BC27: 26.1 | BD27: *** | BE27: *** | BF27: *** | BG27: *** | BH27: *** | BI27: *** | BJ27: *** | BK27: *** | BL27: *** | BM27: *** | BN27: *** | BO27: *** | BP27: *** | BQ27: *** | BR27: *** | BS27: *** | BT27: *** | BU27: *** | BV27: *** | BW27: *** | BX27: ***
A28: 1967 | B28: 26.7 | C28: 27.7 | D28: 27.1 | E28: 26.7 | F28: 27.6 | G28: *** | H28: *** | I28: *** | J28: *** | K28: 28.3 | L28: 27.8 | M28: 28.3 | N28: *** | O28: *** | P28: *** | Q28: *** | R28: *** | S28: 25.3 | T28: 24.3 | U28: *** | V28: 24.1 | W28: 24.6 | X28: 25.1 | Y28: 25.4 | Z28: 23.6 | AA28: 25.6 | AB28: 22.8 | AC28: 22.1 | AD28: 22 | AE28: *** | AF28: *** | AG28: *** | AH28: *** | AI28: 23.6 | AJ28: *** | AK28: *** | AL28: *** | AM28: *** | AN28: 24.8 | AO28: 24.1 | AP28: 26.9 | AQ28: 29.5 | AR28: *** | AS28: 22.4 | AT28: 24.3 | AU28: 25.3 | AV28: 26.7 | AW28: *** | AX28: *** | AY28: *** | AZ28: *** | BA28: *** | BB28: *** | BC28: 26.7 | BD28: *** | BE28: *** | BF28: *** | BG28: *** | BH28: *** | BI28: *** | BJ28: *** | BK28: *** | BL28: *** | BM28: *** | BN28: *** | BO28: *** | BP28: *** | BQ28: *** | BR28: *** | BS28: *** | BT28: *** | BU28: *** | BV28: *** | BW28: *** | BX28: ***
A29: 1968 | B29: 27.7 | C29: 28.6 | D29: 28.3 | E29: 28 | F29: 28.4 | G29: *** | H29: *** | I29: *** | J29: *** | K29: 29 | L29: 29 | M29: 29 | N29: *** | O29: *** | P29: *** | Q29: *** | R29: *** | S29: 26.2 | T29: 25 | U29: *** | V29: 24.7 | W29: 25.5 | X29: 26 | Y29: 26 | Z29: 24.6 | AA29: 26.3 | AB29: 23.3 | AC29: 22.7 | AD29: 22.5 | AE29: *** | AF29: *** | AG29: *** | AH29: *** | AI29: 24.2 | AJ29: *** | AK29: *** | AL29: *** | AM29: *** | AN29: 25.2 | AO29: 24.4 | AP29: 27.4 | AQ29: 30 | AR29: *** | AS29: 23 | AT29: 25 | AU29: 26.2 | AV29: 27.5 | AW29: *** | AX29: *** | AY29: *** | AZ29: *** | BA29: *** | BB29: *** | BC29: 27.7 | BD29: *** | BE29: *** | BF29: *** | BG29: *** | BH29: *** | BI29: *** | BJ29: *** | BK29: *** | BL29: *** | BM29: *** | BN29: *** | BO29: *** | BP29: *** | BQ29: *** | BR29: *** | BS29: *** | BT29: *** | BU29: *** | BV29: *** | BW29: *** | BX29: ***
A30: 1969 | B30: 29.4 | C30: 30.4 | D30: 29.9 | E30: 29.8 | F30: 30.2 | G30: *** | H30: *** | I30: *** | J30: *** | K30: 30.7 | L30: 30.8 | M30: 30.8 | N30: *** | O30: *** | P30: *** | Q30: *** | R30: *** | S30: 28.1 | T30: 26.5 | U30: *** | V30: 26.3 | W30: 27.2 | X30: 27.6 | Y30: 28 | Z30: 26.1 | AA30: 28 | AB30: 24.7 | AC30: 23.9 | AD30: 23.7 | AE30: *** | AF30: *** | AG30: *** | AH30: *** | AI30: 25.4 | AJ30: *** | AK30: *** | AL30: *** | AM30: *** | AN30: 26.8 | AO30: 26.2 | AP30: 29.1 | AQ30: 31.7 | AR30: *** | AS30: 24.3 | AT30: 26.4 | AU30: 27.9 | AV30: 29.5 | AW30: *** | AX30: *** | AY30: *** | AZ30: *** | BA30: *** | BB30: *** | BC30: 30.2 | BD30: *** | BE30: *** | BF30: *** | BG30: *** | BH30: *** | BI30: *** | BJ30: *** | BK30: *** | BL30: *** | BM30: *** | BN30: *** | BO30: *** | BP30: *** | BQ30: *** | BR30: *** | BS30: *** | BT30: *** | BU30: *** | BV30: *** | BW30: *** | BX30: ***
A31: 1970 | B31: 31.3 | C31: 32.1 | D31: 32 | E31: 32 | F31: 32.1 | G31: 31.8 | H31: 31.1 | I31: 33.3 | J31: 31.6 | K31: 32.4 | L31: 32.7 | M31: 32.4 | N31: 33.3 | O31: 32.3 | P31: 32.4 | Q31: 30.8 | R31: *** | S31: 30 | T31: 28.3 | U31: 28 | V31: 27.9 | W31: 29.2 | X31: 29.6 | Y31: 30.2 | Z31: 28.2 | AA31: 29.7 | AB31: 26.2 | AC31: 25.4 | AD31: 25.2 | AE31: 28 | AF31: 19.3 | AG31: 30.7 | AH31: 20.9 | AI31: 27.1 | AJ31: 27.9 | AK31: 19.8 | AL31: 30.9 | AM31: 26.1 | AN31: 28.4 | AO31: 27.5 | AP31: 30.8 | AQ31: 33.3 | AR31: *** | AS31: 25.8 | AT31: 28.1 | AU31: 30 | AV31: 31.7 | AW31: 28.2 | AX31: 29.3 | AY31: *** | AZ31: *** | BA31: *** | BB31: *** | BC31: 32.2 | BD31: *** | BE31: *** | BF31: *** | BG31: *** | BH31: *** | BI31: *** | BJ31: *** | BK31: *** | BL31: *** | BM31: *** | BN31: *** | BO31: *** | BP31: *** | BQ31: *** | BR31: *** | BS31: *** | BT31: *** | BU31: *** | BV31: *** | BW31: *** | BX31: ***
A32: 1971 | B32: 31.7 | C32: 32.6 | D32: 32.5 | E32: 32.4 | F32: 32.5 | G32: 32.3 | H32: 31.4 | I32: 33.7 | J32: 31.7 | K32: 32.6 | L32: 33 | M32: 32.8 | N32: 33.5 | O32: 32.6 | P32: 32.9 | Q32: 31.1 | R32: *** | S32: 30.6 | T32: 29.1 | U32: 28.9 | V32: 28.7 | W32: 30.1 | X32: 30.2 | Y32: 30.8 | Z32: 29.3 | AA32: 30.5 | AB32: 26.9 | AC32: 26.4 | AD32: 26.2 | AE32: 28.9 | AF32: 20.4 | AG32: 31.1 | AH32: 22 | AI32: 28 | AJ32: 28.7 | AK32: 20.9 | AL32: 31.4 | AM32: 27.2 | AN32: 28.9 | AO32: 28 | AP32: 30.8 | AQ32: 33.6 | AR32: *** | AS32: 26.6 | AT32: 28.7 | AU32: 31 | AV32: 32.4 | AW32: 29.5 | AX32: 30.1 | AY32: *** | AZ32: *** | BA32: *** | BB32: *** | BC32: 32.3 | BD32: *** | BE32: *** | BF32: *** | BG32: *** | BH32: *** | BI32: *** | BJ32: *** | BK32: *** | BL32: *** | BM32: *** | BN32: *** | BO32: *** | BP32: *** | BQ32: *** | BR32: *** | BS32: *** | BT32: *** | BU32: *** | BV32: *** | BW32: *** | BX32: ***
A33: 1972 | B33: 34.6 | C33: 36.1 | D33: 36.8 | E33: 37.9 | F33: 35.3 | G33: 34.9 | H33: 34.2 | I33: 36.3 | J33: 35.7 | K33: 35.3 | L33: 39.1 | M33: 35 | N33: 35.6 | O33: 35 | P33: 35 | Q33: 35.2 | R33: *** | S33: 32.4 | T33: 31 | U33: 30.6 | V33: 30.5 | W33: 32 | X33: 32.1 | Y33: 33.1 | Z33: 31.2 | AA33: 32.4 | AB33: 28.6 | AC33: 27.9 | AD33: 27.7 | AE33: 30.7 | AF33: 21.1 | AG33: 33 | AH33: 23 | AI33: 29.5 | AJ33: 30.2 | AK33: 21.7 | AL33: 33.5 | AM33: 28.6 | AN33: 30.8 | AO33: 29.9 | AP33: 33.2 | AQ33: 35.4 | AR33: *** | AS33: 28.1 | AT33: 30.5 | AU33: 33 | AV33: 34.3 | AW33: 31.4 | AX33: 32.1 | AY33: *** | AZ33: *** | BA33: *** | BB33: *** | BC33: 34.1 | BD33: *** | BE33: *** | BF33: *** | BG33: *** | BH33: *** | BI33: *** | BJ33: *** | BK33: *** | BL33: *** | BM33: *** | BN33: *** | BO33: *** | BP33: *** | BQ33: *** | BR33: *** | BS33: *** | BT33: *** | BU33: *** | BV33: *** | BW33: *** | BX33: ***
A34: 1973 | B34: 43.7 | C34: 45.2 | D34: 46.3 | E34: 47.7 | F34: 44.6 | G34: 44.1 | H34: 43.5 | I34: 45.5 | J34: 45.8 | K34: 44.2 | L34: 48.9 | M34: 44 | N34: 44.6 | O34: 44.7 | P34: 43.5 | Q34: 45.1 | R34: *** | S34: 41.5 | T34: 39.1 | U34: 38.7 | V34: 38.5 | W34: 40.4 | X34: 40.5 | Y34: 41.8 | Z34: 39.2 | AA34: 41.3 | AB34: 36.1 | AC34: 35.1 | AD34: 34.8 | AE34: 39.1 | AF34: 26.1 | AG34: 41.5 | AH34: 28.7 | AI34: 37.3 | AJ34: 38.6 | AK34: 26.5 | AL34: 42.4 | AM34: 35.5 | AN34: 39.5 | AO34: 38.3 | AP34: 43.7 | AQ34: 45.5 | AR34: *** | AS34: 35.5 | AT34: 38.8 | AU34: 41.4 | AV34: 43.8 | AW34: 39.6 | AX34: 40.3 | AY34: *** | AZ34: *** | BA34: *** | BB34: *** | BC34: 44.2 | BD34: *** | BE34: *** | BF34: *** | BG34: *** | BH34: *** | BI34: *** | BJ34: *** | BK34: *** | BL34: *** | BM34: *** | BN34: *** | BO34: *** | BP34: *** | BQ34: *** | BR34: *** | BS34: *** | BT34: *** | BU34: *** | BV34: *** | BW34: *** | BX34: ***
A35: 1974 | B35: 51.8 | C35: 52.7 | D35: 52.8 | E35: 53.1 | F35: 52.6 | G35: 52 | H35: 51 | I35: 54.5 | J35: 51.5 | K35: 52.5 | L35: 53.6 | M35: 52.5 | N35: 53.3 | O35: 52.4 | P35: 52.8 | Q35: 50.4 | R35: *** | S35: 50.9 | T35: 48.9 | U35: 48.5 | V35: 48.4 | W35: 49.7 | X35: 49.8 | Y35: 51.5 | Z35: 48.4 | AA35: 49.8 | AB35: 46 | AC35: 45.1 | AD35: 44.7 | AE35: 47.9 | AF35: 36.8 | AG35: 50.8 | AH35: 39.2 | AI35: 47.4 | AJ35: 48.1 | AK35: 38.2 | AL35: 51.5 | AM35: 46.5 | AN35: 48.5 | AO35: 47.1 | AP35: 52.3 | AQ35: 55.8 | AR35: *** | AS35: 45.4 | AT35: 48.7 | AU35: 50.9 | AV35: 53.1 | AW35: 48.8 | AX35: 50 | AY35: *** | AZ35: *** | BA35: *** | BB35: *** | BC35: 53.8 | BD35: *** | BE35: *** | BF35: *** | BG35: *** | BH35: *** | BI35: *** | BJ35: *** | BK35: *** | BL35: *** | BM35: *** | BN35: *** | BO35: *** | BP35: *** | BQ35: *** | BR35: *** | BS35: *** | BT35: *** | BU35: *** | BV35: *** | BW35: *** | BX35: ***
A36: 1975 | B36: 52.4 | C36: 53.1 | D36: 53.2 | E36: 53.6 | F36: 52.9 | G36: 52.5 | H36: 51.3 | I36: 54.7 | J36: 51.8 | K36: 52.9 | L36: 52.8 | M36: 52.9 | N36: 53.7 | O36: 52.8 | P36: 53 | Q36: 50.4 | R36: *** | S36: 51.6 | T36: 49.6 | U36: 49.2 | V36: 49.1 | W36: 50.7 | X36: 50.6 | Y36: 52.5 | Z36: 49.4 | AA36: 50.5 | AB36: 46.8 | AC36: 45.9 | AD36: 45.6 | AE36: 48.6 | AF36: 37.8 | AG36: 51.3 | AH36: 40 | AI36: 48 | AJ36: 48.5 | AK36: 39.3 | AL36: 52.4 | AM36: 47.5 | AN36: 49 | AO36: 47.7 | AP36: 52.8 | AQ36: 55.9 | AR36: *** | AS36: 46.1 | AT36: 49.3 | AU36: 51.8 | AV36: 53.7 | AW36: 50 | AX36: 51 | AY36: *** | AZ36: *** | BA36: *** | BB36: *** | BC36: 54.2 | BD36: *** | BE36: *** | BF36: *** | BG36: *** | BH36: *** | BI36: *** | BJ36: *** | BK36: *** | BL36: *** | BM36: *** | BN36: *** | BO36: *** | BP36: *** | BQ36: *** | BR36: *** | BS36: *** | BT36: *** | BU36: *** | BV36: *** | BW36: *** | BX36: ***
A37: 1976 | B37: 56.8 | C37: 57.9 | D37: 58.2 | E37: 58.6 | F37: 57.6 | G37: 57.2 | H37: 56.2 | I37: 59.2 | J37: 56.3 | K37: 57.5 | L37: 60.2 | M37: 57.1 | N37: 58.1 | O37: 57.6 | P37: 57.1 | Q37: 54.9 | R37: *** | S37: 55.1 | T37: 53 | U37: 52.5 | V37: 52.6 | W37: 54.4 | X37: 54.5 | Y37: 56.3 | Z37: 52.8 | AA37: 53.6 | AB37: 50 | AC37: 49 | AD37: 48.6 | AE37: 51.7 | AF37: 39.9 | AG37: 55.8 | AH37: 42.8 | AI37: 51.1 | AJ37: 51.7 | AK37: 41.5 | AL37: 57 | AM37: 50.5 | AN37: 53 | AO37: 51.5 | AP37: 57.1 | AQ37: 61.8 | AR37: *** | AS37: 49.3 | AT37: 52.8 | AU37: 54.2 | AV37: 57.6 | AW37: 53.2 | AX37: 54.2 | AY37: *** | AZ37: *** | BA37: *** | BB37: *** | BC37: 57.9 | BD37: *** | BE37: *** | BF37: *** | BG37: *** | BH37: *** | BI37: *** | BJ37: *** | BK37: *** | BL37: *** | BM37: *** | BN37: *** | BO37: *** | BP37: *** | BQ37: *** | BR37: *** | BS37: *** | BT37: *** | BU37: *** | BV37: *** | BW37: *** | BX37: ***
A38: 1977 | B38: 59.2 | C38: 60 | D38: 60.1 | E38: 60.3 | F38: 60 | G38: 59.8 | H38: 58.7 | I38: 61.8 | J38: 58.3 | K38: 60.6 | L38: 60.4 | M38: 59 | N38: 60.7 | O38: 60.2 | P38: 59.7 | Q38: 56.9 | R38: *** | S38: 57.1 | T38: 56.4 | U38: 55.9 | V38: 55.7 | W38: 57.8 | X38: 57.6 | Y38: 59.2 | Z38: 57 | AA38: 57.8 | AB38: 53.3 | AC38: 52.5 | AD38: 52 | AE38: 55.3 | AF38: 43.2 | AG38: 58.2 | AH38: 45.8 | AI38: 54.5 | AJ38: 55 | AK38: 44.9 | AL38: 59.8 | AM38: 54.1 | AN38: 56 | AO38: 54.4 | AP38: 60.1 | AQ38: 64.5 | AR38: *** | AS38: 52.6 | AT38: 56.1 | AU38: 57.7 | AV38: 60.5 | AW38: 57.2 | AX38: 57.7 | AY38: *** | AZ38: *** | BA38: *** | BB38: *** | BC38: 60.2 | BD38: *** | BE38: *** | BF38: *** | BG38: *** | BH38: *** | BI38: *** | BJ38: *** | BK38: *** | BL38: *** | BM38: *** | BN38: *** | BO38: *** | BP38: *** | BQ38: *** | BR38: *** | BS38: *** | BT38: *** | BU38: *** | BV38: *** | BW38: *** | BX38: ***
A39: 1978 | B39: 62.4 | C39: 62.7 | D39: 62.7 | E39: 62.6 | F39: 62.8 | G39: 62.8 | H39: 61.7 | I39: 64.3 | J39: 61.1 | K39: 62.8 | L39: 63.3 | M39: 62.8 | N39: 63.5 | O39: 63.6 | P39: 62.4 | Q39: 59.8 | R39: *** | S39: 61.9 | T39: 60.6 | U39: 59.9 | V39: 59.8 | W39: 62.7 | X39: 62.5 | Y39: 63.6 | Z39: 62.8 | AA39: 63.9 | AB39: 56.8 | AC39: 55.7 | AD39: 55.3 | AE39: 60.1 | AF39: 44.6 | AG39: 62 | AH39: 47.1 | AI39: 58.2 | AJ39: 58.7 | AK39: 46.2 | AL39: 64.3 | AM39: 58.2 | AN39: 60.1 | AO39: 58.4 | AP39: 64.1 | AQ39: 69.6 | AR39: *** | AS39: 56 | AT39: 60.1 | AU39: 62.4 | AV39: 64.6 | AW39: 62.7 | AX39: 62.6 | AY39: *** | AZ39: *** | BA39: *** | BB39: *** | BC39: 63.6 | BD39: *** | BE39: *** | BF39: *** | BG39: *** | BH39: *** | BI39: *** | BJ39: *** | BK39: *** | BL39: *** | BM39: *** | BN39: *** | BO39: *** | BP39: *** | BQ39: *** | BR39: *** | BS39: *** | BT39: *** | BU39: *** | BV39: *** | BW39: *** | BX39: ***
A40: 1979 | B40: 69.2 | C40: 69.8 | D40: 70.8 | E40: 71.8 | F40: 69.1 | G40: 68.6 | H40: 68.1 | I40: 70.5 | J40: 68.9 | K40: 68.7 | L40: 74.6 | M40: 68.3 | N40: 68.9 | O40: 69.6 | P40: 67.3 | Q40: 67.7 | R40: *** | S40: 68.2 | T40: 66.9 | U40: 66.5 | V40: 66.2 | W40: 68.6 | X40: 68.3 | Y40: 69.6 | Z40: 68.8 | AA40: 69.9 | AB40: 63.9 | AC40: 63 | AD40: 62.4 | AE40: 66.3 | AF40: 54 | AG40: 66.1 | AH40: 55.7 | AI40: 65.8 | AJ40: 66.2 | AK40: 56.2 | AL40: 69.2 | AM40: 65.7 | AN40: 65.8 | AO40: 64.3 | AP40: 69 | AQ40: 74.2 | AR40: *** | AS40: 63 | AT40: 67.1 | AU40: 69.4 | AV40: 70.2 | AW40: 68.9 | AX40: 68.5 | AY40: *** | AZ40: *** | BA40: *** | BB40: *** | BC40: 69.9 | BD40: *** | BE40: *** | BF40: *** | BG40: *** | BH40: *** | BI40: *** | BJ40: *** | BK40: *** | BL40: *** | BM40: *** | BN40: *** | BO40: *** | BP40: *** | BQ40: *** | BR40: *** | BS40: *** | BT40: *** | BU40: *** | BV40: *** | BW40: *** | BX40: ***
A41: 1980 | B41: 75.4 | C41: 75.4 | D41: 76 | E41: 76.8 | F41: 75.2 | G41: 74.3 | H41: 73.8 | I41: 77.2 | J41: 74.3 | K41: 74.5 | L41: 77.8 | M41: 74.3 | N41: 75 | O41: 75.5 | P41: 73.6 | Q41: 72.7 | R41: *** | S41: 75.4 | T41: 74.7 | U41: 74.5 | V41: 74.3 | W41: 75.5 | X41: 74.7 | Y41: 76.6 | Z41: 76.7 | AA41: 77.2 | AB41: 73.4 | AC41: 72.8 | AD41: 72.4 | AE41: 73.6 | AF41: 69 | AG41: 71.9 | AH41: 69.9 | AI41: 75.2 | AJ41: 75.4 | AK41: 72.6 | AL41: 75.2 | AM41: 75.1 | AN41: 73.5 | AO41: 72.3 | AP41: 75.9 | AQ41: 79 | AR41: *** | AS41: 72.6 | AT41: 75.7 | AU41: 75.9 | AV41: 76.5 | AW41: 75.9 | AX41: 75.3 | AY41: *** | AZ41: *** | BA41: *** | BB41: *** | BC41: 76.3 | BD41: *** | BE41: *** | BF41: *** | BG41: *** | BH41: *** | BI41: *** | BJ41: *** | BK41: *** | BL41: *** | BM41: *** | BN41: *** | BO41: *** | BP41: *** | BQ41: *** | BR41: *** | BS41: *** | BT41: *** | BU41: *** | BV41: *** | BW41: *** | BX41: ***
A42: 1981 | B42: 75.7 | C42: 75.3 | D42: 75.3 | E42: 75.3 | F42: 75.4 | G42: 74.8 | H42: 74.3 | I42: 76.8 | J42: 74.3 | K42: 75.1 | L42: 76.8 | M42: 75 | N42: 75.7 | O42: 76.2 | P42: 74.3 | Q42: 73.2 | R42: *** | S42: 76.5 | T42: 76.2 | U42: 76 | V42: 75.9 | W42: 76.6 | X42: 75.8 | Y42: 77.9 | Z42: 77.3 | AA42: 77.6 | AB42: 75.6 | AC42: 75.4 | AD42: 75 | AE42: 75 | AF42: 74.6 | AG42: 72.3 | AH42: 74.3 | AI42: 77.4 | AJ42: 77.1 | AK42: 79.1 | AL42: 75.4 | AM42: 77.4 | AN42: 74.7 | AO42: 73.5 | AP42: 76.6 | AQ42: 79.8 | AR42: *** | AS42: 74.9 | AT42: 77.6 | AU42: 76.6 | AV42: 77.4 | AW42: 76.9 | AX42: 76.6 | AY42: *** | AZ42: *** | BA42: *** | BB42: *** | BC42: 76.9 | BD42: *** | BE42: *** | BF42: *** | BG42: *** | BH42: *** | BI42: *** | BJ42: *** | BK42: *** | BL42: *** | BM42: *** | BN42: *** | BO42: *** | BP42: *** | BQ42: *** | BR42: *** | BS42: *** | BT42: *** | BU42: *** | BV42: *** | BW42: *** | BX42: ***
A43: 1982 | B43: 75.9 | C43: 75.9 | D43: 75.9 | E43: 75.9 | F43: 76 | G43: 75.5 | H43: 75 | I43: 77.4 | J43: 75 | K43: 75.6 | L43: 77.4 | M43: 75.5 | N43: 76.2 | O43: 76.9 | P43: 74.7 | Q43: 73.8 | R43: *** | S43: 76.4 | T43: 75.9 | U43: 75.7 | V43: 75.4 | W43: 77 | X43: 76.4 | Y43: 78.4 | Z43: 77.8 | AA43: 77.8 | AB43: 74.4 | AC43: 73.9 | AD43: 73.6 | AE43: 74.7 | AF43: 69.8 | AG43: 72.4 | AH43: 71.6 | AI43: 76 | AJ43: 76.2 | AK43: 74.1 | AL43: 75.9 | AM43: 75.5 | AN43: 74.6 | AO43: 73.4 | AP43: 77 | AQ43: 79.3 | AR43: *** | AS43: 73.7 | AT43: 76.5 | AU43: 76 | AV43: 77.6 | AW43: 77.2 | AX43: 76.3 | AY43: *** | AZ43: *** | BA43: *** | BB43: *** | BC43: 77.2 | BD43: *** | BE43: *** | BF43: *** | BG43: *** | BH43: *** | BI43: *** | BJ43: *** | BK43: *** | BL43: *** | BM43: *** | BN43: *** | BO43: *** | BP43: *** | BQ43: *** | BR43: *** | BS43: *** | BT43: *** | BU43: *** | BV43: *** | BW43: *** | BX43: ***
A44: 1983 | B44: 75.9 | C44: 76 | D44: 75.8 | E44: 75.3 | F44: 76.4 | G44: 76 | H44: 75.3 | I44: 77.8 | J44: 74.9 | K44: 76 | L44: 76.8 | M44: 76.1 | N44: 76.8 | O44: 77.4 | P44: 75.4 | Q44: 74.2 | R44: *** | S44: 76.1 | T44: 75.3 | U44: 75.2 | V44: 75 | W44: 76.5 | X44: 75.8 | Y44: 77.9 | Z44: 77.4 | AA44: 77.3 | AB44: 73.9 | AC44: 73.3 | AD44: 72.9 | AE44: 74.2 | AF44: 68.4 | AG44: 72.4 | AH44: 70.7 | AI44: 75.1 | AJ44: 75.4 | AK44: 72.6 | AL44: 76.1 | AM44: 74.5 | AN44: 74.2 | AO44: 72.9 | AP44: 77.4 | AQ44: 79.6 | AR44: *** | AS44: 73.1 | AT44: 76 | AU44: 75.4 | AV44: 77.5 | AW44: 76.9 | AX44: 75.9 | AY44: *** | AZ44: *** | BA44: *** | BB44: *** | BC44: 77.2 | BD44: *** | BE44: *** | BF44: *** | BG44: *** | BH44: *** | BI44: *** | BJ44: *** | BK44: *** | BL44: *** | BM44: *** | BN44: *** | BO44: *** | BP44: *** | BQ44: *** | BR44: *** | BS44: *** | BT44: *** | BU44: *** | BV44: *** | BW44: *** | BX44: ***
A45: 1984 | B45: 77.6 | C45: 77.8 | D45: 77.4 | E45: 76.9 | F45: 78.1 | G45: 77.8 | H45: 77.2 | I45: 79.4 | J45: 76.6 | K45: 77.9 | L45: 78.4 | M45: 78 | N45: 78.7 | O45: 79.2 | P45: 77.2 | Q45: 76 | R45: *** | S45: 77.4 | T45: 76.5 | U45: 76.6 | V45: 76.4 | W45: 77.6 | X45: 77 | Y45: 79.2 | Z45: 78.4 | AA45: 78.1 | AB45: 75.3 | AC45: 74.7 | AD45: 74.3 | AE45: 75.4 | AF45: 70.2 | AG45: 73.7 | AH45: 72.6 | AI45: 76.5 | AJ45: 76.8 | AK45: 74.6 | AL45: 77.6 | AM45: 75.8 | AN45: 75.7 | AO45: 74.2 | AP45: 79.2 | AQ45: 81.2 | AR45: *** | AS45: 74.6 | AT45: 77.4 | AU45: 76.8 | AV45: 78.8 | AW45: 77.9 | AX45: 77 | AY45: *** | AZ45: *** | BA45: *** | BB45: *** | BC45: 78.6 | BD45: *** | BE45: *** | BF45: *** | BG45: *** | BH45: *** | BI45: *** | BJ45: *** | BK45: *** | BL45: *** | BM45: *** | BN45: *** | BO45: *** | BP45: *** | BQ45: *** | BR45: *** | BS45: *** | BT45: *** | BU45: *** | BV45: *** | BW45: *** | BX45: ***
A46: 1985 | B46: 77.2 | C46: 77.8 | D46: 77.6 | E46: 77.1 | F46: 78.1 | G46: 77.5 | H46: 77 | I46: 79.6 | J46: 76.6 | K46: 77.8 | L46: 78.6 | M46: 77.8 | N46: 78.4 | O46: 78.8 | P46: 77.3 | Q46: 76 | R46: *** | S46: 76.5 | T46: 75.5 | U46: 75.5 | V46: 75.4 | W46: 75.9 | X46: 75.5 | Y46: 78.1 | Z46: 74.8 | AA46: 74.5 | AB46: 74.7 | AC46: 74.3 | AD46: 74 | AE46: 74.2 | AF46: 71.7 | AG46: 72.4 | AH46: 73.6 | AI46: 75.8 | AJ46: 75.8 | AK46: 76.4 | AL46: 76.1 | AM46: 75.7 | AN46: 74.6 | AO46: 73.2 | AP46: 77.9 | AQ46: 80.7 | AR46: 72.4 | AS46: 74.1 | AT46: 76.7 | AU46: 76.5 | AV46: 77.9 | AW46: 75.5 | AX46: 75.6 | AY46: 75.7 | AZ46: 78 | BA46: 81.1 | BB46: 74.5 | BC46: 78 | BD46: 77.3 | BE46: 78.5 | BF46: 84.3 | BG46: 77.7 | BH46: 78.1 | BI46: 77.2 | BJ46: *** | BK46: *** | BL46: *** | BM46: *** | BN46: *** | BO46: *** | BP46: *** | BQ46: *** | BR46: *** | BS46: *** | BT46: *** | BU46: *** | BV46: *** | BW46: *** | BX46: ***
A47: 1986 | B47: 76.7 | C47: 77.4 | D47: 77.2 | E47: 76.8 | F47: 77.4 | G47: 76.9 | H47: 76.4 | I47: 78.6 | J47: 76.2 | K47: 77.4 | L47: 78.2 | M47: 77.4 | N47: 77.9 | O47: 78.3 | P47: 76.9 | Q47: 75.8 | R47: *** | S47: 76 | T47: 75.3 | U47: 75.2 | V47: 75.1 | W47: 76.2 | X47: 75.6 | Y47: 78.6 | Z47: 75.6 | AA47: 74.8 | AB47: 74.3 | AC47: 74 | AD47: 73.7 | AE47: 74.5 | AF47: 70.1 | AG47: 71.8 | AH47: 72.8 | AI47: 75.4 | AJ47: 75.4 | AK47: 74.5 | AL47: 75.6 | AM47: 75.4 | AN47: 73.8 | AO47: 72.8 | AP47: 76.8 | AQ47: 78.3 | AR47: 72.1 | AS47: 73.7 | AT47: 76 | AU47: 76.5 | AV47: 77.1 | AW47: 75.7 | AX47: 75.5 | AY47: 75.8 | AZ47: 76.9 | BA47: 79.2 | BB47: 74.6 | BC47: 77.2 | BD47: 75.8 | BE47: 77.6 | BF47: 81.8 | BG47: 76.8 | BH47: 77.4 | BI47: 76.6 | BJ47: *** | BK47: *** | BL47: *** | BM47: *** | BN47: *** | BO47: *** | BP47: *** | BQ47: *** | BR47: *** | BS47: *** | BT47: *** | BU47: *** | BV47: *** | BW47: *** | BX47: ***
A48: 1987 | B48: 78.1 | C48: 78.9 | D48: 79.2 | E48: 79.3 | F48: 78.8 | G48: 78.4 | H48: 78 | I48: 79.9 | J48: 77.8 | K48: 78.5 | L48: 80.9 | M48: 78.3 | N48: 79 | O48: 79.6 | P48: 77.7 | Q48: 77 | R48: *** | S48: 77 | T48: 76.5 | U48: 76.4 | V48: 76.3 | W48: 77.8 | X48: 77.2 | Y48: 80 | Z48: 77.3 | AA48: 76.2 | AB48: 75.4 | AC48: 75 | AD48: 74.7 | AE48: 75.7 | AF48: 70.1 | AG48: 73.3 | AH48: 73.4 | AI48: 76.5 | AJ48: 76.6 | AK48: 74.4 | AL48: 76.9 | AM48: 76.4 | AN48: 75.2 | AO48: 74.3 | AP48: 78.3 | AQ48: 79.7 | AR48: 73 | AS48: 74.9 | AT48: 77.2 | AU48: 77.8 | AV48: 78.2 | AW48: 77.3 | AX48: 76.6 | AY48: 77 | AZ48: 77.5 | BA48: 80 | BB48: 75.7 | BC48: 78 | BD48: 77.7 | BE48: 78.2 | BF48: 83.4 | BG48: 77.3 | BH48: 78 | BI48: 77.2 | BJ48: *** | BK48: *** | BL48: *** | BM48: *** | BN48: *** | BO48: *** | BP48: *** | BQ48: *** | BR48: *** | BS48: *** | BT48: *** | BU48: *** | BV48: *** | BW48: *** | BX48: ***
A49: 1988 | B49: 79.6 | C49: 80.2 | D49: 80.2 | E49: 80.2 | F49: 80.3 | G49: 79.9 | H49: 79.4 | I49: 81.5 | J49: 79.2 | K49: 80.1 | L49: 81.9 | M49: 80 | N49: 80.6 | O49: 81.1 | P49: 79.5 | Q49: 78.6 | R49: *** | S49: 78.7 | T49: 78.1 | U49: 78.1 | V49: 78 | W49: 79.8 | X49: 79.2 | Y49: 82.2 | Z49: 79 | AA49: 77.9 | AB49: 77.1 | AC49: 76.6 | AD49: 76.4 | AE49: 77.4 | AF49: 71.2 | AG49: 74.7 | AH49: 74.9 | AI49: 78.1 | AJ49: 78.2 | AK49: 75.4 | AL49: 78.5 | AM49: 78 | AN49: 77 | AO49: 76 | AP49: 80 | AQ49: 80.9 | AR49: 74.7 | AS49: 76.6 | AT49: 78.7 | AU49: 79.3 | AV49: 79.7 | AW49: 79 | AX49: 78.2 | AY49: 78.9 | AZ49: 79 | BA49: 81.1 | BB49: 77.2 | BC49: 79.5 | BD49: 79.5 | BE49: 80.1 | BF49: 86 | BG49: 78.7 | BH49: 79.5 | BI49: 78.7 | BJ49: *** | BK49: *** | BL49: *** | BM49: *** | BN49: *** | BO49: *** | BP49: *** | BQ49: *** | BR49: *** | BS49: *** | BT49: *** | BU49: *** | BV49: *** | BW49: *** | BX49: ***
A50: 1989 | B50: 83.8 | C50: 84.7 | D50: 85 | E50: 85.1 | F50: 84.9 | G50: 84.2 | H50: 83.7 | I50: 86.3 | J50: 83.6 | K50: 84.3 | L50: 87.1 | M50: 84.1 | N50: 84.7 | O50: 85.4 | P50: 83.6 | Q50: 82.7 | R50: *** | S50: 82.6 | T50: 82.1 | U50: 82.1 | V50: 82 | W50: 84.1 | X50: 83.6 | Y50: 86.9 | Z50: 82.7 | AA50: 81.6 | AB50: 81.1 | AC50: 80.6 | AD50: 80.3 | AE50: 81.3 | AF50: 75 | AG50: 78.8 | AH50: 79 | AI50: 82.2 | AJ50: 82.3 | AK50: 79.4 | AL50: 82.6 | AM50: 81.9 | AN50: 80.9 | AO50: 80 | AP50: 84 | AQ50: 85 | AR50: 78.4 | AS50: 80.5 | AT50: 82.8 | AU50: 83.3 | AV50: 83.7 | AW50: 82.9 | AX50: 81.9 | AY50: 82.7 | AZ50: 83 | BA50: 84.6 | BB50: 80.9 | BC50: 83.4 | BD50: 83.8 | BE50: 83.9 | BF50: 90.4 | BG50: 82.4 | BH50: 83.1 | BI50: 82.4 | BJ50: *** | BK50: *** | BL50: *** | BM50: *** | BN50: *** | BO50: *** | BP50: *** | BQ50: *** | BR50: *** | BS50: *** | BT50: *** | BU50: *** | BV50: *** | BW50: *** | BX50: ***
A51: 1990 | B51: 86.7 | C51: 87.5 | D51: 87.8 | E51: 87.8 | F51: 87.8 | G51: 87.1 | H51: 86.7 | I51: 89.1 | J51: 86.5 | K51: 87.1 | L51: 89.9 | M51: 87 | N51: 87.5 | O51: 88.3 | P51: 86.3 | Q51: 85.6 | R51: *** | S51: 85.5 | T51: 85.1 | U51: 85.2 | V51: 85 | W51: 87.4 | X51: 86.9 | Y51: 90.4 | Z51: 85.8 | AA51: 84.6 | AB51: 84.2 | AC51: 83.8 | AD51: 83.5 | AE51: 84.5 | AF51: 78.9 | AG51: 81.8 | AH51: 82.6 | AI51: 85.5 | AJ51: 85.6 | AK51: 83.5 | AL51: 85.9 | AM51: 85.1 | AN51: 83.9 | AO51: 83.1 | AP51: 87 | AQ51: 87.9 | AR51: 81.6 | AS51: 83.7 | AT51: 86 | AU51: 85.7 | AV51: 86.6 | AW51: 86.1 | AX51: 84.9 | AY51: 85.7 | AZ51: 86.6 | BA51: 87.1 | BB51: 84 | BC51: 86.2 | BD51: 86.9 | BE51: 86.5 | BF51: 93.2 | BG51: 85.3 | BH51: 86.2 | BI51: 85.3 | BJ51: 87.8 | BK51: 87.4 | BL51: 86.7 | BM51: 89.2 | BN51: 86.1 | BO51: 91.4 | BP51: 89.4 | BQ51: 89.9 | BR51: 86.9 | BS51: 87.6 | BT51: 86.7 | BU51: 88 | BV51: 88.5 | BW51: 85.9 | BX51: 86.6
A52: 1991 | B52: 88.9 | C52: 89.6 | D52: 89.9 | E52: 89.8 | F52: 90 | G52: 89.4 | H52: 88.9 | I52: 91.1 | J52: 88.9 | K52: 89.2 | L52: 91.9 | M52: 89.1 | N52: 89.6 | O52: 90.4 | P52: 88.5 | Q52: 87.9 | R52: *** | S52: 87.8 | T52: 87.5 | U52: 87.5 | V52: 87.4 | W52: 89.9 | X52: 89.4 | Y52: 92.9 | Z52: 88.2 | AA52: 87.2 | AB52: 86.6 | AC52: 86.2 | AD52: 85.9 | AE52: 87.1 | AF52: 80.9 | AG52: 83.8 | AH52: 84.6 | AI52: 88.1 | AJ52: 88.1 | AK52: 85.4 | AL52: 88 | AM52: 87.9 | AN52: 85.9 | AO52: 85 | AP52: 88.8 | AQ52: 89.9 | AR52: 84 | AS52: 86 | AT52: 88.4 | AU52: 88.3 | AV52: 89.1 | AW52: 88.6 | AX52: 87.3 | AY52: 88.1 | AZ52: 88.8 | BA52: 89.7 | BB52: 86.3 | BC52: 88.3 | BD52: 88.1 | BE52: 87.8 | BF52: 93 | BG52: 87.6 | BH52: 89 | BI52: 87.6 | BJ52: 89.9 | BK52: 88.3 | BL52: 89 | BM52: 91.9 | BN52: 88.4 | BO52: 92.9 | BP52: 91.4 | BQ52: 91.9 | BR52: 89.1 | BS52: 89.7 | BT52: 88.8 | BU52: 90.2 | BV52: 90.6 | BW52: 88 | BX52: 88.8
A53: 1992 | B53: 90.1 | C53: 90.9 | D53: 91.2 | E53: 91.4 | F53: 91.1 | G53: 90.6 | H53: 90.2 | I53: 92.2 | J53: 90.3 | K53: 90.4 | L53: 93.4 | M53: 90.3 | N53: 90.8 | O53: 91.6 | P53: 89.6 | Q53: 89.1 | R53: *** | S53: 89 | T53: 88.8 | U53: 88.8 | V53: 88.7 | W53: 91.3 | X53: 90.8 | Y53: 94.2 | Z53: 89.4 | AA53: 88.6 | AB53: 87.8 | AC53: 87.6 | AD53: 87.2 | AE53: 88.8 | AF53: 81.8 | AG53: 84.6 | AH53: 85.5 | AI53: 89.3 | AJ53: 89.2 | AK53: 85.8 | AL53: 88.6 | AM53: 89.7 | AN53: 86.8 | AO53: 85.6 | AP53: 88.8 | AQ53: 90.6 | AR53: 85.5 | AS53: 87.2 | AT53: 89.4 | AU53: 89.5 | AV53: 90.4 | AW53: 89.8 | AX53: 88.5 | AY53: 89.3 | AZ53: 89.4 | BA53: 90.7 | BB53: 87.7 | BC53: 89.2 | BD53: 88.8 | BE53: 88.6 | BF53: 93.4 | BG53: 88.6 | BH53: 90.2 | BI53: 88.6 | BJ53: 91.5 | BK53: 90.1 | BL53: 90.3 | BM53: 93.3 | BN53: 89.7 | BO53: 93.8 | BP53: 92.9 | BQ53: 93.4 | BR53: 90.2 | BS53: 90.9 | BT53: 89.9 | BU53: 91.4 | BV53: 91.8 | BW53: 89.2 | BX53: 89.9
A54: 1993 | B54: 90.6 | C54: 91.9 | D54: 92.7 | E54: 93.5 | F54: 91.9 | G54: 91.3 | H54: 91 | I54: 93 | J54: 91 | K54: 90.6 | L54: 94.9 | M54: 90.5 | N54: 91 | O54: 92.1 | P54: 89.8 | Q54: 89.6 | R54: *** | S54: 88.9 | T54: 89 | U54: 89 | V54: 88.9 | W54: 91.5 | X54: 91.1 | Y54: 94.4 | Z54: 89.6 | AA54: 88.8 | AB54: 87.8 | AC54: 87.9 | AD54: 87.6 | AE54: 89.3 | AF54: 82 | AG54: 84.4 | AH54: 85.7 | AI54: 89.4 | AJ54: 89.2 | AK54: 85.5 | AL54: 88.2 | AM54: 90.6 | AN54: 86 | AO54: 85.2 | AP54: 87.7 | AQ54: 90.1 | AR54: 85.8 | AS54: 87.4 | AT54: 89.3 | AU54: 89.7 | AV54: 90.6 | AW54: 89.9 | AX54: 88.6 | AY54: 89.1 | AZ54: 89 | BA54: 90.7 | BB54: 87.8 | BC54: 88.7 | BD54: 87.2 | BE54: 87.8 | BF54: 90.7 | BG54: 88.4 | BH54: 90.4 | BI54: 88.6 | BJ54: 93.5 | BK54: 95.5 | BL54: 91.1 | BM54: 93.9 | BN54: 90.3 | BO54: 94.8 | BP54: 94.4 | BQ54: 94.9 | BR54: 90.4 | BS54: 91.2 | BT54: 90.3 | BU54: 92.1 | BV54: 92.2 | BW54: 89.3 | BX54: 90
A55: 1994 | B55: 90.9 | C55: 92.1 | D55: 92.9 | E55: 93.9 | F55: 91.9 | G55: 91.3 | H55: 91.1 | I55: 92.8 | J55: 91.1 | K55: 90.6 | L55: 95.2 | M55: 90.4 | N55: 91 | O55: 91.9 | P55: 89.8 | Q55: 89.7 | R55: *** | S55: 89.4 | T55: 89.4 | U55: 89.4 | V55: 89.3 | W55: 91.8 | X55: 91.4 | Y55: 94.7 | Z55: 90 | AA55: 90.1 | AB55: 88.3 | AC55: 88.4 | AD55: 88.1 | AE55: 90.1 | AF55: 83 | AG55: 84.4 | AH55: 86.4 | AI55: 90.1 | AJ55: 89.7 | AK55: 86 | AL55: 88.1 | AM55: 91.3 | AN55: 85.9 | AO55: 85.2 | AP55: 87.1 | AQ55: 90 | AR55: 86.4 | AS55: 88 | AT55: 89.6 | AU55: 90.4 | AV55: 91 | AW55: 90.5 | AX55: 89.1 | AY55: 89.9 | AZ55: 89.3 | BA55: 90.9 | BB55: 88.2 | BC55: 89.2 | BD55: 87.9 | BE55: 88.4 | BF55: 92 | BG55: 88.6 | BH55: 91.4 | BI55: 88.8 | BJ55: 93.8 | BK55: 94.7 | BL55: 91.1 | BM55: 93.9 | BN55: 90.6 | BO55: 94.2 | BP55: 94.6 | BQ55: 95.2 | BR55: 90.2 | BS55: 91.1 | BT55: 90 | BU55: 92 | BV55: 92.1 | BW55: 89.4 | BX55: 90.1
A56: 1995 | B56: 91 | C56: 92.1 | D56: 92.7 | E56: 93.5 | F56: 91.9 | G56: 91.5 | H56: 91.3 | I56: 92.8 | J56: 91.3 | K56: 90.9 | L56: 94.8 | M56: 90.7 | N56: 91.2 | O56: 92.2 | P56: 90.1 | Q56: 89.9 | R56: *** | S56: 89.7 | T56: 89.7 | U56: 89.8 | V56: 89.7 | W56: 92.2 | X56: 91.9 | Y56: 95.1 | Z56: 90.5 | AA56: 90.5 | AB56: 88.8 | AC56: 89 | AD56: 88.7 | AE56: 90.7 | AF56: 83.2 | AG56: 84.8 | AH56: 86.6 | AI56: 90.3 | AJ56: 90 | AK56: 86 | AL56: 88.3 | AM56: 91.8 | AN56: 86.4 | AO56: 85.5 | AP56: 87.3 | AQ56: 90.3 | AR56: 87 | AS56: 88.5 | AT56: 90 | AU56: 90.7 | AV56: 91.2 | AW56: 90.9 | AX56: 89.4 | AY56: 90.3 | AZ56: 89.3 | BA56: 91.2 | BB56: 88.7 | BC56: 89.4 | BD56: 88.5 | BE56: 88.9 | BF56: 93 | BG56: 88.8 | BH56: 91.5 | BI56: 89 | BJ56: 93.5 | BK56: 93.3 | BL56: 91.2 | BM56: 94.1 | BN56: 90.8 | BO56: 93.7 | BP56: 94.4 | BQ56: 94.8 | BR56: 90.5 | BS56: 91.3 | BT56: 90.3 | BU56: 92.1 | BV56: 92.3 | BW56: 89.6 | BX56: 90.4
A57: 1996 | B57: 91.2 | C57: 92.5 | D57: 93.3 | E57: 94.3 | F57: 92.3 | G57: 91.8 | H57: 91.7 | I57: 93.2 | J57: 91.7 | K57: 91.1 | L57: 95.6 | M57: 90.9 | N57: 91.4 | O57: 92.5 | P57: 90.2 | Q57: 90.1 | R57: *** | S57: 89.7 | T57: 89.7 | U57: 89.9 | V57: 89.7 | W57: 92.3 | X57: 91.9 | Y57: 95.1 | Z57: 90.7 | AA57: 90.4 | AB57: 88.8 | AC57: 89 | AD57: 88.7 | AE57: 90.6 | AF57: 83 | AG57: 84.9 | AH57: 86.6 | AI57: 90.4 | AJ57: 90.1 | AK57: 86 | AL57: 88.4 | AM57: 91.9 | AN57: 86.5 | AO57: 85.6 | AP57: 87.4 | AQ57: 90.4 | AR57: 87 | AS57: 88.5 | AT57: 90.1 | AU57: 90.6 | AV57: 91.2 | AW57: 90.9 | AX57: 89.3 | AY57: 89.9 | AZ57: 88.8 | BA57: 91.2 | BB57: 88.7 | BC57: 89.3 | BD57: 88.4 | BE57: 88.6 | BF57: 92.4 | BG57: 88.5 | BH57: 91.5 | BI57: 88.9 | BJ57: 94.3 | BK57: 94.3 | BL57: 91.7 | BM57: 94.2 | BN57: 91.1 | BO57: 94.2 | BP57: 95.2 | BQ57: 95.6 | BR57: 90.8 | BS57: 91.5 | BT57: 90.7 | BU57: 92.6 | BV57: 92.6 | BW57: 89.7 | BX57: 90.5
A58: 1997 | B58: 91.9 | C58: 93.1 | D58: 93.8 | E58: 94.6 | F58: 93 | G58: 92.6 | H58: 92.4 | I58: 93.9 | J58: 92.3 | K58: 91.9 | L58: 95.8 | M58: 91.7 | N58: 92.3 | O58: 93.3 | P58: 91.1 | Q58: 90.9 | R58: *** | S58: 90.4 | T58: 90.5 | U58: 90.6 | V58: 90.5 | W58: 93.1 | X58: 92.6 | Y58: 96 | Z58: 91.6 | AA58: 91.1 | AB58: 89.5 | AC58: 89.7 | AD58: 89.4 | AE58: 91.4 | AF58: 83.6 | AG58: 85.6 | AH58: 87.3 | AI58: 91.1 | AJ58: 90.8 | AK58: 86.6 | AL58: 89.2 | AM58: 92.6 | AN58: 87.3 | AO58: 86.4 | AP58: 88.2 | AQ58: 91.1 | AR58: 87.7 | AS58: 89.2 | AT58: 90.8 | AU58: 91.4 | AV58: 92 | AW58: 91.5 | AX58: 90.1 | AY58: 90.5 | AZ58: 89.4 | BA58: 92 | BB58: 89.5 | BC58: 90.1 | BD58: 89.2 | BE58: 89.4 | BF58: 93.3 | BG58: 89.4 | BH58: 92.3 | BI58: 89.7 | BJ58: 94.6 | BK58: 94.5 | BL58: 92.4 | BM58: 94.8 | BN58: 91.8 | BO58: 94.9 | BP58: 95.4 | BQ58: 95.8 | BR58: 91.6 | BS58: 92.4 | BT58: 91.5 | BU58: 93.3 | BV58: 93.4 | BW58: 90.6 | BX58: 91.3
A59: 1998 | B59: 90.2 | C59: 91.3 | D59: 91.7 | E59: 92.3 | F59: 91.2 | G59: 90.7 | H59: 90.5 | I59: 92.1 | J59: 90.6 | K59: 90.3 | L59: 93.6 | M59: 90.2 | N59: 90.6 | O59: 91.6 | P59: 89.7 | Q59: 89.4 | R59: *** | S59: 88.8 | T59: 88.9 | U59: 89.1 | V59: 88.9 | W59: 91.6 | X59: 91 | Y59: 94.5 | Z59: 90.2 | AA59: 89.6 | AB59: 87.9 | AC59: 88.1 | AD59: 87.8 | AE59: 89.8 | AF59: 82.1 | AG59: 84 | AH59: 85.7 | AI59: 89.5 | AJ59: 89.2 | AK59: 85.1 | AL59: 87.6 | AM59: 91 | AN59: 85.7 | AO59: 84.9 | AP59: 86.5 | AQ59: 89.4 | AR59: 86.1 | AS59: 87.6 | AT59: 89.2 | AU59: 89.8 | AV59: 90.5 | AW59: 90.1 | AX59: 88.5 | AY59: 88.9 | AZ59: 87.8 | BA59: 90.3 | BB59: 87.9 | BC59: 88.3 | BD59: 87 | BE59: 87.5 | BF59: 90.8 | BG59: 88 | BH59: 90.8 | BI59: 88.1 | BJ59: 92.3 | BK59: 91.8 | BL59: 90.5 | BM59: 93.2 | BN59: 90.2 | BO59: 93 | BP59: 93.2 | BQ59: 93.6 | BR59: 90 | BS59: 90.7 | BT59: 89.6 | BU59: 91.5 | BV59: 91.7 | BW59: 89.2 | BX59: 89.9
A60: 1999 | B60: 89.3 | C60: 90.4 | D60: 91 | E60: 91.7 | F60: 90.3 | G60: 89.9 | H60: 89.7 | I60: 91.2 | J60: 89.8 | K60: 89.4 | L60: 92.8 | M60: 89.2 | N60: 89.7 | O60: 90.6 | P60: 88.7 | Q60: 88.5 | R60: *** | S60: 87.9 | T60: 88.1 | U60: 88.2 | V60: 88.1 | W60: 90.7 | X60: 90.2 | Y60: 93.5 | Z60: 89.5 | AA60: 88.5 | AB60: 87.1 | AC60: 87.3 | AD60: 87 | AE60: 88.9 | AF60: 81.2 | AG60: 83.2 | AH60: 84.9 | AI60: 88.7 | AJ60: 88.5 | AK60: 84.3 | AL60: 86.8 | AM60: 90.2 | AN60: 84.9 | AO60: 84 | AP60: 85.7 | AQ60: 88.5 | AR60: 85.3 | AS60: 86.7 | AT60: 88.4 | AU60: 89 | AV60: 89.7 | AW60: 89.3 | AX60: 87.6 | AY60: 87.8 | AZ60: 86.7 | BA60: 89.4 | BB60: 87.1 | BC60: 87.3 | BD60: 85.8 | BE60: 86.4 | BF60: 89.5 | BG60: 87 | BH60: 90 | BI60: 87.2 | BJ60: 91.7 | BK60: 91.4 | BL60: 89.7 | BM60: 92.4 | BN60: 89.3 | BO60: 92.1 | BP60: 92.4 | BQ60: 92.8 | BR60: 89.1 | BS60: 89.8 | BT60: 88.7 | BU60: 90.6 | BV60: 90.7 | BW60: 88.3 | BX60: 88.9
A61: 2000 | B61: 89.5 | C61: 90.6 | D61: 91.1 | E61: 91.6 | F61: 90.5 | G61: 90.1 | H61: 90 | I61: 91.4 | J61: 90 | K61: 89.6 | L61: 92.8 | M61: 89.4 | N61: 89.9 | O61: 90.9 | P61: 88.9 | Q61: 88.7 | R61: *** | S61: 88.2 | T61: 88.4 | U61: 88.5 | V61: 88.4 | W61: 90.9 | X61: 90.4 | Y61: 93.6 | Z61: 89.7 | AA61: 88.6 | AB61: 87.4 | AC61: 87.6 | AD61: 87.3 | AE61: 89.2 | AF61: 81.5 | AG61: 83.5 | AH61: 85.3 | AI61: 89.1 | AJ61: 88.9 | AK61: 84.8 | AL61: 87.2 | AM61: 90.7 | AN61: 85.3 | AO61: 84.4 | AP61: 86.1 | AQ61: 88.9 | AR61: 85.7 | AS61: 87.1 | AT61: 88.8 | AU61: 89.5 | AV61: 90 | AW61: 89.6 | AX61: 88 | AY61: 88 | AZ61: 87.1 | BA61: 89.8 | BB61: 87.5 | BC61: 87.6 | BD61: 86.3 | BE61: 86.8 | BF61: 89.9 | BG61: 87.2 | BH61: 90.3 | BI61: 87.5 | BJ61: 91.7 | BK61: 91.3 | BL61: 90 | BM61: 92.6 | BN61: 89.5 | BO61: 92.2 | BP61: 92.5 | BQ61: 92.8 | BR61: 89.4 | BS61: 90 | BT61: 89.2 | BU61: 90.9 | BV61: 91 | BW61: 88.5 | BX61: 89
A62: 2001 | B62: 88 | C62: 89.1 | D62: 89.6 | E62: 90.1 | F62: 89.1 | G62: 88.6 | H62: 88.5 | I62: 89.9 | J62: 88.5 | K62: 88.2 | L62: 91.2 | M62: 88 | N62: 88.6 | O62: 89.4 | P62: 87.5 | Q62: 87.3 | R62: *** | S62: 86.7 | T62: 86.8 | U62: 86.9 | V62: 86.7 | W62: 89 | X62: 88.6 | Y62: 91.3 | Z62: 87.8 | AA62: 87.1 | AB62: 85.9 | AC62: 85.9 | AD62: 85.6 | AE62: 87.5 | AF62: 80.1 | AG62: 82 | AH62: 83.7 | AI62: 87.5 | AJ62: 87.3 | AK62: 83.4 | AL62: 85.5 | AM62: 89 | AN62: 84 | AO62: 83.1 | AP62: 84.8 | AQ62: 87.5 | AR62: 84.4 | AS62: 85.5 | AT62: 87.2 | AU62: 87.9 | AV62: 88.4 | AW62: 88.1 | AX62: 86.4 | AY62: 86.4 | AZ62: 85.7 | BA62: 88.3 | BB62: 85.9 | BC62: 86 | BD62: 84.7 | BE62: 85.3 | BF62: 88.3 | BG62: 85.6 | BH62: 88.8 | BI62: 86 | BJ62: 90.1 | BK62: 90 | BL62: 88.5 | BM62: 91.4 | BN62: 87.9 | BO62: 91 | BP62: 90.9 | BQ62: 91.2 | BR62: 88 | BS62: 88.6 | BT62: 87.7 | BU62: 89.4 | BV62: 89.5 | BW62: 87.1 | BX62: 87.6
A63: 2002 | B63: 87.1 | C63: 88.2 | D63: 88.7 | E63: 89 | F63: 88.4 | G63: 87.9 | H63: 87.9 | I63: 89.1 | J63: 87.6 | K63: 87.4 | L63: 90.1 | M63: 87.3 | N63: 87.8 | O63: 88.6 | P63: 86.7 | Q63: 86.5 | R63: *** | S63: 85.8 | T63: 85.8 | U63: 86 | V63: 85.8 | W63: 87.8 | X63: 87.5 | Y63: 89.9 | Z63: 86.4 | AA63: 85.9 | AB63: 85 | AC63: 85.1 | AD63: 84.8 | AE63: 86.6 | AF63: 79 | AG63: 81.3 | AH63: 82.8 | AI63: 86.4 | AJ63: 86.1 | AK63: 82.2 | AL63: 84.7 | AM63: 87.9 | AN63: 83.4 | AO63: 82.7 | AP63: 84.1 | AQ63: 86.6 | AR63: 83.6 | AS63: 84.7 | AT63: 86.2 | AU63: 86.8 | AV63: 87.5 | AW63: 87.2 | AX63: 85.6 | AY63: 85.5 | AZ63: 84.8 | BA63: 87.3 | BB63: 85.1 | BC63: 85.2 | BD63: 84.1 | BE63: 84.4 | BF63: 87.3 | BG63: 85 | BH63: 87.9 | BI63: 85.1 | BJ63: 89 | BK63: 89 | BL63: 87.9 | BM63: 90.5 | BN63: 86.8 | BO63: 90.4 | BP63: 89.8 | BQ63: 90.1 | BR63: 87.2 | BS63: 87.9 | BT63: 87.1 | BU63: 88.7 | BV63: 88.7 | BW63: 86.4 | BX63: 86.8
A64: 2003 | B64: 87.6 | C64: 88.8 | D64: 89.2 | E64: 89.4 | F64: 89 | G64: 88.8 | H64: 88.7 | I64: 89.5 | J64: 88.3 | K64: 87.8 | L64: 90.4 | M64: 87.7 | N64: 88.4 | O64: 89.3 | P64: 87 | Q64: 87.2 | R64: *** | S64: 86.4 | T64: 86.4 | U64: 86.5 | V64: 86.4 | W64: 88.2 | X64: 88 | Y64: 90 | Z64: 86.9 | AA64: 86.5 | AB64: 85.6 | AC64: 85.5 | AD64: 85.2 | AE64: 86.9 | AF64: 79.5 | AG64: 81.9 | AH64: 83.5 | AI64: 86.7 | AJ64: 86.5 | AK64: 82.5 | AL64: 85.5 | AM64: 88.3 | AN64: 84.9 | AO64: 84.4 | AP64: 85.2 | AQ64: 87.6 | AR64: 84.4 | AS64: 85.3 | AT64: 86.7 | AU64: 87.3 | AV64: 87.7 | AW64: 87.7 | AX64: 86.1 | AY64: 86.4 | AZ64: 85.4 | BA64: 87.8 | BB64: 85.7 | BC64: 86 | BD64: 85.3 | BE64: 85.2 | BF64: 87.9 | BG64: 86 | BH64: 88.4 | BI64: 85.5 | BJ64: 89.5 | BK64: 89.6 | BL64: 88.7 | BM64: 90.8 | BN64: 87 | BO64: 90.8 | BP64: 90.3 | BQ64: 90.4 | BR64: 88 | BS64: 88.5 | BT64: 88.1 | BU64: 89.4 | BV64: 89.4 | BW64: 86.9 | BX64: 87.1
A65: 2004 | B65: 88.6 | C65: 89.6 | D65: 90.1 | E65: 89.9 | F65: 90.2 | G65: 90 | H65: 90.1 | I65: 90.5 | J65: 89 | K65: 88.8 | L65: 90.9 | M65: 88.6 | N65: 89.4 | O65: 90.3 | P65: 88 | Q65: 87.7 | R65: *** | S65: 87.4 | T65: 87.3 | U65: 87.4 | V65: 87.3 | W65: 88.7 | X65: 88.9 | Y65: 90.2 | Z65: 87.3 | AA65: 87.2 | AB65: 86.7 | AC65: 86.4 | AD65: 86.2 | AE65: 87.7 | AF65: 80.3 | AG65: 84.1 | AH65: 84.7 | AI65: 86.9 | AJ65: 86.6 | AK65: 82.9 | AL65: 86.7 | AM65: 88.6 | AN65: 86.9 | AO65: 86.6 | AP65: 86.2 | AQ65: 88.5 | AR65: 86 | AS65: 86.6 | AT65: 87.1 | AU65: 87.5 | AV65: 88.6 | AW65: 88 | AX65: 87.1 | AY65: 87.7 | AZ65: 86.2 | BA65: 88.1 | BB65: 86.6 | BC65: 87.5 | BD65: 87.6 | BE65: 86.9 | BF65: 89.8 | BG65: 87.5 | BH65: 88.9 | BI65: 86.8 | BJ65: 89.9 | BK65: 90.5 | BL65: 90.1 | BM65: 91.3 | BN65: 87.6 | BO65: 92.1 | BP65: 90.8 | BQ65: 90.8 | BR65: 88.9 | BS65: 89.4 | BT65: 89.2 | BU65: 90.3 | BV65: 90.4 | BW65: 87.9 | BX65: 88.1
A66: 2005 | B66: 89.7 | C66: 90.4 | D66: 90.8 | E66: 90.5 | F66: 91.1 | G66: 90.5 | H66: 90.8 | I66: 91.4 | J66: 89.6 | K66: 89.6 | L66: 91.5 | M66: 89.5 | N66: 90.2 | O66: 90.9 | P66: 89 | Q66: 88.4 | R66: *** | S66: 88.8 | T66: 88.6 | U66: 88.7 | V66: 88.6 | W66: 89.8 | X66: 89.9 | Y66: 90.9 | Z66: 88.3 | AA66: 88.2 | AB66: 88.1 | AC66: 88 | AD66: 88 | AE66: 89.4 | AF66: 83.5 | AG66: 85.5 | AH66: 86.5 | AI66: 88.1 | AJ66: 87.6 | AK66: 85 | AL66: 87.5 | AM66: 89.9 | AN66: 88.1 | AO66: 88 | AP66: 86.6 | AQ66: 89.4 | AR66: 88.5 | AS66: 88.1 | AT66: 88 | AU66: 88.5 | AV66: 89.9 | AW66: 88.8 | AX66: 88.3 | AY66: 88.7 | AZ66: 87.4 | BA66: 89.3 | BB66: 88 | BC66: 89.2 | BD66: 89.4 | BE66: 89.3 | BF66: 93 | BG66: 89 | BH66: 90 | BI66: 88.2 | BJ66: 90.5 | BK66: 90.9 | BL66: 90.8 | BM66: 92 | BN66: 88.4 | BO66: 93.2 | BP66: 91.1 | BQ66: 91.5 | BR66: 89.5 | BS66: 90.3 | BT66: 89.7 | BU66: 90.8 | BV66: 91 | BW66: 88.8 | BX66: 89.1
A67: 2006 | B67: 91.5 | C67: 92.2 | D67: 92.6 | E67: 92.3 | F67: 92.8 | G67: 92.3 | H67: 92.6 | I67: 93.1 | J67: 91.3 | K67: 91.4 | L67: 93.3 | M67: 91.3 | N67: 92.1 | O67: 92.9 | P67: 90.7 | Q67: 90.1 | R67: *** | S67: 90.6 | T67: 90.1 | U67: 90.2 | V67: 90.1 | W67: 91 | X67: 91.1 | Y67: 92.2 | Z67: 89.3 | AA67: 89.2 | AB67: 89.7 | AC67: 89.6 | AD67: 89.5 | AE67: 90.7 | AF67: 86.3 | AG67: 86.7 | AH67: 88.4 | AI67: 89.9 | AJ67: 89.3 | AK67: 88.6 | AL67: 90.3 | AM67: 91.7 | AN67: 90.3 | AO67: 90.2 | AP67: 88 | AQ67: 93.1 | AR67: 91 | AS67: 89.7 | AT67: 89.8 | AU67: 90.2 | AV67: 91.4 | AW67: 90.1 | AX67: 89.9 | AY67: 90 | AZ67: 89.3 | BA67: 91.1 | BB67: 89.6 | BC67: 91.5 | BD67: 92.9 | BE67: 93.5 | BF67: 96.5 | BG67: 90.6 | BH67: 91.5 | BI67: 89.7 | BJ67: 92.3 | BK67: 93 | BL67: 92.6 | BM67: 93.6 | BN67: 90 | BO67: 94.9 | BP67: 92.9 | BQ67: 93.3 | BR67: 91.4 | BS67: 92.2 | BT67: 91.9 | BU67: 92.8 | BV67: 93 | BW67: 90.5 | BX67: 90.8
A68: 2007 | B68: 93.8 | C68: 94.5 | D68: 94.8 | E68: 94.5 | F68: 95.2 | G68: 94.8 | H68: 95 | I68: 95.3 | J68: 93.4 | K68: 93.8 | L68: 95.5 | M68: 93.7 | N68: 94.6 | O68: 95.5 | P68: 93.1 | Q68: 92.6 | R68: *** | S68: 93 | T68: 92.3 | U68: 92.3 | V68: 92.3 | W68: 92.6 | X68: 92.9 | Y68: 93.8 | Z68: 90.7 | AA68: 91.1 | AB68: 92.1 | AC68: 91.8 | AD68: 91.7 | AE68: 92.8 | AF68: 88.9 | AG68: 89.3 | AH68: 90.6 | AI68: 92.2 | AJ68: 91.5 | AK68: 90.9 | AL68: 94.4 | AM68: 94.1 | AN68: 93.8 | AO68: 93.8 | AP68: 91.6 | AQ68: 97.2 | AR68: 93.7 | AS68: 92 | AT68: 92.3 | AU68: 91.9 | AV68: 93.4 | AW68: 92 | AX68: 92.5 | AY68: 92.3 | AZ68: 92.3 | BA68: 93.6 | BB68: 92.2 | BC68: 94.2 | BD68: 95.8 | BE68: 96.3 | BF68: 98.4 | BG68: 93.5 | BH68: 93.9 | BI68: 92.2 | BJ68: 94.5 | BK68: 95.3 | BL68: 95 | BM68: 95.8 | BN68: 92 | BO68: 97.3 | BP68: 95.1 | BQ68: 95.5 | BR68: 94.1 | BS68: 94.6 | BT68: 94.6 | BU68: 95.4 | BV68: 95.5 | BW68: 93 | BX68: 93.1
A69: 2008 | B69: 96.8 | C69: 97.2 | D69: 97.3 | E69: 96.4 | F69: 98.2 | G69: 98.2 | H69: 98.1 | I69: 98.4 | J69: 96.2 | K69: 96.9 | L69: 97.5 | M69: 96.9 | N69: 97.7 | O69: 98.3 | P69: 96.4 | Q69: 95.7 | R69: *** | S69: 96.5 | T69: 95.9 | U69: 95.8 | V69: 95.8 | W69: 95.6 | X69: 96.2 | Y69: 96.4 | Z69: 93.2 | AA69: 94 | AB69: 95.9 | AC69: 95.6 | AD69: 95.4 | AE69: 95.9 | AF69: 94.2 | AG69: 94.1 | AH69: 95.4 | AI69: 95.9 | AJ69: 95.3 | AK69: 94 | AL69: 98.2 | AM69: 97.3 | AN69: 98.6 | AO69: 98.7 | AP69: 97.5 | AQ69: 100.7 | AR69: 97.5 | AS69: 95.8 | AT69: 95.9 | AU69: 94.1 | AV69: 96.6 | AW69: 94.6 | AX69: 96.4 | AY69: 95.9 | AZ69: 96.8 | BA69: 96.8 | BB69: 96.4 | BC69: 97.5 | BD69: 98.5 | BE69: 97.9 | BF69: 99.6 | BG69: 98.8 | BH69: 97 | BI69: 95.9 | BJ69: 96.4 | BK69: 97.6 | BL69: 98.1 | BM69: 98.5 | BN69: 95 | BO69: 100.5 | BP69: 97.1 | BQ69: 97.5 | BR69: 97.6 | BS69: 97.7 | BT69: 97.6 | BU69: 98.3 | BV69: 98.4 | BW69: 96.4 | BX69: 96.3
A70: 2009 | B70: 93.4 | C70: 93.6 | D70: 94 | E70: 93.9 | F70: 94.1 | G70: 93.9 | H70: 94.2 | I70: 93.9 | J70: 92.8 | K70: 92.9 | L70: 94.8 | M70: 92.8 | N70: 93.6 | O70: 94.3 | P70: 92.3 | Q70: 91.4 | R70: *** | S70: 93.1 | T70: 92.7 | U70: 92.7 | V70: 92.7 | W70: 92.6 | X70: 92.8 | Y70: 93.2 | Z70: 91.1 | AA70: 92 | AB70: 92.7 | AC70: 92.6 | AD70: 92.6 | AE70: 93.1 | AF70: 92.5 | AG70: 88.6 | AH70: 92.8 | AI70: 92.9 | AJ70: 92.6 | AK70: 92.6 | AL70: 90 | AM70: 93.9 | AN70: 92.3 | AO70: 92.1 | AP70: 90.3 | AQ70: 93.6 | AR70: 93.7 | AS70: 92.7 | AT70: 92.7 | AU70: 91.3 | AV70: 93.7 | AW70: 92.3 | AX70: 92.9 | AY70: 92.5 | AZ70: 93 | BA70: 93.1 | BB70: 92.8 | BC70: 93.6 | BD70: 93.9 | BE70: 93.1 | BF70: 96.5 | BG70: 94 | BH70: 94.7 | BI70: 92.4 | BJ70: 93.9 | BK70: 94.1 | BL70: 94.2 | BM70: 95.8 | BN70: 91.5 | BO70: 95.2 | BP70: 94.2 | BQ70: 94.9 | BR70: 93 | BS70: 93.7 | BT70: 93.1 | BU70: 94.1 | BV70: 94.4 | BW70: 92.1 | BX70: 92.4
A71: 2010 | B71: 93.5 | C71: 93.5 | D71: 93.8 | E71: 93.7 | F71: 93.9 | G71: 93.9 | H71: 94.2 | I71: 93.7 | J71: 92.7 | K71: 92.9 | L71: 94.6 | M71: 92.8 | N71: 93.6 | O71: 94.4 | P71: 92.2 | Q71: 91.6 | R71: *** | S71: 93.4 | T71: 93.1 | U71: 92.9 | V71: 92.8 | W71: 92.5 | X71: 92.8 | Y71: 93 | Z71: 91.1 | AA71: 92.1 | AB71: 93 | AC71: 92.9 | AD71: 92.9 | AE71: 93.3 | AF71: 93.5 | AG71: 89 | AH71: 93.1 | AI71: 92.9 | AJ71: 92.8 | AK71: 93.5 | AL71: 92.2 | AM71: 94.1 | AN71: 93.7 | AO71: 93.7 | AP71: 90.9 | AQ71: 95.2 | AR71: 94.4 | AS71: 93.1 | AT71: 92.8 | AU71: 91.5 | AV71: 93.5 | AW71: 92.3 | AX71: 93.5 | AY71: 92.8 | AZ71: 93.9 | BA71: 93.2 | BB71: 93.4 | BC71: 93.9 | BD71: 94.9 | BE71: 94 | BF71: 96.8 | BG71: 94.1 | BH71: 94.6 | BI71: 92.4 | BJ71: 93.7 | BK71: 94.3 | BL71: 94.2 | BM71: 95.4 | BN71: 91.2 | BO71: 95.1 | BP71: 94 | BQ71: 94.6 | BR71: 93.1 | BS71: 93.6 | BT71: 93.4 | BU71: 94.2 | BV71: 94.5 | BW71: 92.1 | BX71: 92.2
A72: 2011 | B72: 94.7 | C72: 94.7 | D72: 95.1 | E72: 94.9 | F72: 95.1 | G72: 95.1 | H72: 95.4 | I72: 94.9 | J72: 94 | K72: 94.2 | L72: 95.7 | M72: 94.1 | N72: 94.8 | O72: 95.7 | P72: 93.4 | Q72: 92.9 | R72: *** | S72: 94.7 | T72: 94.4 | U72: 94.4 | V72: 94.4 | W72: 94.1 | X72: 94.4 | Y72: 94.4 | Z72: 92.5 | AA72: 93.3 | AB72: 94.6 | AC72: 94.3 | AD72: 94.3 | AE72: 94.9 | AF72: 95.2 | AG72: 90.4 | AH72: 94.6 | AI72: 94.5 | AJ72: 94.2 | AK72: 94.8 | AL72: 95.1 | AM72: 95.2 | AN72: 95.5 | AO72: 95.8 | AP72: 92 | AQ72: 96.2 | AR72: 95.7 | AS72: 94.6 | AT72: 94.3 | AU72: 93 | AV72: 94.9 | AW72: 93.7 | AX72: 94.7 | AY72: 94.2 | AZ72: 95.6 | BA72: 94.5 | BB72: 95 | BC72: 95.1 | BD72: 96.2 | BE72: 95 | BF72: 97.1 | BG72: 95.3 | BH72: 95.9 | BI72: 93.6 | BJ72: 94.9 | BK72: 95.9 | BL72: 95.4 | BM72: 96.6 | BN72: 92.5 | BO72: 96.2 | BP72: 95.2 | BQ72: 95.7 | BR72: 94.3 | BS72: 94.9 | BT72: 94.8 | BU72: 95.6 | BV72: 95.8 | BW72: 93.4 | BX72: 93.4
A73: 2012 | B73: 94.1 | C73: 93.9 | D73: 94.2 | E73: 94 | F73: 94.3 | G73: 94.3 | H73: 94.6 | I73: 94 | J73: 93.3 | K73: 93.6 | L73: 94.8 | M73: 93.5 | N73: 94.1 | O73: 94.8 | P73: 92.9 | Q73: 92.4 | R73: *** | S73: 94.2 | T73: 94.1 | U73: 94.1 | V73: 94.1 | W73: 93.7 | X73: 94 | Y73: 93.8 | Z73: 92.4 | AA73: 92.9 | AB73: 94.1 | AC73: 94 | AD73: 93.9 | AE73: 94.5 | AF73: 95.2 | AG73: 89.7 | AH73: 94.2 | AI73: 94.4 | AJ73: 94.1 | AK73: 94.5 | AL73: 93.7 | AM73: 94.9 | AN73: 94.6 | AO73: 94.7 | AP73: 92.1 | AQ73: 94.9 | AR73: 95 | AS73: 94.1 | AT73: 94.1 | AU73: 94.3 | AV73: 94.5 | AW73: 93.2 | AX73: 94.4 | AY73: 94 | AZ73: 95.5 | BA73: 94.4 | BB73: 94.5 | BC73: 94.4 | BD73: 95.1 | BE73: 94.2 | BF73: 96.3 | BG73: 94.7 | BH73: 95.2 | BI73: 93.3 | BJ73: 94 | BK73: 94.5 | BL73: 94.6 | BM73: 95.7 | BN73: 92 | BO73: 95.1 | BP73: 94.2 | BQ73: 94.8 | BR73: 93.7 | BS73: 94.2 | BT73: 94.1 | BU73: 94.7 | BV73: 94.9 | BW73: 92.9 | BX73: 92.9
A74: 2013 | B74: 96.5 | C74: 96.5 | D74: 97 | E74: 97 | F74: 96.9 | G74: 96.6 | H74: 97.2 | I74: 96.7 | J74: 95.5 | K74: 95.9 | L74: 97.1 | M74: 95.8 | N74: 96.2 | O74: 97 | P74: 95.3 | Q74: 94.8 | R74: *** | S74: 96.4 | T74: 96.3 | U74: 96.3 | V74: 96.3 | W74: 95.9 | X74: 96.2 | Y74: 95.9 | Z74: 94.8 | AA74: 95.4 | AB74: 96.5 | AC74: 96.2 | AD74: 96.1 | AE74: 96.8 | AF74: 97.3 | AG74: 93.2 | AH74: 96 | AI74: 96.4 | AJ74: 96.1 | AK74: 96.3 | AL74: 96.3 | AM74: 97 | AN74: 97.6 | AO74: 97.9 | AP74: 94.9 | AQ74: 96.9 | AR74: 97 | AS74: 96.4 | AT74: 96.3 | AU74: 95.7 | AV74: 96.3 | AW74: 95.4 | AX74: 96.7 | AY74: 96.6 | AZ74: 97.3 | BA74: 96.3 | BB74: 96.7 | BC74: 96.6 | BD74: 97.5 | BE74: 96.6 | BF74: 98 | BG74: 96.6 | BH74: 96.9 | BI74: 95.6 | BJ74: 97 | BK74: 97.4 | BL74: 97.2 | BM74: 97.5 | BN74: 94.5 | BO74: 97.9 | BP74: 96.9 | BQ74: 97 | BR74: 96 | BS74: 96.3 | BT74: 96.5 | BU74: 96.9 | BV74: 97.1 | BW74: 95.3 | BX74: 95.3
A75: 2014 | B75: 99.8 | C75: 99.8 | D75: 100.2 | E75: 100 | F75: 100.3 | G75: 99.5 | H75: 100.4 | I75: 100.2 | J75: 98.9 | K75: 99.3 | L75: 99.9 | M75: 99.3 | N75: 99.3 | O75: 100 | P75: 99.2 | Q75: 98.6 | R75: *** | S75: 99.7 | T75: 99.7 | U75: 99.7 | V75: 99.7 | W75: 99.4 | X75: 99.6 | Y75: 99.6 | Z75: 98.8 | AA75: 99.4 | AB75: 99.9 | AC75: 99.5 | AD75: 99.5 | AE75: 100.2 | AF75: 100.5 | AG75: 98.4 | AH75: 98.8 | AI75: 99.7 | AJ75: 99.6 | AK75: 99.1 | AL75: 99.8 | AM75: 100 | AN75: 101.2 | AO75: 101.4 | AP75: 99.2 | AQ75: 99.6 | AR75: 99.8 | AS75: 99.8 | AT75: 99.9 | AU75: 99.7 | AV75: 99.4 | AW75: 99.3 | AX75: 100 | AY75: 100.3 | AZ75: 100 | BA75: 99.8 | BB75: 99.9 | BC75: 99.7 | BD75: 100.5 | BE75: 99.6 | BF75: 100.5 | BG75: 99.5 | BH75: 99.4 | BI75: 99.3 | BJ75: 100 | BK75: 100.3 | BL75: 100.4 | BM75: 100.2 | BN75: 98.6 | BO75: 100.9 | BP75: 99.7 | BQ75: 99.9 | BR75: 99.1 | BS75: 99.4 | BT75: 99.7 | BU75: 99.7 | BV75: 100.1 | BW75: 99 | BX75: 99.2
A76: 2015 | B76: 100 | C76: 100 | D76: 100 | E76: 100 | F76: 100 | G76: 100 | H76: 100 | I76: 100 | J76: 100 | K76: 100 | L76: 100 | M76: 100 | N76: 100 | O76: 100 | P76: 100 | Q76: 100 | R76: 100 | S76: 100 | T76: 100 | U76: 100 | V76: 100 | W76: 100 | X76: 100 | Y76: 100 | Z76: 100 | AA76: 100 | AB76: 100 | AC76: 100 | AD76: 100 | AE76: 100 | AF76: 100 | AG76: 100 | AH76: 100 | AI76: 100 | AJ76: 100 | AK76: 100 | AL76: 100 | AM76: 100 | AN76: 100 | AO76: 100 | AP76: 100 | AQ76: 100 | AR76: 100 | AS76: 100 | AT76: 100 | AU76: 100 | AV76: 100 | AW76: 100 | AX76: 100 | AY76: 100 | AZ76: 100 | BA76: 100 | BB76: 100 | BC76: 100 | BD76: 100 | BE76: 100 | BF76: 100 | BG76: 100 | BH76: 100 | BI76: 100 | BJ76: 100 | BK76: 100 | BL76: 100 | BM76: 100 | BN76: 100 | BO76: 100 | BP76: 100 | BQ76: 100 | BR76: 100 | BS76: 100 | BT76: 100 | BU76: 100 | BV76: 100 | BW76: 100 | BX76: 100
A77: 2016 | B77: 100.3 | C77: 100.3 | D77: 100.3 | E77: 100.4 | F77: 100.1 | G77: 99.9 | H77: 100.2 | I77: 100 | J77: 100.2 | K77: 100.3 | L77: 100.3 | M77: 100.3 | N77: 100.3 | O77: 100 | P77: 100.4 | Q77: 100.3 | R77: 100.1 | S77: 100.3 | T77: 100.4 | U77: 100.4 | V77: 100.4 | W77: 100.8 | X77: 100.7 | Y77: 100.9 | Z77: 100.8 | AA77: 100.5 | AB77: 100.4 | AC77: 100.4 | AD77: 100.5 | AE77: 100.5 | AF77: 99.8 | AG77: 100.5 | AH77: 100.5 | AI77: 100.3 | AJ77: 100.4 | AK77: 99.7 | AL77: 100.4 | AM77: 99.9 | AN77: 100.1 | AO77: 100.1 | AP77: 100.4 | AQ77: 98.5 | AR77: 100.1 | AS77: 100.4 | AT77: 100.2 | AU77: 100.2 | AV77: 100.5 | AW77: 100.5 | AX77: 100.4 | AY77: 100.3 | AZ77: 100.1 | BA77: 100.7 | BB77: 100.5 | BC77: 100 | BD77: 99.7 | BE77: 100 | BF77: 100 | BG77: 100.1 | BH77: 100.4 | BI77: 100.1 | BJ77: 100.4 | BK77: 100.3 | BL77: 100.2 | BM77: 99.6 | BN77: 100.4 | BO77: 99.8 | BP77: 100.4 | BQ77: 100.3 | BR77: 100 | BS77: 100.4 | BT77: 100.1 | BU77: 100.2 | BV77: 99.9 | BW77: 100.5 | BX77: 100.4
A78: 2017 | B78: 102.3 | C78: 102.2 | D78: 102.1 | E78: 101.9 | F78: 102.3 | G78: 102.1 | H78: 102.5 | I78: 102 | J78: 102.5 | K78: 102.3 | L78: 102 | M78: 102.3 | N78: 102.1 | O78: 102.1 | P78: 102.4 | Q78: 102.4 | R78: 102 | S78: 102.4 | T78: 102.6 | U78: 102.6 | V78: 102.6 | W78: 103.1 | X78: 103.1 | Y78: 103 | Z78: 103.2 | AA78: 103 | AB78: 102.6 | AC78: 102.6 | AD78: 102.6 | AE78: 102.7 | AF78: 101.3 | AG78: 103.2 | AH78: 102.3 | AI78: 102.6 | AJ78: 102.5 | AK78: 101.8 | AL78: 103.1 | AM78: 102.8 | AN78: 102.8 | AO78: 102.9 | AP78: 102.7 | AQ78: 100.7 | AR78: 102.1 | AS78: 102.7 | AT78: 102.5 | AU78: 101.7 | AV78: 102.5 | AW78: 102.2 | AX78: 102.5 | AY78: 102.3 | AZ78: 101.6 | BA78: 102.3 | BB78: 102.7 | BC78: 102.1 | BD78: 102.5 | BE78: 102.6 | BF78: 102.1 | BG78: 102 | BH78: 101.9 | BI78: 101.9 | BJ78: 101.9 | BK78: 102.1 | BL78: 102.6 | BM78: 101.5 | BN78: 102.6 | BO78: 101.7 | BP78: 102.3 | BQ78: 102 | BR78: 102.2 | BS78: 102.1 | BT78: 102.5 | BU78: 102 | BV78: 102.1 | BW78: 102.5 | BX78: 102.4
A79: 2018 | B79: 105.6 | C79: 105.4 | D79: 105.2 | E79: 104.7 | F79: 105.8 | G79: 105.4 | H79: 106.2 | I79: 105.1 | J79: 106 | K79: 105.7 | L79: 104.9 | M79: 105.8 | N79: 105.5 | O79: 105.4 | P79: 106 | Q79: 105.8 | R79: 104.9 | S79: 106 | T79: 106.3 | U79: 106.3 | V79: 106.4 | W79: 106.7 | X79: 106.8 | Y79: 106.4 | Z79: 106.7 | AA79: 106.6 | AB79: 106.6 | AC79: 106.4 | AD79: 106.4 | AE79: 106.5 | AF79: 105.1 | AG79: 107.6 | AH79: 106.1 | AI79: 106 | AJ79: 106.1 | AK79: 104.9 | AL79: 107.1 | AM79: 105.9 | AN79: 107.3 | AO79: 107.5 | AP79: 106.8 | AQ79: 104.5 | AR79: 105.8 | AS79: 106.7 | AT79: 106 | AU79: 104.3 | AV79: 105.7 | AW79: 105.4 | AX79: 106.2 | AY79: 105.9 | AZ79: 105 | BA79: 105.5 | BB79: 106.6 | BC79: 105.6 | BD79: 105.9 | BE79: 105.9 | BF79: 105.2 | BG79: 105.8 | BH79: 105.3 | BI79: 105.4 | BJ79: 104.7 | BK79: 104.8 | BL79: 106.2 | BM79: 104.6 | BN79: 106.3 | BO79: 104.4 | BP79: 105.5 | BQ79: 104.9 | BR79: 105.7 | BS79: 105.4 | BT79: 106.5 | BU79: 105.2 | BV79: 105.3 | BW79: 106.2 | BX79: 105.8
A80: 2019 | B80: 108 | C80: 107.8 | D80: 107.5 | E80: 107 | F80: 108.1 | G80: 107.7 | H80: 108.6 | I80: 107.3 | J80: 108.2 | K80: 108.2 | L80: 107.3 | M80: 108.3 | N80: 108 | O80: 107.6 | P80: 108.6 | Q80: 108.1 | R80: 107.5 | S80: 108.5 | T80: 108.8 | U80: 108.9 | V80: 108.9 | W80: 109.3 | X80: 109.3 | Y80: 109.1 | Z80: 109.2 | AA80: 109 | AB80: 109.2 | AC80: 109 | AD80: 109.1 | AE80: 109.1 | AF80: 108.1 | AG80: 110.1 | AH80: 108.8 | AI80: 108.4 | AJ80: 108.6 | AK80: 107.3 | AL80: 109.7 | AM80: 108.1 | AN80: 109.9 | AO80: 110.1 | AP80: 109.7 | AQ80: 107 | AR80: 108.4 | AS80: 109.3 | AT80: 108.5 | AU80: 106.2 | AV80: 108.3 | AW80: 108.1 | AX80: 108.7 | AY80: 108.3 | AZ80: 107.4 | BA80: 108.1 | BB80: 109.2 | BC80: 108 | BD80: 107.9 | BE80: 108 | BF80: 107.6 | BG80: 108.9 | BH80: 107.9 | BI80: 107.8 | BJ80: 107 | BK80: 106.7 | BL80: 108.7 | BM80: 106.8 | BN80: 108.8 | BO80: 106.3 | BP80: 107.8 | BQ80: 107.2 | BR80: 108.1 | BS80: 108 | BT80: 109 | BU80: 107.5 | BV80: 107.5 | BW80: 109 | BX80: 108.4
A81: 2020 | B81: 108 | C81: 107.7 | D81: 107.3 | E81: 106.9 | F81: 107.9 | G81: 107.4 | H81: 108.4 | I81: 107.1 | J81: 108 | K81: 108.3 | L81: 107.2 | M81: 108.3 | N81: 107.8 | O81: 107.7 | P81: 108.7 | Q81: 108.2 | R81: 107.5 | S81: 108.4 | T81: 108.7 | U81: 108.7 | V81: 108.8 | W81: 109.3 | X81: 109.2 | Y81: 109.4 | Z81: 109.3 | AA81: 108.7 | AB81: 108.8 | AC81: 108.7 | AD81: 108.7 | AE81: 108.9 | AF81: 107.9 | AG81: 109.7 | AH81: 108.3 | AI81: 108.4 | AJ81: 108.2 | AK81: 107.5 | AL81: 109.6 | AM81: 109.1 | AN81: 109.4 | AO81: 109.6 | AP81: 109.7 | AQ81: 106.2 | AR81: 107.8 | AS81: 108.9 | AT81: 108.5 | AU81: 106.1 | AV81: 108.7 | AW81: 108.1 | AX81: 108.4 | AY81: 108.1 | AZ81: 106.9 | BA81: 108.1 | BB81: 108.8 | BC81: 108 | BD81: 108 | BE81: 108.4 | BF81: 107.9 | BG81: 108.9 | BH81: 107.2 | BI81: 107.6 | BJ81: 106.9 | BK81: 106.2 | BL81: 108.4 | BM81: 106.4 | BN81: 109 | BO81: 105.8 | BP81: 107.7 | BQ81: 107.1 | BR81: 107.9 | BS81: 107.8 | BT81: 108.8 | BU81: 107.5 | BV81: 107.6 | BW81: 108.8 | BX81: 108.6
A82: 2021 | B82: 113.3 | C82: 114.1 | D82: 115.2 | E82: 116 | F82: 114 | G82: 112.9 | H82: 114.3 | I82: 113.6 | J82: 115.1 | K82: 112.8 | L82: 114.4 | M82: 112.7 | N82: 111.8 | O82: 113.2 | P82: 112.6 | Q82: 112.6 | R82: 111.8 | S82: 112.9 | T82: 112.8 | U82: 112.9 | V82: 113 | W82: 113.3 | X82: 113.4 | Y82: 112.8 | Z82: 113.2 | AA82: 113.7 | AB82: 113.3 | AC82: 112.6 | AD82: 112.6 | AE82: 113.1 | AF82: 110.8 | AG82: 114.9 | AH82: 111.6 | AI82: 112.9 | AJ82: 112.2 | AK82: 112 | AL82: 114.8 | AM82: 115.3 | AN82: 115.3 | AO82: 115.6 | AP82: 114.2 | AQ82: 112.2 | AR82: 111.8 | AS82: 113.3 | AT82: 113.1 | AU82: 109.2 | AV82: 112.4 | AW82: 111.1 | AX82: 112.6 | AY82: 112.1 | AZ82: 110.6 | BA82: 111.1 | BB82: 113.4 | BC82: 113 | BD82: 114.9 | BE82: 114.1 | BF82: 112.9 | BG82: 113.7 | BH82: 110.4 | BI82: 111.4 | BJ82: 115.9 | BK82: 118 | BL82: 114.3 | BM82: 112.3 | BN82: 113.8 | BO82: 113.5 | BP82: 115.9 | BQ82: 114.3 | BR82: 112.7 | BS82: 111.6 | BT82: 114.4 | BU82: 112.2 | BV82: 113.4 | BW82: 112.7 | BX82: 112.6
A83: 2022年度（暫定） | B83: 120.3 | C83: 121.2 | D83: 122.2 | E83: 122.4 | F83: 122 | G83: 120.7 | H83: 122.1 | I83: 121.9 | J83: 122.9 | K83: 120.1 | L83: 120.4 | M83: 120.1 | N83: 118.6 | O83: 121.2 | P83: 119.8 | Q83: 119.5 | R83: 120 | S83: 119.3 | T83: 119 | U83: 119.1 | V83: 119.2 | W83: 119 | X83: 119 | Y83: 118.4 | Z83: 119.2 | AA83: 119.9 | AB83: 119.8 | AC83: 118.7 | AD83: 118.7 | AE83: 119.3 | AF83: 117.1 | AG83: 123 | AH83: 117 | AI83: 118.9 | AJ83: 118 | AK83: 118.6 | AL83: 123.5 | AM83: 121.5 | AN83: 124 | AO83: 124.5 | AP83: 122.8 | AQ83: 120.5 | AR83: 118.3 | AS83: 119.9 | AT83: 119.6 | AU83: 113.8 | AV83: 118.6 | AW83: 116.7 | AX83: 118.9 | AY83: 118.5 | AZ83: 116.4 | BA83: 116 | BB83: 119.9 | BC83: 119.8 | BD83: 122.1 | BE83: 120 | BF83: 118.3 | BG83: 122.8 | BH83: 115.1 | BI83: 118 | BJ83: 122.3 | BK83: 126.7 | BL83: 122.1 | BM83: 120.5 | BN83: 121.6 | BO83: 122.1 | BP83: 122.4 | BQ83: 120.2 | BR83: 120.8 | BS83: 118.3 | BT83: 122.9 | BU83: 119.2 | BV83: 121.7 | BW83: 120.1 | BX83: 119.7
A84: 2023年度（暫定） | B84: 123.4 | C84: 123.7 | D84: 123.5 | E84: 122.4 | F84: 125 | G84: 124 | H84: 125 | I84: 125 | J84: 125.6 | K84: 124.1 | L84: 121.5 | M84: 124.3 | N84: 122.4 | O84: 125.1 | P84: 124.1 | Q84: 123.6 | R84: 124.1 | S84: 122.8 | T84: 122.7 | U84: 122.7 | V84: 122.8 | W84: 123 | X84: 122.6 | Y84: 122.5 | Z84: 124.5 | AA84: 124.2 | AB84: 123.3 | AC84: 122.1 | AD84: 122.1 | AE84: 123.3 | AF84: 119.6 | AG84: 127.5 | AH84: 119.5 | AI84: 122.5 | AJ84: 121.6 | AK84: 122.4 | AL84: 127.6 | AM84: 125 | AN84: 128 | AO84: 128.7 | AP84: 127.1 | AQ84: 121.6 | AR84: 121.3 | AS84: 123.4 | AT84: 123.2 | AU84: 116.9 | AV84: 122.1 | AW84: 120.8 | AX84: 122.8 | AY84: 122.8 | AZ84: 119.5 | BA84: 119.1 | BB84: 123.9 | BC84: 122.9 | BD84: 124.7 | BE84: 123 | BF84: 120.4 | BG84: 127.1 | BH84: 117.3 | BI84: 121.4 | BJ84: 122.3 | BK84: 125.4 | BL84: 125 | BM84: 123.8 | BN84: 125.6 | BO84: 124.6 | BP84: 123.6 | BQ84: 121.4 | BR84: 125.1 | BS84: 122 | BT84: 127.3 | BU84: 122.6 | BV84: 125.8 | BW84: 124.3 | BX84: 123.9
A85: 2024年度（暫定） | B85: 128.4 | C85: 128.4 | D85: 127.6 | E85: 126.2 | F85: 129.7 | G85: 128.9 | H85: 130 | I85: 129.3 | J85: 130.3 | K85: 129.3 | L85: 126 | M85: 129.6 | N85: 127.6 | O85: 130 | P85: 129.6 | Q85: 129 | R85: 129.1 | S85: 128.2 | T85: 128.2 | U85: 128.3 | V85: 128.4 | W85: 128.9 | X85: 128.4 | Y85: 128.5 | Z85: 130.5 | AA85: 129.8 | AB85: 128.8 | AC85: 127.7 | AD85: 127.6 | AE85: 129 | AF85: 124.8 | AG85: 132.7 | AH85: 125 | AI85: 128.5 | AJ85: 127.1 | AK85: 128.4 | AL85: 132.9 | AM85: 132.7 | AN85: 132.7 | AO85: 133.3 | AP85: 132.3 | AQ85: 127.1 | AR85: 126.3 | AS85: 128.8 | AT85: 129 | AU85: 122.4 | AV85: 127.9 | AW85: 126.3 | AX85: 128.2 | AY85: 127.9 | AZ85: 124.4 | BA85: 124.6 | BB85: 129.5 | BC85: 128.2 | BD85: 130.4 | BE85: 129.5 | BF85: 126.6 | BG85: 131.5 | BH85: 122.3 | BI85: 126.3 | BJ85: 126.1 | BK85: 127.8 | BL85: 130 | BM85: 128.1 | BN85: 131.3 | BO85: 128.1 | BP85: 127.9 | BQ85: 125.9 | BR85: 130.2 | BS85: 127.2 | BT85: 132.2 | BU85: 127.5 | BV85: 130.7 | BW85: 129.7 | BX85: 129.5
B87: （注）
B88: * 2021年4月分の公表から、基準年を2015年度基準に改定しています。（2021年6月30日付け）
B89: * 2019年度までの数値については、当該年度の実績を基に算出した建設投資のウエイトを用いています。また、2020年度以降は2017～2019年度の平均値を暫定的に用いています。
B90: * 「道路1」は「道路改良」、「道路舗装」、「道路橋梁」、「道路補修」を、「道路2」は「道路1」と「高速道路株式会社」を、「街路1」 は「街路改良」、「街路舗装」、「街路橋梁」、「区画整理」を、「街路2」は「街路1」、「首都高速道路株式会社」、「阪神高速道路株式会社」を総合したものです。
B91: * 「高速道路株式会社」は、「東日本高速道路株式会社」、「中日本高速道路株式会社」、「西日本高速道路株式会社」を統合したものです。
B92: * 建設工事費デフレーターは、営業余剰や間接税(消費税を含む)等をウエイト項目に含めていないため、それらを含みません。
B93: * 建設工事費とは、「本工事費」、「付帯工事費」、「測量及び試験費」、「機械器具費」、「営繕費」からなり、「用地費」と「補償費」は含みません。
B94: * 「河川総合開発」の内容は河川総合開発事業、多目的ダム建設事業等であり、工事種類としては堤体、管理施設、放流設備、ダム用仮設備（工事用道路を含む）、補償工事（付替道路を含む）等となっています。
B95: * 企業向けサービス価格指数の基準年は2015年、毎月勤労統計調査、消費者物価指数、企業物価指数の基準年は2020年に移行していますが、2015年度基準に換算して建設工事費デフレーターの算出に使用しています。
